Workbook

Sheet portada
G3: Subsecretaría de Agricultura, Pesca y Alimentación.
G8: Subdirección General de Análisis, Coordinación y Estadística
G9: Servicio de Estadísticas Agrarias
C27: AVANCES DE SUPERFICIES Y PRODUCCIONES AGRÍCOLAS
C30: ESTIMACIONES DE JUNIO
E40: 1. COMENTARIO
E42: 2. ÍNDICE
E44: 3. DISPONIBLE EN LA WEB DEL MAPA:
E45: http://www.mapa.es/
H68: FECHA: Madrid, 30/06/2025 | L68: =TODAY() -> 2025-10-03

Sheet índice
A3: ÍNDICE
A7: Resumen de cifras nacionales ............................................................................... páginas 3 y 5
A9: Análisis provincial y autonómico ......................................................................... páginas 6 y 240
D11: página: | I11: página: | N11: página: | S11: página: | X11: página:
A14: trigo de invierno s/r/t | D14: 6 | F14: sorgo s/r/t | I14: 58 | K14: cereal de invierno para forraje s/r/t | N14: 110 | P14: cebolla.- resumen general s/r/t | S14: 162 | U14: ciruelo s/r/t | X14: 214
A16: trigo de invierno | D16: 7 | F16: sorgo | I16: 59 | K16: cereal de invierno para forraje | N16: 111 | P16: cebolla.- resumen general | S16: 163 | U16: ciruelo | X16: 215
A18: trigo duro de invierno s/r/t | D18: 8 | F18: quinoa s/r/t | I18: 60 | K18: maíz forrajero s/r/t | N18: 112 | P18: zanahoria s/r/t | S18: 164 | U18: higuera s/r/t | X18: 216
A20: trigo duro de invierno | D20: 9 | F20: quinoa | I20: 61 | K20: maíz forrajero | N20: 113 | P20: zanahoria | S20: 165 | U20: higuera | X20: 217
A22: trigo blando y semi de invierno s/r/t | D22: 10 | F22: arroz indica s/r/t | I22: 62 | K22: trébol s/r/t | N22: 114 | P22: rábanos s/r/t | S22: 166 | U22: kiwi s/r/t | X22: 218
A24: trigo blando y semi de invierno | D24: 11 | F24: arroz indica | I24: 63 | K24: trébol | N24: 115 | P24: rábanos | S24: 167 | U24: kiwi | X24: 219
A26: trigo de primavera s/r/t | D26: 12 | F26: arroz japónica s/r/t | I26: 64 | K26: esparceta s/r/t | N26: 116 | P26: guisantes verdes. en grano (sin vaina) s/r/t | S26: 168 | U26: mango s/r/t | X26: 220
A28: trigo de primavera | D28: 13 | F28: arroz japónica | I28: 65 | K28: esparceta | N28: 117 | P28: guisantes verdes. en grano (sin vaina) | S28: 169 | U28: mango | X28: 221
A30: trigo duro de primavera s/r/t | D30: 14 | F30: arroz (cáscara) s/r/t | I30: 66 | K30: veza para forraje s/r/t | N30: 118 | P30: habas verdes. en grano (sin vaina) s/r/t | S30: 170 | U30: grosellero s/r/t | X30: 222
A32: trigo duro de primavera | D32: 15 | F32: arroz (cáscara) | I32: 67 | K32: veza para forraje | N32: 119 | P32: habas verdes. en grano (sin vaina) | S32: 171 | U32: grosellero | X32: 223
A34: trigo blando y semi de primavera s/r/t | D34: 16 | F34: judías secas s/r/t | I34: 68 | K34: col.- resumen general s/r/t | N34: 120 | P34: fresa y fresón s/r/t | S34: 172 | U34: frambueso s/r/t | X34: 224
A36: trigo blando y semi de primavera | D36: 17 | F36: judías secas | I36: 69 | K36: col.- resumen general | N36: 121 | P36: fresa y fresón | S36: 173 | U36: frambueso | X36: 225
A38: trigo. resumen general s/r/t | D38: 18 | F38: habas secas s/r/t | I38: 70 | K38: escarola s/r/t | N38: 122 | P38: champiñon s/r/t | S38: 174 | U38: arándano s/r/t | X38: 226
A40: trigo. resumen general | D40: 19 | F40: habas secas | I40: 71 | K40: escarola | N40: 123 | P40: champiñon | S40: 175 | U40: arándano | X40: 227
A42: trigo duro s/r/t | D42: 20 | F42: lentejas s/r/t | I42: 72 | K42: espinaca s/r/t | N42: 124 | P42: otras setas s/r/t | S42: 176 | U42: almendro (cáscara) s/r/t | X42: 228
A44: trigo duro | D44: 21 | F44: lentejas | I44: 73 | K44: espinaca | N44: 125 | P44: otras setas | S44: 177 | U44: almendro (cáscara) | X44: 229
A46: trigo semiduro y blando s/r/t | D46: 22 | F46: garbanzos s/r/t | I46: 74 | K46: endivias s/r/t | N46: 126 | P46: naranja dulce s/r/t | S46: 178 | U46: avellano (cáscara) s/r/t | X46: 230
A48: trigo semiduro y blando | D48: 23 | F48: garbanzos | I48: 75 | K48: endivias | N48: 127 | P48: naranja dulce | S48: 179 | U48: avellano (cáscara) | X48: 231
A50: centeno s/r/t | D50: 24 | F50: guisantes secos s/r/t | I50: 76 | K50: para formar raíz endivia s/r/t | N50: 128 | P50: naranja amargo s/r/t | S50: 180 | U50: pistacho s/r/t | X50: 232
A52: centeno | D52: 25 | F52: guisantes secos | I52: 77 | K52: para formar raíz endivia | N52: 129 | P52: naranja amargo | S52: 181 | U52: pistacho | X52: 233
A54: tranquillón (mezcla de trigo y centeno) s/r/t | D54: 26 | F54: veza s/r/t | I54: 78 | K54: sandía s/r/t | N54: 130 | P54: satsuma s/r/t | S54: 182 | U54: viñedo de uva de mesa s/r/t | X54: 234
A56: tranquillón (mezcla de trigo y centeno) | D56: 27 | F56: veza | I56: 79 | K56: sandía | N56: 131 | P56: satsuma | S56: 183 | U56: viñedo de uva de mesa | X56: 235
A58: centeno y tranquillón s/r/t | D58: 28 | F58: altramuz dulce s/r/t | I58: 80 | K58: melón .- resumen general s/r/t | N58: 132 | P58: clementinas s/r/t | S58: 184 | U58: viñedo de uva para vinificación s/r/t | X58: 236
A60: centeno y tranquillón | D60: 29 | F60: altramuz dulce | I60: 81 | K60: melón .- resumen general | N60: 133 | P60: clementinas | S60: 185 | U60: viñedo de uva para vinificación | X60: 237
A62: cebada de invierno s/r/t | D62: 30 | F62: yeros s/r/t | I62: 82 | K62: calabaza s/r/t | N62: 134 | P62: otras mandarinas s/r/t | S62: 186 | U62: total viñedo s/r/t | X62: 238
A64: cebada de invierno | D64: 31 | F64: yeros | I64: 83 | K64: calabaza | N64: 135 | P64: otras mandarinas | S64: 187 | U64: total viñedo | X64: 239
A66: cebada 2c de invierno s/r/t | D66: 32 | F66: patata temprana s/r/t | I66: 84 | K66: calabacín s/r/t | N66: 136 | P66: total mandarino s/r/t | S66: 188 | U66: total producto vitivinicolas (vino + mosto) | X66: 240
A68: cebada 2c de invierno | D68: 33 | F68: patata temprana | I68: 85 | K68: calabacín | N68: 137 | P68: total mandarino | S68: 189
A70: cebada 6c de invierno s/r/t | D70: 34 | F70: patata media estación s/r/t | I70: 86 | K70: berenjena s/r/t | N70: 138 | P70: limonero s/r/t | S70: 190
A72: cebada 6c de invierno | D72: 35 | F72: patata media estación | I72: 87 | K72: berenjena | N72: 139 | P72: limonero | S72: 191
A74: cebada de primavera s/r/t | D74: 36 | F74: patata tardía s/r/t | I74: 88 | K74: tomate de recolección 1-vi al 30 - ix s/r/t | N74: 140 | P74: limero s/r/t | S74: 192
A76: cebada de primavera | D76: 37 | F76: patata tardía | I76: 89 | K76: tomate de recolección 1-vi al 30 - ix | N76: 141 | P76: limero | S76: 193
A78: cebada 2c de primavera s/r/t | D78: 38 | F78: patata total s/r/t | I78: 90 | K78: tomate.- resumen general s/r/t | N78: 142 | P78: pomelo s/r/t | S78: 194
A80: cebada 2c de primavera | D80: 39 | F80: patata total | I80: 91 | K80: tomate.- resumen general | N80: 143 | P80: pomelo | S80: 195
A82: cebada 6c de primavera s/r/t | D82: 40 | F82: remolacha azucarera (r. verano) s/r/t | I82: 92 | K82: tomate de industría s/r/t | N82: 144 | P82: manzano mesa s/r/t | S82: 196
A84: cebada 6c de primavera | D84: 41 | F84: remolacha azucarera (r. verano) | I84: 93 | K84: tomate de industría | N84: 145 | P84: manzano mesa | S84: 197
A86: cebada total s/r/t | D86: 42 | F86: remolacha azucarera (r. invierno) s/r/t | I86: 94 | K86: pimiento s/r/t | N86: 146 | P86: manzano total s/r/t | S86: 198
A88: cebada total | D88: 43 | F88: remolacha azucarera (r. invierno) | I88: 95 | K88: pimiento | N88: 147 | P88: manzano total | S88: 199
A90: cebada 2 carreras s/r/t | D90: 44 | F90: remolacha azucarera s/r/t | I90: 96 | K90: alcachofa s/r/t | N90: 148 | P90: pera total s/r/t | S90: 200
A92: cebada 2 carreras | D92: 45 | F92: remolacha azucarera | I92: 97 | K92: alcachofa | N92: 149 | P92: pera total | S92: 201
A94: cebada 6 carreras s/r/t | D94: 46 | F94: algodón ( bruto ) s/r/t | I94: 98 | K94: brócoli s/r/t | N94: 150 | P94: albaricoquero s/r/t | S94: 202
A96: cebada 6 carreras | D96: 47 | F96: algodón ( bruto ) | I96: 99 | K96: brócoli | N96: 151 | P96: albaricoquero | S96: 203
A98: avena s/r/t | D98: 48 | F98: cáñamo textil ( fibra ) s/r/t | I98: 100 | K98: coliflor s/r/t | N98: 152 | P98: cerezo y guindo s/r/t | S98: 204
A100: avena | D100: 49 | F100: cáñamo textil ( fibra ) | I100: 101 | K100: coliflor | N100: 153 | P100: cerezo y guindo | S100: 205
A102: mezclas de granos distintos del tranquillón s/r/t | D102: 50 | F102: girasol s/r/t | I102: 102 | K102: ajo s/r/t | N102: 154 | P102: melocotonero s/r/t | S102: 206
A104: mezclas de granos distintos del tranquillón | D104: 51 | F104: girasol | I104: 103 | K104: ajo | N104: 155 | P104: melocotonero | S104: 207
A106: avena y otras mezclas de cereales de primavera distintos del tranquillón s/r/t | D106: 52 | F106: soja s/r/t | I106: 104 | K106: cebolla babosa s/r/t | N106: 156 | P106: nectarina s/r/t | S106: 208
A108: avena y otras mezclas de cereales de primavera distintos del tranquillón | D108: 53 | F108: soja | I108: 105 | K108: cebolla babosa | N108: 157 | P108: nectarina | S108: 209
A110: maíz grano (no incluye forrajero ni dulce) s/r/t | D110: 54 | F110: colza s/r/t | I110: 106 | K110: cebolla medio grano o liria s/r/t | N110: 158 | P110: melocotoneros planos (paraguayo) s/r/t | S110: 210
A112: maíz grano (no incluye forrajero ni dulce) | D112: 55 | F112: colza | I112: 107 | K112: cebolla medio grano o liria | N112: 159 | P112: melocotoneros planos (paraguayo) | S112: 211
A114: triticale s/r/t | D114: 56 | F114: pimiento para pimentón s/r/t | I114: 108 | K114: cebolla grano o valenciana s/r/t | N114: 160 | P114: nectarinas planas (platerina) s/r/t | S114: 212
A116: triticale | D116: 57 | F116: pimiento para pimentón | I116: 109 | K116: cebolla grano o valenciana | N116: 161 | P116: nectarinas planas (platerina) | S116: 213

Sheet resumen nacional
A2: RESUMEN DE LOS AVANCES DE SUPERFICIES Y PRODUCCIONES AGRÍCOLAS | J2: TOTALES NACIONALES | M2: JUNIO 2025 | O2: RESUMEN DE LOS AVANCES DE SUPERFICIES Y PRODUCCIONES AGRÍCOLAS | X2: TOTALES NACIONALES | AA2: JUNIO 2025 | AC2: RESUMEN DE LOS AVANCES DE SUPERFICIES Y PRODUCCIONES AGRÍCOLAS | AL2: TOTALES NACIONALES | AO2: JUNIO 2025
D4: SUPERFICIES (Miles de Hectáreas) | J4: PRODUCCIONES (Miles de Toneladas) | R4: SUPERFICIES (Miles de Hectáreas) | X4: PRODUCCIONES (Miles de Toneladas) | AF4: SUPERFICIES (Miles de Hectáreas) | AL4: PRODUCCIONES (Miles de Toneladas)
A5: CULTIVOS | C5: TIPO SUPERFICIE | E5: PROVIS. | F5: PROVIS. | G5: AVANCE | H5: =G6 -> 2025 | K5: PROVIS. | L5: PROVIS. | M5: AVANCE | N5: =M6 -> 2025 | O5: CULTIVOS | Q5: TIPO SUPERFICIE | S5: PROVIS. | T5: PROVIS. | U5: AVANCE | V5: =U6 -> 2025 | Y5: PROVIS. | Z5: PROVIS. | AA5: AVANCE | AB5: =AA6 -> 2025 | AC5: CULTIVOS | AE5: TIPO SUPERFICIE | AG5: PROVIS. | AH5: PROVIS. | AI5: AVANCE | AJ5: =AI6 -> 2025 | AM5: PROVIS. | AN5: PROVIS. | AO5: AVANCE | AP5: =AO6 -> 2025
D6: MES (1) | E6: =G6-2 -> 2023 | F6: =G6-1 -> 2024 | G6: 2025 | H6: =CONCATENATE(F6,"=100") -> 2024=100 | J6: MES (1) | K6: =M6-2 -> 2023 | L6: =M6-1 -> 2024 | M6: 2025 | N6: =CONCATENATE(L6,"=100") -> 2024=100 | R6: MES (1) | S6: =U6-2 -> 2023 | T6: =U6-1 -> 2024 | U6: 2025 | V6: =CONCATENATE(T6,"=100") -> 2024=100 | X6: MES (1) | Y6: =AA6-2 -> 2023 | Z6: =AA6-1 -> 2024 | AA6: 2025 | AB6: =CONCATENATE(Z6,"=100") -> 2024=100 | AF6: MES (1) | AG6: =AI6-2 -> 2023 | AH6: =AI6-1 -> 2024 | AI6: 2025 | AJ6: =CONCATENATE(AH6,"=100") -> 2024=100 | AL6: MES (1) | AM6: =AO6-2 -> 2023 | AN6: =AO6-1 -> 2024 | AO6: 2025 | AP6: =CONCATENATE(AN6,"=100") -> 2024=100
H7: =IF(AND(F7>0,G7>0),G7*100/F7,"") ->  | N7: =IF(AND(L7>0,M7>0),M7*100/L7,"") ->  | V7: =IF(AND(T7>0,U7>0),U7*100/T7,"") ->  | AB7: =IF(AND(Z7>0,AA7>0),AA7*100/Z7,"") ->  | AJ7: =IF(AND(AH7>0,AI7>0),AI7*100/AH7,"") ->  | AP7: =IF(AND(AN7>0,AO7>0),AO7*100/AN7,"") -> 
A8: CEREALES | O8: CULTIVOS FORRAJEROS (4) | AC8: FRUTALES
A9: trigo de invierno | C9: cosechada | D9: 6 | E9: 1793.227 | F9: 1896.331 | G9: 1993.42364 | H9: =IF(AND(F9>0,G9>0),G9*100/F9,"") -> 105.120026 | J9: 6 | K9: 3832.51 | L9: 7048.86 | M9: 7969.701 | N9: =IF(AND(L9>0,M9>0),M9*100/L9,"") -> 113.0636869 | O9: cereal de invierno para forraje | Q9: cosechada | R9: 6 | S9: 336.078 | T9: 274.225 | U9: 262.63099 | V9: =IF(AND(T9>0,U9>0),U9*100/T9,"") -> 95.77208132 | X9: 6 | Y9: 2840.937 | Z9: 3417.64 | AA9: 3763.573 | AB9: =IF(AND(Z9>0,AA9>0),AA9*100/Z9,"") -> 110.1219848 | AC9: manzana sidra | AE9: en producción | AF9: 5 | AG9: 8.172 | AH9: 8.183 | AI9: 8.229 | AJ9: =IF(AND(AH9>0,AI9>0),AI9*100/AH9,"") -> 100.562141 | AL9: 5 | AM9: 88.25 | AN9: 70.453 | AO9: 153.454 | AP9: =IF(AND(AN9>0,AO9>0),AO9*100/AN9,"") -> 217.8104552
A10: trigo duro de invierno | C10: cosechada | D10: 6 | E10: 234.529 | F10: 230.305 | G10: 210.59991 | H10: 91.44391568 | J10: 6 | K10: 412.495 | L10: 722.2 | M10: 651.78 | N10: 90.24923844 | O10: maíz forrajero | Q10: sembrada | R10: 6 | S10: 113.516 | T10: 116.057 | U10: 134.48803 | V10: 115.8810154 | Y10: 4032.385 | Z10: 4164.14 | AC10: manzano mesa | AE10: en producción | AF10: 6 | AG10: 17.755 | AH10: 17.624 | AI10: 17.738 | AJ10: =IF(AND(AH10>0,AI10>0),AI10*100/AH10,"") -> 100.6468452 | AL10: 6 | AM10: 439.425 | AN10: 474.63 | AO10: 487.066 | AP10: =IF(AND(AN10>0,AO10>0),AO10*100/AN10,"") -> 102.6201462
A11: trigo blando y semi de invierno | C11: cosechada | D11: 6 | E11: 1558.698 | F11: 1666.026 | G11: 1782.82373 | H11: 107.0105587 | J11: 6 | K11: 3420.015 | L11: 6326.66 | M11: 7318.102 | N11: 115.6708595 | O11: ballico | Q11: cosechada | R11: 5 | S11: 108.489 | T11: 119.715 | U11: 119.24739 | V11: 99.60939732 | X11: 5 | Y11: 2200.733 | Z11: 2647.184 | AA11: 2779.36 | AB11: =IF(AND(Z11>0,AA11>0),AA11*100/Z11,"") -> 104.9930794 | AC11: manzano total | AE11: en producción | AF11: 6 | AG11: 25.927 | AH11: 25.807 | AI11: 25.969 | AJ11: 100.6277367 | AL11: 6 | AM11: 527.675 | AN11: 545.08 | AO11: 641.045 | AP11: 117.6056726
A12: trigo de primavera | C12: cosechada | D12: 6 | E12: 16.336 | F12: 15.249 | G12: 11.82119 | H12: 77.52108335 | J12: 6 | K12: 52.777 | L12: 48.65 | M12: 45.305 | N12: 93.12435766 | O12: festuca | Q12: cosechada | R12: 5 | S12: 11.804 | T12: 11.569 | U12: 18.844 | V12: 162.8835682 | X12: 5 | Y12: 407.069 | Z12: 434.844 | AA12: 780.466 | AB12: 179.4818372 | AC12: pera total | AE12: en producción | AF12: 6 | AG12: 16.436 | AH12: 16.1 | AI12: 15.584 | AJ12: 96.79503106 | AL12: 6 | AM12: 288.029 | AN12: 222.02 | AO12: 252.102 | AP12: 113.5492298
A13: trigo duro de primavera | C13: cosechada | D13: 6 | E13: 2.398 | F13: 2.724 | G13: 2.47817 | H13: 90.97540382 | J13: 6 | K13: 6.494 | L13: 6.42 | M13: 7.298 | N13: 113.6760125 | O13: alfalfa | Q13: cosechada | R13: 5 | S13: 182.446 | T13: 199.927 | U13: 214.951 | V13: 107.5147429 | X13: 5 | Y13: 6630.896 | Z13: 7908.462 | AA13: 7746.301 | AB13: 97.94952546 | AC13: albaricoquero | AE13: recolectada | AF13: 6 | AG13: 16.055 | AH13: 15.939 | AI13: 15.853 | AJ13: 99.46044294 | AL13: 6 | AM13: 108.449 | AN13: 155.57 | AO13: 136.443 | AP13: 87.70521309
A14: trigo blando y semi de primavera | C14: cosechada | D14: 6 | E14: 13.938 | F14: 12.525 | G14: 9.34302 | H14: 74.59497006 | J14: 6 | K14: 46.283 | L14: 42.23 | M14: 38.006 | N14: 89.99763202 | O14: trébol | Q14: cosechada | R14: 6 | S14: 2.213 | T14: 2.253 | U14: 1.769 | V14: 78.51753218 | X14: 6 | Y14: 35.417 | Z14: 36.98 | AA14: 42.792 | AB14: =IF(AND(Z14>0,AA14>0),AA14*100/Z14,"") -> 115.7166036 | AC14: cerezo y guindo | AE14: recolectada | AF14: 6 | AG14: 24.435 | AH14: 25.721 | AI14: 25.936 | AJ14: 100.8358929 | AL14: 6 | AM14: 104.663 | AN14: 121.43 | AO14: 143.201 | AP14: 117.9288479
A15: trigo. resumen general | C15: cosechada | D15: 6 | E15: 1809.563 | F15: 1911.58 | G15: 2005.24484 | H15: 104.899865 | J15: 6 | K15: 3885.287 | L15: 7097.51 | M15: 8015.007 | N15: 112.9270265 | O15: esparceta | Q15: cosechada | R15: 6 | S15: 18.185 | T15: 19.582 | U15: 19.539 | V15: 99.78041058 | X15: 6 | Y15: 143.187 | Z15: 233.16 | AA15: 297.705 | AB15: =IF(AND(Z15>0,AA15>0),AA15*100/Z15,"") -> 127.6827072 | AC15: melocotonero | AE15: en producción | AF15: 6 | AG15: 24.539 | AH15: 25.41 | AI15: 25.365 | AJ15: 99.82290437 | AL15: 6 | AM15: 548.752 | AN15: 552.17 | AO15: 565.523 | AP15: 102.418277
A16: trigo duro | C16: cosechada | D16: 6 | E16: 236.927 | F16: 233.029 | G16: 213.07808 | H16: 91.43843899 | J16: 6 | K16: 418.989 | L16: 728.62 | M16: 659.078 | N16: 90.4556559 | O16: veza para forraje | Q16: cosechada | R16: 6 | S16: 164.793 | T16: 150.609 | U16: 172.2337 | V16: 114.3581725 | X16: 6 | Y16: 1077.238 | Z16: 2565.13 | AA16: 2540.112 | AB16: =IF(AND(Z16>0,AA16>0),AA16*100/Z16,"") -> 99.02468881 | AC16: nectarina | AE16: en producción | AF16: 6 | AG16: 23.723 | AH16: 23.042 | AI16: 22.557 | AJ16: 97.89514799 | AL16: 6 | AM16: 520.48 | AN16: 525.78 | AO16: 501.802 | AP16: 95.43953745
A17: trigo semiduro y blando | C17: cosechada | D17: 6 | E17: 1572.636 | F17: 1678.551 | G17: 1792.16676 | H17: 106.7686808 | J17: 6 | K17: 3466.298 | L17: 6368.89 | M17: 7336.114 | N17: 115.1866966 | AC17: melocotoneros planos (paraguayo) | AE17: en producción | AF17: 6 | AG17: 11.703 | AH17: 11.53 | AI17: 11.319 | AJ17: 98.16999133 | AL17: 6 | AM17: 294.367 | AN17: 280.52 | AO17: 269.631 | AP17: 96.11828034
A18: centeno | C18: cosechada | D18: 6 | E18: 81.103 | F18: 95.945 | G18: 96.42322 | H18: 100.4984314 | J18: 6 | K18: 117.198 | L18: 223.31 | M18: 266.763 | N18: 119.4586002 | O18: HORTALIZAS | AC18: nectarinas planas (platerina) | AE18: en producción | AF18: 6 | AG18: 0.885 | AH18: 0.953 | AI18: 0.995 | AJ18: 104.4071354 | AL18: 6 | AM18: 18.177 | AN18: 18.43 | AO18: 26.348 | AP18: 142.962561
A19: tranquillón (mezcla de trigo y centeno) | C19: cosechada | D19: 6 | E19: 30.792 | F19: 37.474 | G19: 32.13637 | H19: 85.75644447 | J19: 6 | K19: 27.906 | L19: 107.89 | M19: 86.55 | N19: 80.22059505 | O19: col.- resumen general | Q19: sembrada | R19: 6 | S19: 5.884 | T19: 6.286 | U19: 6.398 | V19: =IF(AND(T19>0,U19>0),U19*100/T19,"") -> 101.7817372 | Y19: 194.059 | Z19: 198.91 | AB19: =IF(AND(Z19>0,AA19>0),AA19*100/Z19,"") ->  | AC19: ciruelo | AE19: en producción | AF19: 6 | AG19: 11.554 | AH19: 11.064 | AI19: 11.028 | AJ19: 99.67462039 | AL19: 6 | AM19: 162.943 | AN19: 135.75 | AO19: 146.734 | AP19: 108.0913444
A20: centeno y tranquillón | C20: cosechada | D20: 6 | E20: 111.895 | F20: 133.419 | G20: 128.55959 | H20: 96.35778262 | J20: 6 | K20: 145.104 | L20: 331.2 | M20: 353.313 | N20: 106.6766304 | O20: espárrago | Q20: cosechada | R20: 4 | S20: 13.171 | T20: 12.896 | U20: 12.634 | V20: 97.96836228 | X20: 4 | Y20: 44.144 | Z20: 56.487 | AA20: 78.018 | AB20: 138.1167348 | AC20: higuera | AE20: en producción | AF20: 6 | AG20: 11.985 | AH20: 12.883 | AI20: 13.003 | AJ20: 100.9314601 | AL20: 6 | AM20: 39.652 | AN20: 55.42 | AO20: 58.811 | AP20: 106.1187297
A21: cebada de invierno | C21: cosechada | D21: 6 | E21: 1964.062 | F21: 2044.487 | G21: 2155.32023 | H21: 105.4210778 | J21: 6 | K21: 3276.162 | L21: 6995.53 | M21: 8509.098 | N21: 121.6362163 | O21: apio | Q21: cosechada | R21: 5 | S21: 2.544 | T21: 2.526 | U21: 2.04 | V21: 80.76009501 | X21: 5 | Y21: 140.796 | Z21: 141.824 | AA21: 111.53 | AB21: 78.63972247 | AC21: granado | AE21: en producción | AF21: 5 | AG21: 4.526 | AH21: 4.549 | AI21: 4.505 | AJ21: 99.03275445 | AM21: 66.85 | AN21: 64.809 | AO21: 80.574 | AP21: =IF(AND(AN21>0,AO21>0),AO21*100/AN21,"") -> 124.3253252
A22: cebada 2c de invierno | C22: cosechada | D22: 6 | E22: 1788.437 | F22: 1875.631 | G22: 1995.93598 | H22: 106.414107 | J22: 6 | K22: 3051.516 | L22: 6494.07 | M22: 8006.483 | N22: 123.2891392 | O22: lechuga resumen general | Q22: cultivada | R22: 5 | S22: 33.134 | T22: 32.775 | U22: 33.35761 | V22: 101.7776049 | X22: 5 | Y22: 863.406 | Z22: 913.527 | AA22: 975.486 | AB22: 106.782394 | AC22: aguacate | AE22: en producción | AF22: 5 | AG22: 16.897 | AH22: 17.756 | AI22: 18.446 | AJ22: 103.8860104 | AM22: 86.801 | AN22: 112.361 | AO22: 139.528 | AP22: 124.1783181
A23: cebada 6c de invierno | C23: cosechada | D23: 6 | E23: 175.625 | F23: 168.856 | G23: 159.38426 | H23: 94.39064055 | J23: 6 | K23: 224.646 | L23: 501.46 | M23: 502.615 | N23: 100.2303274 | O23: escarola | Q23: cosechada | R23: 5 | S23: 2.106 | T23: 2.197 | U23: 2.197 | V23: 100 | X23: 5 | Y23: 56.369 | Z23: 54.857 | AA23: 54.857 | AB23: 100 | AC23: platanera | AE23: en producción | AF23: 5 | AG23: 8.458 | AH23: 8.468 | AI23: 8.751 | AJ23: 103.3419934 | AM23: 467.259 | AN23: 421.321 | AO23: 421.322 | AP23: 100.0002373
A24: cebada de primavera | C24: cosechada | D24: 6 | E24: 125.488 | F24: 125.751 | G24: 136.98665 | H24: 108.9348395 | J24: 6 | K24: 314.406 | L24: 354.81 | M24: 502.112 | N24: 141.5157408 | O24: espinaca | Q24: cultivada | R24: 6 | S24: 4.834 | T24: 4.854 | U24: 4.548 | V24: 93.69592089 | X24: 6 | Y24: 82 | Z24: 89.82 | AA24: 70.727 | AB24: =IF(AND(Z24>0,AA24>0),AA24*100/Z24,"") -> 78.74304164 | AC24: kiwi | AE24: en producción | AF24: 6 | AG24: 1.47 | AH24: 1.487 | AI24: 1.506 | AJ24: 101.2777404 | AL24: 6 | AM24: 28.953 | AN24: 29.64 | AO24: 28.441 | AP24: =IF(AND(AN24>0,AO24>0),AO24*100/AN24,"") -> 95.95479082
A25: cebada 2c de primavera | C25: cosechada | D25: 6 | E25: 124.066 | F25: 125.004 | G25: 135.44068 | H25: 108.3490768 | J25: 6 | K25: 311.087 | L25: 352.7 | M25: 495.918 | N25: 140.6061809 | O25: grelo | Q25: cosechada | R25: 5 | S25: 5.401 | T25: 5.611 | U25: 5.478 | V25: 97.62965603 | X25: 5 | Y25: 58.729 | Z25: 64.233 | AA25: 61.99 | AB25: =IF(AND(Z25>0,AA25>0),AA25*100/Z25,"") -> 96.50802547 | AC25: mango | AE25: en producción | AF25: 6 | AG25: 5.23 | AH25: 5.412 | AI25: 5.414 | AJ25: 100.0369549 | AL25: 6 | AM25: 26.451 | AN25: 27.06 | AO25: 33.642 | AP25: =IF(AND(AN25>0,AO25>0),AO25*100/AN25,"") -> 124.3237251
A26: cebada 6c de primavera | C26: cosechada | D26: 6 | E26: 1.422 | F26: 0.747 | G26: 1.54597 | H26: 206.957162 | J26: 6 | K26: 3.319 | L26: 2.12 | M26: 6.193 | N26: 292.1226415 | O26: endivias (7) (12) | Q26: sembrada | R26: 6 | S26: 25.8 | T26: 30 | U26: 27 | V26: 90 | Y26: 12.457 | Z26: 17.35 | AC26: caqui | AE26: en producción | AF26: 5 | AG26: 15.568 | AH26: 15.129 | AI26: 15.449 | AJ26: 102.1151431 | AM26: 359.553 | AN26: 240.429 | AO26: 407.941 | AP26: =IF(AND(AN26>0,AO26>0),AO26*100/AN26,"") -> 169.6721277
A27: cebada total | C27: cosechada | D27: 6 | E27: 2089.55 | F27: 2170.238 | G27: 2292.34168 | H27: 105.6262806 | J27: 6 | K27: 3590.568 | L27: 7350.35 | M27: 9011.208 | N27: 122.5956315 | O27: para formar raíz endivia (7) | Q27: sembrada | R27: 6 | S27: 13.4 | T27: 27.9 | U27: 17.3 | V27: 62.00716846 | Y27: 4.833 | Z27: 9.09 | AC27: grosellero | AE27: recolectada | AF27: 6 | AG27: 0.01 | AH27: 0.009 | AI27: 0.008 | AJ27: 88.88888889 | AL27: 6 | AM27: 0.034 | AN27: 0.03 | AO27: 0.028 | AP27: =IF(AND(AN27>0,AO27>0),AO27*100/AN27,"") -> 93.33333333
A28: cebada 2 carreras | C28: cosechada | D28: 6 | E28: 1912.503 | F28: 2000.635 | G28: 2131.37668 | H28: 106.5350091 | J28: 6 | K28: 3362.603 | L28: 6846.77 | M28: 8502.401 | N28: 124.1811978 | O28: sandía | Q28: cosechada | R28: 6 | S28: 21.444 | T28: 21.501 | U28: 22.93672 | V28: 106.6774569 | X28: 6 | Y28: 1168.933 | Z28: 1222.71 | AA28: 1306.446 | AB28: =IF(AND(Z28>0,AA28>0),AA28*100/Z28,"") -> 106.8483941 | AC28: frambueso | AE28: recolectada | AF28: 6 | AG28: 2.082 | AH28: 1.665 | AI28: 1.793 | AJ28: 107.6876877 | AL28: 6 | AM28: 33.07 | AN28: 30.23 | AO28: 30.822 | AP28: =IF(AND(AN28>0,AO28>0),AO28*100/AN28,"") -> 101.9583196
A29: cebada 6 carreras | C29: cosechada | D29: 6 | E29: 177.047 | F29: 169.603 | G29: 160.96501 | H29: 94.90693561 | J29: 6 | K29: 227.965 | L29: 503.58 | M29: 508.809 | N29: 101.0383653 | O29: melón .- resumen general | Q29: cultivada | R29: 6 | S29: 16.542 | T29: 16.916 | U29: 17.17706 | V29: =IF(AND(T29>0,U29>0),U29*100/T29,"") -> 101.5432726 | X29: 6 | Y29: 516.523 | Z29: 594.01 | AA29: 618.891 | AB29: =IF(AND(Z29>0,AA29>0),AA29*100/Z29,"") -> 104.18865 | AC29: arándano | AE29: recolectada | AF29: 6 | AG29: 4.442 | AH29: 4.749 | AI29: 5.078 | AJ29: 106.9277743 | AL29: 6 | AM29: 57.672 | AN29: 60.95 | AO29: 64.858 | AP29: =IF(AND(AN29>0,AO29>0),AO29*100/AN29,"") -> 106.411813
A30: avena | C30: cosechada | D30: 6 | E30: 400.016 | F30: 485.274 | G30: 508.62225 | H30: 104.811354 | J30: 6 | K30: 445.987 | L30: 1144.59 | M30: 1335.125 | N30: 116.6465721 | O30: calabaza | Q30: cultivada | R30: 6 | S30: 5.009 | T30: 6.638 | U30: 6.66123 | V30: 100.3499548 | X30: 6 | Y30: 140.41 | Z30: 169.78 | AA30: 167.807 | AB30: =IF(AND(Z30>0,AA30>0),AA30*100/Z30,"") -> 98.83790788 | AC30: almendro (cáscara) (8) | AE30: en producción | AF30: 6 | AG30: 646.737 | AH30: 663.181 | AI30: 653.666 | AJ30: 98.5652484 | AL30: 6 | AM30: 297.66 | AN30: 369.7 | AO30: 467.521 | AP30: =IF(AND(AN30>0,AO30>0),AO30*100/AN30,"") -> 126.4595618
A31: mezclas de granos distintos del tranquillón | C31: cosechada | D31: 6 | E31: 3.364 | F31: 5.291 | G31: 6.87329 | H31: 129.9053109 | J31: 6 | K31: 3.744 | L31: 11.26 | M31: 16.7 | N31: 148.312611 | O31: calabacín | R31: 6 | S31: 11.611 | T31: 11.1 | U31: 10.59815 | V31: 95.47882883 | X31: 6 | Y31: 566.47 | Z31: 600.99 | AA31: 619.84 | AB31: =IF(AND(Z31>0,AA31>0),AA31*100/Z31,"") -> 103.1364915 | AC31: nogal (cáscara) (8) | AE31: en producción | AF31: 5 | AG31: 10.541 | AH31: 10.757 | AI31: 10.061 | AJ31: 93.52979455 | AL31: 5 | AM31: 17.339 | AN31: 20.056 | AO31: 20.347 | AP31: =IF(AND(AN31>0,AO31>0),AO31*100/AN31,"") -> 101.4509374
A32: avena y otras mezclas de cereales de primavera distintos del tranquillón | C32: cosechada | D32: 6 | E32: 403.38 | F32: 490.565 | G32: 515.49554 | H32: 105.0820054 | J32: 6 | K32: 449.731 | L32: 1155.85 | M32: 1351.468 | N32: 116.9241684 | O32: pepino | R32: 5 | S32: 8.296 | T32: 8.602 | U32: 8.843 | V32: 102.801674 | X32: 5 | Y32: 722.146 | Z32: 757.641 | AA32: 808.479 | AB32: =IF(AND(Z32>0,AA32>0),AA32*100/Z32,"") -> 106.7100381 | AC32: avellano (cáscara) (8) | AE32: en producción | AF32: 6 | AG32: 8.767 | AH32: 8.81 | AI32: 8.176 | AJ32: 92.80363224 | AL32: 6 | AM32: 6.791 | AN32: 3.02 | AO32: 4.948 | AP32: =IF(AND(AN32>0,AO32>0),AO32*100/AN32,"") -> 163.8410596
A33: maíz grano (no incluye forrajero ni dulce) | C33: cultivada | D33: 6 | E33: 239.792 | F33: 288.809 | G33: 321.98921 | H33: 111.4886344 | J33: 6 | K33: 2835.364 | L33: 3542.48 | M33: 4131.965 | N33: 116.6404609 | O33: pepinillo (7) | Q33: cultivada | R33: 5 | T33: 1.2 | U33: 1.1 | V33: 91.66666667 | X33: 5 | Z33: 0.149 | AA33: 0.132 | AB33: 88.59060403 | AC33: castaño fruto | AE33: en producción | AF33: 5 | AG33: 35.241 | AH33: 35.405 | AI33: 33.511 | AJ33: 94.6504731 | AL33: 5 | AM33: 174.094 | AN33: 181.806 | AO33: 172.538 | AP33: =IF(AND(AN33>0,AO33>0),AO33*100/AN33,"") -> 94.90225845
A34: triticale | C34: cosechada | D34: 6 | E34: 215.743 | F34: 241.147 | G34: 280.58371 | H34: 116.3538049 | J34: 6 | K34: 276.921 | L34: 617.83 | M34: 902.82 | N34: 146.1275755 | O34: berenjena | Q34: cosechada | R34: 6 | S34: 3.569 | T34: 3.589 | U34: 3.539 | V34: 98.60685428 | X34: 6 | Y34: 260.406 | Z34: 297.66 | AA34: 284.517 | AB34: =IF(AND(Z34>0,AA34>0),AA34*100/Z34,"") -> 95.58455956 | AC34: pistacho | AE34: en producción | AF34: 6 | AG34: 29.124 | AH34: 34.84 | AI34: 36.608 | AJ34: 105.0746269 | AL34: 6 | AM34: 23.967 | AN34: 24.2 | AO34: 42.374 | AP34: =IF(AND(AN34>0,AO34>0),AO34*100/AN34,"") -> 175.0991736
A35: sorgo | C35: cultivada | D35: 6 | E35: 6.456 | F35: 6.452 | G35: 5.69304 | H35: 88.23682579 | J35: 6 | K35: 30.663 | L35: 27.19 | M35: 22.139 | N35: 81.4233174 | O35: tomate de recolección 1-i al 31 - v | Q35: cosechada | R35: 5 | S35: 9.825 | T35: 9.122 | U35: 9.029 | V35: 98.98048674 | X35: 5 | Y35: 811.452 | Z35: 788.061 | AA35: 772.88 | AB35: =IF(AND(Z35>0,AA35>0),AA35*100/Z35,"") -> 98.07362628
A36: quinoa | C36: cultivada | D36: 6 | E36: 0.786 | F36: 2.369 | G36: 1.41812 | H36: 59.86154496 | J36: 6 | K36: 1.23 | L36: 3.42 | M36: 2.443 | N36: 71.43274854 | O36: tomate de recolección 1-vi al 30 - ix | Q36: cultivada | R36: 6 | S36: 35.283 | T36: 41.242 | U36: 34.386 | V36: 83.37616992 | X36: 6 | Y36: 2755.634 | Z36: 3350.11 | AA36: 3037.382 | AB36: =IF(AND(Z36>0,AA36>0),AA36*100/Z36,"") -> 90.66514234 | AC36: VIÑEDO
A37: arroz indica | C37: sembrada | D37: 6 | E37: 14.011 | F37: 35.604 | G37: 45.70409 | H37: 128.3678519 | K37: 83.065 | L37: 262.69 | O37: tomate de recolección 1-x al 31-xii | Q37: sembrada | R37: 5 | S37: 4.842 | T37: 4.998 | U37: 4.204 | V37: 84.11364546 | Y37: 401.372 | Z37: 436.11 | AB37: =IF(AND(Z37>0,AA37>0),AA37*100/Z37,"") ->  | AC37: viñedo de uva de mesa | AE37: en producción | AF37: 6 | AG37: 14.175 | AH37: 14.46 | AI37: 14.182 | AJ37: =IF(AND(AH37>0,AI37>0),AI37*100/AH37,"") -> 98.07745505 | AL37: 6 | AM37: 347.708 | AN37: 363.99 | AO37: 385.665 | AP37: =IF(AND(AN37>0,AO37>0),AO37*100/AN37,"") -> 105.9548339
A38: arroz japónica | C38: sembrada | D38: 6 | E38: 41.11 | F38: 50.336 | G38: 51.3037 | H38: 101.9224809 | K38: 254.92 | L38: 349.11 | O38: tomate.- resumen general | R38: 6 | S38: 49.946 | T38: 55.292 | U38: 48.396 | V38: 87.52803299 | X38: 6 | Y38: 3968.458 | Z38: 4574.28 | AA38: 4233.73 | AB38: 92.5551125 | AC38: viñedo de uva para vinificación (9) | AE38: en producción | AF38: 6 | AG38: 840.733 | AH38: 835.936 | AI38: 835.78 | AJ38: 99.98133828 | AL38: 6 | AM38: 4474.368 | AN38: 5021.89 | AO38: 4787.297 | AP38: =IF(AND(AN38>0,AO38>0),AO38*100/AN38,"") -> 95.32859143
A39: arroz (cáscara) | C39: sembrada | D39: 6 | E39: 55.121 | F39: 85.94 | G39: 97.00778 | H39: 112.8784966 | K39: 337.985 | L39: 611.8 | O39: tomate de industría (5) | Q39: cultivada | R39: 6 | S39: 28.761 | T39: 34.432 | U39: 28.84081 | V39: 83.76164614 | X39: 6 | Y39: 2360.311 | Z39: 2923.33 | AA39: 2684.723 | AB39: =IF(AND(Z39>0,AA39>0),AA39*100/Z39,"") -> 91.83783562 | AC39: Viñedo de uva para pasificación (10) | AG39: 1.694 | AH39: 1.392 | AI39: 1.392 | AJ39: 100 | AM39: 0.681 | AN39: 1.39
O40: pimiento (6) | R40: 6 | S40: 21.459 | T40: 23.224 | U40: 22.093 | V40: 95.13003789 | X40: 6 | Y40: 1387.134 | Z40: 1514.42 | AA40: 1498.274 | AB40: 98.93384926 | AC40: total viñedo | AE40: en producción | AF40: 6 | AG40: 856.602 | AH40: 851.788 | AI40: 851.575 | AJ40: 99.97499378 | AL40: 6 | AM40: 4822.757 | AN40: 5387.27 | AO40: 5173.512 | AP40: =IF(AND(AN40>0,AO40>0),AO40*100/AN40,"") -> 96.03216471
A41: LEGUMINOSAS GRANO | O41: ajo | Q41: cultivada | R41: 6 | S41: 25.64 | T41: 22.837 | U41: 23.997 | V41: =IF(AND(T41>0,U41>0),U41*100/T41,"") -> 105.0794763 | X41: 6 | Y41: 194.341 | Z41: 245.7 | AA41: 253.653 | AB41: =IF(AND(Z41>0,AA41>0),AA41*100/Z41,"") -> 103.2368742 | AC41: total producto vitivinicolas (vino + mosto) (11) | AL41: 6 | AM41: 32396.818 | AN41: 36813.91 | AO41: 34924.413 | AP41: =IF(AND(AN41>0,AO41>0),AO41*100/AN41,"") -> 94.86743734
A42: judías secas | C42: cultivada | D42: 6 | E42: 9.631 | F42: 10.617 | G42: 10.89318 | H42: 102.6012998 | J42: 6 | K42: 19.061 | L42: 18.36 | M42: 27.105 | N42: =IF(AND(L42>0,M42>0),M42*100/L42,"") -> 147.630719 | O42: cebolla babosa | Q42: cosechada | R42: 6 | S42: 4.112 | T42: 4.591 | U42: 3.91295 | V42: 85.23088652 | X42: 6 | Y42: 187.451 | Z42: 230.78 | AA42: 166.127 | AB42: 71.98500737
A43: habas secas | C43: cosechada | D43: 6 | E43: 27.302 | F43: 31.728 | G43: 29.85972 | H43: 94.11157337 | J43: 6 | K43: 26.945 | L43: 51.69 | M43: 37.938 | N43: 73.39524086 | O43: cebolla medio grano o liria | Q43: cultivada | R43: 6 | S43: 3.988 | T43: 3.573 | U43: 3.593 | V43: 100.5597537 | X43: 6 | Y43: 218.284 | Z43: 199.29 | AA43: 187.475 | AB43: 94.07145366 | AC43: OLIVAR | AH43: =IF(AND(AF43>0,AG43>0),AG43*100/AF43,"") -> 
A44: lentejas | C44: cosechada | D44: 6 | E44: 32.588 | F44: 29.836 | G44: 33.66104 | H44: 112.8202172 | J44: 6 | K44: 12.824 | L44: 26.26 | M44: 34.432 | N44: 131.1195735 | O44: cebolla grano o valenciana | Q44: cultivada | R44: 6 | S44: 7.531 | T44: 8.935 | U44: 7.965 | V44: 89.14381645 | X44: 6 | Y44: 480.706 | Z44: 578.51 | AA44: 530.624 | AB44: 91.72252856 | AC44: olivar de aceituna de mesa | AE44: en producción | AF44: 5 | AG44: 112.993 | AH44: 108.623 | AI44: 108.63 | AJ44: =IF(AND(AH44>0,AI44>0),AI44*100/AH44,"") -> 100.0064443 | AL44: 5 | AM44: 290.684 | AN44: 304.14 | AO44: 356.02 | AP44: =IF(AND(AN44>0,AO44>0),AO44*100/AN44,"") -> 117.0579338
A45: garbanzos | C45: cosechada | D45: 6 | E45: 63.268 | F45: 78.6 | G45: 64.55071 | H45: =IF(AND(F45>0,G45>0),G45*100/F45,"") -> 82.12558524 | J45: 6 | K45: 49.722 | L45: 82.65 | M45: 63.239 | N45: 76.51421658 | O45: otras cebollas | Q45: sembrada | R45: 4 | S45: 6.998 | T45: 7.971 | U45: 7.681 | V45: 96.36181157 | Y45: 304.767 | Z45: 367.44 | AC45: olivar de aceituna de almazara | AE45: en producción | AF45: 5 | AG45: 2168.082 | AH45: 2081.954 | AI45: 2062.366 | AJ45: 99.05915308 | AL45: 5 | AM45: 4246.653 | AN45: 7021.422 | AO45: 6286.1 | AP45: 89.527449
A46: guisantes secos | C46: cosechada | D46: 6 | E46: 207.456 | F46: 182.522 | G46: 180.3764 | H46: 98.82447047 | J46: 6 | K46: 149.664 | L46: 259.59 | M46: 306.436 | N46: 118.0461497 | O46: cebolla.- resumen general | R46: 6 | S46: 22.479 | T46: 25.04 | U46: 22.97995 | V46: 91.77296326 | X46: 6 | Y46: 1191.208 | Z46: 1376.03 | AA46: 1144.082 | AB46: 83.14368146 | AC46: olivar de doble aptitud | AE46: en producción | AF46: 5 | AG46: 263.028 | AH46: 354 | AI46: 378.219 | AJ46: 106.8415254 | AL46: 5 | AM46: 563.672 | AN46: 1109.91 | AO46: 1254.23 | AP46: 113.0028561
A47: veza | C47: cosechada | D47: 6 | E47: 80.252 | F47: 68.81 | G47: 80.37799 | H47: 116.8114954 | J47: 6 | K47: 44.064 | L47: 78.49 | M47: 105.376 | N47: 134.2540451 | O47: zanahoria | Q47: cosechada | R47: 6 | S47: 6.82 | T47: 7.488 | U47: 7.2747 | V47: 97.15144231 | X47: 6 | Y47: 388.056 | Z47: 393.74 | AA47: 382.835 | AB47: 97.23040585 | AC47: total olivar | AF47: 5 | AG47: 2515.48 | AH47: 2514.618 | AI47: 2541.093 | AJ47: 101.0528438 | AL47: 5 | AM47: 5101.009 | AN47: 8435.472 | AO47: =AO44+AO45+AO46 -> 7896.35 | AP47: 93.60886978
A48: altramuz dulce | C48: cosechada | D48: 6 | E48: 3.361 | F48: 2.368 | G48: 3.48767 | H48: 147.2833615 | J48: 6 | K48: 1.815 | L48: 2.07 | M48: 3.207 | N48: 154.9275362 | O48: rábanos (7) | Q48: cosechada | R48: 6 | S48: 29.9 | T48: 18.7 | U48: 20.688 | V48: 110.631016 | X48: 6 | Y48: 5.133 | Z48: 3.22 | AA48: 3.298 | AB48: 102.4223602 | AC48: aceite de oliva total | AL48: 5 | AM48: 843.371 | AN48: 1401.354 | AO48: 1382.681 | AP48: 98.667503
A49: yeros | C49: cultivada | D49: 6 | E49: 107.395 | F49: 88.547 | G49: 95.848 | H49: 108.2453386 | J49: 6 | K49: 36.414 | L49: 68.15 | M49: 83.826 | N49: 123.002201 | O49: nabo | Q49: cosechada | R49: 5 | S49: 0.338 | T49: 0.405 | U49: 0.277 | V49: 68.39506173 | X49: 5 | Y49: 7.299 | Z49: 8.011 | AA49: 5.204 | AB49: =IF(AND(Z49>0,AA49>0),AA49*100/Z49,"") -> 64.96067907
O50: judías verdes (con vaina) | Q50: cultivada | R50: 5 | S50: 6.382 | T50: 5.973 | U50: 5.15939 | V50: 86.37853675 | X50: 5 | Y50: 119.406 | Z50: 116.224 | AA50: 105.416 | AB50: 90.70071586
A51: TUBÉRCULOS | O51: guisantes verdes. en grano (sin vaina) | Q51: cosechada | R51: 6 | S51: 19.202 | T51: 13.649 | U51: 14.51337 | V51: 106.3328449 | X51: 6 | Y51: 114.526 | Z51: 98 | AA51: 113.381 | AB51: =IF(AND(Z51>0,AA51>0),AA51*100/Z51,"") -> 115.694898 | AC51: RESUMEN DE LOS AVANCES DE SUPERFICIES Y PRODUCCIONES AGRÍCOLAS | AL51: TOTALES NACIONALES | AO51: JUNIO 2025
A52: patata extratemprana | C52: cosechada | D52: 5 | E52: 2.77 | F52: 2.123 | G52: 2.231 | H52: =IF(AND(F52>0,G52>0),G52*100/F52,"") -> 105.0871408 | J52: 5 | K52: 74.376 | L52: 55.09 | M52: 57.597 | N52: =IF(AND(L52>0,M52>0),M52*100/L52,"") -> 104.5507352 | O52: habas verdes. en grano (sin vaina) | Q52: cosechada | R52: 6 | S52: 4.176 | T52: 3.584 | U52: 3.69731 | V52: 103.1615513 | X52: 6 | Y52: 30.105 | Z52: 28.54 | AA52: 28.255 | AB52: =IF(AND(Z52>0,AA52>0),AA52*100/Z52,"") -> 99.00140154
A53: patata temprana | C53: cosechada | D53: 6 | E53: 11.727 | F53: 13.422 | G53: 14.639 | H53: 109.0672031 | J53: 6 | K53: 373.684 | L53: 451.81 | M53: 428.505 | N53: =IF(AND(L53>0,M53>0),M53*100/L53,"") -> 94.8418583 | O53: fresa y fresón | Q53: cosechada | R53: 6 | S53: 7.009 | T53: 6.92 | U53: 7.018 | V53: 101.416185 | X53: 6 | Y53: 329.275 | Z53: 323.54 | AA53: 321.544 | AB53: =IF(AND(Z53>0,AA53>0),AA53*100/Z53,"") -> 99.38307474 | AF53: SUPERFICIES (Miles de Hectáreas) | AL53: PRODUCCIONES (Miles de Toneladas)
A54: patata media estación | C54: cultivada | D54: 6 | E54: 27.677 | F54: 27.707 | G54: 28.579 | H54: 103.1472191 | J54: 6 | K54: 777.208 | L54: 778.47 | M54: 816.949 | N54: =IF(AND(L54>0,M54>0),M54*100/L54,"") -> 104.9429008 | O54: champiñon (7) | Q54: cosechada | R54: 6 | S54: 45.099 | T54: 45.071 | U54: 45.361 | V54: 100.6434293 | X54: 6 | Y54: 146.731 | Z54: 145.01 | AA54: 146.342 | AB54: =IF(AND(Z54>0,AA54>0),AA54*100/Z54,"") -> 100.9185573 | AC54: CULTIVOS | AG54: PROVIS. | AH54: PROVIS. | AI54: AVANCE | AJ54: =AI55 -> 2024 | AM54: PROVIS. | AN54: PROVIS. | AO54: AVANCE | AP54: =AO55 -> 2024
A55: patata tardía | C55: sembrada | D55: 6 | E55: 17.146 | F55: 18.115 | G55: 19.709 | H55: 108.7993376 | K55: 696.58 | L55: 685.8 | O55: otras setas (7) | Q55: cosechada | R55: 6 | S55: 9.735 | T55: 9.221 | U55: 9.497 | V55: 102.9931678 | X55: 6 | Y55: 17.19 | Z55: 16.89 | AA55: 17.252 | AB55: =IF(AND(Z55>0,AA55>0),AA55*100/Z55,"") -> 102.14328 | AE55: TIPO SUPERFICIE(*) | AF55: MES (1) | AG55: =AI55-2 -> 2022 | AH55: =AI55-1 -> 2023 | AI55: 2024 | AJ55: =CONCATENATE(AH55,"=100") -> 2023=100 | AL55: MES (1) | AM55: =AO55-2 -> 2022 | AN55: =AO55-1 -> 2023 | AO55: 2024 | AP55: =CONCATENATE(AN55,"=100") -> 2023=100
A56: patata total | D56: 6 | E56: 59.219 | F56: 60.947 | G56: 64.743 | H56: 106.2283623 | J56: 6 | K56: 1921.848 | L56: 1971.17 | M56: 2157.274 | N56: =IF(AND(L56>0,M56>0),M56*100/L56,"") -> 109.4412963 | AJ56: =IF(AND(AH56>0,AI56>0),AI56*100/AH56,"") ->  | AP56: =IF(AND(AN56>0,AO56>0),AO56*100/AN56,"") -> 
O57: CÍTRICOS | AC57: HORTALIZAS
A58: CULTIVOS INDUSTRIALES | O58: naranja dulce | Q58: en producción | R58: 6 | S58: 132.801 | T58: 134.719 | U58: 135.003 | V58: =IF(AND(T58>0,U58>0),U58*100/T58,"") -> 100.2108092 | X58: 6 | Y58: 2709.55 | Z58: 2897.83 | AA58: 2972.432 | AB58: =IF(AND(Z58>0,AA58>0),AA58*100/Z58,"") -> 102.5744091 | AC58: alcachofa | AE58: cosechada | AF58: 6 | AG58: 14.506 | AH58: 12.79 | AI58: 11.781 | AJ58: 92.11102424 | AL58: 6 | AM58: 199.768 | AN58: 182.584 | AO58: 174.62 | AP58: =IF(AND(AN58>0,AO58>0),AO58*100/AN58,"") -> 95.63817202
A59: remolacha azucarera (r. verano) | C59: cultivada | D59: 6 | E59: 7.942 | F59: 9.892 | G59: 6.02015 | H59: 60.85877477 | J59: 6 | K59: 503.521 | L59: 767.58 | M59: 402.879 | N59: =IF(AND(L59>0,M59>0),M59*100/L59,"") -> 52.4869069 | O59: naranja amargo | Q59: en producción | R59: 6 | S59: 0.293 | T59: 0.301 | U59: 0.301 | V59: 100 | X59: 6 | Y59: 5.412 | Z59: 7.11 | AA59: 5.078 | AB59: 71.42053446 | AC59: brócoli | AE59: cosechada | AF59: 6 | AG59: 31.632 | AH59: 32.283 | AI59: 32.628 | AJ59: =IF(AND(AH59>0,AI59>0),AI59*100/AH59,"") -> 101.0686739 | AL59: 6 | AM59: 501.46 | AN59: 475.427 | AO59: 485.412 | AP59: =IF(AND(AN59>0,AO59>0),AO59*100/AN59,"") -> 102.1002173
A60: remolacha azucarera (r. invierno) | C60: sembrada | D60: 6 | E60: 26.928 | F60: 35.801 | G60: 20.229 | H60: 56.50400827 | J60: 6 | K60: 2386.727 | L60: 2754.66 | O60: satsuma | Q60: en producción | R60: 6 | S60: 4.899 | T60: 4.802 | U60: 4.809 | V60: 100.1457726 | X60: 6 | Y60: 87.24 | Z60: 103.21 | AA60: 92.711 | AB60: 89.82753609 | AC60: coliflor | AE60: cosechada | AF60: 6 | AG60: 7.733 | AH60: 6.831 | AI60: 7.781 | AJ60: =IF(AND(AH60>0,AI60>0),AI60*100/AH60,"") -> 113.9071878 | AL60: 6 | AM60: 181.017 | AN60: 153.109 | AO60: 178.696 | AP60: =IF(AND(AN60>0,AO60>0),AO60*100/AN60,"") -> 116.7116237
A61: remolacha azucarera | D61: 6 | E61: 34.693 | F61: 45.676 | G61: 26.24915 | H61: 57.4681452 | K61: 2890.248 | L61: 3522.24 | O61: clementinas | Q61: en producción | R61: 6 | S61: 49.204 | T61: 48.599 | U61: 48.779 | V61: 100.370378 | X61: 6 | Y61: 1056.173 | Z61: 851.96 | AA61: 903.262 | AB61: 106.0216442 | AP61: =IF(AND(AN61>0,AO61>0),AO61*100/AN61,"") -> 
A62: algodón ( bruto ) (2) | C62: sembrada | D62: 6 | E62: 51.747 | F62: 51.08 | G62: 46.80984 | H62: 91.64025059 | K62: 55.037 | L62: 112.35 | N62: =IF(AND(L62>0,M62>0),M62*100/L62,"") ->  | O62: otras mandarinas | Q62: en producción | R62: 6 | S62: 34.092 | T62: 35.184 | U62: 34.462 | V62: 97.94793088 | X62: 6 | Y62: 718.889 | Z62: 860.35 | AA62: 738.983 | AB62: 85.89329924
A63: cáñamo textil ( fibra ) | C63: cultivada | D63: 6 | E63: 0.186 | F63: 0.051 | G63: 0.037 | H63: =IF(AND(F63>0,G63>0),G63*100/F63,"") -> 72.54901961 | J63: 6 | K63: 0.456 | L63: 0.15 | M63: 0.202 | N63: 134.6666667 | O63: total mandarino | R63: 6 | S63: 88.193 | T63: 88.25 | U63: 88.05 | V63: 99.7733711 | X63: 6 | Y63: 1862.302 | Z63: 1815.51 | AA63: 1734.957 | AB63: 95.56306492 | AC63: RESUMEN DE LOS AVANCES DE SUPERFICIES Y PRODUCCIONES AGRÍCOLAS | AL63: TOTALES NACIONALES | AO63: JUNIO 2025
A64: girasol | C64: cultivada | D64: 6 | E64: 773.799 | F64: 752.648 | G64: 665.92682 | H64: 88.47785685 | J64: 6 | K64: 840.168 | L64: 832.7 | M64: 769.776 | N64: 92.44337697 | O64: limonero | Q64: en producción | R64: 6 | S64: 47.212 | T64: 47.991 | U64: 48.017 | V64: 100.0541768 | X64: 6 | Y64: 1145.245 | Z64: 915.49 | AA64: 858.698 | AB64: 93.79654611
A65: soja | C65: cultivada | D65: 6 | E65: 2.441 | F65: 3.115 | G65: 2.765 | H65: 88.76404494 | J65: 6 | K65: 7.496 | L65: 10.72 | M65: 8.769 | N65: 81.80037313 | O65: limero | Q65: en producción | R65: 6 | S65: 0.231 | T65: 0.301 | U65: 0.277 | V65: 92.02657807 | X65: 6 | Y65: 3.627 | Z65: 4.03 | AA65: 4.335 | AB65: 107.5682382 | AF65: SUPERFICIES (Miles de Hectáreas) | AL65: PRODUCCIONES (Miles de Toneladas)
A66: colza | C66: cultivada | D66: 6 | E66: 105.463 | F66: 97.772 | G66: 101.99344 | H66: 104.317637 | J66: 6 | K66: 169.905 | L66: 225.68 | M66: 282.242 | N66: 125.062921 | O66: pomelo | Q66: en producción | R66: 6 | S66: 2.735 | T66: 2.696 | U66: 2.737 | V66: 101.5207715 | X66: 6 | Y66: 85.287 | Z66: 85.01 | AA66: 96.696 | AB66: 113.746618 | AC66: CULTIVOS | AG66: PROVIS. | AH66: PROVIS. | AI66: AVANCE | AJ66: =AI67 -> 2026 | AM66: PROVIS. | AN66: PROVIS. | AO66: AVANCE | AP66: =AO67 -> 2026
A67: pimiento para pimentón | C67: cultivada | D67: 6 | E67: 2.112 | F67: 1.979 | G67: 1.993 | H67: 100.707428 | J67: 6 | K67: 6.431 | L67: 6.63 | M67: 7.476 | N67: 112.760181 | AE67: TIPO SUPERFICIE(*) | AF67: MES (1) | AG67: =AI67-2 -> 2024 | AH67: =AI67-1 -> 2025 | AI67: 2026 | AJ67: =CONCATENATE(AH67,"=100") -> 2025=100 | AL67: MES (1) | AM67: =AO67-2 -> 2024 | AN67: =AO67-1 -> 2025 | AO67: 2026 | AP67: =CONCATENATE(AN67,"=100") -> 2025=100
A68: tabaco (3) | C68: sembrada | D68: 5 | E68: 5.781 | F68: 6.182 | G68: 6.49 | H68: 104.9822064 | K68: 12.378 | L68: 19.41 | AJ68: =IF(AND(AH68>0,AI68>0),AI68*100/AH68,"") ->  | AP68: =IF(AND(AN68>0,AO68>0),AO68*100/AN68,"") -> 
AC69: HORTALIZAS | AJ69: =IF(AND(AH69>0,AI69>0),AI69*100/AH69,"") ->  | AP69: =IF(AND(AN69>0,AO69>0),AO69*100/AN69,"") -> 
A70: (1) Mes al que corresponde la última estimación | AC70: escarola | AE70: sembrada | AF70: 6 | AG70: 2207 | AH70: 2207 | AI70: 1846 | AJ70: =IF(AND(AH70>0,AI70>0),AI70*100/AH70,"") -> 83.64295424 | AP70: =IF(AND(AN70>0,AO70>0),AO70*100/AN70,"") -> 
A71: (2) Producción bruta para fibra | O71: (8) Los datos se dan con cáscara, no en grano. Coeficientes de conversión, según variedades: Almendra y Nuez: 3´3 - 4 , Avellana: 2 - 2´3 | V71: =IF(AND(T71>0,U71>0),U71*100/T71,"") ->  | AB71: =IF(AND(Z71>0,AA71>0),AA71*100/Z71,"") -> 
A72: (3) Tabaco seco no fermentado | O72: (9) Datos de ccaa de uva de vinificación producida.
A73: (4) Producción en verde | O73: (10) Producción de uva, no de pasa
A74: (5) Incluido en el tomate "de verano" (rec. 1-vi/30-ix) | O74: (11) Producción total de Vino y Mosto en miles de Hectolitros. Incluye a los pequeños productores (autoconsumo) y los mostos concentrados convertidos a mosto natural,
A75: (6) Incluye el de conserva y el destinado a pimentón | O75: con coeficiente 3´5
A76: (7) La superficie se expresa en miles de áreas | O76: (12) La superficie de endivia indica la superficie de raíz de endivia mientras que la producción de endivia recoge la endivia de hoja por lo que no tienen que estar ligadas.
O151: =O150*3.3 -> 0
H171: =IF(AND(F171>0,G171>0),G171*100/F171,"") -> 
H199: =IF(AND(F199>0,G199>0),G199*100/F199,"") ->  | N199: =IF(AND(L199>0,M199>0),M199*100/L199,"") -> 
H201: =IF(AND(F201>0,G201>0),G201*100/F201,"") ->  | N201: =IF(AND(L201>0,M201>0),M201*100/L201,"") -> 

Sheet Tri0rno-SRT
A1: AVANCES DE SUPERFICIE Y PRODUCCIÓN
A2: TRIGO DE INVIERNO S/R/T | K2: 2025 JUNIO
A3: SUPERFICIE COSECHADA(*)
A4: PROVINCIAS | B4: SUPERFICIES (HA) | E4: SUPERFICIES (HA) | H4: SUPERFICIES (HA) | L4: PRODUCCIONES (1000 TM) | O4: PRODUCCIONES (1000 TM) | R4: PRODUCCIONES (1000 TM)
A5: Y | B5: SECANO | E5: REGADIO | H5: TOTAL | L5: SECANO | O5: REGADIO | R5: TOTAL
A6: CC-AA | B6: =J6-2 -> 2023 | C6: =J6-1 -> 2024 | D6: =J6 -> 2025 | E6: =J6-2 -> 2023 | F6: =J6-1 -> 2024 | G6: =J6 -> 2025 | H6: =J6-2 -> 2023 | I6: =J6-1 -> 2024 | J6: 2025 | L6: =T6-2 -> 2023 | M6: =T6-1 -> 2024 | N6: =T6 -> 2025 | O6: =T6-2 -> 2023 | P6: =T6-1 -> 2024 | Q6: =T6 -> 2025 | R6: =T6-2 -> 2023 | S6: =T6-1 -> 2024 | T6: 2025
B7: PROVISIONAL | C7: PROVISIONAL | D7: PROVISIONAL | E7: PROVISIONAL | F7: PROVISIONAL | G7: AVANCE | H7: PROVISIONAL | I7: PROVISIONAL | J7: AVANCE | L7: PROVISIONAL | M7: PROVISIONAL | N7: AVANCE | O7: PROVISIONAL | P7: PROVISIONAL | Q7: AVANCE | R7: PROVISIONAL | S7: PROVISIONAL | T7: AVANCE
A10: 15 Coruña (La) | B10: 986 | C10: 1016 | D10: 1872.38 | H10: 986 | I10: 1016 | J10: 1872.38 | L10: 2.997 | M10: 2.34 | N10: 8.455 | R10: 2.997 | S10: 2.34 | T10: 8.455
A11: 27 Lugo | B11: 2057 | C11: 1962 | D11: 2785.36 | H11: 2057 | I11: 1962 | J11: 2785.36 | L11: 5.101 | M11: 4.32 | N11: 9.141 | R11: 5.102 | S11: 4.32 | T11: 9.141
A12: 32 Orense | B12: 4997 | C12: 5136 | D12: 5218.63 | H12: 4997 | I12: 5136 | J12: 5218.63 | L12: 15.491 | M12: 15.41 | N12: 17.369 | R12: 15.491 | S12: 15.41 | T12: 17.369
A13: 36 Pontevedra | B13: 189 | C13: 175 | D13: 331.79 | H13: 189 | I13: 175 | J13: 331.79 | L13: 0.416 | M13: 0.39 | N13: 1.182 | R13: 0.416 | S13: 0.39 | T13: 1.182
A14: GALICIA | B14: 8229 | C14: 8289 | D14: 10208.16 | H14: 8229 | I14: 8289 | J14: 10208.16 | L14: 24.005 | M14: 22.46 | N14: 36.147 | R14: 24.006 | S14: 22.45 | T14: 36.147
A16: 33 P. DE ASTURIAS | D16: 60 | J16: 60 | N16: 0.108 | T16: 0.108
A18: 39 CANTABRIA | B18: 692 | C18: 733 | D18: 742 | E18: 142 | F18: 115 | G18: 120 | H18: 834 | I18: 848 | J18: 862 | L18: 1.522 | M18: 1.61 | N18: 1.706 | O18: 0.639 | P18: 0.52 | Q18: 0.54 | R18: 2.161 | S18: 2.13 | T18: 2.246
A20: 01 Alava | B20: 19290 | C20: 19717 | D20: 17819 | H20: 19290 | I20: 19717 | J20: 17819 | L20: 106.095 | M20: 138.02 | N20: 106.914 | R20: 106.095 | S20: 138.02 | T20: 106.914
A21: 20 Guipúzcoa | B21: 1 | C21: 1 | H21: 1 | I21: 1 | L21: 0.005 | M21: 0.01 | R21: 0.005 | S21: 0.01
A22: 48 Vizcaya
A23: PAIS VASCO | B23: 19291 | C23: 19718 | D23: 17819 | H23: 19291 | I23: 19718 | J23: 17819 | L23: 106.1 | M23: 138.03 | N23: 106.914 | R23: 106.1 | S23: 138.03 | T23: 106.914
A25: 31 NAVARRA | B25: 59254 | C25: 62619 | D25: 67359 | E25: 16025 | F25: 15151 | G25: 13795 | H25: 75279 | I25: 77770 | J25: 81154 | L25: 231.268 | M25: 325.06 | N25: 329.789 | O25: 89.484 | P25: 107.97 | Q25: 90.716 | R25: 320.741 | S25: 433 | T25: 420.505
A27: 26 LA RIOJA | B27: 16174 | C27: 16289 | D27: 16700 | E27: 8295 | F27: 7444 | G27: 7260 | H27: 24469 | I27: 23733 | J27: 23960 | L27: 37.944 | M27: 46.72 | N27: 90.6 | O27: 40.646 | P27: 32.01 | Q27: 40.782 | R27: 78.596 | S27: 78.73 | T27: 131.382
A29: 22 Huesca | B29: 41136 | C29: 55769 | D29: 57925 | E29: 19245 | F29: 23581 | G29: 19661 | H29: 60381 | I29: 79350 | J29: 77586 | L29: 73.345 | M29: 206.4 | N29: 144.812 | O29: 98.303 | P29: 139.06 | Q29: 49.152 | R29: 171.685 | S29: 345.44 | T29: 193.965
A30: 44 Teruel | B30: 20310 | C30: 30601 | D30: 33637 | E30: 3790 | F30: 4072 | G30: 3302 | H30: 24100 | I30: 34673 | J30: 36939 | L30: 16.167 | M30: 30.39 | N30: 100.129 | O30: 11.806 | P30: 12.37 | Q30: 12.596 | R30: 27.979 | S30: 42.74 | T30: 112.725
A31: 50 Zaragoza | B31: 44615 | C31: 72048 | D31: 72000 | E31: 31499 | F31: 30988 | G31: 31024 | H31: 76114 | I31: 103036 | J31: 103024 | L31: 34.71 | M31: 89.84 | N31: 229.337 | O31: 160.33 | P31: 157.79 | Q31: 148.494 | R31: 195.06 | S31: 247.63 | T31: 377.831
A32: ARAGON | B32: 106061 | C32: 158418 | D32: 163562 | E32: 54534 | F32: 58641 | G32: 53987 | H32: 160595 | I32: 217059 | J32: 217549 | L32: 124.222 | M32: 326.63 | N32: 474.278 | O32: 270.439 | P32: 309.22 | Q32: 210.242 | R32: 394.724 | S32: 635.81 | T32: 684.521
A34: 08 Barcelona | B34: 13814 | C34: 21430 | D34: 20542 | E34: 720 | F34: 370 | G34: 503 | H34: 14534 | I34: 21800 | J34: 21045 | L34: 14.173 | M34: 48.26 | N34: 98.114 | O34: 3.891 | P34: 2.02 | Q34: 2.971 | R34: 18.064 | S34: 50.28 | T34: 101.085
A35: 17 Girona | B35: 8940 | C35: 10050 | D35: 9095 | E35: 2849 | F35: 2693 | G35: 4172 | H35: 11789 | I35: 12743 | J35: 13267 | L35: 20.169 | M35: 23.9 | N35: 40 | O35: 8.638 | P35: 9.99 | Q35: 20 | R35: 28.805 | S35: 33.88 | T35: 60
A36: 25 Lleida | B36: 31281 | C36: 41616 | D36: 35131 | E36: 18611 | F36: 20748 | G36: 16179 | H36: 49892 | I36: 62364 | J36: 51310 | L36: 18.988 | M36: 83.27 | N36: 133.497 | O36: 86.169 | P36: 123.45 | Q36: 126.196 | R36: 105.16 | S36: 206.71 | T36: 259.693
A37: 43 Tarragona | B37: 5881 | C37: 6828 | D37: 6669 | E37: 84 | F37: 56 | G37: 71 | H37: 5965 | I37: 6884 | J37: 6740 | L37: 7.457 | M37: 8.19 | N37: 29.009 | O37: 0.133 | P37: 0.12 | Q37: 0.341 | R37: 7.585 | S37: 8.31 | T37: 29.35
A38: CATALUÑA | B38: 59916 | C38: 79924 | D38: 71437 | E38: 22264 | F38: 23867 | G38: 20925 | H38: 82180 | I38: 103791 | J38: 92362 | L38: 60.787 | M38: 163.63 | N38: 300.62 | O38: 98.831 | P38: 135.57 | Q38: 149.508 | R38: 159.614 | S38: 299.18 | T38: 450.128
A40: 07 BALEARES | B40: 4218 | C40: 3733 | D40: 3707 | H40: 4218 | I40: 3733 | J40: 3707 | L40: 7.888 | M40: 5.19 | N40: 5.252 | R40: 7.887 | S40: 5.19 | T40: 5.252
A42: 05 Avila | B42: 26236 | C42: 28655 | D42: 32673 | E42: 2938 | F42: 2332 | G42: 3707 | H42: 29174 | I42: 30987 | J42: 36380 | L42: 23.927 | M42: 54.62 | N42: 101.602 | O42: 14.702 | P42: 8.37 | Q42: 16.734 | R42: 38.629 | S42: 63 | T42: 118.336
A43: 09 Burgos | B43: 179425 | C43: 179988 | D43: 190422 | E43: 6245 | F43: 5941 | G43: 6520 | H43: 185670 | I43: 185929 | J43: 196942 | L43: 473.144 | M43: 965.1 | N43: 978.374 | O43: 31.675 | P43: 42.32 | Q43: 46.119 | R43: 504.871 | S43: 1007.4 | T43: 1024.493
A44: 24 León | B44: 29553 | C44: 24023 | D44: 34959 | E44: 15880 | F44: 12194 | G44: 17338 | H44: 45433 | I44: 36217 | J44: 52297 | L44: 36.202 | M44: 83.58 | N44: 122.355 | O44: 102.966 | P44: 79.82 | Q44: 112.686 | R44: 139.173 | S44: 163.4 | T44: 235.041
A45: 34 Palencia | B45: 95429 | C45: 97617 | D45: 111456.8 | E45: 21109 | F45: 22666 | G45: 23103.59 | H45: 116538 | I45: 120283 | J45: 134560.4 | L45: 241.245 | M45: 434.79 | N45: 537.029 | O45: 109.703 | P45: 141.39 | Q45: 141.098 | R45: 350.99 | S45: 576.15 | T45: 678.127
A46: 37 Salamanca | B46: 51583 | C46: 61057 | D46: 62039 | E46: 5953 | F46: 7312 | G46: 7988 | H46: 57536 | I46: 68369 | J46: 70027 | L46: 118.641 | M46: 207.59 | N46: 248.146 | O46: 35.718 | P46: 42.41 | Q46: 46.324 | R46: 154.351 | S46: 249.99 | T46: 294.47
A47: 40 Segovia | B47: 60646 | C47: 60209 | D47: 76866 | E47: 3014 | F47: 2882 | G47: 3748 | H47: 63660 | I47: 63091 | J47: 80614 | L47: 94.972 | M47: 169.25 | N47: 272.322 | O47: 9.042 | P47: 14.36 | Q47: 18.673 | R47: 103.993 | S47: 183.59 | T47: 290.995
A48: 42 Soria | B48: 88419 | C48: 83858 | D48: 100470 | E48: 4210 | F48: 3858 | G48: 4877 | H48: 92629 | I48: 87716 | J48: 105347 | L48: 84.705 | M48: 319.25 | N48: 362.495 | O48: 13.051 | P48: 19.28 | Q48: 25.36 | R48: 97.756 | S48: 338.52 | T48: 387.855
A49: 47 Valladolid | B49: 89251 | C49: 101400 | D49: 102246 | E49: 16660 | F49: 20313 | G49: 21613 | H49: 105911 | I49: 121713 | J49: 123859 | L49: 142.534 | M49: 414.63 | N49: 473.391 | O49: 81.967 | P49: 135.33 | Q49: 147.99 | R49: 224.461 | S49: 549.95 | T49: 621.381
A50: 49 Zamora | B50: 46656 | C50: 48769 | D50: 60560 | E50: 9042 | F50: 9027 | G50: 9539 | H50: 55698 | I50: 57796 | J50: 70099 | L50: 74.323 | M50: 160.35 | N50: 237.758 | O50: 40.156 | P50: 46.35 | Q50: 66.773 | R50: 114.471 | S50: 206.7 | T50: 304.531
A51: CASTILLA Y LEON | B51: 667198 | C51: 685576 | D51: 771691.8 | E51: 85051 | F51: 86525 | G51: 98433.59 | H51: 752249 | I51: 772101 | J51: 870125.4 | L51: 1289.693 | M51: 2809.14 | N51: 3333.472 | O51: 438.98 | P51: 529.63 | Q51: 621.757 | R51: 1728.695 | S51: 3338.7 | T51: 3955.229
A53: 28 MADRID | B53: 23448 | C53: 17029 | D53: 13122 | E53: 2978 | F53: 2020 | G53: 2026 | H53: 26426 | I53: 19049 | J53: 15148 | L53: 31.983 | M53: 49.42 | N53: 43.086 | O53: 12.505 | P53: 9.12 | Q53: 8.133 | R53: 44.475 | S53: 58.54 | T53: 51.219
A55: 02 Albacete | B55: 29344 | C55: 40720 | D55: 41559 | E55: 14695 | F55: 11871 | G55: 12572 | H55: 44039 | I55: 52591 | J55: 54131 | L55: 9.537 | M55: 42.15 | N55: 94.547 | O55: 103.982 | P55: 85.95 | Q55: 96.176 | R55: 113.512 | S55: 128.08 | T55: 190.723
A56: 13 Ciudad Real | B56: 35828 | C56: 41209 | D56: 39743 | E56: 9483 | F56: 7795 | G56: 8407 | H56: 45311 | I56: 49004 | J56: 48150 | L56: 17.914 | M56: 90.45 | N56: 135.015 | O56: 26.913 | P56: 40.36 | Q56: 46.151 | R56: 44.844 | S56: 130.82 | T56: 181.166
A57: 16 Cuenca | B57: 37951 | C57: 45688 | D57: 57675 | E57: 2771 | F57: 3051 | G57: 3400 | H57: 40722 | I57: 48739 | J57: 61075 | L57: 30.361 | M57: 132.36 | N57: 155.685 | O57: 11.084 | P57: 15.85 | Q57: 16.976 | R57: 41.445 | S57: 148.22 | T57: 172.661
A58: 19 Guadalajara | B58: 68096 | C58: 65952 | D58: 65952 | E58: 1904 | F58: 2037 | G58: 2037 | H58: 70000 | I58: 67989 | J58: 67989 | L58: 122.505 | M58: 230.5 | N58: 250.51 | O58: 9.497 | P58: 12.18 | Q58: 11.191 | R58: 132.021 | S58: 242.66 | T58: 261.701
A59: 45 Toledo | B59: 47587 | C59: 48552 | D59: 55205 | E59: 5287 | F59: 4070 | G59: 5728 | H59: 52874 | I59: 52622 | J59: 60933 | L59: 18.035 | M59: 121.14 | N59: 193.218 | O59: 24.775 | P59: 18.68 | Q59: 27.494 | R59: 42.808 | S59: 139.79 | T59: 220.712
A60: CASTILLA-MANCHA | B60: 218806 | C60: 242121 | D60: 260134 | E60: 34140 | F60: 28824 | G60: 32144 | H60: 252946 | I60: 270945 | J60: 292278 | L60: 198.352 | M60: 616.6 | N60: 828.975 | O60: 176.251 | P60: 173.02 | Q60: 197.988 | R60: 374.63 | S60: 789.57 | T60: 1026.963
A62: 03 Alicante | B62: 1010 | C62: 737 | D62: 1171 | E62: 402 | F62: 351 | G62: 390 | H62: 1412 | I62: 1088 | J62: 1561 | L62: 0.293 | M62: 0.21 | N62: 2.128 | O62: 1.205 | P62: 0.74 | Q62: 2.044 | R62: 1.498 | S62: 0.94 | T62: 4.172
A63: 12 Castellón | B63: 275 | C63: 579 | D63: 579 | E63: 18 | F63: 17 | G63: 17 | H63: 293 | I63: 596 | J63: 596 | L63: 0.437 | M63: 0.09 | N63: 1.24 | O63: 0.086 | P63: 0.08 | Q63: 0.082 | R63: 0.524 | S63: 0.17 | T63: 1.322
A64: 46 Valencia | B64: 1065 | C64: 1084 | D64: 2394 | E64: 247 | F64: 213 | G64: 245 | H64: 1312 | I64: 1297 | J64: 2639 | L64: 0.853 | M64: 1.07 | N64: 6.26 | O64: 0.988 | P64: 0.98 | Q64: 1.073 | R64: 1.841 | S64: 2.05 | T64: 7.333
A65: C. VALENCIANA | B65: 2350 | C65: 2400 | D65: 4144 | E65: 667 | F65: 581 | G65: 652 | H65: 3017 | I65: 2981 | J65: 4796 | L65: 1.583 | M65: 1.36 | N65: 9.628 | O65: 2.279 | P65: 1.8 | Q65: 3.199 | R65: 3.863 | S65: 3.16 | T65: 12.827
A67: 30 R. DE MURCIA | B67: 5780 | C67: 6018 | D67: 6425 | E67: 1245 | F67: 694 | G67: 602 | H67: 7025 | I67: 6712 | J67: 7027 | L67: 2.428 | M67: 2.46 | N67: 0.433 | O67: 4.296 | P67: 2.4 | Q67: 3.741 | R67: 6.726 | S67: 4.86 | T67: 4.174
A69: 06 Badajoz | B69: 48847 | C69: 65215 | D69: 64922 | E69: 19693 | F69: 11381 | G69: 11331 | H69: 68540 | I69: 76596 | J69: 76253 | L69: 53.878 | M69: 205.75 | N69: 178.386 | O69: 56.657 | P69: 46.53 | Q69: 40.79 | R69: 110.541 | S69: 252.28 | T69: 219.176
A70: 10 Cáceres | B70: 1621 | C70: 2481 | D70: 1830 | E70: 3788 | F70: 1230 | G70: 1546 | H70: 5409 | I70: 3711 | J70: 3376 | L70: 1.305 | M70: 5.25 | N70: 3.883 | O70: 7.86 | P70: 3.43 | Q70: 4.274 | R70: 9.164 | S70: 8.67 | T70: 8.157
A71: EXTREMADURA | B71: 50468 | C71: 67696 | D71: 66752 | E71: 23481 | F71: 12611 | G71: 12877 | H71: 73949 | I71: 80307 | J71: 79629 | L71: 55.183 | M71: 211 | N71: 182.269 | O71: 64.517 | P71: 49.95 | Q71: 45.064 | R71: 119.705 | S71: 260.95 | T71: 227.333
A73: 04 Almería | B73: 210 | C73: 52 | D73: 697 | E73: 99 | F73: 65 | G73: 13 | H73: 309 | I73: 117 | J73: 710 | L73: 0.017 | M73: 0.02 | N73: 1.787 | O73: 0.269 | P73: 0.08 | Q73: 0.041 | R73: 0.286 | S73: 0.1 | T73: 1.828
A74: 11 Cádiz | B74: 49303 | C74: 50651 | D74: 43607.69 | E74: 5984 | F74: 5748 | G74: 4522.39 | H74: 55287 | I74: 56399 | J74: 48130.08 | L74: 65.474 | M74: 145.17 | N74: 117.987 | O74: 22.44 | P74: 20.68 | Q74: 13.821 | R74: 87.909 | S74: 165.82 | T74: 131.808
A75: 14 Córdoba | B75: 52018 | C75: 50225 | D75: 48080 | E75: 10688 | F75: 9951 | G75: 8790 | H75: 62706 | I75: 60176 | J75: 56870 | L75: 58.26 | M75: 181.06 | N75: 144.24 | O75: 39.546 | P75: 35.35 | Q75: 26.37 | R75: 97.788 | S75: 216.43 | T75: 170.61
A76: 18 Granada | B76: 8510 | C76: 5289 | D76: 8854 | E76: 2074 | F76: 1418 | G76: 1492 | H76: 10584 | I76: 6707 | J76: 10346 | L76: 3.957 | M76: 11.49 | N76: 11.688 | O76: 4.44 | P76: 5.81 | Q76: 6.501 | R76: 8.393 | S76: 17.29 | T76: 18.189
A77: 21 Huelva | B77: 12770 | C77: 12710 | D77: 13085 | E77: 1402 | F77: 950 | G77: 885 | H77: 14172 | I77: 13660 | J77: 13970 | L77: 21.62 | M77: 45.32 | N77: 46.802 | O77: 2.752 | P77: 3.98 | Q77: 3.928 | R77: 24.37 | S77: 49.3 | T77: 50.73
A78: 23 Jaén | B78: 4462 | C78: 5595 | D78: 4765 | E78: 2033 | F78: 1877 | G78: 2057 | H78: 6495 | I78: 7472 | J78: 6822 | L78: 3.436 | M78: 17.45 | N78: 13.901 | O78: 2.456 | P78: 7.51 | Q78: 8.166 | R78: 5.893 | S78: 24.95 | T78: 22.067
A79: 29 Málaga | B79: 11544 | C79: 13303 | D79: 14555 | E79: 2034 | F79: 1675 | G79: 1670 | H79: 13578 | I79: 14978 | J79: 16225 | L79: 9.235 | M79: 31.9 | N79: 41.492 | O79: 6.916 | P79: 7.8 | Q79: 8.311 | R79: 16.151 | S79: 39.7 | T79: 49.803
A80: 41 Sevilla | B80: 111899 | C80: 106130 | D80: 105050 | E80: 27260 | F80: 23430 | G80: 18390 | H80: 139159 | I80: 129560 | J80: 123440 | L80: 138.083 | M80: 371.35 | N80: 342.305 | O80: 81.426 | P80: 93.37 | Q80: 67.181 | R80: 219.559 | S80: 464.73 | T80: 409.486
A81: ANDALUCIA | B81: 250716 | C81: 243955 | D81: 238693.69 | E81: 51574 | F81: 45114 | G81: 37819.39 | H81: 302290 | I81: 289069 | J81: 276513.08 | L81: 300.082 | M81: 803.75 | N81: 720.202 | O81: 160.245 | P81: 174.58 | Q81: 134.319 | R81: 460.349 | S81: 978.33 | T81: 854.521
A83: 35 Palmas (Las) | B83: 93 | C83: 88 | D83: 88 | F83: 1 | G83: 1 | H83: 93 | I83: 89 | J83: 89 | L83: 0.093 | M83: 0.09 | N83: 0.088 | Q83: 0.001 | R83: 0.093 | S83: 0.09 | T83: 0.089
A84: 38 S. C. Tenerife | B84: 113 | C84: 114 | D84: 114 | E84: 24 | F84: 23 | G84: 23 | H84: 137 | I84: 137 | J84: 137 | L84: 0.109 | M84: 0.11 | N84: 0.108 | O84: 0.036 | P84: 0.04 | Q84: 0.035 | R84: 0.145 | S84: 0.14 | T84: 0.143
A85: CANARIAS | B85: 206 | C85: 202 | D85: 202 | E85: 24 | F85: 24 | G85: 24 | H85: 230 | I85: 226 | J85: 226 | L85: 0.202 | M85: 0.2 | N85: 0.196 | O85: 0.036 | P85: 0.04 | Q85: 0.036 | R85: 0.238 | S85: 0.23 | T85: 0.232
A88: ESPAÑA | B88: 2985614 | C88: 1614720 | D88: 1712758.65 | E88: 300420 | F88: 281611 | G88: 280664.98 | H88: 1793227 | I88: 1896331 | J88: 1993423.64 | L88: 2473.242 | M88: 5523.23 | N88: 6463.675 | O88: 1359.148 | P88: 1525.82 | Q88: 1506.025 | R88: 3832.51 | S88: 7048.86 | T88: 7969.701
B96: 221 | C96: 231 | E96: 221 | F96: 231 | H96: 221 | I96: 231

Sheet Tri0rno
A1: AVANCES DE SUPERFICIE Y PRODUCCIÓN
A2: TRIGO DE INVIERNO | J2: 2025 JUNIO
A3: SUPERFICIE COSECHADA(*)
A4: PROVINCIAS | C4: SUPERFICIES (HA) | H4: PRODUCCIONES (1000 TM)
A5: Y
A6: CC-AA | C6: =E6-2 -> 2023 | D6: =E6-1 -> 2024 | E6: 2025 | F6: =E6 -> 2025 | H6: =J6-2 -> 2023 | I6: =J6-1 -> 2024 | J6: 2025 | K6: =J6 -> 2025
C7: PROVISIONAL | D7: PROVISIONAL | E7: AVANCE | F7: =CONCATENATE(D6,"=100") -> 2024=100 | H7: PROVISIONAL | I7: PROVISIONAL | J7: AVANCE | K7: =CONCATENATE(I6,"=100") -> 2024=100
A9: 15 A Coruña | C9: 986 | D9: 1016 | E9: 1872.38 | H9: 2.997 | I9: 2.34 | J9: 8.455
A10: 27 Lugo | C10: 2057 | D10: 1962 | E10: 2785.36 | H10: 5.102 | I10: 4.32 | J10: 9.141
A11: 32 Ourense | C11: 4997 | D11: 5136 | E11: 5218.63 | H11: 15.491 | I11: 15.41 | J11: 17.369
A12: 36 Pontevedra | C12: 189 | D12: 175 | E12: 331.79 | H12: 0.416 | I12: 0.39 | J12: 1.182
A13: GALICIA | C13: 8229 | D13: 8289 | E13: 10208.16 | F13: 123.1530945 | H13: 24.006 | I13: 22.45 | J13: 36.147 | K13: 161.0111359
A15: 33 P. DE ASTURIAS | E15: 60 | J15: 0.108
A17: 39 CANTABRIA | C17: 834 | D17: 848 | E17: 862 | F17: 101.6509434 | H17: 2.161 | I17: 2.13 | J17: 2.246 | K17: 105.4460094
A19: 1 Álava | C19: 19290 | D19: 19717 | E19: 17819 | H19: 106.095 | I19: 138.02 | J19: 106.914
A20: 20 Guipúzcoa | C20: 1 | D20: 1 | H20: 0.005 | I20: 0.01
A21: 48 Vizcaya
A22: PAIS VASCO | C22: 19291 | D22: 19718 | E22: 17819 | F22: 90.3692058 | H22: 106.1 | I22: 138.03 | J22: 106.914 | K22: 77.45707455
A24: 31 NAVARRA | C24: 75279 | D24: 77770 | E24: 81154 | F24: 104.3512923 | H24: 320.741 | I24: 433 | J24: 420.505 | K24: 97.11431871
A26: 26 LA RIOJA | C26: 24469 | D26: 23733 | E26: 23960 | F26: 100.9564741 | H26: 78.596 | I26: 78.73 | J26: 131.382 | K26: 166.8766671
A28: 22 Huesca | C28: 60381 | D28: 79350 | E28: 77586 | H28: 171.685 | I28: 345.44 | J28: 193.965
A29: 44 Teruel | C29: 24100 | D29: 34673 | E29: 36939 | H29: 27.979 | I29: 42.74 | J29: 112.725
A30: 50 Zaragoza | C30: 76114 | D30: 103036 | E30: 103024 | H30: 195.06 | I30: 247.63 | J30: 377.831
A31: ARAGÓN | C31: 160595 | D31: 217059 | E31: 217549 | F31: 100.2257451 | H31: 394.724 | I31: 635.81 | J31: 684.521 | K31: 107.661251
A33: 8 Barcelona | C33: 14534 | D33: 21800 | E33: 21045 | H33: 18.064 | I33: 50.28 | J33: 101.085
A34: 17 Girona | C34: 11789 | D34: 12743 | E34: 13267 | H34: 28.805 | I34: 33.88 | J34: 60
A35: 25 Lleida | C35: 49892 | D35: 62364 | E35: 51310 | H35: 105.16 | I35: 206.71 | J35: 259.693
A36: 43 Tarragona | C36: 5965 | D36: 6884 | E36: 6740 | H36: 7.585 | I36: 8.31 | J36: 29.35
A37: CATALUÑA | C37: 82180 | D37: 103791 | E37: 92362 | F37: 88.98844794 | H37: 159.614 | I37: 299.18 | J37: 450.128 | K37: 150.4539073
A39: 7 BALEARES | C39: 4218 | D39: 3733 | E39: 3707 | F39: 99.30350924 | H39: 7.887 | I39: 5.19 | J39: 5.252 | K39: 101.194605
A41: 5 Ávila | C41: 29174 | D41: 30987 | E41: 36380 | H41: 38.629 | I41: 63 | J41: 118.336
A42: 9 Burgos | C42: 185670 | D42: 185929 | E42: 196942 | H42: 504.871 | I42: 1007.4 | J42: 1024.493
A43: 24 León | C43: 45433 | D43: 36217 | E43: 52297 | H43: 139.173 | I43: 163.4 | J43: 235.041
A44: 34 Palencia | C44: 116538 | D44: 120283 | E44: 134560.4 | H44: 350.99 | I44: 576.15 | J44: 678.127
A45: 37 Salamanca | C45: 57536 | D45: 68369 | E45: 70027 | H45: 154.351 | I45: 249.99 | J45: 294.47
A46: 40 Segovia | C46: 63660 | D46: 63091 | E46: 80614 | H46: 103.993 | I46: 183.59 | J46: 290.995
A47: 42 Soria | C47: 92629 | D47: 87716 | E47: 105347 | H47: 97.756 | I47: 338.52 | J47: 387.855
A48: 47 Valladolid | C48: 105911 | D48: 121713 | E48: 123859 | H48: 224.461 | I48: 549.95 | J48: 621.381
A49: 49 Zamora | C49: 55698 | D49: 57796 | E49: 70099 | H49: 114.471 | I49: 206.7 | J49: 304.531
A50: CASTILLA Y LEÓN | C50: 752249 | D50: 772101 | E50: 870125.4 | F50: 112.6958002 | H50: 1728.695 | I50: 3338.7 | J50: 3955.229 | K50: 118.4661395
A52: 28 MADRID | C52: 26426 | D52: 19049 | E52: 15148 | F52: 79.52123471 | H52: 44.475 | I52: 58.54 | J52: 51.219 | K52: 87.49402118
A54: 2 Albacete | C54: 44039 | D54: 52591 | E54: 54131 | H54: 113.512 | I54: 128.08 | J54: 190.723
A55: 13 Ciudad Real | C55: 45311 | D55: 49004 | E55: 48150 | H55: 44.844 | I55: 130.82 | J55: 181.166
A56: 16 Cuenca | C56: 40722 | D56: 48739 | E56: 61075 | H56: 41.445 | I56: 148.22 | J56: 172.661
A57: 19 Guadalajara | C57: 70000 | D57: 67989 | E57: 67989 | H57: 132.021 | I57: 242.66 | J57: 261.701
A58: 45 Toledo | C58: 52874 | D58: 52622 | E58: 60933 | H58: 42.808 | I58: 139.79 | J58: 220.712
A59: CASTILLA-MANCHA | C59: 252946 | D59: 270945 | E59: 292278 | F59: 107.8735537 | H59: 374.63 | I59: 789.57 | J59: 1026.963 | K59: 130.0661119
A61: 3 Alicante | C61: 1412 | D61: 1088 | E61: 1561 | H61: 1.498 | I61: 0.94 | J61: 4.172
A62: 12 Castellón | C62: 293 | D62: 596 | E62: 596 | H62: 0.524 | I62: 0.17 | J62: 1.322
A63: 46 Valencia | C63: 1312 | D63: 1297 | E63: 2639 | H63: 1.841 | I63: 2.05 | J63: 7.333
A64: C. VALENCIANA | C64: 3017 | D64: 2981 | E64: 4796 | F64: 160.8856089 | H64: 3.863 | I64: 3.16 | J64: 12.827 | K64: 405.9177215
A66: 30 R. DE MURCIA | C66: 7025 | D66: 6712 | E66: 7027 | F66: 104.693087 | H66: 6.726 | I66: 4.86 | J66: 4.174 | K66: 85.88477366
A68: 6 Badajoz | C68: 68540 | D68: 76596 | E68: 76253 | H68: 110.541 | I68: 252.28 | J68: 219.176
A69: 10 Cáceres | C69: 5409 | D69: 3711 | E69: 3376 | H69: 9.164 | I69: 8.67 | J69: 8.157
A70: EXTREMADURA | C70: 73949 | D70: 80307 | E70: 79629 | F70: 99.15573985 | H70: 119.705 | I70: 260.95 | J70: 227.333 | K70: 87.11745545
A72: 4 Almería | C72: 309 | D72: 117 | E72: 710 | H72: 0.286 | I72: 0.1 | J72: 1.828
A73: 11 Cádiz | C73: 55287 | D73: 56399 | E73: 48130.08 | H73: 87.909 | I73: 165.82 | J73: 131.808
A74: 14 Córdoba | C74: 62706 | D74: 60176 | E74: 56870 | H74: 97.788 | I74: 216.43 | J74: 170.61
A75: 18 Granada | C75: 10584 | D75: 6707 | E75: 10346 | H75: 8.393 | I75: 17.29 | J75: 18.189
A76: 21 Huelva | C76: 14172 | D76: 13660 | E76: 13970 | H76: 24.37 | I76: 49.3 | J76: 50.73
A77: 23 Jaén | C77: 6495 | D77: 7472 | E77: 6822 | H77: 5.893 | I77: 24.95 | J77: 22.067
A78: 29 Málaga | C78: 13578 | D78: 14978 | E78: 16225 | H78: 16.151 | I78: 39.7 | J78: 49.803
A79: 41 Sevilla | C79: 139159 | D79: 129560 | E79: 123440 | H79: 219.559 | I79: 464.73 | J79: 409.486
A80: ANDALUCÍA | C80: 302290 | D80: 289069 | E80: 276513.08 | F80: 95.65642805 | H80: 460.349 | I80: 978.33 | J80: 854.521 | K80: 87.34486319
A82: 35 Palmas (Las) | C82: 93 | D82: 89 | E82: 89 | H82: 0.093 | I82: 0.09 | J82: 0.089
A83: 38 S. C. Tenerife | C83: 137 | D83: 137 | E83: 137 | H83: 0.145 | I83: 0.14 | J83: 0.143
A84: CANARIAS | C84: 230 | D84: 226 | E84: 226 | F84: 100 | H84: 0.238 | I84: 0.23 | J84: 0.232 | K84: 100.8695652
A87: ESPAÑA | C87: 1793227 | D87: 1896331 | E87: 1993423.64 | F87: 105.120026 | H87: 3832.51 | I87: 7048.86 | J87: 7969.701 | K87: 113.0636869
A90: (*)Tipo de Superficie de mes/año solicitado

Sheet Tri1rno-SRT
A1: AVANCES DE SUPERFICIE Y PRODUCCIÓN
A2: TRIGO DURO DE INVIERNO S/R/T | K2: 2025 JUNIO
A3: SUPERFICIE COSECHADA(*)
A4: PROVINCIAS | B4: SUPERFICIES (HA) | E4: SUPERFICIES (HA) | H4: SUPERFICIES (HA) | L4: PRODUCCIONES (1000 TM) | O4: PRODUCCIONES (1000 TM) | R4: PRODUCCIONES (1000 TM)
A5: Y | B5: SECANO | E5: REGADIO | H5: TOTAL | L5: SECANO | O5: REGADIO | R5: TOTAL
A6: CC-AA | B6: =J6-2 -> 2023 | C6: =J6-1 -> 2024 | D6: =J6 -> 2025 | E6: =J6-2 -> 2023 | F6: =J6-1 -> 2024 | G6: =J6 -> 2025 | H6: =J6-2 -> 2023 | I6: =J6-1 -> 2024 | J6: 2025 | L6: =T6-2 -> 2023 | M6: =T6-1 -> 2024 | N6: =T6 -> 2025 | O6: =T6-2 -> 2023 | P6: =T6-1 -> 2024 | Q6: =T6 -> 2025 | R6: =T6-2 -> 2023 | S6: =T6-1 -> 2024 | T6: 2025
B7: PROVISIONAL | C7: PROVISIONAL | D7: PROVISIONAL | E7: PROVISIONAL | F7: PROVISIONAL | G7: AVANCE | H7: PROVISIONAL | I7: PROVISIONAL | J7: AVANCE | L7: PROVISIONAL | M7: PROVISIONAL | N7: AVANCE | O7: PROVISIONAL | P7: PROVISIONAL | Q7: AVANCE | R7: PROVISIONAL | S7: PROVISIONAL | T7: AVANCE
A10: 15 Coruña (La) | B10: 5 | C10: 8 | H10: 5 | I10: 8 | L10: 0.015 | M10: 0.02 | R10: 0.015 | S10: 0.02
A11: 27 Lugo | B11: 135 | C11: 130 | H11: 135 | I11: 130 | L11: 0.335 | M11: 0.29 | R11: 0.335 | S11: 0.29
A12: 32 Orense | B12: 4 | C12: 8 | H12: 4 | I12: 8 | L12: 0.013 | M12: 0.02 | R12: 0.013 | S12: 0.02
A13: 36 Pontevedra | B13: 3 | C13: 3 | H13: 3 | I13: 3 | L13: 0.007 | M13: 0.01 | R13: 0.007 | S13: 0.01
A14: GALICIA | B14: 147 | C14: 149 | H14: 147 | I14: 149 | L14: 0.37 | M14: 0.34 | R14: 0.37 | S14: 0.34
A16: 33 P. DE ASTURIAS
A18: 39 CANTABRIA
A20: 01 Alava
A21: 20 Guipúzcoa
A22: 48 Vizcaya
A23: PAIS VASCO
A25: 31 NAVARRA | B25: 125 | C25: 775 | D25: 817 | E25: 324 | F25: 510 | G25: 422 | H25: 449 | I25: 1285 | J25: 1239 | L25: 0.115 | M25: 0.85 | N25: 2.041 | O25: 1.801 | P25: 3.4 | Q25: 2.429 | R25: 1.916 | S25: 4.25 | T25: 4.47
A27: 26 LA RIOJA | B27: 21 | G27: 10 | H27: 21 | J27: 10 | L27: 0.023 | Q27: 0.032 | R27: 0.023 | T27: 0.032
A29: 22 Huesca | B29: 789 | C29: 778 | D29: 684 | E29: 727 | F29: 692 | G29: 464 | H29: 1516 | I29: 1470 | J29: 1148 | L29: 0.71 | M29: 1.82 | N29: 1.71 | O29: 3.868 | P29: 3.07 | Q29: 1.16 | R29: 4.578 | S29: 4.89 | T29: 2.87
A30: 44 Teruel | B30: 562 | C30: 600 | D30: 652 | E30: 58 | F30: 92 | G30: 53 | H30: 620 | I30: 692 | J30: 705 | L30: 0.373 | M30: 0.32 | N30: 1.174 | O30: 0.145 | P30: 0.22 | Q30: 0.12 | R30: 0.518 | S30: 0.54 | T30: 1.294
A31: 50 Zaragoza | B31: 20776 | C31: 30873 | D31: 29236 | E31: 14891 | F31: 13101 | G31: 13931 | H31: 35667 | I31: 43974 | J31: 43167 | L31: 16.309 | M31: 31.18 | N31: 65.209 | O31: 75.646 | P31: 66.55 | Q31: 61.617 | R31: 91.955 | S31: 97.74 | T31: 126.826
A32: ARAGON | B32: 22127 | C32: 32251 | D32: 30572 | E32: 15676 | F32: 13885 | G32: 14448 | H32: 37803 | I32: 46136 | J32: 45020 | L32: 17.392 | M32: 33.32 | N32: 68.093 | O32: 79.659 | P32: 69.84 | Q32: 62.897 | R32: 97.051 | S32: 103.16 | T32: 130.99
A34: 08 Barcelona | B34: 8 | C34: 11 | D34: 36 | G34: 2 | H34: 8 | I34: 11 | J34: 38 | L34: 0.008 | M34: 0.03 | N34: 0.174 | Q34: 0.014 | R34: 0.008 | S34: 0.03 | T34: 0.188
A35: 17 Girona | B35: 14 | C35: 8 | D35: 15 | E35: 9 | F35: 12 | G35: 14 | H35: 23 | I35: 20 | J35: 29 | L35: 0.019 | M35: 0.02 | N35: 0.06 | O35: 0.032 | P35: 0.04 | Q35: 0.06 | R35: 0.051 | S35: 0.05 | T35: 0.12
A36: 25 Lleida | B36: 108 | C36: 28 | D36: 23 | E36: 58 | F36: 30 | G36: 18 | H36: 166 | I36: 58 | J36: 41 | L36: 0.035 | M36: 0.05 | N36: 0.087 | O36: 0.253 | P36: 0.15 | Q36: 0.14 | R36: 0.288 | S36: 0.2 | T36: 0.227
A37: 43 Tarragona | B37: 6 | C37: 7 | D37: 15 | F37: 1 | G37: 1 | H37: 6 | I37: 8 | J37: 16 | L37: 0.003 | N37: 0.038 | Q37: 0.005 | R37: 0.003 | S37: 0.01 | T37: 0.042
A38: CATALUÑA | B38: 136 | C38: 54 | D38: 89 | E38: 67 | F38: 43 | G38: 35 | H38: 203 | I38: 97 | J38: 124 | L38: 0.065 | M38: 0.09 | N38: 0.359 | O38: 0.285 | P38: 0.19 | Q38: 0.219 | R38: 0.35 | S38: 0.28 | T38: 0.577
A40: 07 BALEARES | B40: 6 | C40: 39 | D40: 37 | H40: 6 | I40: 39 | J40: 37 | L40: 0.011 | M40: 0.05 | N40: 0.052 | R40: 0.011 | S40: 0.05 | T40: 0.052
A42: 05 Avila | B42: 13 | C42: 17 | D42: 27 | G42: 6 | H42: 13 | I42: 17 | J42: 33 | L42: 0.012 | M42: 0.02 | N42: 0.073 | Q42: 0.023 | R42: 0.012 | S42: 0.02 | T42: 0.096
A43: 09 Burgos | B43: 256 | C43: 329 | D43: 305 | E43: 112 | F43: 117 | G43: 56 | H43: 368 | I43: 446 | J43: 361 | L43: 0.548 | M43: 1.39 | N43: 1.256 | O43: 0.527 | P43: 0.76 | Q43: 0.363 | R43: 1.074 | S43: 2.15 | T43: 1.619
A44: 24 León | B44: 8 | C44: 2 | D44: 3 | E44: 19 | F44: 9 | G44: 22 | H44: 27 | I44: 11 | J44: 25 | L44: 0.008 | M44: 0.01 | N44: 0.009 | O44: 0.114 | P44: 0.05 | Q44: 0.132 | R44: 0.122 | S44: 0.06 | T44: 0.141
A45: 34 Palencia | B45: 50 | C45: 25 | D45: 5.3 | E45: 43 | F45: 5 | G45: 14.85 | H45: 93 | I45: 30 | J45: 20.15 | L45: 0.07 | M45: 0.08 | N45: 0.027 | O45: 0.163 | P45: 0.03 | Q45: 0.073 | R45: 0.233 | S45: 0.12 | T45: 0.1
A46: 37 Salamanca | B46: 56 | C46: 54 | D46: 26 | E46: 5 | F46: 1 | G46: 11 | H46: 61 | I46: 55 | J46: 37 | L46: 0.123 | M46: 0.17 | N46: 0.094 | O46: 0.028 | P46: 0.01 | Q46: 0.057 | R46: 0.151 | S46: 0.18 | T46: 0.151
A47: 40 Segovia | B47: 39 | C47: 52 | D47: 43 | E47: 17 | F47: 9 | H47: 56 | I47: 61 | J47: 43 | L47: 0.04 | M47: 0.14 | N47: 0.138 | O47: 0.051 | P47: 0.03 | R47: 0.091 | S47: 0.17 | T47: 0.138
A48: 42 Soria | B48: 3 | C48: 15 | D48: 1 | F48: 23 | H48: 3 | I48: 38 | J48: 1 | L48: 0.002 | M48: 0.05 | N48: 0.003 | P48: 0.11 | R48: 0.002 | S48: 0.15 | T48: 0.003
A49: 47 Valladolid | B49: 127 | C49: 17 | D49: 27 | E49: 169 | F49: 188 | G49: 61 | H49: 296 | I49: 205 | J49: 88 | L49: 0.169 | M49: 0.07 | N49: 0.102 | O49: 0.727 | P49: 0.95 | Q49: 0.387 | R49: 0.895 | S49: 1.02 | T49: 0.489
A50: 49 Zamora | B50: 29 | C50: 32 | D50: 42 | E50: 27 | F50: 7 | G50: 5 | H50: 56 | I50: 39 | J50: 47 | L50: 0.039 | M50: 0.1 | N50: 0.104 | O50: 0.12 | P50: 0.03 | Q50: 0.035 | R50: 0.159 | S50: 0.13 | T50: 0.139
A51: CASTILLA Y LEON | B51: 581 | C51: 543 | D51: 479.3 | E51: 392 | F51: 359 | G51: 175.85 | H51: 973 | I51: 902 | J51: 655.15 | L51: 1.011 | M51: 2.02 | N51: 1.806 | O51: 1.73 | P51: 1.97 | Q51: 1.07 | R51: 2.739 | S51: 3.98 | T51: 2.876
A53: 28 MADRID | B53: 24 | C53: 69 | D53: 18 | E53: 249 | F53: 127 | G53: 76 | H53: 273 | I53: 196 | J53: 94 | L53: 0.021 | M53: 0.08 | N53: 0.052 | O53: 0.395 | P53: 0.51 | Q53: 0.403 | R53: 0.416 | S53: 0.59 | T53: 0.455
A55: 02 Albacete | B55: 44 | C55: 220 | D55: 162 | E55: 1790 | F55: 1221 | G55: 619 | H55: 1834 | I55: 1441 | J55: 781 | L55: 0.013 | M55: 0.22 | N55: 0.36 | O55: 12.351 | P55: 8.73 | Q55: 4.7 | R55: 12.364 | S55: 8.95 | T55: 5.06
A56: 13 Ciudad Real | B56: 139 | C56: 73 | D56: 93 | E56: 254 | F56: 141 | G56: 97 | H56: 393 | I56: 214 | J56: 190 | L56: 0.085 | M56: 0.08 | N56: 0.205 | O56: 0.749 | P56: 0.56 | Q56: 0.446 | R56: 0.835 | S56: 0.64 | T56: 0.651
A57: 16 Cuenca | B57: 275 | C57: 315 | D57: 366 | E57: 101 | F57: 62 | G57: 80 | H57: 376 | I57: 377 | J57: 446 | L57: 0.22 | M57: 0.79 | N57: 0.952 | O57: 0.404 | P57: 0.31 | Q57: 0.377 | R57: 0.624 | S57: 1.1 | T57: 1.329
A58: 19 Guadalajara | B58: 162 | C58: 180 | D58: 180 | E58: 47 | F58: 26 | G58: 26 | H58: 209 | I58: 206 | J58: 206 | L58: 0.243 | M58: 0.27 | N58: 0.576 | O58: 0.212 | P58: 0.12 | Q58: 0.13 | R58: 0.455 | S58: 0.39 | T58: 0.706
A59: 45 Toledo | B59: 1188 | C59: 877 | D59: 900 | E59: 152 | F59: 115 | G59: 154 | H59: 1340 | I59: 992 | J59: 1054 | L59: 0.404 | M59: 1.93 | N59: 3.33 | O59: 0.638 | P59: 0.48 | Q59: 0.739 | R59: 1.042 | S59: 2.41 | T59: 4.069
A60: CASTILLA-MANCHA | B60: 1808 | C60: 1665 | D60: 1701 | E60: 2344 | F60: 1565 | G60: 976 | H60: 4152 | I60: 3230 | J60: 2677 | L60: 0.965 | M60: 3.29 | N60: 5.423 | O60: 14.354 | P60: 10.2 | Q60: 6.392 | R60: 15.32 | S60: 13.49 | T60: 11.815
A62: 03 Alicante | B62: 55 | C62: 65 | D62: 78 | E62: 69 | F62: 40 | G62: 25 | H62: 124 | I62: 105 | J62: 103 | L62: 0.016 | M62: 0.02 | N62: 0.165 | O62: 0.194 | P62: 0.08 | Q62: 0.068 | R62: 0.209 | S62: 0.1 | T62: 0.233
A63: 12 Castellón | B63: 6 | C63: 24 | D63: 24 | H63: 6 | I63: 24 | J63: 24 | L63: 0.01 | N63: 0.047 | R63: 0.01 | T63: 0.047
A64: 46 Valencia | B64: 27 | C64: 12 | D64: 57 | E64: 1 | F64: 1 | G64: 1 | H64: 28 | I64: 13 | J64: 58 | L64: 0.023 | M64: 0.01 | N64: 0.149 | O64: 0.005 | P64: 0.01 | Q64: 0.004 | R64: 0.027 | S64: 0.02 | T64: 0.153
A65: C. VALENCIANA | B65: 88 | C65: 101 | D65: 159 | E65: 70 | F65: 41 | G65: 26 | H65: 158 | I65: 142 | J65: 185 | L65: 0.049 | M65: 0.03 | N65: 0.361 | O65: 0.199 | P65: 0.09 | Q65: 0.072 | R65: 0.246 | S65: 0.12 | T65: 0.433
A67: 30 R. DE MURCIA | B67: 180 | C67: 82 | D67: 101 | E67: 35 | F67: 95 | G67: 76 | H67: 215 | I67: 177 | J67: 177 | L67: 0.043 | M67: 0.02 | N67: 0.023 | O67: 0.114 | P67: 0.31 | Q67: 0.251 | R67: 0.157 | S67: 0.33 | T67: 0.274
A69: 06 Badajoz | B69: 2429 | C69: 2316 | D69: 2825 | E69: 960 | F69: 763 | G69: 759 | H69: 3389 | I69: 3079 | J69: 3584 | L69: 2.786 | M69: 6.56 | N69: 10.227 | O69: 2.866 | P69: 2.81 | Q69: 3.572 | R69: 5.652 | S69: 9.37 | T69: 13.799
A70: 10 Cáceres | B70: 192 | C70: 175 | E70: 31 | F70: 15 | G70: 17 | H70: 223 | I70: 190 | J70: 17 | L70: 0.169 | M70: 0.29 | O70: 0.071 | P70: 0.03 | Q70: 0.056 | R70: 0.24 | S70: 0.32 | T70: 0.056
A71: EXTREMADURA | B71: 2621 | C71: 2491 | D71: 2825 | E71: 991 | F71: 778 | G71: 776 | H71: 3612 | I71: 3269 | J71: 3601 | L71: 2.955 | M71: 6.85 | N71: 10.227 | O71: 2.937 | P71: 2.84 | Q71: 3.628 | R71: 5.892 | S71: 9.69 | T71: 13.855
A73: 04 Almería | B73: 10 | D73: 31 | E73: 8 | G73: 2 | H73: 18 | J73: 33 | L73: 0.001 | N73: 0.056 | O73: 0.009 | Q73: 0.006 | R73: 0.009 | T73: 0.061
A74: 11 Cádiz | B74: 39003 | C74: 41678 | D74: 32912.34 | E74: 4724 | F74: 4121 | G74: 3185.42 | H74: 43727 | I74: 45799 | J74: 36097.76 | L74: 52.849 | M74: 129.29 | N74: 98.736 | O74: 20.786 | P74: 14.22 | Q74: 11.147 | R74: 73.635 | S74: 143.51 | T74: 109.883
A75: 14 Córdoba | B75: 31120 | C75: 29065 | D75: 27750 | E75: 8740 | F75: 7873 | G75: 6400 | H75: 39860 | I75: 36938 | J75: 34150 | L75: 37.344 | M75: 101.73 | N75: 83.25 | O75: 32.338 | P75: 27.56 | Q75: 19.2 | R75: 69.682 | S75: 129.28 | T75: 102.45
A76: 18 Granada | B76: 1198 | C76: 847 | D76: 1344 | E76: 980 | F76: 675 | G76: 645 | H76: 2178 | I76: 1522 | J76: 1989 | L76: 0.655 | M76: 1.68 | N76: 3.712 | O76: 2.299 | P76: 3.3 | Q76: 2.463 | R76: 2.954 | S76: 4.98 | T76: 6.175
A77: 21 Huelva | B77: 9120 | C77: 8550 | D77: 8980 | E77: 902 | F77: 610 | G77: 610 | H77: 10022 | I77: 9160 | J77: 9590 | L77: 15.048 | M77: 29.93 | N77: 31.779 | O77: 1.672 | P77: 2.66 | Q77: 2.745 | R77: 16.72 | S77: 32.58 | T77: 34.524
A78: 23 Jaén | B78: 2640 | C78: 3293 | D78: 2796 | E78: 1883 | F78: 1675 | G78: 1901 | H78: 4523 | I78: 4968 | J78: 4697 | L78: 1.98 | M78: 10.54 | N78: 8.388 | O78: 2.26 | P78: 6.7 | Q78: 7.604 | R78: 4.24 | S78: 17.24 | T78: 15.992
A79: 29 Málaga | B79: 8255 | C79: 8844 | D79: 9123 | E79: 1657 | F79: 1362 | G79: 1281 | H79: 9912 | I79: 10206 | J79: 10404 | L79: 6.604 | M79: 22.11 | N79: 27.369 | O79: 5.634 | P79: 6.47 | Q79: 6.405 | R79: 12.238 | S79: 28.58 | T79: 33.774
A80: 41 Sevilla | B80: 61794 | C80: 53480 | D80: 50740 | E80: 14483 | F80: 12610 | G80: 9080 | H80: 76277 | I80: 66090 | J80: 59820 | L80: 67.973 | M80: 181.83 | N80: 152.22 | O80: 40.552 | P80: 47.92 | Q80: 30.872 | R80: 108.526 | S80: 229.75 | T80: 183.092
A81: ANDALUCIA | B81: 153140 | C81: 145757 | D81: 133676.34 | E81: 33377 | F81: 28926 | G81: 23104.42 | H81: 186517 | I81: 174683 | J81: 156780.76 | L81: 182.454 | M81: 477.1 | N81: 405.51 | O81: 105.55 | P81: 108.82 | Q81: 80.442 | R81: 288.004 | S81: 585.92 | T81: 485.951
A83: 35 Palmas (Las)
A84: 38 S. C. Tenerife
A85: CANARIAS
A88: ESPAÑA | B88: 362008 | C88: 183976 | D88: 170474.64 | E88: 53525 | F88: 46329 | G88: 40125.27 | H88: 234529 | I88: 230305 | J88: 210599.91 | L88: 205.474 | M88: 524.03 | N88: 493.947 | O88: 207.024 | P88: 198.17 | Q88: 157.835 | R88: 412.495 | S88: 722.2 | T88: 651.78
B96: 221 | C96: 231 | E96: 221 | F96: 231 | H96: 221 | I96: 231

Sheet Tri1rno
A1: AVANCES DE SUPERFICIE Y PRODUCCIÓN
A2: TRIGO DURO DE INVIERNO | J2: 2025 JUNIO
A3: SUPERFICIE COSECHADA(*)
A4: PROVINCIAS | C4: SUPERFICIES (HA) | H4: PRODUCCIONES (1000 TM)
A5: Y
A6: CC-AA | C6: =E6-2 -> 2023 | D6: =E6-1 -> 2024 | E6: 2025 | F6: =E6 -> 2025 | H6: =J6-2 -> 2023 | I6: =J6-1 -> 2024 | J6: 2025 | K6: =J6 -> 2025
C7: PROVISIONAL | D7: PROVISIONAL | E7: AVANCE | F7: =CONCATENATE(D6,"=100") -> 2024=100 | H7: PROVISIONAL | I7: PROVISIONAL | J7: AVANCE | K7: =CONCATENATE(I6,"=100") -> 2024=100
A9: 15 A Coruña | C9: 5 | D9: 8 | H9: 0.015 | I9: 0.02
A10: 27 Lugo | C10: 135 | D10: 130 | H10: 0.335 | I10: 0.29
A11: 32 Ourense | C11: 4 | D11: 8 | H11: 0.013 | I11: 0.02
A12: 36 Pontevedra | C12: 3 | D12: 3 | H12: 0.007 | I12: 0.01
A13: GALICIA | C13: 147 | D13: 149 | H13: 0.37 | I13: 0.34
A15: 33 P. DE ASTURIAS
A17: 39 CANTABRIA
A19: 1 Álava
A20: 20 Guipúzcoa
A21: 48 Vizcaya
A22: PAIS VASCO
A24: 31 NAVARRA | C24: 449 | D24: 1285 | E24: 1239 | F24: 96.42023346 | H24: 1.916 | I24: 4.25 | J24: 4.47 | K24: 105.1764706
A26: 26 LA RIOJA | C26: 21 | E26: 10 | H26: 0.023 | J26: 0.032
A28: 22 Huesca | C28: 1516 | D28: 1470 | E28: 1148 | H28: 4.578 | I28: 4.89 | J28: 2.87
A29: 44 Teruel | C29: 620 | D29: 692 | E29: 705 | H29: 0.518 | I29: 0.54 | J29: 1.294
A30: 50 Zaragoza | C30: 35667 | D30: 43974 | E30: 43167 | H30: 91.955 | I30: 97.74 | J30: 126.826
A31: ARAGÓN | C31: 37803 | D31: 46136 | E31: 45020 | F31: 97.58106468 | H31: 97.051 | I31: 103.16 | J31: 130.99 | K31: 126.9775107
A33: 8 Barcelona | C33: 8 | D33: 11 | E33: 38 | H33: 0.008 | I33: 0.03 | J33: 0.188
A34: 17 Girona | C34: 23 | D34: 20 | E34: 29 | H34: 0.051 | I34: 0.05 | J34: 0.12
A35: 25 Lleida | C35: 166 | D35: 58 | E35: 41 | H35: 0.288 | I35: 0.2 | J35: 0.227
A36: 43 Tarragona | C36: 6 | D36: 8 | E36: 16 | H36: 0.003 | I36: 0.01 | J36: 0.042
A37: CATALUÑA | C37: 203 | D37: 97 | E37: 124 | F37: 127.8350515 | H37: 0.35 | I37: 0.28 | J37: 0.577 | K37: 206.0714286
A39: 7 BALEARES | C39: 6 | D39: 39 | E39: 37 | F39: 94.87179487 | H39: 0.011 | I39: 0.05 | J39: 0.052 | K39: 104
A41: 5 Ávila | C41: 13 | D41: 17 | E41: 33 | H41: 0.012 | I41: 0.02 | J41: 0.096
A42: 9 Burgos | C42: 368 | D42: 446 | E42: 361 | H42: 1.074 | I42: 2.15 | J42: 1.619
A43: 24 León | C43: 27 | D43: 11 | E43: 25 | H43: 0.122 | I43: 0.06 | J43: 0.141
A44: 34 Palencia | C44: 93 | D44: 30 | E44: 20.15 | H44: 0.233 | I44: 0.12 | J44: 0.1
A45: 37 Salamanca | C45: 61 | D45: 55 | E45: 37 | H45: 0.151 | I45: 0.18 | J45: 0.151
A46: 40 Segovia | C46: 56 | D46: 61 | E46: 43 | H46: 0.091 | I46: 0.17 | J46: 0.138
A47: 42 Soria | C47: 3 | D47: 38 | E47: 1 | H47: 0.002 | I47: 0.15 | J47: 0.003
A48: 47 Valladolid | C48: 296 | D48: 205 | E48: 88 | H48: 0.895 | I48: 1.02 | J48: 0.489
A49: 49 Zamora | C49: 56 | D49: 39 | E49: 47 | H49: 0.159 | I49: 0.13 | J49: 0.139
A50: CASTILLA Y LEÓN | C50: 973 | D50: 902 | E50: 655.15 | F50: 72.63303769 | H50: 2.739 | I50: 3.98 | J50: 2.876 | K50: 72.26130653
A52: 28 MADRID | C52: 273 | D52: 196 | E52: 94 | F52: 47.95918367 | H52: 0.416 | I52: 0.59 | J52: 0.455 | K52: 77.11864407
A54: 2 Albacete | C54: 1834 | D54: 1441 | E54: 781 | H54: 12.364 | I54: 8.95 | J54: 5.06
A55: 13 Ciudad Real | C55: 393 | D55: 214 | E55: 190 | H55: 0.835 | I55: 0.64 | J55: 0.651
A56: 16 Cuenca | C56: 376 | D56: 377 | E56: 446 | H56: 0.624 | I56: 1.1 | J56: 1.329
A57: 19 Guadalajara | C57: 209 | D57: 206 | E57: 206 | H57: 0.455 | I57: 0.39 | J57: 0.706
A58: 45 Toledo | C58: 1340 | D58: 992 | E58: 1054 | H58: 1.042 | I58: 2.41 | J58: 4.069
A59: CASTILLA-MANCHA | C59: 4152 | D59: 3230 | E59: 2677 | F59: 82.87925697 | H59: 15.32 | I59: 13.49 | J59: 11.815 | K59: 87.58339511
A61: 3 Alicante | C61: 124 | D61: 105 | E61: 103 | H61: 0.209 | I61: 0.1 | J61: 0.233
A62: 12 Castellón | C62: 6 | D62: 24 | E62: 24 | H62: 0.01 | J62: 0.047
A63: 46 Valencia | C63: 28 | D63: 13 | E63: 58 | H63: 0.027 | I63: 0.02 | J63: 0.153
A64: C. VALENCIANA | C64: 158 | D64: 142 | E64: 185 | F64: 130.2816901 | H64: 0.246 | I64: 0.12 | J64: 0.433 | K64: 360.8333333
A66: 30 R. DE MURCIA | C66: 215 | D66: 177 | E66: 177 | F66: 100 | H66: 0.157 | I66: 0.33 | J66: 0.274 | K66: 83.03030303
A68: 6 Badajoz | C68: 3389 | D68: 3079 | E68: 3584 | H68: 5.652 | I68: 9.37 | J68: 13.799
A69: 10 Cáceres | C69: 223 | D69: 190 | E69: 17 | H69: 0.24 | I69: 0.32 | J69: 0.056
A70: EXTREMADURA | C70: 3612 | D70: 3269 | E70: 3601 | F70: 110.156011 | H70: 5.892 | I70: 9.69 | J70: 13.855 | K70: 142.9824561
A72: 4 Almería | C72: 18 | E72: 33 | H72: 0.009 | J72: 0.061
A73: 11 Cádiz | C73: 43727 | D73: 45799 | E73: 36097.76 | H73: 73.635 | I73: 143.51 | J73: 109.883
A74: 14 Córdoba | C74: 39860 | D74: 36938 | E74: 34150 | H74: 69.682 | I74: 129.28 | J74: 102.45
A75: 18 Granada | C75: 2178 | D75: 1522 | E75: 1989 | H75: 2.954 | I75: 4.98 | J75: 6.175
A76: 21 Huelva | C76: 10022 | D76: 9160 | E76: 9590 | H76: 16.72 | I76: 32.58 | J76: 34.524
A77: 23 Jaén | C77: 4523 | D77: 4968 | E77: 4697 | H77: 4.24 | I77: 17.24 | J77: 15.992
A78: 29 Málaga | C78: 9912 | D78: 10206 | E78: 10404 | H78: 12.238 | I78: 28.58 | J78: 33.774
A79: 41 Sevilla | C79: 76277 | D79: 66090 | E79: 59820 | H79: 108.526 | I79: 229.75 | J79: 183.092
A80: ANDALUCÍA | C80: 186517 | D80: 174683 | E80: 156780.76 | F80: 89.7515843 | H80: 288.004 | I80: 585.92 | J80: 485.951 | K80: 82.93811442
A82: 35 Palmas (Las)
A83: 38 S. C. Tenerife
A84: CANARIAS
A87: ESPAÑA | C87: 234529 | D87: 230305 | E87: 210599.91 | F87: 91.44391568 | H87: 412.495 | I87: 722.2 | J87: 651.78 | K87: 90.24923844
A90: (*)Tipo de Superficie de mes/año solicitado

Sheet Tri2rno-SRT
A1: AVANCES DE SUPERFICIE Y PRODUCCIÓN
A2: TRIGO BLANDO Y SEMI DE INVIERNO S/R/T | K2: 2025 JUNIO
A3: SUPERFICIE COSECHADA(*)
A4: PROVINCIAS | B4: SUPERFICIES (HA) | E4: SUPERFICIES (HA) | H4: SUPERFICIES (HA) | L4: PRODUCCIONES (1000 TM) | O4: PRODUCCIONES (1000 TM) | R4: PRODUCCIONES (1000 TM)
A5: Y | B5: SECANO | E5: REGADIO | H5: TOTAL | L5: SECANO | O5: REGADIO | R5: TOTAL
A6: CC-AA | B6: =J6-2 -> 2023 | C6: =J6-1 -> 2024 | D6: =J6 -> 2025 | E6: =J6-2 -> 2023 | F6: =J6-1 -> 2024 | G6: =J6 -> 2025 | H6: =J6-2 -> 2023 | I6: =J6-1 -> 2024 | J6: 2025 | L6: =T6-2 -> 2023 | M6: =T6-1 -> 2024 | N6: =T6 -> 2025 | O6: =T6-2 -> 2023 | P6: =T6-1 -> 2024 | Q6: =T6 -> 2025 | R6: =T6-2 -> 2023 | S6: =T6-1 -> 2024 | T6: 2025
B7: PROVISIONAL | C7: PROVISIONAL | D7: PROVISIONAL | E7: PROVISIONAL | F7: PROVISIONAL | G7: AVANCE | H7: PROVISIONAL | I7: PROVISIONAL | J7: AVANCE | L7: PROVISIONAL | M7: PROVISIONAL | N7: AVANCE | O7: PROVISIONAL | P7: PROVISIONAL | Q7: AVANCE | R7: PROVISIONAL | S7: PROVISIONAL | T7: AVANCE
A10: 15 Coruña (La) | B10: 981 | C10: 1008 | D10: 1872.38 | H10: 981 | I10: 1008 | J10: 1872.38 | L10: 2.982 | M10: 2.32 | N10: 8.455 | R10: 2.982 | S10: 2.32 | T10: 8.455
A11: 27 Lugo | B11: 1922 | C11: 1832 | D11: 2785.36 | H11: 1922 | I11: 1832 | J11: 2785.36 | L11: 4.767 | M11: 4.03 | N11: 9.141 | R11: 4.767 | S11: 4.03 | T11: 9.141
A12: 32 Orense | B12: 4993 | C12: 5128 | D12: 5218.63 | H12: 4993 | I12: 5128 | J12: 5218.63 | L12: 15.478 | M12: 15.38 | N12: 17.369 | R12: 15.478 | S12: 15.38 | T12: 17.369
A13: 36 Pontevedra | B13: 186 | C13: 172 | D13: 331.79 | H13: 186 | I13: 172 | J13: 331.79 | L13: 0.409 | M13: 0.39 | N13: 1.182 | R13: 0.409 | S13: 0.39 | T13: 1.182
A14: GALICIA | B14: 8082 | C14: 8140 | D14: 10208.16 | H14: 8082 | I14: 8140 | J14: 10208.16 | L14: 23.636 | M14: 22.12 | N14: 36.147 | R14: 23.636 | S14: 22.12 | T14: 36.147
A16: 33 P. DE ASTURIAS | D16: 60 | J16: 60 | N16: 0.108 | T16: 0.108
A18: 39 CANTABRIA | B18: 692 | C18: 733 | D18: 742 | E18: 142 | F18: 115 | G18: 120 | H18: 834 | I18: 848 | J18: 862 | L18: 1.522 | M18: 1.61 | N18: 1.706 | O18: 0.639 | P18: 0.52 | Q18: 0.54 | R18: 2.161 | S18: 2.13 | T18: 2.246
A20: 01 Alava | B20: 19290 | C20: 19717 | D20: 17819 | H20: 19290 | I20: 19717 | J20: 17819 | L20: 106.095 | M20: 138.02 | N20: 106.914 | R20: 106.095 | S20: 138.02 | T20: 106.914
A21: 20 Guipúzcoa | B21: 1 | C21: 1 | H21: 1 | I21: 1 | L21: 0.005 | M21: 0.01 | R21: 0.005 | S21: 0.01
A22: 48 Vizcaya
A23: PAIS VASCO | B23: 19291 | C23: 19718 | D23: 17819 | H23: 19291 | I23: 19718 | J23: 17819 | L23: 106.1 | M23: 138.03 | N23: 106.914 | R23: 106.1 | S23: 138.03 | T23: 106.914
A25: 31 NAVARRA | B25: 59129 | C25: 61844 | D25: 66542 | E25: 15701 | F25: 14641 | G25: 13373 | H25: 74830 | I25: 76485 | J25: 79915 | L25: 231.135 | M25: 324.19 | N25: 327.748 | O25: 87.69 | P25: 104.57 | Q25: 88.287 | R25: 318.825 | S25: 428.75 | T25: 416.035
A27: 26 LA RIOJA | B27: 16153 | C27: 16289 | D27: 16700 | E27: 8295 | F27: 7444 | G27: 7250 | H27: 24448 | I27: 23733 | J27: 23950 | L27: 37.927 | M27: 46.72 | N27: 90.6 | O27: 40.646 | P27: 32.01 | Q27: 40.75 | R27: 78.573 | S27: 78.73 | T27: 131.35
A29: 22 Huesca | B29: 40347 | C29: 54991 | D29: 57241 | E29: 18518 | F29: 22889 | G29: 19197 | H29: 58865 | I29: 77880 | J29: 76438 | L29: 72.665 | M29: 204.57 | N29: 143.102 | O29: 94.442 | P29: 135.98 | Q29: 47.992 | R29: 167.107 | S29: 340.55 | T29: 191.095
A30: 44 Teruel | B30: 19748 | C30: 30001 | D30: 32985 | E30: 3732 | F30: 3980 | G30: 3249 | H30: 23480 | I30: 33981 | J30: 36234 | L30: 15.798 | M30: 30.06 | N30: 98.955 | O30: 11.663 | P30: 12.15 | Q30: 12.476 | R30: 27.461 | S30: 42.21 | T30: 111.431
A31: 50 Zaragoza | B31: 23839 | C31: 41175 | D31: 42764 | E31: 16608 | F31: 17887 | G31: 17093 | H31: 40447 | I31: 59062 | J31: 59857 | L31: 18.404 | M31: 58.67 | N31: 164.128 | O31: 84.701 | P31: 91.22 | Q31: 86.877 | R31: 103.105 | S31: 149.9 | T31: 251.006
A32: ARAGON | B32: 83934 | C32: 126167 | D32: 132990 | E32: 38858 | F32: 44756 | G32: 39539 | H32: 122792 | I32: 170923 | J32: 172529 | L32: 106.867 | M32: 293.3 | N32: 406.185 | O32: 190.806 | P32: 239.36 | Q32: 147.345 | R32: 297.673 | S32: 532.66 | T32: 553.532
A34: 08 Barcelona | B34: 13806 | C34: 21419 | D34: 20506 | E34: 720 | F34: 370 | G34: 501 | H34: 14526 | I34: 21789 | J34: 21007 | L34: 14.165 | M34: 48.24 | N34: 97.94 | O34: 3.891 | P34: 2.02 | Q34: 2.957 | R34: 18.056 | S34: 50.25 | T34: 100.897
A35: 17 Girona | B35: 8926 | C35: 10042 | D35: 9080 | E35: 2840 | F35: 2681 | G35: 4158 | H35: 11766 | I35: 12723 | J35: 13238 | L35: 20.146 | M35: 23.88 | N35: 39.94 | O35: 8.608 | P35: 9.95 | Q35: 19.94 | R35: 28.754 | S35: 33.83 | T35: 59.88
A36: 25 Lleida | B36: 31173 | C36: 41588 | D36: 35108 | E36: 18553 | F36: 20718 | G36: 16161 | H36: 49726 | I36: 62306 | J36: 51269 | L36: 18.953 | M36: 83.22 | N36: 133.41 | O36: 85.919 | P36: 123.29 | Q36: 126.056 | R36: 104.872 | S36: 206.51 | T36: 259.466
A37: 43 Tarragona | B37: 5875 | C37: 6821 | D37: 6654 | E37: 84 | F37: 55 | G37: 70 | H37: 5959 | I37: 6876 | J37: 6724 | L37: 7.45 | M37: 8.19 | N37: 28.972 | O37: 0.133 | P37: 0.12 | Q37: 0.336 | R37: 7.582 | S37: 8.31 | T37: 29.308
A38: CATALUÑA | B38: 59780 | C38: 79870 | D38: 71348 | E38: 22197 | F38: 23824 | G38: 20890 | H38: 81977 | I38: 103694 | J38: 92238 | L38: 60.714 | M38: 163.53 | N38: 300.262 | O38: 98.551 | P38: 135.38 | Q38: 149.289 | R38: 159.264 | S38: 298.9 | T38: 449.551
A40: 07 BALEARES | B40: 4212 | C40: 3694 | D40: 3670 | H40: 4212 | I40: 3694 | J40: 3670 | L40: 7.876 | M40: 5.14 | N40: 5.2 | R40: 7.876 | S40: 5.14 | T40: 5.2
A42: 05 Avila | B42: 26223 | C42: 28638 | D42: 32646 | E42: 2938 | F42: 2332 | G42: 3701 | H42: 29161 | I42: 30970 | J42: 36347 | L42: 23.915 | M42: 54.61 | N42: 101.529 | O42: 14.702 | P42: 8.37 | Q42: 16.711 | R42: 38.617 | S42: 62.98 | T42: 118.24
A43: 09 Burgos | B43: 179169 | C43: 179659 | D43: 190117 | E43: 6133 | F43: 5824 | G43: 6464 | H43: 185302 | I43: 185483 | J43: 196581 | L43: 472.648 | M43: 963.69 | N43: 977.118 | O43: 31.15 | P43: 41.56 | Q43: 45.756 | R43: 503.797 | S43: 1005.25 | T43: 1022.874
A44: 24 León | B44: 29545 | C44: 24021 | D44: 34956 | E44: 15861 | F44: 12185 | G44: 17316 | H44: 45406 | I44: 36206 | J44: 52272 | L44: 36.193 | M44: 83.57 | N44: 122.346 | O44: 102.859 | P44: 79.78 | Q44: 112.554 | R44: 139.051 | S44: 163.34 | T44: 234.9
A45: 34 Palencia | B45: 95379 | C45: 97592 | D45: 111451.5 | E45: 21066 | F45: 22661 | G45: 23088.74 | H45: 116445 | I45: 120253 | J45: 134540.25 | L45: 241.213 | M45: 434.68 | N45: 537.002 | O45: 109.543 | P45: 141.36 | Q45: 141.025 | R45: 350.757 | S45: 576.03 | T45: 678.027
A46: 37 Salamanca | B46: 51527 | C46: 61003 | D46: 62013 | E46: 5948 | F46: 7311 | G46: 7977 | H46: 57475 | I46: 68314 | J46: 69990 | L46: 118.512 | M46: 207.41 | N46: 248.052 | O46: 35.688 | P46: 42.4 | Q46: 46.267 | R46: 154.2 | S46: 249.81 | T46: 294.319
A47: 40 Segovia | B47: 60607 | C47: 60157 | D47: 76823 | E47: 2997 | F47: 2873 | G47: 3748 | H47: 63604 | I47: 63030 | J47: 80571 | L47: 94.911 | M47: 169.1 | N47: 272.184 | O47: 8.991 | P47: 14.33 | Q47: 18.673 | R47: 103.902 | S47: 183.43 | T47: 290.857
A48: 42 Soria | B48: 88416 | C48: 83843 | D48: 100469 | E48: 4210 | F48: 3835 | G48: 4877 | H48: 92626 | I48: 87678 | J48: 105346 | L48: 84.703 | M48: 319.19 | N48: 362.492 | O48: 13.051 | P48: 19.18 | Q48: 25.36 | R48: 97.754 | S48: 338.37 | T48: 387.852
A49: 47 Valladolid | B49: 89124 | C49: 101383 | D49: 102219 | E49: 16491 | F49: 20125 | G49: 21552 | H49: 105615 | I49: 121508 | J49: 123771 | L49: 142.331 | M49: 414.56 | N49: 473.289 | O49: 81.235 | P49: 134.38 | Q49: 147.603 | R49: 223.566 | S49: 548.93 | T49: 620.892
A50: 49 Zamora | B50: 46627 | C50: 48737 | D50: 60518 | E50: 9015 | F50: 9020 | G50: 9534 | H50: 55642 | I50: 57757 | J50: 70052 | L50: 74.277 | M50: 160.25 | N50: 237.654 | O50: 40.036 | P50: 46.32 | Q50: 66.738 | R50: 114.312 | S50: 206.57 | T50: 304.392
A51: CASTILLA Y LEON | B51: 666617 | C51: 685033 | D51: 771212.5 | E51: 84659 | F51: 86166 | G51: 98257.74 | H51: 751276 | I51: 771199 | J51: 869470.25 | L51: 1288.703 | M51: 2807.05 | N51: 3331.666 | O51: 437.255 | P51: 527.66 | Q51: 620.687 | R51: 1725.956 | S51: 3334.71 | T51: 3952.353
A53: 28 MADRID | B53: 23424 | C53: 16960 | D53: 13104 | E53: 2729 | F53: 1893 | G53: 1950 | H53: 26153 | I53: 18853 | J53: 15054 | L53: 31.95 | M53: 49.34 | N53: 43.034 | O53: 12.109 | P53: 8.62 | Q53: 7.73 | R53: 44.059 | S53: 57.95 | T53: 50.764
A55: 02 Albacete | B55: 29300 | C55: 40500 | D55: 41397 | E55: 12905 | F55: 10650 | G55: 11953 | H55: 42205 | I55: 51150 | J55: 53350 | L55: 9.523 | M55: 41.92 | N55: 94.187 | O55: 91.626 | P55: 77.21 | Q55: 91.476 | R55: 101.148 | S55: 119.13 | T55: 185.663
A56: 13 Ciudad Real | B56: 35689 | C56: 41136 | D56: 39650 | E56: 9229 | F56: 7654 | G56: 8310 | H56: 44918 | I56: 48790 | J56: 47960 | L56: 17.845 | M56: 90.38 | N56: 134.81 | O56: 26.164 | P56: 39.8 | Q56: 45.705 | R56: 44.009 | S56: 130.18 | T56: 180.515
A57: 16 Cuenca | B57: 37676 | C57: 45373 | D57: 57309 | E57: 2670 | F57: 2989 | G57: 3320 | H57: 40346 | I57: 48362 | J57: 60629 | L57: 30.141 | M57: 131.58 | N57: 154.733 | O57: 10.68 | P57: 15.54 | Q57: 16.599 | R57: 40.821 | S57: 147.13 | T57: 171.332
A58: 19 Guadalajara | B58: 67934 | C58: 65772 | D58: 65772 | E58: 1857 | F58: 2011 | G58: 2011 | H58: 69791 | I58: 67783 | J58: 67783 | L58: 122.281 | M58: 230.2 | N58: 249.934 | O58: 9.285 | P58: 12.07 | Q58: 11.061 | R58: 131.566 | S58: 242.27 | T58: 260.995
A59: 45 Toledo | B59: 46399 | C59: 47675 | D59: 54305 | E59: 5135 | F59: 3955 | G59: 5574 | H59: 51534 | I59: 51630 | J59: 59879 | L59: 17.632 | M59: 119.19 | N59: 190.068 | O59: 24.135 | P59: 18.19 | Q59: 26.755 | R59: 41.766 | S59: 137.38 | T59: 216.823
A60: CASTILLA-MANCHA | B60: 216998 | C60: 240456 | D60: 258433 | E60: 31796 | F60: 27259 | G60: 31168 | H60: 248794 | I60: 267715 | J60: 289601 | L60: 197.422 | M60: 613.27 | N60: 823.732 | O60: 161.89 | P60: 162.82 | Q60: 191.596 | R60: 359.31 | S60: 776.08 | T60: 1015.328
A62: 03 Alicante | B62: 955 | C62: 672 | D62: 1093 | E62: 333 | F62: 311 | G62: 365 | H62: 1288 | I62: 983 | J62: 1458 | L62: 0.277 | M62: 0.19 | N62: 1.963 | O62: 1.012 | P62: 0.65 | Q62: 1.976 | R62: 1.289 | S62: 0.84 | T62: 3.939
A63: 12 Castellón | B63: 269 | C63: 555 | D63: 555 | E63: 18 | F63: 17 | G63: 17 | H63: 287 | I63: 572 | J63: 572 | L63: 0.428 | M63: 0.08 | N63: 1.193 | O63: 0.086 | P63: 0.08 | Q63: 0.082 | R63: 0.514 | S63: 0.17 | T63: 1.275
A64: 46 Valencia | B64: 1038 | C64: 1072 | D64: 2337 | E64: 246 | F64: 212 | G64: 244 | H64: 1284 | I64: 1284 | J64: 2581 | L64: 0.83 | M64: 1.06 | N64: 6.11 | O64: 0.984 | P64: 0.98 | Q64: 1.069 | R64: 1.814 | S64: 2.04 | T64: 7.179
A65: C. VALENCIANA | B65: 2262 | C65: 2299 | D65: 3985 | E65: 597 | F65: 540 | G65: 626 | H65: 2859 | I65: 2839 | J65: 4611 | L65: 1.535 | M65: 1.33 | N65: 9.266 | O65: 2.082 | P65: 1.71 | Q65: 3.127 | R65: 3.617 | S65: 3.04 | T65: 12.393
A67: 30 R. DE MURCIA | B67: 5600 | C67: 5936 | D67: 6324 | E67: 1210 | F67: 599 | G67: 526 | H67: 6810 | I67: 6535 | J67: 6850 | L67: 2.386 | M67: 2.43 | N67: 0.41 | O67: 4.183 | P67: 2.09 | Q67: 3.49 | R67: 6.569 | S67: 4.53 | T67: 3.9
A69: 06 Badajoz | B69: 46418 | C69: 62899 | D69: 62097 | E69: 18733 | F69: 10618 | G69: 10572 | H69: 65151 | I69: 73517 | J69: 72669 | L69: 51.106 | M69: 199.2 | N69: 168.159 | O69: 53.782 | P69: 43.71 | Q69: 37.218 | R69: 104.889 | S69: 242.92 | T69: 205.377
A70: 10 Cáceres | B70: 1429 | C70: 2306 | D70: 1830 | E70: 3757 | F70: 1215 | G70: 1529 | H70: 5186 | I70: 3521 | J70: 3359 | L70: 1.136 | M70: 4.95 | N70: 3.883 | O70: 7.788 | P70: 3.39 | Q70: 4.218 | R70: 8.924 | S70: 8.35 | T70: 8.101
A71: EXTREMADURA | B71: 47847 | C71: 65205 | D71: 63927 | E71: 22490 | F71: 11833 | G71: 12101 | H71: 70337 | I71: 77038 | J71: 76028 | L71: 52.242 | M71: 204.15 | N71: 172.042 | O71: 61.57 | P71: 47.11 | Q71: 41.436 | R71: 113.813 | S71: 251.26 | T71: 213.478
A73: 04 Almería | B73: 200 | C73: 52 | D73: 666 | E73: 91 | F73: 65 | G73: 11 | H73: 291 | I73: 117 | J73: 677 | L73: 0.016 | M73: 0.02 | N73: 1.732 | O73: 0.261 | P73: 0.08 | Q73: 0.035 | R73: 0.277 | S73: 0.1 | T73: 1.767
A74: 11 Cádiz | B74: 10300 | C74: 8973 | D74: 10695.35 | E74: 1260 | F74: 1627 | G74: 1336.97 | H74: 11560 | I74: 10600 | J74: 12032.32 | L74: 12.618 | M74: 15.86 | N74: 19.251 | O74: 1.657 | P74: 6.46 | Q74: 2.674 | R74: 14.274 | S74: 22.31 | T74: 21.925
A75: 14 Córdoba | B75: 20898 | C75: 21160 | D75: 20330 | E75: 1948 | F75: 2078 | G75: 2390 | H75: 22846 | I75: 23238 | J75: 22720 | L75: 20.898 | M75: 79.35 | N75: 60.99 | O75: 7.208 | P75: 7.79 | Q75: 7.17 | R75: 28.106 | S75: 87.14 | T75: 68.16
A76: 18 Granada | B76: 7312 | C76: 4442 | D76: 7510 | E76: 1094 | F76: 743 | G76: 847 | H76: 8406 | I76: 5185 | J76: 8357 | L76: 3.298 | M76: 9.8 | N76: 7.976 | O76: 2.141 | P76: 2.5 | Q76: 4.039 | R76: 5.439 | S76: 12.31 | T76: 12.015
A77: 21 Huelva | B77: 3650 | C77: 4160 | D77: 4105 | E77: 500 | F77: 340 | G77: 275 | H77: 4150 | I77: 4500 | J77: 4380 | L77: 6.57 | M77: 15.39 | N77: 15.023 | O77: 1.08 | P77: 1.33 | Q77: 1.183 | R77: 7.65 | S77: 16.72 | T77: 16.206
A78: 23 Jaén | B78: 1822 | C78: 2302 | D78: 1969 | E78: 150 | F78: 202 | G78: 156 | H78: 1972 | I78: 2504 | J78: 2125 | L78: 1.458 | M78: 6.91 | N78: 5.513 | O78: 0.196 | P78: 0.81 | Q78: 0.562 | R78: 1.653 | S78: 7.71 | T78: 6.075
A79: 29 Málaga | B79: 3289 | C79: 4459 | D79: 5432 | E79: 377 | F79: 313 | G79: 389 | H79: 3666 | I79: 4772 | J79: 5821 | L79: 2.631 | M79: 9.79 | N79: 14.123 | O79: 1.282 | P79: 1.33 | Q79: 1.906 | R79: 3.913 | S79: 11.12 | T79: 16.029
A80: 41 Sevilla | B80: 50105 | C80: 52650 | D80: 54310 | E80: 12777 | F80: 10820 | G80: 9310 | H80: 62882 | I80: 63470 | J80: 63620 | L80: 70.147 | M80: 189.54 | N80: 190.085 | O80: 40.886 | P80: 45.44 | Q80: 36.309 | R80: 111.033 | S80: 234.98 | T80: 226.394
A81: ANDALUCIA | B81: 97576 | C81: 98198 | D81: 105017.35 | E81: 18197 | F81: 16188 | G81: 14714.97 | H81: 115773 | I81: 114386 | J81: 119732.32 | L81: 117.636 | M81: 326.65 | N81: 314.693 | O81: 54.711 | P81: 65.75 | Q81: 53.878 | R81: 172.345 | S81: 392.4 | T81: 368.571
A83: 35 Palmas (Las) | B83: 93 | C83: 88 | D83: 88 | F83: 1 | G83: 1 | H83: 93 | I83: 89 | J83: 89 | L83: 0.093 | M83: 0.09 | N83: 0.088 | Q83: 0.001 | R83: 0.093 | S83: 0.09 | T83: 0.089
A84: 38 S. C. Tenerife | B84: 113 | C84: 114 | D84: 114 | E84: 24 | F84: 23 | G84: 23 | H84: 137 | I84: 137 | J84: 137 | L84: 0.109 | M84: 0.11 | N84: 0.108 | O84: 0.036 | P84: 0.04 | Q84: 0.035 | R84: 0.145 | S84: 0.14 | T84: 0.143
A85: CANARIAS | B85: 206 | C85: 202 | D85: 202 | E85: 24 | F85: 24 | G85: 24 | H85: 230 | I85: 226 | J85: 226 | L85: 0.202 | M85: 0.2 | N85: 0.196 | O85: 0.036 | P85: 0.04 | Q85: 0.036 | R85: 0.238 | S85: 0.23 | T85: 0.232
A88: ESPAÑA | B88: 2623606 | C88: 1430744 | D88: 1542284.01 | E88: 246895 | F88: 235282 | G88: 240539.71 | H88: 1558698 | I88: 1666026 | J88: 1782823.73 | L88: 2267.853 | M88: 4999.05 | N88: 5969.909 | O88: 1152.168 | P88: 1327.61 | Q88: 1348.191 | R88: 3420.015 | S88: 6326.66 | T88: 7318.102
B96: 221 | C96: 231 | E96: 221 | F96: 231 | H96: 221 | I96: 231

Sheet Tri2rno
A1: AVANCES DE SUPERFICIE Y PRODUCCIÓN
A2: TRIGO BLANDO Y SEMI DE INVIERNO | J2: 2025 JUNIO
A3: SUPERFICIE COSECHADA(*)
A4: PROVINCIAS | C4: SUPERFICIES (HA) | H4: PRODUCCIONES (1000 TM)
A5: Y
A6: CC-AA | C6: =E6-2 -> 2023 | D6: =E6-1 -> 2024 | E6: 2025 | F6: =E6 -> 2025 | H6: =J6-2 -> 2023 | I6: =J6-1 -> 2024 | J6: 2025 | K6: =J6 -> 2025
C7: PROVISIONAL | D7: PROVISIONAL | E7: AVANCE | F7: =CONCATENATE(D6,"=100") -> 2024=100 | H7: PROVISIONAL | I7: PROVISIONAL | J7: AVANCE | K7: =CONCATENATE(I6,"=100") -> 2024=100
A9: 15 A Coruña | C9: 981 | D9: 1008 | E9: 1872.38 | H9: 2.982 | I9: 2.32 | J9: 8.455
A10: 27 Lugo | C10: 1922 | D10: 1832 | E10: 2785.36 | H10: 4.767 | I10: 4.03 | J10: 9.141
A11: 32 Ourense | C11: 4993 | D11: 5128 | E11: 5218.63 | H11: 15.478 | I11: 15.38 | J11: 17.369
A12: 36 Pontevedra | C12: 186 | D12: 172 | E12: 331.79 | H12: 0.409 | I12: 0.39 | J12: 1.182
A13: GALICIA | C13: 8082 | D13: 8140 | E13: 10208.16 | F13: 125.407371 | H13: 23.636 | I13: 22.12 | J13: 36.147 | K13: 163.4132007
A15: 33 P. DE ASTURIAS | E15: 60 | J15: 0.108
A17: 39 CANTABRIA | C17: 834 | D17: 848 | E17: 862 | F17: 101.6509434 | H17: 2.161 | I17: 2.13 | J17: 2.246 | K17: 105.4460094
A19: 1 Álava | C19: 19290 | D19: 19717 | E19: 17819 | H19: 106.095 | I19: 138.02 | J19: 106.914
A20: 20 Guipúzcoa | C20: 1 | D20: 1 | H20: 0.005 | I20: 0.01
A21: 48 Vizcaya
A22: PAIS VASCO | C22: 19291 | D22: 19718 | E22: 17819 | F22: 90.3692058 | H22: 106.1 | I22: 138.03 | J22: 106.914 | K22: 77.45707455
A24: 31 NAVARRA | C24: 74830 | D24: 76485 | E24: 79915 | F24: 104.4845395 | H24: 318.825 | I24: 428.75 | J24: 416.035 | K24: 97.03440233
A26: 26 LA RIOJA | C26: 24448 | D26: 23733 | E26: 23950 | F26: 100.9143387 | H26: 78.573 | I26: 78.73 | J26: 131.35 | K26: 166.8360218
A28: 22 Huesca | C28: 58865 | D28: 77880 | E28: 76438 | H28: 167.107 | I28: 340.55 | J28: 191.095
A29: 44 Teruel | C29: 23480 | D29: 33981 | E29: 36234 | H29: 27.461 | I29: 42.21 | J29: 111.431
A30: 50 Zaragoza | C30: 40447 | D30: 59062 | E30: 59857 | H30: 103.105 | I30: 149.9 | J30: 251.006
A31: ARAGÓN | C31: 122792 | D31: 170923 | E31: 172529 | F31: 100.9396044 | H31: 297.673 | I31: 532.66 | J31: 553.532 | K31: 103.918447
A33: 8 Barcelona | C33: 14526 | D33: 21789 | E33: 21007 | H33: 18.056 | I33: 50.25 | J33: 100.897
A34: 17 Girona | C34: 11766 | D34: 12723 | E34: 13238 | H34: 28.754 | I34: 33.83 | J34: 59.88
A35: 25 Lleida | C35: 49726 | D35: 62306 | E35: 51269 | H35: 104.872 | I35: 206.51 | J35: 259.466
A36: 43 Tarragona | C36: 5959 | D36: 6876 | E36: 6724 | H36: 7.582 | I36: 8.31 | J36: 29.308
A37: CATALUÑA | C37: 81977 | D37: 103694 | E37: 92238 | F37: 88.95210909 | H37: 159.264 | I37: 298.9 | J37: 449.551 | K37: 150.4018066
A39: 7 BALEARES | C39: 4212 | D39: 3694 | E39: 3670 | F39: 99.35029778 | H39: 7.876 | I39: 5.14 | J39: 5.2 | K39: 101.1673152
A41: 5 Ávila | C41: 29161 | D41: 30970 | E41: 36347 | H41: 38.617 | I41: 62.98 | J41: 118.24
A42: 9 Burgos | C42: 185302 | D42: 185483 | E42: 196581 | H42: 503.797 | I42: 1005.25 | J42: 1022.874
A43: 24 León | C43: 45406 | D43: 36206 | E43: 52272 | H43: 139.051 | I43: 163.34 | J43: 234.9
A44: 34 Palencia | C44: 116445 | D44: 120253 | E44: 134540.25 | H44: 350.757 | I44: 576.03 | J44: 678.027
A45: 37 Salamanca | C45: 57475 | D45: 68314 | E45: 69990 | H45: 154.2 | I45: 249.81 | J45: 294.319
A46: 40 Segovia | C46: 63604 | D46: 63030 | E46: 80571 | H46: 103.902 | I46: 183.43 | J46: 290.857
A47: 42 Soria | C47: 92626 | D47: 87678 | E47: 105346 | H47: 97.754 | I47: 338.37 | J47: 387.852
A48: 47 Valladolid | C48: 105615 | D48: 121508 | E48: 123771 | H48: 223.566 | I48: 548.93 | J48: 620.892
A49: 49 Zamora | C49: 55642 | D49: 57757 | E49: 70052 | H49: 114.312 | I49: 206.57 | J49: 304.392
A50: CASTILLA Y LEÓN | C50: 751276 | D50: 771199 | E50: 869470.25 | F50: 112.7426579 | H50: 1725.956 | I50: 3334.71 | J50: 3952.353 | K50: 118.5216406
A52: 28 MADRID | C52: 26153 | D52: 18853 | E52: 15054 | F52: 79.84936084 | H52: 44.059 | I52: 57.95 | J52: 50.764 | K52: 87.59965487
A54: 2 Albacete | C54: 42205 | D54: 51150 | E54: 53350 | H54: 101.148 | I54: 119.13 | J54: 185.663
A55: 13 Ciudad Real | C55: 44918 | D55: 48790 | E55: 47960 | H55: 44.009 | I55: 130.18 | J55: 180.515
A56: 16 Cuenca | C56: 40346 | D56: 48362 | E56: 60629 | H56: 40.821 | I56: 147.13 | J56: 171.332
A57: 19 Guadalajara | C57: 69791 | D57: 67783 | E57: 67783 | H57: 131.566 | I57: 242.27 | J57: 260.995
A58: 45 Toledo | C58: 51534 | D58: 51630 | E58: 59879 | H58: 41.766 | I58: 137.38 | J58: 216.823
A59: CASTILLA-MANCHA | C59: 248794 | D59: 267715 | E59: 289601 | F59: 108.1751116 | H59: 359.31 | I59: 776.08 | J59: 1015.328 | K59: 130.8277497
A61: 3 Alicante | C61: 1288 | D61: 983 | E61: 1458 | H61: 1.289 | I61: 0.84 | J61: 3.939
A62: 12 Castellón | C62: 287 | D62: 572 | E62: 572 | H62: 0.514 | I62: 0.17 | J62: 1.275
A63: 46 Valencia | C63: 1284 | D63: 1284 | E63: 2581 | H63: 1.814 | I63: 2.04 | J63: 7.179
A64: C. VALENCIANA | C64: 2859 | D64: 2839 | E64: 4611 | F64: 162.4163438 | H64: 3.617 | I64: 3.04 | J64: 12.393 | K64: 407.6644737
A66: 30 R. DE MURCIA | C66: 6810 | D66: 6535 | E66: 6850 | F66: 104.8201989 | H66: 6.569 | I66: 4.53 | J66: 3.9 | K66: 86.09271523
A68: 6 Badajoz | C68: 65151 | D68: 73517 | E68: 72669 | H68: 104.889 | I68: 242.92 | J68: 205.377
A69: 10 Cáceres | C69: 5186 | D69: 3521 | E69: 3359 | H69: 8.924 | I69: 8.35 | J69: 8.101
A70: EXTREMADURA | C70: 70337 | D70: 77038 | E70: 76028 | F70: 98.6889587 | H70: 113.813 | I70: 251.26 | J70: 213.478 | K70: 84.96298655
A72: 4 Almería | C72: 291 | D72: 117 | E72: 677 | H72: 0.277 | I72: 0.1 | J72: 1.767
A73: 11 Cádiz | C73: 11560 | D73: 10600 | E73: 12032.32 | H73: 14.274 | I73: 22.31 | J73: 21.925
A74: 14 Córdoba | C74: 22846 | D74: 23238 | E74: 22720 | H74: 28.106 | I74: 87.14 | J74: 68.16
A75: 18 Granada | C75: 8406 | D75: 5185 | E75: 8357 | H75: 5.439 | I75: 12.31 | J75: 12.015
A76: 21 Huelva | C76: 4150 | D76: 4500 | E76: 4380 | H76: 7.65 | I76: 16.72 | J76: 16.206
A77: 23 Jaén | C77: 1972 | D77: 2504 | E77: 2125 | H77: 1.653 | I77: 7.71 | J77: 6.075
A78: 29 Málaga | C78: 3666 | D78: 4772 | E78: 5821 | H78: 3.913 | I78: 11.12 | J78: 16.029
A79: 41 Sevilla | C79: 62882 | D79: 63470 | E79: 63620 | H79: 111.033 | I79: 234.98 | J79: 226.394
A80: ANDALUCÍA | C80: 115773 | D80: 114386 | E80: 119732.32 | F80: 104.6739286 | H80: 172.345 | I80: 392.4 | J80: 368.571 | K80: 93.92737003
A82: 35 Palmas (Las) | C82: 93 | D82: 89 | E82: 89 | H82: 0.093 | I82: 0.09 | J82: 0.089
A83: 38 S. C. Tenerife | C83: 137 | D83: 137 | E83: 137 | H83: 0.145 | I83: 0.14 | J83: 0.143
A84: CANARIAS | C84: 230 | D84: 226 | E84: 226 | F84: 100 | H84: 0.238 | I84: 0.23 | J84: 0.232 | K84: 100.8695652
A87: ESPAÑA | C87: 1558698 | D87: 1666026 | E87: 1782823.73 | F87: 107.0105587 | H87: 3420.015 | I87: 6326.66 | J87: 7318.102 | K87: 115.6708595
A90: (*)Tipo de Superficie de mes/año solicitado

Sheet Tri3era-SRT
A1: AVANCES DE SUPERFICIE Y PRODUCCIÓN
A2: TRIGO DE PRIMAVERA S/R/T | K2: 2025 JUNIO
A3: SUPERFICIE COSECHADA(*)
A4: PROVINCIAS | B4: SUPERFICIES (HA) | E4: SUPERFICIES (HA) | H4: SUPERFICIES (HA) | L4: PRODUCCIONES (1000 TM) | O4: PRODUCCIONES (1000 TM) | R4: PRODUCCIONES (1000 TM)
A5: Y | B5: SECANO | E5: REGADIO | H5: TOTAL | L5: SECANO | O5: REGADIO | R5: TOTAL
A6: CC-AA | B6: =J6-2 -> 2023 | C6: =J6-1 -> 2024 | D6: =J6 -> 2025 | E6: =J6-2 -> 2023 | F6: =J6-1 -> 2024 | G6: =J6 -> 2025 | H6: =J6-2 -> 2023 | I6: =J6-1 -> 2024 | J6: 2025 | L6: =T6-2 -> 2023 | M6: =T6-1 -> 2024 | N6: =T6 -> 2025 | O6: =T6-2 -> 2023 | P6: =T6-1 -> 2024 | Q6: =T6 -> 2025 | R6: =T6-2 -> 2023 | S6: =T6-1 -> 2024 | T6: 2025
B7: PROVISIONAL | C7: PROVISIONAL | D7: PROVISIONAL | E7: PROVISIONAL | F7: PROVISIONAL | G7: AVANCE | H7: PROVISIONAL | I7: PROVISIONAL | J7: AVANCE | L7: PROVISIONAL | M7: PROVISIONAL | N7: AVANCE | O7: PROVISIONAL | P7: PROVISIONAL | Q7: AVANCE | R7: PROVISIONAL | S7: PROVISIONAL | T7: AVANCE
A10: 15 Coruña (La) | B10: 657 | C10: 733 | D10: 263.14 | H10: 657 | I10: 733 | J10: 263.14 | L10: 1.997 | M10: 1.69 | N10: 1.169 | R10: 1.997 | S10: 1.69 | T10: 1.169
A11: 27 Lugo | B11: 1372 | C11: 1308 | D11: 450.16 | H11: 1372 | I11: 1308 | J11: 450.16 | L11: 3.403 | M11: 2.88 | N11: 1.403 | R11: 3.402 | S11: 2.88 | T11: 1.403
A12: 32 Orense | B12: 3328 | C12: 3404 | D12: 736.47 | H12: 3328 | I12: 3404 | J12: 736.47 | L12: 10.317 | M12: 9.87 | N12: 2.42 | R12: 10.317 | S12: 9.87 | T12: 2.42
A13: 36 Pontevedra | B13: 124 | C13: 113 | D13: 50.42 | H13: 124 | I13: 113 | J13: 50.42 | L13: 0.273 | M13: 0.25 | N13: 0.17 | R13: 0.273 | S13: 0.25 | T13: 0.17
A14: GALICIA | B14: 5481 | C14: 5558 | D14: 1500.19 | H14: 5481 | I14: 5558 | J14: 1500.19 | L14: 15.99 | M14: 14.69 | N14: 5.162 | R14: 15.989 | S14: 14.69 | T14: 5.162
A16: 33 P. DE ASTURIAS
A18: 39 CANTABRIA
A20: 01 Alava
A21: 20 Guipúzcoa
A22: 48 Vizcaya
A23: PAIS VASCO
A25: 31 NAVARRA
A27: 26 LA RIOJA
A29: 22 Huesca | B29: 865 | C29: 1162 | D29: 1204 | E29: 416 | F29: 504 | G29: 416 | H29: 1281 | I29: 1666 | J29: 1620 | L29: 0.843 | M29: 4.08 | N29: 3.01 | O29: 2.048 | P29: 2.81 | Q29: 1.04 | R29: 2.89 | S29: 6.89 | T29: 4.05
A30: 44 Teruel | B30: 414 | D30: 686 | E30: 77 | G30: 68 | H30: 491 | J30: 754 | L30: 0.33 | N30: 2.043 | O30: 0.24 | Q30: 0.258 | R30: 0.569 | T30: 2.301
A31: 50 Zaragoza | B31: 1580 | C31: 2465 | D31: 2458 | E31: 1123 | F31: 1054 | G31: 1099 | H31: 2703 | I31: 3519 | J31: 3557 | L31: 0.702 | M31: 2.5 | N31: 6.957 | O31: 5.111 | P31: 4.83 | Q31: 5.266 | R31: 5.812 | S31: 7.32 | T31: 12.223
A32: ARAGON | B32: 2859 | C32: 3627 | D32: 4348 | E32: 1616 | F32: 1558 | G32: 1583 | H32: 4475 | I32: 5185 | J32: 5931 | L32: 1.875 | M32: 6.58 | N32: 12.01 | O32: 7.399 | P32: 7.63 | Q32: 6.564 | R32: 9.271 | S32: 14.21 | T32: 18.574
A34: 08 Barcelona
A35: 17 Girona
A36: 25 Lleida
A37: 43 Tarragona
A38: CATALUÑA
A40: 07 BALEARES | B40: 1406 | C40: 1244 | D40: 1243 | H40: 1406 | I40: 1244 | J40: 1243 | L40: 2.629 | M40: 1.73 | N40: 1.718 | R40: 2.629 | S40: 1.73 | T40: 1.718
A42: 05 Avila
A43: 09 Burgos
A44: 24 León
A45: 34 Palencia
A46: 37 Salamanca
A47: 40 Segovia
A48: 42 Soria
A49: 47 Valladolid | E49: 865 | H49: 865 | O49: 4.261 | R49: 4.261
A50: 49 Zamora
A51: CASTILLA Y LEON | E51: 865 | H51: 865 | O51: 4.261 | R51: 4.261
A53: 28 MADRID | B53: 1283 | C53: 911 | D53: 691 | E53: 157 | F53: 107 | G53: 107 | H53: 1440 | I53: 1018 | J53: 798 | L53: 1.747 | M53: 2.64 | N53: 2.269 | O53: 0.66 | P53: 0.48 | Q53: 0.429 | R53: 2.407 | S53: 3.13 | T53: 2.698
A55: 02 Albacete | E55: 2595 | F55: 2095 | G55: 2200 | H55: 2595 | I55: 2095 | J55: 2200 | O55: 18.087 | P55: 14.85 | Q55: 16.83 | R55: 18.086 | S55: 14.85 | T55: 16.83
A56: 13 Ciudad Real
A57: 16 Cuenca
A58: 19 Guadalajara
A59: 45 Toledo
A60: CASTILLA-MANCHA | E60: 2595 | F60: 2095 | G60: 2200 | H60: 2595 | I60: 2095 | J60: 2200 | O60: 18.087 | P60: 14.85 | Q60: 16.83 | R60: 18.086 | S60: 14.85 | T60: 16.83
A62: 03 Alicante
A63: 12 Castellón | B63: 69 | C63: 145 | D63: 145 | E63: 5 | F63: 4 | G63: 4 | H63: 74 | I63: 149 | J63: 149 | L63: 0.11 | M63: 0.02 | N63: 0.304 | O63: 0.024 | P63: 0.02 | Q63: 0.019 | R63: 0.134 | S63: 0.04 | T63: 0.323
A64: 46 Valencia
A65: C. VALENCIANA | B65: 69 | C65: 145 | D65: 145 | E65: 5 | F65: 4 | G65: 4 | H65: 74 | I65: 149 | J65: 149 | L65: 0.11 | M65: 0.02 | N65: 0.304 | O65: 0.024 | P65: 0.02 | Q65: 0.019 | R65: 0.134 | S65: 0.04 | T65: 0.323
A67: 30 R. DE MURCIA
A69: 06 Badajoz
A70: 10 Cáceres
A71: EXTREMADURA
A73: 04 Almería
A74: 11 Cádiz
A75: 14 Córdoba
A76: 18 Granada
A77: 21 Huelva
A78: 23 Jaén
A79: 29 Málaga
A80: 41 Sevilla
A81: ANDALUCIA
A83: 35 Palmas (Las)
A84: 38 S. C. Tenerife
A85: CANARIAS
A88: ESPAÑA | B88: 22196 | C88: 11485 | D88: 7927.19 | E88: 5238 | F88: 3764 | G88: 3894 | H88: 16336 | I88: 15249 | J88: 11821.19 | L88: 22.351 | M88: 25.66 | N88: 21.463 | O88: 30.431 | P88: 22.99 | Q88: 23.842 | R88: 52.777 | S88: 48.65 | T88: 45.305
B96: 221 | C96: 231 | E96: 221 | F96: 231 | H96: 221 | I96: 231

Sheet Tri3era
A1: AVANCES DE SUPERFICIE Y PRODUCCIÓN
A2: TRIGO DE PRIMAVERA | J2: 2025 JUNIO
A3: SUPERFICIE COSECHADA(*)
A4: PROVINCIAS | C4: SUPERFICIES (HA) | H4: PRODUCCIONES (1000 TM)
A5: Y
A6: CC-AA | C6: =E6-2 -> 2023 | D6: =E6-1 -> 2024 | E6: 2025 | F6: =E6 -> 2025 | H6: =J6-2 -> 2023 | I6: =J6-1 -> 2024 | J6: 2025 | K6: =J6 -> 2025
C7: PROVISIONAL | D7: PROVISIONAL | E7: AVANCE | F7: =CONCATENATE(D6,"=100") -> 2024=100 | H7: PROVISIONAL | I7: PROVISIONAL | J7: AVANCE | K7: =CONCATENATE(I6,"=100") -> 2024=100
A9: 15 A Coruña | C9: 657 | D9: 733 | E9: 263.14 | H9: 1.997 | I9: 1.69 | J9: 1.169
A10: 27 Lugo | C10: 1372 | D10: 1308 | E10: 450.16 | H10: 3.402 | I10: 2.88 | J10: 1.403
A11: 32 Ourense | C11: 3328 | D11: 3404 | E11: 736.47 | H11: 10.317 | I11: 9.87 | J11: 2.42
A12: 36 Pontevedra | C12: 124 | D12: 113 | E12: 50.42 | H12: 0.273 | I12: 0.25 | J12: 0.17
A13: GALICIA | C13: 5481 | D13: 5558 | E13: 1500.19 | F13: 26.99154372 | H13: 15.989 | I13: 14.69 | J13: 5.162 | K13: 35.13955071
A15: 33 P. DE ASTURIAS
A17: 39 CANTABRIA
A19: 1 Álava
A20: 20 Guipúzcoa
A21: 48 Vizcaya
A22: PAIS VASCO
A24: 31 NAVARRA
A26: 26 LA RIOJA
A28: 22 Huesca | C28: 1281 | D28: 1666 | E28: 1620 | H28: 2.89 | I28: 6.89 | J28: 4.05
A29: 44 Teruel | C29: 491 | E29: 754 | H29: 0.569 | J29: 2.301
A30: 50 Zaragoza | C30: 2703 | D30: 3519 | E30: 3557 | H30: 5.812 | I30: 7.32 | J30: 12.223
A31: ARAGÓN | C31: 4475 | D31: 5185 | E31: 5931 | F31: 114.3876567 | H31: 9.271 | I31: 14.21 | J31: 18.574 | K31: 130.7107671
A33: 8 Barcelona
A34: 17 Girona
A35: 25 Lleida
A36: 43 Tarragona
A37: CATALUÑA
A39: 7 BALEARES | C39: 1406 | D39: 1244 | E39: 1243 | F39: 99.91961415 | H39: 2.629 | I39: 1.73 | J39: 1.718 | K39: 99.30635838
A41: 5 Ávila
A42: 9 Burgos
A43: 24 León
A44: 34 Palencia
A45: 37 Salamanca
A46: 40 Segovia
A47: 42 Soria
A48: 47 Valladolid | C48: 865 | H48: 4.261
A49: 49 Zamora
A50: CASTILLA Y LEÓN | C50: 865 | H50: 4.261
A52: 28 MADRID | C52: 1440 | D52: 1018 | E52: 798 | F52: 78.38899804 | H52: 2.407 | I52: 3.13 | J52: 2.698 | K52: 86.19808307
A54: 2 Albacete | C54: 2595 | D54: 2095 | E54: 2200 | H54: 18.086 | I54: 14.85 | J54: 16.83
A55: 13 Ciudad Real
A56: 16 Cuenca
A57: 19 Guadalajara
A58: 45 Toledo
A59: CASTILLA-MANCHA | C59: 2595 | D59: 2095 | E59: 2200 | F59: 105.0119332 | H59: 18.086 | I59: 14.85 | J59: 16.83 | K59: 113.3333333
A61: 3 Alicante
A62: 12 Castellón | C62: 74 | D62: 149 | E62: 149 | H62: 0.134 | I62: 0.04 | J62: 0.323
A63: 46 Valencia
A64: C. VALENCIANA | C64: 74 | D64: 149 | E64: 149 | F64: 100 | H64: 0.134 | I64: 0.04 | J64: 0.323 | K64: 807.5
A66: 30 R. DE MURCIA
A68: 6 Badajoz
A69: 10 Cáceres
A70: EXTREMADURA
A72: 4 Almería
A73: 11 Cádiz
A74: 14 Córdoba
A75: 18 Granada
A76: 21 Huelva
A77: 23 Jaén
A78: 29 Málaga
A79: 41 Sevilla
A80: ANDALUCÍA
A82: 35 Palmas (Las)
A83: 38 S. C. Tenerife
A84: CANARIAS
A87: ESPAÑA | C87: 16336 | D87: 15249 | E87: 11821.19 | F87: 77.52108335 | H87: 52.777 | I87: 48.65 | J87: 45.305 | K87: 93.12435766
A90: (*)Tipo de Superficie de mes/año solicitado

Sheet Tri4era-SRT
A1: AVANCES DE SUPERFICIE Y PRODUCCIÓN
A2: TRIGO DURO DE PRIMAVERA S/R/T | K2: 2025 JUNIO
A3: SUPERFICIE COSECHADA(*)
A4: PROVINCIAS | B4: SUPERFICIES (HA) | E4: SUPERFICIES (HA) | H4: SUPERFICIES (HA) | L4: PRODUCCIONES (1000 TM) | O4: PRODUCCIONES (1000 TM) | R4: PRODUCCIONES (1000 TM)
A5: Y | B5: SECANO | E5: REGADIO | H5: TOTAL | L5: SECANO | O5: REGADIO | R5: TOTAL
A6: CC-AA | B6: =J6-2 -> 2023 | C6: =J6-1 -> 2024 | D6: =J6 -> 2025 | E6: =J6-2 -> 2023 | F6: =J6-1 -> 2024 | G6: =J6 -> 2025 | H6: =J6-2 -> 2023 | I6: =J6-1 -> 2024 | J6: 2025 | L6: =T6-2 -> 2023 | M6: =T6-1 -> 2024 | N6: =T6 -> 2025 | O6: =T6-2 -> 2023 | P6: =T6-1 -> 2024 | Q6: =T6 -> 2025 | R6: =T6-2 -> 2023 | S6: =T6-1 -> 2024 | T6: 2025
B7: PROVISIONAL | C7: PROVISIONAL | D7: PROVISIONAL | E7: PROVISIONAL | F7: PROVISIONAL | G7: AVANCE | H7: PROVISIONAL | I7: PROVISIONAL | J7: AVANCE | L7: PROVISIONAL | M7: PROVISIONAL | N7: AVANCE | O7: PROVISIONAL | P7: PROVISIONAL | Q7: AVANCE | R7: PROVISIONAL | S7: PROVISIONAL | T7: AVANCE
A10: 15 Coruña (La) | B10: 3 | C10: 4 | D10: 7.8 | H10: 3 | I10: 4 | J10: 7.8 | L10: 0.009 | M10: 0.01 | N10: 0.016 | R10: 0.009 | S10: 0.01 | T10: 0.016
A11: 27 Lugo | B11: 90 | C11: 86 | D11: 70.34 | H11: 90 | I11: 86 | J11: 70.34 | L11: 0.223 | M11: 0.19 | N11: 0.156 | R11: 0.223 | S11: 0.19 | T11: 0.156
A12: 32 Orense | D12: 24.85 | J12: 24.85 | N12: 0.052 | T12: 0.052
A13: 36 Pontevedra | D13: 5.18 | J13: 5.18 | N13: 0.008 | T13: 0.008
A14: GALICIA | B14: 93 | C14: 90 | D14: 108.17 | H14: 93 | I14: 90 | J14: 108.17 | L14: 0.232 | M14: 0.2 | N14: 0.232 | R14: 0.232 | S14: 0.2 | T14: 0.232
A16: 33 P. DE ASTURIAS
A18: 39 CANTABRIA
A20: 01 Alava
A21: 20 Guipúzcoa
A22: 48 Vizcaya
A23: PAIS VASCO
A25: 31 NAVARRA
A27: 26 LA RIOJA
A29: 22 Huesca | B29: 41 | C29: 40 | D29: 36 | E29: 37 | F29: 36 | G29: 24 | H29: 78 | I29: 76 | J29: 60 | L29: 0.018 | M29: 0.09 | N29: 0.09 | O29: 0.162 | P29: 0.13 | Q29: 0.06 | R29: 0.18 | S29: 0.22 | T29: 0.15
A30: 44 Teruel | B30: 12 | D30: 13 | E30: 1 | G30: 2 | H30: 13 | J30: 15 | L30: 0.008 | N30: 0.024 | O30: 0.003 | Q30: 0.005 | R30: 0.01 | T30: 0.029
A31: 50 Zaragoza | B31: 1093 | C31: 1624 | D31: 1539 | E31: 784 | F31: 689 | G31: 732 | H31: 1877 | I31: 2313 | J31: 2271 | L31: 0.492 | M31: 1.44 | N31: 3.433 | O31: 3.422 | P31: 3.01 | Q31: 3.401 | R31: 3.914 | S31: 4.45 | T31: 6.833
A32: ARAGON | B32: 1146 | C32: 1664 | D32: 1588 | E32: 822 | F32: 725 | G32: 758 | H32: 1968 | I32: 2389 | J32: 2346 | L32: 0.518 | M32: 1.52 | N32: 3.547 | O32: 3.587 | P32: 3.14 | Q32: 3.466 | R32: 4.104 | S32: 4.66 | T32: 7.012
A34: 08 Barcelona
A35: 17 Girona
A36: 25 Lleida
A37: 43 Tarragona
A38: CATALUÑA
A40: 07 BALEARES | B40: 2 | C40: 13 | D40: 13 | H40: 2 | I40: 13 | J40: 13 | L40: 0.004 | M40: 0.02 | N40: 0.018 | R40: 0.004 | S40: 0.02 | T40: 0.018
A42: 05 Avila
A43: 09 Burgos
A44: 24 León
A45: 34 Palencia
A46: 37 Salamanca
A47: 40 Segovia
A48: 42 Soria
A49: 47 Valladolid
A50: 49 Zamora
A51: CASTILLA Y LEON
A53: 28 MADRID | B53: 5 | C53: 4 | D53: 1 | E53: 13 | F53: 7 | G53: 4 | H53: 18 | I53: 11 | J53: 5 | L53: 0.004 | M53: 0.01 | N53: 0.003 | O53: 0.021 | P53: 0.03 | Q53: 0.021 | R53: 0.025 | S53: 0.03 | T53: 0.024
A55: 02 Albacete | E55: 315 | F55: 215 | H55: 315 | I55: 215 | O55: 2.126 | P55: 1.51 | R55: 2.126 | S55: 1.51
A56: 13 Ciudad Real
A57: 16 Cuenca
A58: 19 Guadalajara
A59: 45 Toledo
A60: CASTILLA-MANCHA | E60: 315 | F60: 215 | H60: 315 | I60: 215 | O60: 2.126 | P60: 1.51 | R60: 2.126 | S60: 1.51
A62: 03 Alicante
A63: 12 Castellón | B63: 2 | C63: 6 | D63: 6 | H63: 2 | I63: 6 | J63: 6 | L63: 0.003 | N63: 0.012 | R63: 0.003 | T63: 0.012
A64: 46 Valencia
A65: C. VALENCIANA | B65: 2 | C65: 6 | D65: 6 | H65: 2 | I65: 6 | J65: 6 | L65: 0.003 | N65: 0.012 | R65: 0.003 | T65: 0.012
A67: 30 R. DE MURCIA
A69: 06 Badajoz
A70: 10 Cáceres
A71: EXTREMADURA
A73: 04 Almería
A74: 11 Cádiz
A75: 14 Córdoba
A76: 18 Granada
A77: 21 Huelva
A78: 23 Jaén
A79: 29 Málaga
A80: 41 Sevilla
A81: ANDALUCIA
A83: 35 Palmas (Las)
A84: 38 S. C. Tenerife
A85: CANARIAS
A88: ESPAÑA | B88: 2496 | C88: 1777 | D88: 1716.17 | E88: 1150 | F88: 947 | G88: 762 | H88: 2398 | I88: 2724 | J88: 2478.17 | L88: 0.761 | M88: 1.74 | N88: 3.812 | O88: 5.734 | P88: 4.67 | Q88: 3.487 | R88: 6.494 | S88: 6.42 | T88: 7.298
B96: 221 | C96: 231 | E96: 221 | F96: 231 | H96: 221 | I96: 231

Sheet Tri4era
A1: AVANCES DE SUPERFICIE Y PRODUCCIÓN
A2: TRIGO DURO DE PRIMAVERA | J2: 2025 JUNIO
A3: SUPERFICIE COSECHADA(*)
A4: PROVINCIAS | C4: SUPERFICIES (HA) | H4: PRODUCCIONES (1000 TM)
A5: Y
A6: CC-AA | C6: =E6-2 -> 2023 | D6: =E6-1 -> 2024 | E6: 2025 | F6: =E6 -> 2025 | H6: =J6-2 -> 2023 | I6: =J6-1 -> 2024 | J6: 2025 | K6: =J6 -> 2025
C7: PROVISIONAL | D7: PROVISIONAL | E7: AVANCE | F7: =CONCATENATE(D6,"=100") -> 2024=100 | H7: PROVISIONAL | I7: PROVISIONAL | J7: AVANCE | K7: =CONCATENATE(I6,"=100") -> 2024=100
A9: 15 A Coruña | C9: 3 | D9: 4 | E9: 7.8 | H9: 0.009 | I9: 0.01 | J9: 0.016
A10: 27 Lugo | C10: 90 | D10: 86 | E10: 70.34 | H10: 0.223 | I10: 0.19 | J10: 0.156
A11: 32 Ourense | E11: 24.85 | J11: 0.052
A12: 36 Pontevedra | E12: 5.18 | J12: 0.008
A13: GALICIA | C13: 93 | D13: 90 | E13: 108.17 | F13: 120.1888889 | H13: 0.232 | I13: 0.2 | J13: 0.232 | K13: 116
A15: 33 P. DE ASTURIAS
A17: 39 CANTABRIA
A19: 1 Álava
A20: 20 Guipúzcoa
A21: 48 Vizcaya
A22: PAIS VASCO
A24: 31 NAVARRA
A26: 26 LA RIOJA
A28: 22 Huesca | C28: 78 | D28: 76 | E28: 60 | H28: 0.18 | I28: 0.22 | J28: 0.15
A29: 44 Teruel | C29: 13 | E29: 15 | H29: 0.01 | J29: 0.029
A30: 50 Zaragoza | C30: 1877 | D30: 2313 | E30: 2271 | H30: 3.914 | I30: 4.45 | J30: 6.833
A31: ARAGÓN | C31: 1968 | D31: 2389 | E31: 2346 | F31: 98.20008372 | H31: 4.104 | I31: 4.66 | J31: 7.012 | K31: 150.472103
A33: 8 Barcelona
A34: 17 Girona
A35: 25 Lleida
A36: 43 Tarragona
A37: CATALUÑA
A39: 7 BALEARES | C39: 2 | D39: 13 | E39: 13 | F39: 100 | H39: 0.004 | I39: 0.02 | J39: 0.018 | K39: 90
A41: 5 Ávila
A42: 9 Burgos
A43: 24 León
A44: 34 Palencia
A45: 37 Salamanca
A46: 40 Segovia
A47: 42 Soria
A48: 47 Valladolid
A49: 49 Zamora
A50: CASTILLA Y LEÓN
A52: 28 MADRID | C52: 18 | D52: 11 | E52: 5 | F52: 45.45454545 | H52: 0.025 | I52: 0.03 | J52: 0.024 | K52: 80
A54: 2 Albacete | C54: 315 | D54: 215 | H54: 2.126 | I54: 1.51
A55: 13 Ciudad Real
A56: 16 Cuenca
A57: 19 Guadalajara
A58: 45 Toledo
A59: CASTILLA-MANCHA | C59: 315 | D59: 215 | H59: 2.126 | I59: 1.51
A61: 3 Alicante
A62: 12 Castellón | C62: 2 | D62: 6 | E62: 6 | H62: 0.003 | J62: 0.012
A63: 46 Valencia
A64: C. VALENCIANA | C64: 2 | D64: 6 | E64: 6 | F64: 100 | H64: 0.003 | J64: 0.012
A66: 30 R. DE MURCIA
A68: 6 Badajoz
A69: 10 Cáceres
A70: EXTREMADURA
A72: 4 Almería
A73: 11 Cádiz
A74: 14 Córdoba
A75: 18 Granada
A76: 21 Huelva
A77: 23 Jaén
A78: 29 Málaga
A79: 41 Sevilla
A80: ANDALUCÍA
A82: 35 Palmas (Las)
A83: 38 S. C. Tenerife
A84: CANARIAS
A87: ESPAÑA | C87: 2398 | D87: 2724 | E87: 2478.17 | F87: 90.97540382 | H87: 6.494 | I87: 6.42 | J87: 7.298 | K87: 113.6760125
A90: (*)Tipo de Superficie de mes/año solicitado

Sheet Tri5era-SRT
A1: AVANCES DE SUPERFICIE Y PRODUCCIÓN
A2: TRIGO BLANDO Y SEMI DE PRIMAVERA S/R/T | K2: 2025 JUNIO
A3: SUPERFICIE COSECHADA(*)
A4: PROVINCIAS | B4: SUPERFICIES (HA) | E4: SUPERFICIES (HA) | H4: SUPERFICIES (HA) | L4: PRODUCCIONES (1000 TM) | O4: PRODUCCIONES (1000 TM) | R4: PRODUCCIONES (1000 TM)
A5: Y | B5: SECANO | E5: REGADIO | H5: TOTAL | L5: SECANO | O5: REGADIO | R5: TOTAL
A6: CC-AA | B6: =J6-2 -> 2023 | C6: =J6-1 -> 2024 | D6: =J6 -> 2025 | E6: =J6-2 -> 2023 | F6: =J6-1 -> 2024 | G6: =J6 -> 2025 | H6: =J6-2 -> 2023 | I6: =J6-1 -> 2024 | J6: 2025 | L6: =T6-2 -> 2023 | M6: =T6-1 -> 2024 | N6: =T6 -> 2025 | O6: =T6-2 -> 2023 | P6: =T6-1 -> 2024 | Q6: =T6 -> 2025 | R6: =T6-2 -> 2023 | S6: =T6-1 -> 2024 | T6: 2025
B7: PROVISIONAL | C7: PROVISIONAL | D7: PROVISIONAL | E7: PROVISIONAL | F7: PROVISIONAL | G7: AVANCE | H7: PROVISIONAL | I7: PROVISIONAL | J7: AVANCE | L7: PROVISIONAL | M7: PROVISIONAL | N7: AVANCE | O7: PROVISIONAL | P7: PROVISIONAL | Q7: AVANCE | R7: PROVISIONAL | S7: PROVISIONAL | T7: AVANCE
A10: 15 Coruña (La) | B10: 654 | C10: 729 | D10: 255.34 | H10: 654 | I10: 729 | J10: 255.34 | L10: 1.988 | M10: 1.68 | N10: 1.153 | R10: 1.988 | S10: 1.68 | T10: 1.153
A11: 27 Lugo | B11: 1282 | C11: 1222 | D11: 379.82 | H11: 1282 | I11: 1222 | J11: 379.82 | L11: 3.179 | M11: 2.69 | N11: 1.246 | R11: 3.179 | S11: 2.69 | T11: 1.246
A12: 32 Orense | B12: 3328 | C12: 3404 | D12: 711.62 | H12: 3328 | I12: 3404 | J12: 711.62 | L12: 10.317 | M12: 9.87 | N12: 2.369 | R12: 10.317 | S12: 9.87 | T12: 2.369
A13: 36 Pontevedra | B13: 124 | C13: 113 | D13: 45.24 | H13: 124 | I13: 113 | J13: 45.24 | L13: 0.273 | M13: 0.25 | N13: 0.161 | R13: 0.273 | S13: 0.25 | T13: 0.161
A14: GALICIA | B14: 5388 | C14: 5468 | D14: 1392.02 | H14: 5388 | I14: 5468 | J14: 1392.02 | L14: 15.757 | M14: 14.49 | N14: 4.929 | R14: 15.757 | S14: 14.49 | T14: 4.929
A16: 33 P. DE ASTURIAS
A18: 39 CANTABRIA
A20: 01 Alava
A21: 20 Guipúzcoa
A22: 48 Vizcaya
A23: PAIS VASCO
A25: 31 NAVARRA
A27: 26 LA RIOJA
A29: 22 Huesca | B29: 824 | C29: 1122 | D29: 1168 | E29: 379 | F29: 468 | G29: 392 | H29: 1203 | I29: 1590 | J29: 1560 | L29: 0.824 | M29: 3.99 | N29: 2.92 | O29: 1.886 | P29: 2.67 | Q29: 0.98 | R29: 2.71 | S29: 6.67 | T29: 3.9
A30: 44 Teruel | B30: 402 | D30: 673 | E30: 76 | G30: 66 | H30: 478 | J30: 739 | L30: 0.322 | N30: 2.019 | O30: 0.238 | Q30: 0.253 | R30: 0.559 | T30: 2.272
A31: 50 Zaragoza | B31: 487 | C31: 841 | D31: 919 | E31: 339 | F31: 365 | G31: 367 | H31: 826 | I31: 1206 | J31: 1286 | L31: 0.209 | M31: 1.06 | N31: 3.525 | O31: 1.688 | P31: 1.82 | Q31: 1.865 | R31: 1.898 | S31: 2.88 | T31: 5.39
A32: ARAGON | B32: 1713 | C32: 1963 | D32: 2760 | E32: 794 | F32: 833 | G32: 825 | H32: 2507 | I32: 2796 | J32: 3585 | L32: 1.355 | M32: 5.05 | N32: 8.464 | O32: 3.812 | P32: 4.49 | Q32: 3.098 | R32: 5.167 | S32: 9.55 | T32: 11.562
A34: 08 Barcelona
A35: 17 Girona
A36: 25 Lleida
A37: 43 Tarragona
A38: CATALUÑA
A40: 07 BALEARES | B40: 1404 | C40: 1231 | D40: 1230 | H40: 1404 | I40: 1231 | J40: 1230 | L40: 2.625 | M40: 1.71 | N40: 1.7 | R40: 2.625 | S40: 1.71 | T40: 1.7
A42: 05 Avila
A43: 09 Burgos
A44: 24 León
A45: 34 Palencia
A46: 37 Salamanca
A47: 40 Segovia
A48: 42 Soria
A49: 47 Valladolid | E49: 865 | H49: 865 | O49: 4.261 | R49: 4.261
A50: 49 Zamora
A51: CASTILLA Y LEON | E51: 865 | H51: 865 | O51: 4.261 | R51: 4.261
A53: 28 MADRID | B53: 1278 | C53: 907 | D53: 690 | E53: 144 | F53: 100 | G53: 103 | H53: 1422 | I53: 1007 | J53: 793 | L53: 1.743 | M53: 2.64 | N53: 2.266 | O53: 0.639 | P53: 0.46 | Q53: 0.408 | R53: 2.382 | S53: 3.09 | T53: 2.674
A55: 02 Albacete | E55: 2280 | F55: 1880 | G55: 2200 | H55: 2280 | I55: 1880 | J55: 2200 | O55: 15.96 | P55: 13.35 | Q55: 16.83 | R55: 15.96 | S55: 13.35 | T55: 16.83
A56: 13 Ciudad Real
A57: 16 Cuenca
A58: 19 Guadalajara
A59: 45 Toledo
A60: CASTILLA-MANCHA | E60: 2280 | F60: 1880 | G60: 2200 | H60: 2280 | I60: 1880 | J60: 2200 | O60: 15.96 | P60: 13.35 | Q60: 16.83 | R60: 15.96 | S60: 13.35 | T60: 16.83
A62: 03 Alicante
A63: 12 Castellón | B63: 67 | C63: 139 | D63: 139 | E63: 5 | F63: 4 | G63: 4 | H63: 72 | I63: 143 | J63: 143 | L63: 0.107 | M63: 0.02 | N63: 0.292 | O63: 0.024 | P63: 0.02 | Q63: 0.019 | R63: 0.131 | S63: 0.04 | T63: 0.311
A64: 46 Valencia
A65: C. VALENCIANA | B65: 67 | C65: 139 | D65: 139 | E65: 5 | F65: 4 | G65: 4 | H65: 72 | I65: 143 | J65: 143 | L65: 0.107 | M65: 0.02 | N65: 0.292 | O65: 0.024 | P65: 0.02 | Q65: 0.019 | R65: 0.131 | S65: 0.04 | T65: 0.311
A67: 30 R. DE MURCIA
A69: 06 Badajoz
A70: 10 Cáceres
A71: EXTREMADURA
A73: 04 Almería
A74: 11 Cádiz
A75: 14 Córdoba
A76: 18 Granada
A77: 21 Huelva
A78: 23 Jaén
A79: 29 Málaga
A80: 41 Sevilla
A81: ANDALUCIA
A83: 35 Palmas (Las)
A84: 38 S. C. Tenerife
A85: CANARIAS
A88: ESPAÑA | B88: 19700 | C88: 9708 | D88: 6211.02 | E88: 4088 | F88: 2817 | G88: 3132 | H88: 13938 | I88: 12525 | J88: 9343.02 | L88: 21.587 | M88: 23.92 | N88: 17.651 | O88: 24.696 | P88: 18.31 | Q88: 20.355 | R88: 46.283 | S88: 42.23 | T88: 38.006
B96: 221 | C96: 231 | E96: 221 | F96: 231 | H96: 221 | I96: 231

Sheet Tri5era
A1: AVANCES DE SUPERFICIE Y PRODUCCIÓN
A2: TRIGO BLANDO Y SEMI DE PRIMAVERA | J2: 2025 JUNIO
A3: SUPERFICIE COSECHADA(*)
A4: PROVINCIAS | C4: SUPERFICIES (HA) | H4: PRODUCCIONES (1000 TM)
A5: Y
A6: CC-AA | C6: =E6-2 -> 2023 | D6: =E6-1 -> 2024 | E6: 2025 | F6: =E6 -> 2025 | H6: =J6-2 -> 2023 | I6: =J6-1 -> 2024 | J6: 2025 | K6: =J6 -> 2025
C7: PROVISIONAL | D7: PROVISIONAL | E7: AVANCE | F7: =CONCATENATE(D6,"=100") -> 2024=100 | H7: PROVISIONAL | I7: PROVISIONAL | J7: AVANCE | K7: =CONCATENATE(I6,"=100") -> 2024=100
A9: 15 A Coruña | C9: 654 | D9: 729 | E9: 255.34 | H9: 1.988 | I9: 1.68 | J9: 1.153
A10: 27 Lugo | C10: 1282 | D10: 1222 | E10: 379.82 | H10: 3.179 | I10: 2.69 | J10: 1.246
A11: 32 Ourense | C11: 3328 | D11: 3404 | E11: 711.62 | H11: 10.317 | I11: 9.87 | J11: 2.369
A12: 36 Pontevedra | C12: 124 | D12: 113 | E12: 45.24 | H12: 0.273 | I12: 0.25 | J12: 0.161
A13: GALICIA | C13: 5388 | D13: 5468 | E13: 1392.02 | F13: 25.45757132 | H13: 15.757 | I13: 14.49 | J13: 4.929 | K13: 34.01656315
A15: 33 P. DE ASTURIAS
A17: 39 CANTABRIA
A19: 1 Álava
A20: 20 Guipúzcoa
A21: 48 Vizcaya
A22: PAIS VASCO
A24: 31 NAVARRA
A26: 26 LA RIOJA
A28: 22 Huesca | C28: 1203 | D28: 1590 | E28: 1560 | H28: 2.71 | I28: 6.67 | J28: 3.9
A29: 44 Teruel | C29: 478 | E29: 739 | H29: 0.559 | J29: 2.272
A30: 50 Zaragoza | C30: 826 | D30: 1206 | E30: 1286 | H30: 1.898 | I30: 2.88 | J30: 5.39
A31: ARAGÓN | C31: 2507 | D31: 2796 | E31: 3585 | F31: 128.2188841 | H31: 5.167 | I31: 9.55 | J31: 11.562 | K31: 121.0680628
A33: 8 Barcelona
A34: 17 Girona
A35: 25 Lleida
A36: 43 Tarragona
A37: CATALUÑA
A39: 7 BALEARES | C39: 1404 | D39: 1231 | E39: 1230 | F39: 99.91876523 | H39: 2.625 | I39: 1.71 | J39: 1.7 | K39: 99.41520468
A41: 5 Ávila
A42: 9 Burgos
A43: 24 León
A44: 34 Palencia
A45: 37 Salamanca
A46: 40 Segovia
A47: 42 Soria
A48: 47 Valladolid | C48: 865 | H48: 4.261
A49: 49 Zamora
A50: CASTILLA Y LEÓN | C50: 865 | H50: 4.261
A52: 28 MADRID | C52: 1422 | D52: 1007 | E52: 793 | F52: 78.74875869 | H52: 2.382 | I52: 3.09 | J52: 2.674 | K52: 86.53721683
A54: 2 Albacete | C54: 2280 | D54: 1880 | E54: 2200 | H54: 15.96 | I54: 13.35 | J54: 16.83
A55: 13 Ciudad Real
A56: 16 Cuenca
A57: 19 Guadalajara
A58: 45 Toledo
A59: CASTILLA-MANCHA | C59: 2280 | D59: 1880 | E59: 2200 | F59: 117.0212766 | H59: 15.96 | I59: 13.35 | J59: 16.83 | K59: 126.0674157
A61: 3 Alicante
A62: 12 Castellón | C62: 72 | D62: 143 | E62: 143 | H62: 0.131 | I62: 0.04 | J62: 0.311
A63: 46 Valencia
A64: C. VALENCIANA | C64: 72 | D64: 143 | E64: 143 | F64: 100 | H64: 0.131 | I64: 0.04 | J64: 0.311 | K64: 777.5
A66: 30 R. DE MURCIA
A68: 6 Badajoz
A69: 10 Cáceres
A70: EXTREMADURA
A72: 4 Almería
A73: 11 Cádiz
A74: 14 Córdoba
A75: 18 Granada
A76: 21 Huelva
A77: 23 Jaén
A78: 29 Málaga
A79: 41 Sevilla
A80: ANDALUCÍA
A82: 35 Palmas (Las)
A83: 38 S. C. Tenerife
A84: CANARIAS
A87: ESPAÑA | C87: 13938 | D87: 12525 | E87: 9343.02 | F87: 74.59497006 | H87: 46.283 | I87: 42.23 | J87: 38.006 | K87: 89.99763202
A90: (*)Tipo de Superficie de mes/año solicitado

Sheet Tri6ral-SRT
A1: AVANCES DE SUPERFICIE Y PRODUCCIÓN
A2: TRIGO. RESUMEN GENERAL S/R/T | K2: 2025 JUNIO
A3: SUPERFICIE COSECHADA(*)
A4: PROVINCIAS | B4: SUPERFICIES (HA) | E4: SUPERFICIES (HA) | H4: SUPERFICIES (HA) | L4: PRODUCCIONES (1000 TM) | O4: PRODUCCIONES (1000 TM) | R4: PRODUCCIONES (1000 TM)
A5: Y | B5: SECANO | E5: REGADIO | H5: TOTAL | L5: SECANO | O5: REGADIO | R5: TOTAL
A6: CC-AA | B6: =J6-2 -> 2023 | C6: =J6-1 -> 2024 | D6: =J6 -> 2025 | E6: =J6-2 -> 2023 | F6: =J6-1 -> 2024 | G6: =J6 -> 2025 | H6: =J6-2 -> 2023 | I6: =J6-1 -> 2024 | J6: 2025 | L6: =T6-2 -> 2023 | M6: =T6-1 -> 2024 | N6: =T6 -> 2025 | O6: =T6-2 -> 2023 | P6: =T6-1 -> 2024 | Q6: =T6 -> 2025 | R6: =T6-2 -> 2023 | S6: =T6-1 -> 2024 | T6: 2025
B7: PROVISIONAL | C7: PROVISIONAL | D7: PROVISIONAL | E7: PROVISIONAL | F7: PROVISIONAL | G7: AVANCE | H7: PROVISIONAL | I7: PROVISIONAL | J7: AVANCE | L7: PROVISIONAL | M7: PROVISIONAL | N7: AVANCE | O7: PROVISIONAL | P7: PROVISIONAL | Q7: AVANCE | R7: PROVISIONAL | S7: PROVISIONAL | T7: AVANCE
A10: 15 Coruña (La) | B10: 1643 | C10: 1749 | D10: 2135.52 | H10: 1643 | I10: 1749 | J10: 2135.52 | L10: 4.995 | M10: 4.02 | N10: 9.624 | R10: 4.994 | S10: 4.02 | T10: 9.624
A11: 27 Lugo | B11: 3429 | C11: 3270 | D11: 3235.53 | H11: 3429 | I11: 3270 | J11: 3235.53 | L11: 8.504 | M11: 7.19 | N11: 10.543 | R11: 8.504 | S11: 7.19 | T11: 10.543
A12: 32 Orense | B12: 8325 | C12: 8540 | D12: 5955.1 | H12: 8325 | I12: 8540 | J12: 5955.1 | L12: 25.808 | M12: 25.28 | N12: 19.79 | R12: 25.808 | S12: 25.28 | T12: 19.79
A13: 36 Pontevedra | B13: 313 | C13: 288 | D13: 382.21 | H13: 313 | I13: 288 | J13: 382.21 | L13: 0.689 | M13: 0.65 | N13: 1.352 | R13: 0.689 | S13: 0.65 | T13: 1.352
A14: GALICIA | B14: 13710 | C14: 13847 | D14: 11708.36 | H14: 13710 | I14: 13847 | J14: 11708.36 | L14: 39.996 | M14: 37.14 | N14: 41.309 | R14: 39.995 | S14: 37.14 | T14: 41.309
A16: 33 P. DE ASTURIAS | D16: 60 | J16: 60 | N16: 0.108 | T16: 0.108
A18: 39 CANTABRIA | B18: 692 | C18: 733 | D18: 742 | E18: 142 | F18: 115 | G18: 120 | H18: 834 | I18: 848 | J18: 862 | L18: 1.522 | M18: 1.61 | N18: 1.706 | O18: 0.639 | P18: 0.52 | Q18: 0.54 | R18: 2.161 | S18: 2.13 | T18: 2.246
A20: 01 Alava | B20: 19290 | C20: 19717 | D20: 17819 | H20: 19290 | I20: 19717 | J20: 17819 | L20: 106.095 | M20: 138.02 | N20: 106.914 | R20: 106.095 | S20: 138.02 | T20: 106.914
A21: 20 Guipúzcoa | B21: 1 | C21: 1 | H21: 1 | I21: 1 | L21: 0.005 | M21: 0.01 | R21: 0.005 | S21: 0.01
A22: 48 Vizcaya
A23: PAIS VASCO | B23: 19291 | C23: 19718 | D23: 17819 | H23: 19291 | I23: 19718 | J23: 17819 | L23: 106.1 | M23: 138.03 | N23: 106.914 | R23: 106.1 | S23: 138.03 | T23: 106.914
A25: 31 NAVARRA | B25: 59254 | C25: 62619 | D25: 67359 | E25: 16025 | F25: 15151 | G25: 13795 | H25: 75279 | I25: 77770 | J25: 81154 | L25: 231.268 | M25: 325.06 | N25: 329.789 | O25: 89.484 | P25: 107.97 | Q25: 90.716 | R25: 320.741 | S25: 433 | T25: 420.505
A27: 26 LA RIOJA | B27: 16174 | C27: 16289 | D27: 16700 | E27: 8295 | F27: 7444 | G27: 7260 | H27: 24469 | I27: 23733 | J27: 23960 | L27: 37.944 | M27: 46.72 | N27: 90.6 | O27: 40.646 | P27: 32.01 | Q27: 40.782 | R27: 78.596 | S27: 78.73 | T27: 131.382
A29: 22 Huesca | B29: 42001 | C29: 56931 | D29: 59129 | E29: 19661 | F29: 24085 | G29: 20077 | H29: 61662 | I29: 81016 | J29: 79206 | L29: 74.174 | M29: 210.47 | N29: 147.822 | O29: 100.369 | P29: 141.86 | Q29: 50.192 | R29: 174.575 | S29: 352.32 | T29: 198.015
A30: 44 Teruel | B30: 20724 | C30: 30601 | D30: 34323 | E30: 3867 | F30: 4072 | G30: 3370 | H30: 24591 | I30: 34673 | J30: 37693 | L30: 16.496 | M30: 30.39 | N30: 102.172 | O30: 12.046 | P30: 12.37 | Q30: 12.854 | R30: 28.548 | S30: 42.74 | T30: 115.026
A31: 50 Zaragoza | B31: 46195 | C31: 74513 | D31: 74458 | E31: 32622 | F31: 32042 | G31: 32123 | H31: 78817 | I31: 106555 | J31: 106581 | L31: 35.432 | M31: 92.32 | N31: 236.294 | O31: 165.459 | P31: 162.61 | Q31: 153.76 | R31: 200.872 | S31: 254.96 | T31: 390.055
A32: ARAGON | B32: 108920 | C32: 162045 | D32: 167910 | E32: 56150 | F32: 60199 | G32: 55570 | H32: 165070 | I32: 222244 | J32: 223480 | L32: 126.102 | M32: 333.18 | N32: 486.288 | O32: 277.874 | P32: 316.84 | Q32: 216.806 | R32: 403.995 | S32: 650.02 | T32: 703.096
A34: 08 Barcelona | B34: 13814 | C34: 21430 | D34: 20542 | E34: 720 | F34: 370 | G34: 503 | H34: 14534 | I34: 21800 | J34: 21045 | L34: 14.173 | M34: 48.26 | N34: 98.114 | O34: 3.891 | P34: 2.02 | Q34: 2.971 | R34: 18.064 | S34: 50.28 | T34: 101.085
A35: 17 Girona | B35: 8940 | C35: 10050 | D35: 9095 | E35: 2849 | F35: 2693 | G35: 4172 | H35: 11789 | I35: 12743 | J35: 13267 | L35: 20.169 | M35: 23.9 | N35: 40 | O35: 8.638 | P35: 9.99 | Q35: 20 | R35: 28.805 | S35: 33.88 | T35: 60
A36: 25 Lleida | B36: 31281 | C36: 41616 | D36: 35131 | E36: 18611 | F36: 20748 | G36: 16179 | H36: 49892 | I36: 62364 | J36: 51310 | L36: 18.988 | M36: 83.27 | N36: 133.497 | O36: 86.169 | P36: 123.45 | Q36: 126.196 | R36: 105.16 | S36: 206.71 | T36: 259.693
A37: 43 Tarragona | B37: 5881 | C37: 6828 | D37: 6669 | E37: 84 | F37: 56 | G37: 71 | H37: 5965 | I37: 6884 | J37: 6740 | L37: 7.451 | M37: 8.19 | N37: 29.009 | O37: 0.133 | P37: 0.12 | Q37: 0.341 | R37: 7.585 | S37: 8.31 | T37: 29.35
A38: CATALUÑA | B38: 59916 | C38: 79924 | D38: 71437 | E38: 22264 | F38: 23867 | G38: 20925 | H38: 82180 | I38: 103791 | J38: 92362 | L38: 60.781 | M38: 163.63 | N38: 300.62 | O38: 98.831 | P38: 135.57 | Q38: 149.508 | R38: 159.614 | S38: 299.18 | T38: 450.128
A40: 07 BALEARES | B40: 5624 | C40: 4977 | D40: 4950 | H40: 5624 | I40: 4977 | J40: 4950 | L40: 10.517 | M40: 6.92 | N40: 6.97 | R40: 10.516 | S40: 6.92 | T40: 6.97
A42: 05 Avila | B42: 26236 | C42: 28655 | D42: 32673 | E42: 2938 | F42: 2332 | G42: 3707 | H42: 29174 | I42: 30987 | J42: 36380 | L42: 23.927 | M42: 54.62 | N42: 101.602 | O42: 14.702 | P42: 8.37 | Q42: 16.734 | R42: 38.629 | S42: 63 | T42: 118.336
A43: 09 Burgos | B43: 179425 | C43: 179988 | D43: 190422 | E43: 6245 | F43: 5941 | G43: 6520 | H43: 185670 | I43: 185929 | J43: 196942 | L43: 473.144 | M43: 965.1 | N43: 978.374 | O43: 31.675 | P43: 42.32 | Q43: 46.119 | R43: 504.871 | S43: 1007.4 | T43: 1024.493
A44: 24 León | B44: 29553 | C44: 24023 | D44: 34959 | E44: 15880 | F44: 12194 | G44: 17338 | H44: 45433 | I44: 36217 | J44: 52297 | L44: 36.202 | M44: 83.58 | N44: 122.355 | O44: 102.966 | P44: 79.82 | Q44: 112.686 | R44: 139.173 | S44: 163.4 | T44: 235.041
A45: 34 Palencia | B45: 95429 | C45: 97617 | D45: 111456.81 | E45: 21109 | F45: 22666 | G45: 23103.59 | H45: 116538 | I45: 120283 | J45: 134560.4 | L45: 241.245 | M45: 434.79 | N45: 537.029 | O45: 109.703 | P45: 141.39 | Q45: 141.098 | R45: 350.99 | S45: 576.15 | T45: 678.127
A46: 37 Salamanca | B46: 51583 | C46: 61057 | D46: 62039 | E46: 5953 | F46: 7312 | G46: 7988 | H46: 57536 | I46: 68369 | J46: 70027 | L46: 118.641 | M46: 207.59 | N46: 248.146 | O46: 35.718 | P46: 42.41 | Q46: 46.324 | R46: 154.351 | S46: 249.99 | T46: 294.47
A47: 40 Segovia | B47: 60646 | C47: 60209 | D47: 76866 | E47: 3014 | F47: 2882 | G47: 3748 | H47: 63660 | I47: 63091 | J47: 80614 | L47: 94.972 | M47: 169.25 | N47: 272.322 | O47: 9.042 | P47: 14.36 | Q47: 18.673 | R47: 103.993 | S47: 183.59 | T47: 290.995
A48: 42 Soria | B48: 88419 | C48: 83858 | D48: 100470 | E48: 4210 | F48: 3858 | G48: 4877 | H48: 92629 | I48: 87716 | J48: 105347 | L48: 84.705 | M48: 319.25 | N48: 362.495 | O48: 13.051 | P48: 19.28 | Q48: 25.36 | R48: 97.756 | S48: 338.52 | T48: 387.855
A49: 47 Valladolid | B49: 89251 | C49: 101400 | D49: 102246 | E49: 17525 | F49: 20313 | G49: 21613 | H49: 106776 | I49: 121713 | J49: 123859 | L49: 142.534 | M49: 414.63 | N49: 473.391 | O49: 86.223 | P49: 135.33 | Q49: 147.99 | R49: 228.722 | S49: 549.95 | T49: 621.381
A50: 49 Zamora | B50: 46656 | C50: 48769 | D50: 60560 | E50: 9042 | F50: 9027 | G50: 9539 | H50: 55698 | I50: 57796 | J50: 70099 | L50: 74.323 | M50: 160.35 | N50: 237.758 | O50: 40.156 | P50: 46.35 | Q50: 66.773 | R50: 114.471 | S50: 206.7 | T50: 304.531
A51: CASTILLA Y LEON | B51: 667198 | C51: 685576 | D51: 771691.81 | E51: 85916 | F51: 86525 | G51: 98433.59 | H51: 753114 | I51: 772101 | J51: 870125.4 | L51: 1289.693 | M51: 2809.14 | N51: 3333.472 | O51: 443.236 | P51: 529.63 | Q51: 621.757 | R51: 1732.956 | S51: 3338.7 | T51: 3955.229
A53: 28 MADRID | B53: 24731 | C53: 17940 | D53: 13813 | E53: 3135 | F53: 2127 | G53: 2133 | H53: 27866 | I53: 20067 | J53: 15946 | L53: 33.708 | M53: 52.06 | N53: 45.355 | O53: 13.164 | P53: 9.61 | Q53: 8.562 | R53: 46.882 | S53: 61.67 | T53: 53.917
A55: 02 Albacete | B55: 29344 | C55: 40720 | D55: 41559 | E55: 17290 | F55: 13966 | G55: 14772 | H55: 46634 | I55: 54686 | J55: 56331 | L55: 9.537 | M55: 42.15 | N55: 94.547 | O55: 122.067 | P55: 100.81 | Q55: 113.006 | R55: 131.598 | S55: 142.93 | T55: 207.553
A56: 13 Ciudad Real | B56: 35828 | C56: 41209 | D56: 39743 | E56: 9483 | F56: 7795 | G56: 8407 | H56: 45311 | I56: 49004 | J56: 48150 | L56: 17.914 | M56: 90.45 | N56: 135.015 | O56: 26.913 | P56: 40.36 | Q56: 46.151 | R56: 44.844 | S56: 130.82 | T56: 181.166
A57: 16 Cuenca | B57: 37951 | C57: 45688 | D57: 57675 | E57: 2771 | F57: 3051 | G57: 3400 | H57: 40722 | I57: 48739 | J57: 61075 | L57: 30.361 | M57: 132.36 | N57: 155.685 | O57: 11.084 | P57: 15.85 | Q57: 16.976 | R57: 41.445 | S57: 148.22 | T57: 172.661
A58: 19 Guadalajara | B58: 68096 | C58: 65952 | D58: 65952 | E58: 1904 | F58: 2037 | G58: 2037 | H58: 70000 | I58: 67989 | J58: 67989 | L58: 122.505 | M58: 230.5 | N58: 250.51 | O58: 9.497 | P58: 12.18 | Q58: 11.191 | R58: 132.021 | S58: 242.66 | T58: 261.701
A59: 45 Toledo | B59: 47587 | C59: 48552 | D59: 55205 | E59: 5287 | F59: 4070 | G59: 5728 | H59: 52874 | I59: 52622 | J59: 60933 | L59: 18.035 | M59: 121.14 | N59: 193.218 | O59: 24.775 | P59: 18.68 | Q59: 27.494 | R59: 42.808 | S59: 139.79 | T59: 220.712
A60: CASTILLA-MANCHA | B60: 218806 | C60: 242121 | D60: 260134 | E60: 36735 | F60: 30919 | G60: 34344 | H60: 255541 | I60: 273040 | J60: 294478 | L60: 198.352 | M60: 616.6 | N60: 828.975 | O60: 194.336 | P60: 187.88 | Q60: 214.818 | R60: 392.716 | S60: 804.43 | T60: 1043.793
A62: 03 Alicante | B62: 1010 | C62: 737 | D62: 1171 | E62: 402 | F62: 351 | G62: 390 | H62: 1412 | I62: 1088 | J62: 1561 | L62: 0.293 | M62: 0.21 | N62: 2.128 | O62: 1.205 | P62: 0.74 | Q62: 2.044 | R62: 1.498 | S62: 0.94 | T62: 4.172
A63: 12 Castellón | B63: 344 | C63: 724 | D63: 724 | E63: 23 | F63: 21 | G63: 21 | H63: 367 | I63: 745 | J63: 745 | L63: 0.547 | M63: 0.11 | N63: 1.544 | O63: 0.11 | P63: 0.1 | Q63: 0.101 | R63: 0.658 | S63: 0.21 | T63: 1.645
A64: 46 Valencia | B64: 1065 | C64: 1084 | D64: 2394 | E64: 247 | F64: 213 | G64: 245 | H64: 1312 | I64: 1297 | J64: 2639 | L64: 0.853 | M64: 1.07 | N64: 6.26 | O64: 0.988 | P64: 0.98 | Q64: 1.073 | R64: 1.841 | S64: 2.05 | T64: 7.333
A65: C. VALENCIANA | B65: 2419 | C65: 2545 | D65: 4289 | E65: 672 | F65: 585 | G65: 656 | H65: 3091 | I65: 3130 | J65: 4945 | L65: 1.693 | M65: 1.39 | N65: 9.932 | O65: 2.303 | P65: 1.82 | Q65: 3.218 | R65: 3.997 | S65: 3.2 | T65: 13.15
A67: 30 R. DE MURCIA | B67: 5780 | C67: 6018 | D67: 6425 | E67: 1245 | F67: 694 | G67: 602 | H67: 7025 | I67: 6712 | J67: 7027 | L67: 2.428 | M67: 2.46 | N67: 0.433 | O67: 4.296 | P67: 2.4 | Q67: 3.741 | R67: 6.726 | S67: 4.86 | T67: 4.174
A69: 06 Badajoz | B69: 48847 | C69: 65215 | D69: 64922 | E69: 19693 | F69: 11381 | G69: 11331 | H69: 68540 | I69: 76596 | J69: 76253 | L69: 53.878 | M69: 205.75 | N69: 178.386 | O69: 56.657 | P69: 46.53 | Q69: 40.79 | R69: 110.541 | S69: 252.28 | T69: 219.176
A70: 10 Cáceres | B70: 1621 | C70: 2481 | D70: 1830 | E70: 3788 | F70: 1230 | G70: 1546 | H70: 5409 | I70: 3711 | J70: 3376 | L70: 1.305 | M70: 5.25 | N70: 3.883 | O70: 7.86 | P70: 3.43 | Q70: 4.274 | R70: 9.164 | S70: 8.67 | T70: 8.157
A71: EXTREMADURA | B71: 50468 | C71: 67696 | D71: 66752 | E71: 23481 | F71: 12611 | G71: 12877 | H71: 73949 | I71: 80307 | J71: 79629 | L71: 55.183 | M71: 211 | N71: 182.269 | O71: 64.517 | P71: 49.95 | Q71: 45.064 | R71: 119.705 | S71: 260.95 | T71: 227.333
A73: 04 Almería | B73: 210 | C73: 52 | D73: 697 | E73: 99 | F73: 65 | G73: 13 | H73: 309 | I73: 117 | J73: 710 | L73: 0.017 | M73: 0.02 | N73: 1.787 | O73: 0.269 | P73: 0.08 | Q73: 0.041 | R73: 0.286 | S73: 0.1 | T73: 1.828
A74: 11 Cádiz | B74: 49303 | C74: 50651 | D74: 43607.69 | E74: 5984 | F74: 5748 | G74: 4522.39 | H74: 55287 | I74: 56399 | J74: 48130.08 | L74: 65.474 | M74: 145.17 | N74: 117.987 | O74: 22.44 | P74: 20.68 | Q74: 13.821 | R74: 87.909 | S74: 165.82 | T74: 131.808
A75: 14 Córdoba | B75: 52018 | C75: 50225 | D75: 48080 | E75: 10688 | F75: 9951 | G75: 8790 | H75: 62706 | I75: 60176 | J75: 56870 | L75: 58.26 | M75: 181.06 | N75: 144.24 | O75: 39.546 | P75: 35.35 | Q75: 26.37 | R75: 97.788 | S75: 216.43 | T75: 170.61
A76: 18 Granada | B76: 8510 | C76: 5289 | D76: 8854 | E76: 2074 | F76: 1418 | G76: 1492 | H76: 10584 | I76: 6707 | J76: 10346 | L76: 3.957 | M76: 11.49 | N76: 11.688 | O76: 4.44 | P76: 5.81 | Q76: 6.501 | R76: 8.393 | S76: 17.29 | T76: 18.189
A77: 21 Huelva | B77: 12770 | C77: 12710 | D77: 13085 | E77: 1402 | F77: 950 | G77: 885 | H77: 14172 | I77: 13660 | J77: 13970 | L77: 21.62 | M77: 45.32 | N77: 46.802 | O77: 2.752 | P77: 3.98 | Q77: 3.928 | R77: 24.37 | S77: 49.3 | T77: 50.73
A78: 23 Jaén | B78: 4462 | C78: 5595 | D78: 4765 | E78: 2033 | F78: 1877 | G78: 2057 | H78: 6495 | I78: 7472 | J78: 6822 | L78: 3.436 | M78: 17.45 | N78: 13.901 | O78: 2.456 | P78: 7.51 | Q78: 8.166 | R78: 5.893 | S78: 24.95 | T78: 22.067
A79: 29 Málaga | B79: 11544 | C79: 13303 | D79: 14555 | E79: 2034 | F79: 1675 | G79: 1670 | H79: 13578 | I79: 14978 | J79: 16225 | L79: 9.235 | M79: 31.9 | N79: 41.492 | O79: 6.916 | P79: 7.8 | Q79: 8.311 | R79: 16.151 | S79: 39.7 | T79: 49.803
A80: 41 Sevilla | B80: 111899 | C80: 106130 | D80: 105050 | E80: 27260 | F80: 23430 | G80: 18390 | H80: 139159 | I80: 129560 | J80: 123440 | L80: 138.083 | M80: 371.35 | N80: 342.305 | O80: 81.426 | P80: 93.37 | Q80: 67.181 | R80: 219.559 | S80: 464.73 | T80: 409.486
A81: ANDALUCIA | B81: 250716 | C81: 243955 | D81: 238693.69 | E81: 51574 | F81: 45114 | G81: 37819.39 | H81: 302290 | I81: 289069 | J81: 276513.08 | L81: 300.082 | M81: 803.75 | N81: 720.202 | O81: 160.245 | P81: 174.58 | Q81: 134.319 | R81: 460.349 | S81: 978.33 | T81: 854.521
A83: 35 Palmas (Las) | B83: 93 | C83: 88 | D83: 88 | F83: 1 | G83: 1 | H83: 93 | I83: 89 | J83: 89 | L83: 0.093 | M83: 0.09 | N83: 0.088 | Q83: 0.001 | R83: 0.093 | S83: 0.09 | T83: 0.089
A84: 38 S. C. Tenerife | B84: 113 | C84: 114 | D84: 114 | E84: 24 | F84: 23 | G84: 23 | H84: 137 | I84: 137 | J84: 137 | L84: 0.109 | M84: 0.11 | N84: 0.108 | O84: 0.036 | P84: 0.04 | Q84: 0.035 | R84: 0.145 | S84: 0.14 | T84: 0.143
A85: CANARIAS | B85: 206 | C85: 202 | D85: 202 | E85: 24 | F85: 24 | G85: 24 | H85: 230 | I85: 226 | J85: 226 | L85: 0.202 | M85: 0.2 | N85: 0.196 | O85: 0.036 | P85: 0.04 | Q85: 0.036 | R85: 0.238 | S85: 0.23 | T85: 0.232
A88: ESPAÑA | B88: 3007810 | C88: 1626205 | D88: 1720685.86 | E88: 305658 | F88: 285375 | G88: 284558.98 | H88: 1809563 | I88: 1911580 | J88: 2005244.84 | L88: 2495.571 | M88: 5548.86 | N88: 6485.138 | O88: 1389.607 | P88: 1548.81 | Q88: 1529.867 | R88: 3885.287 | S88: 7097.51 | T88: 8015.007
B96: 221 | C96: 231 | E96: 221 | F96: 231 | H96: 221 | I96: 231

Sheet Tri6ral
A1: AVANCES DE SUPERFICIE Y PRODUCCIÓN
A2: TRIGO. RESUMEN GENERAL | J2: 2025 JUNIO
A3: SUPERFICIE COSECHADA(*)
A4: PROVINCIAS | C4: SUPERFICIES (HA) | H4: PRODUCCIONES (1000 TM)
A5: Y
A6: CC-AA | C6: =E6-2 -> 2023 | D6: =E6-1 -> 2024 | E6: 2025 | F6: =E6 -> 2025 | H6: =J6-2 -> 2023 | I6: =J6-1 -> 2024 | J6: 2025 | K6: =J6 -> 2025
C7: PROVISIONAL | D7: PROVISIONAL | E7: AVANCE | F7: =CONCATENATE(D6,"=100") -> 2024=100 | H7: PROVISIONAL | I7: PROVISIONAL | J7: AVANCE | K7: =CONCATENATE(I6,"=100") -> 2024=100
A9: 15 A Coruña | C9: 1643 | D9: 1749 | E9: 2135.52 | H9: 4.994 | I9: 4.02 | J9: 9.624
A10: 27 Lugo | C10: 3429 | D10: 3270 | E10: 3235.53 | H10: 8.504 | I10: 7.19 | J10: 10.543
A11: 32 Ourense | C11: 8325 | D11: 8540 | E11: 5955.1 | H11: 25.808 | I11: 25.28 | J11: 19.79
A12: 36 Pontevedra | C12: 313 | D12: 288 | E12: 382.21 | H12: 0.689 | I12: 0.65 | J12: 1.352
A13: GALICIA | C13: 13710 | D13: 13847 | E13: 11708.36 | F13: 84.55521051 | H13: 39.995 | I13: 37.14 | J13: 41.309 | K13: 111.2250942
A15: 33 P. DE ASTURIAS | E15: 60 | J15: 0.108
A17: 39 CANTABRIA | C17: 834 | D17: 848 | E17: 862 | F17: 101.6509434 | H17: 2.161 | I17: 2.13 | J17: 2.246 | K17: 105.4460094
A19: 1 Álava | C19: 19290 | D19: 19717 | E19: 17819 | H19: 106.095 | I19: 138.02 | J19: 106.914
A20: 20 Guipúzcoa | C20: 1 | D20: 1 | H20: 0.005 | I20: 0.01
A21: 48 Vizcaya
A22: PAIS VASCO | C22: 19291 | D22: 19718 | E22: 17819 | F22: 90.3692058 | H22: 106.1 | I22: 138.03 | J22: 106.914 | K22: 77.45707455
A24: 31 NAVARRA | C24: 75279 | D24: 77770 | E24: 81154 | F24: 104.3512923 | H24: 320.741 | I24: 433 | J24: 420.505 | K24: 97.11431871
A26: 26 LA RIOJA | C26: 24469 | D26: 23733 | E26: 23960 | F26: 100.9564741 | H26: 78.596 | I26: 78.73 | J26: 131.382 | K26: 166.8766671
A28: 22 Huesca | C28: 61662 | D28: 81016 | E28: 79206 | H28: 174.575 | I28: 352.32 | J28: 198.015
A29: 44 Teruel | C29: 24591 | D29: 34673 | E29: 37693 | H29: 28.548 | I29: 42.74 | J29: 115.026
A30: 50 Zaragoza | C30: 78817 | D30: 106555 | E30: 106581 | H30: 200.872 | I30: 254.96 | J30: 390.055
A31: ARAGÓN | C31: 165070 | D31: 222244 | E31: 223480 | F31: 100.5561455 | H31: 403.995 | I31: 650.02 | J31: 703.096 | K31: 108.1652872
A33: 8 Barcelona | C33: 14534 | D33: 21800 | E33: 21045 | H33: 18.064 | I33: 50.28 | J33: 101.085
A34: 17 Girona | C34: 11789 | D34: 12743 | E34: 13267 | H34: 28.805 | I34: 33.88 | J34: 60
A35: 25 Lleida | C35: 49892 | D35: 62364 | E35: 51310 | H35: 105.16 | I35: 206.71 | J35: 259.693
A36: 43 Tarragona | C36: 5965 | D36: 6884 | E36: 6740 | H36: 7.585 | I36: 8.31 | J36: 29.35
A37: CATALUÑA | C37: 82180 | D37: 103791 | E37: 92362 | F37: 88.98844794 | H37: 159.614 | I37: 299.18 | J37: 450.128 | K37: 150.4539073
A39: 7 BALEARES | C39: 5624 | D39: 4977 | E39: 4950 | F39: 99.45750452 | H39: 10.516 | I39: 6.92 | J39: 6.97 | K39: 100.7225434
A41: 5 Ávila | C41: 29174 | D41: 30987 | E41: 36380 | H41: 38.629 | I41: 63 | J41: 118.336
A42: 9 Burgos | C42: 185670 | D42: 185929 | E42: 196942 | H42: 504.871 | I42: 1007.4 | J42: 1024.493
A43: 24 León | C43: 45433 | D43: 36217 | E43: 52297 | H43: 139.173 | I43: 163.4 | J43: 235.041
A44: 34 Palencia | C44: 116538 | D44: 120283 | E44: 134560.4 | H44: 350.99 | I44: 576.15 | J44: 678.127
A45: 37 Salamanca | C45: 57536 | D45: 68369 | E45: 70027 | H45: 154.351 | I45: 249.99 | J45: 294.47
A46: 40 Segovia | C46: 63660 | D46: 63091 | E46: 80614 | H46: 103.993 | I46: 183.59 | J46: 290.995
A47: 42 Soria | C47: 92629 | D47: 87716 | E47: 105347 | H47: 97.756 | I47: 338.52 | J47: 387.855
A48: 47 Valladolid | C48: 106776 | D48: 121713 | E48: 123859 | H48: 228.722 | I48: 549.95 | J48: 621.381
A49: 49 Zamora | C49: 55698 | D49: 57796 | E49: 70099 | H49: 114.471 | I49: 206.7 | J49: 304.531
A50: CASTILLA Y LEÓN | C50: 753114 | D50: 772101 | E50: 870125.4 | F50: 112.6958002 | H50: 1732.956 | I50: 3338.7 | J50: 3955.229 | K50: 118.4661395
A52: 28 MADRID | C52: 27866 | D52: 20067 | E52: 15946 | F52: 79.46379628 | H52: 46.882 | I52: 61.67 | J52: 53.917 | K52: 87.42824712
A54: 2 Albacete | C54: 46634 | D54: 54686 | E54: 56331 | H54: 131.598 | I54: 142.93 | J54: 207.553
A55: 13 Ciudad Real | C55: 45311 | D55: 49004 | E55: 48150 | H55: 44.844 | I55: 130.82 | J55: 181.166
A56: 16 Cuenca | C56: 40722 | D56: 48739 | E56: 61075 | H56: 41.445 | I56: 148.22 | J56: 172.661
A57: 19 Guadalajara | C57: 70000 | D57: 67989 | E57: 67989 | H57: 132.021 | I57: 242.66 | J57: 261.701
A58: 45 Toledo | C58: 52874 | D58: 52622 | E58: 60933 | H58: 42.808 | I58: 139.79 | J58: 220.712
A59: CASTILLA-MANCHA | C59: 255541 | D59: 273040 | E59: 294478 | F59: 107.8515968 | H59: 392.716 | I59: 804.43 | J59: 1043.793 | K59: 129.7556033
A61: 3 Alicante | C61: 1412 | D61: 1088 | E61: 1561 | H61: 1.498 | I61: 0.94 | J61: 4.172
A62: 12 Castellón | C62: 367 | D62: 745 | E62: 745 | H62: 0.658 | I62: 0.21 | J62: 1.645
A63: 46 Valencia | C63: 1312 | D63: 1297 | E63: 2639 | H63: 1.841 | I63: 2.05 | J63: 7.333
A64: C. VALENCIANA | C64: 3091 | D64: 3130 | E64: 4945 | F64: 157.9872204 | H64: 3.997 | I64: 3.2 | J64: 13.15 | K64: 410.9375
A66: 30 R. DE MURCIA | C66: 7025 | D66: 6712 | E66: 7027 | F66: 104.693087 | H66: 6.726 | I66: 4.86 | J66: 4.174 | K66: 85.88477366
A68: 6 Badajoz | C68: 68540 | D68: 76596 | E68: 76253 | H68: 110.541 | I68: 252.28 | J68: 219.176
A69: 10 Cáceres | C69: 5409 | D69: 3711 | E69: 3376 | H69: 9.164 | I69: 8.67 | J69: 8.157
A70: EXTREMADURA | C70: 73949 | D70: 80307 | E70: 79629 | F70: 99.15573985 | H70: 119.705 | I70: 260.95 | J70: 227.333 | K70: 87.11745545
A72: 4 Almería | C72: 309 | D72: 117 | E72: 710 | H72: 0.286 | I72: 0.1 | J72: 1.828
A73: 11 Cádiz | C73: 55287 | D73: 56399 | E73: 48130.08 | H73: 87.909 | I73: 165.82 | J73: 131.808
A74: 14 Córdoba | C74: 62706 | D74: 60176 | E74: 56870 | H74: 97.788 | I74: 216.43 | J74: 170.61
A75: 18 Granada | C75: 10584 | D75: 6707 | E75: 10346 | H75: 8.393 | I75: 17.29 | J75: 18.189
A76: 21 Huelva | C76: 14172 | D76: 13660 | E76: 13970 | H76: 24.37 | I76: 49.3 | J76: 50.73
A77: 23 Jaén | C77: 6495 | D77: 7472 | E77: 6822 | H77: 5.893 | I77: 24.95 | J77: 22.067
A78: 29 Málaga | C78: 13578 | D78: 14978 | E78: 16225 | H78: 16.151 | I78: 39.7 | J78: 49.803
A79: 41 Sevilla | C79: 139159 | D79: 129560 | E79: 123440 | H79: 219.559 | I79: 464.73 | J79: 409.486
A80: ANDALUCÍA | C80: 302290 | D80: 289069 | E80: 276513.08 | F80: 95.65642805 | H80: 460.349 | I80: 978.33 | J80: 854.521 | K80: 87.34486319
A82: 35 Palmas (Las) | C82: 93 | D82: 89 | E82: 89 | H82: 0.093 | I82: 0.09 | J82: 0.089
A83: 38 S. C. Tenerife | C83: 137 | D83: 137 | E83: 137 | H83: 0.145 | I83: 0.14 | J83: 0.143
A84: CANARIAS | C84: 230 | D84: 226 | E84: 226 | F84: 100 | H84: 0.238 | I84: 0.23 | J84: 0.232 | K84: 100.8695652
A87: ESPAÑA | C87: 1809563 | D87: 1911580 | E87: 2005244.84 | F87: 104.899865 | H87: 3885.287 | I87: 7097.51 | J87: 8015.007 | K87: 112.9270265
A90: (*)Tipo de Superficie de mes/año solicitado

Sheet Tri7uro-SRT
A1: AVANCES DE SUPERFICIE Y PRODUCCIÓN
A2: TRIGO DURO S/R/T | K2: 2025 JUNIO
A3: SUPERFICIE COSECHADA(*)
A4: PROVINCIAS | B4: SUPERFICIES (HA) | E4: SUPERFICIES (HA) | H4: SUPERFICIES (HA) | L4: PRODUCCIONES (1000 TM) | O4: PRODUCCIONES (1000 TM) | R4: PRODUCCIONES (1000 TM)
A5: Y | B5: SECANO | E5: REGADIO | H5: TOTAL | L5: SECANO | O5: REGADIO | R5: TOTAL
A6: CC-AA | B6: =J6-2 -> 2023 | C6: =J6-1 -> 2024 | D6: =J6 -> 2025 | E6: =J6-2 -> 2023 | F6: =J6-1 -> 2024 | G6: =J6 -> 2025 | H6: =J6-2 -> 2023 | I6: =J6-1 -> 2024 | J6: 2025 | L6: =T6-2 -> 2023 | M6: =T6-1 -> 2024 | N6: =T6 -> 2025 | O6: =T6-2 -> 2023 | P6: =T6-1 -> 2024 | Q6: =T6 -> 2025 | R6: =T6-2 -> 2023 | S6: =T6-1 -> 2024 | T6: 2025
B7: PROVISIONAL | C7: PROVISIONAL | D7: PROVISIONAL | E7: PROVISIONAL | F7: PROVISIONAL | G7: AVANCE | H7: PROVISIONAL | I7: PROVISIONAL | J7: AVANCE | L7: PROVISIONAL | M7: PROVISIONAL | N7: AVANCE | O7: PROVISIONAL | P7: PROVISIONAL | Q7: AVANCE | R7: PROVISIONAL | S7: PROVISIONAL | T7: AVANCE
A10: 15 Coruña (La) | B10: 8 | C10: 12 | D10: 7.8 | H10: 8 | I10: 12 | J10: 7.8 | L10: 0.024 | M10: 0.03 | N10: 0.016 | R10: 0.024 | S10: 0.03 | T10: 0.016
A11: 27 Lugo | B11: 225 | C11: 216 | D11: 70.34 | H11: 225 | I11: 216 | J11: 70.34 | L11: 0.558 | M11: 0.48 | N11: 0.156 | R11: 0.558 | S11: 0.48 | T11: 0.156
A12: 32 Orense | B12: 4 | C12: 8 | D12: 24.85 | H12: 4 | I12: 8 | J12: 24.85 | L12: 0.013 | M12: 0.02 | N12: 0.052 | R12: 0.013 | S12: 0.02 | T12: 0.052
A13: 36 Pontevedra | B13: 3 | C13: 3 | D13: 5.18 | H13: 3 | I13: 3 | J13: 5.18 | L13: 0.007 | M13: 0.01 | N13: 0.008 | R13: 0.007 | S13: 0.01 | T13: 0.008
A14: GALICIA | B14: 240 | C14: 239 | D14: 108.17 | H14: 240 | I14: 239 | J14: 108.17 | L14: 0.602 | M14: 0.53 | N14: 0.232 | R14: 0.602 | S14: 0.53 | T14: 0.232
A16: 33 P. DE ASTURIAS
A18: 39 CANTABRIA
A20: 01 Alava
A21: 20 Guipúzcoa
A22: 48 Vizcaya
A23: PAIS VASCO
A25: 31 NAVARRA | B25: 125 | C25: 775 | D25: 817 | E25: 324 | F25: 510 | G25: 422 | H25: 449 | I25: 1285 | J25: 1239 | L25: 0.115 | M25: 0.85 | N25: 2.041 | O25: 1.801 | P25: 3.4 | Q25: 2.429 | R25: 1.916 | S25: 4.25 | T25: 4.47
A27: 26 LA RIOJA | B27: 21 | G27: 10 | H27: 21 | J27: 10 | L27: 0.023 | Q27: 0.032 | R27: 0.023 | T27: 0.032
A29: 22 Huesca | B29: 830 | C29: 818 | D29: 720 | E29: 764 | F29: 728 | G29: 488 | H29: 1594 | I29: 1546 | J29: 1208 | L29: 0.729 | M29: 1.91 | N29: 1.8 | O29: 4.029 | P29: 3.2 | Q29: 1.22 | R29: 4.758 | S29: 5.11 | T29: 3.02
A30: 44 Teruel | B30: 574 | C30: 600 | D30: 665 | E30: 59 | F30: 92 | G30: 55 | H30: 633 | I30: 692 | J30: 720 | L30: 0.381 | M30: 0.32 | N30: 1.198 | O30: 0.148 | P30: 0.22 | Q30: 0.125 | R30: 0.528 | S30: 0.54 | T30: 1.323
A31: 50 Zaragoza | B31: 21869 | C31: 32497 | D31: 30775 | E31: 15675 | F31: 13790 | G31: 14663 | H31: 37544 | I31: 46287 | J31: 45438 | L31: 16.795 | M31: 32.63 | N31: 68.641 | O31: 79.065 | P31: 69.56 | Q31: 65.018 | R31: 95.869 | S31: 102.18 | T31: 133.659
A32: ARAGON | B32: 23273 | C32: 33915 | D32: 32160 | E32: 16498 | F32: 14610 | G32: 15206 | H32: 39771 | I32: 48525 | J32: 47366 | L32: 17.905 | M32: 34.85 | N32: 71.639 | O32: 83.242 | P32: 72.98 | Q32: 66.363 | R32: 101.155 | S32: 107.82 | T32: 138.002
A34: 08 Barcelona | B34: 8 | C34: 11 | D34: 36 | G34: 2 | H34: 8 | I34: 11 | J34: 38 | L34: 0.008 | M34: 0.03 | N34: 0.174 | Q34: 0.014 | R34: 0.008 | S34: 0.03 | T34: 0.188
A35: 17 Girona | B35: 14 | C35: 8 | D35: 15 | E35: 9 | F35: 12 | G35: 14 | H35: 23 | I35: 20 | J35: 29 | L35: 0.019 | M35: 0.02 | N35: 0.06 | O35: 0.032 | P35: 0.04 | Q35: 0.06 | R35: 0.051 | S35: 0.05 | T35: 0.12
A36: 25 Lleida | B36: 108 | C36: 28 | D36: 23 | E36: 58 | F36: 30 | G36: 18 | H36: 166 | I36: 58 | J36: 41 | L36: 0.035 | M36: 0.05 | N36: 0.087 | O36: 0.253 | P36: 0.15 | Q36: 0.14 | R36: 0.288 | S36: 0.2 | T36: 0.227
A37: 43 Tarragona | B37: 6 | C37: 7 | D37: 15 | F37: 1 | G37: 1 | H37: 6 | I37: 8 | J37: 16 | L37: 0.003 | N37: 0.038 | Q37: 0.005 | R37: 0.003 | S37: 0.01 | T37: 0.042
A38: CATALUÑA | B38: 136 | C38: 54 | D38: 89 | E38: 67 | F38: 43 | G38: 35 | H38: 203 | I38: 97 | J38: 124 | L38: 0.065 | M38: 0.09 | N38: 0.359 | O38: 0.285 | P38: 0.19 | Q38: 0.219 | R38: 0.35 | S38: 0.28 | T38: 0.577
A40: 07 BALEARES | B40: 8 | C40: 52 | D40: 50 | H40: 8 | I40: 52 | J40: 50 | L40: 0.015 | M40: 0.07 | N40: 0.07 | R40: 0.015 | S40: 0.07 | T40: 0.07
A42: 05 Avila | B42: 13 | C42: 17 | D42: 27 | G42: 6 | H42: 13 | I42: 17 | J42: 33 | L42: 0.012 | M42: 0.02 | N42: 0.073 | Q42: 0.023 | R42: 0.012 | S42: 0.02 | T42: 0.096
A43: 09 Burgos | B43: 256 | C43: 329 | D43: 305 | E43: 112 | F43: 117 | G43: 56 | H43: 368 | I43: 446 | J43: 361 | L43: 0.548 | M43: 1.39 | N43: 1.256 | O43: 0.527 | P43: 0.76 | Q43: 0.363 | R43: 1.074 | S43: 2.15 | T43: 1.619
A44: 24 León | B44: 8 | C44: 2 | D44: 3 | E44: 19 | F44: 9 | G44: 22 | H44: 27 | I44: 11 | J44: 25 | L44: 0.008 | M44: 0.01 | N44: 0.009 | O44: 0.114 | P44: 0.05 | Q44: 0.132 | R44: 0.122 | S44: 0.06 | T44: 0.141
A45: 34 Palencia | B45: 50 | C45: 25 | D45: 5.3 | E45: 43 | F45: 5 | G45: 14.85 | H45: 93 | I45: 30 | J45: 20.15 | L45: 0.07 | M45: 0.08 | N45: 0.027 | O45: 0.163 | P45: 0.03 | Q45: 0.073 | R45: 0.233 | S45: 0.12 | T45: 0.1
A46: 37 Salamanca | B46: 56 | C46: 54 | D46: 26 | E46: 5 | F46: 1 | G46: 11 | H46: 61 | I46: 55 | J46: 37 | L46: 0.123 | M46: 0.17 | N46: 0.094 | O46: 0.028 | P46: 0.01 | Q46: 0.057 | R46: 0.151 | S46: 0.18 | T46: 0.151
A47: 40 Segovia | B47: 39 | C47: 52 | D47: 43 | E47: 17 | F47: 9 | H47: 56 | I47: 61 | J47: 43 | L47: 0.04 | M47: 0.14 | N47: 0.138 | O47: 0.051 | P47: 0.03 | R47: 0.091 | S47: 0.17 | T47: 0.138
A48: 42 Soria | B48: 3 | C48: 15 | D48: 1 | F48: 23 | H48: 3 | I48: 38 | J48: 1 | L48: 0.002 | M48: 0.05 | N48: 0.003 | P48: 0.11 | R48: 0.002 | S48: 0.15 | T48: 0.003
A49: 47 Valladolid | B49: 127 | C49: 17 | D49: 27 | E49: 169 | F49: 188 | G49: 61 | H49: 296 | I49: 205 | J49: 88 | L49: 0.169 | M49: 0.07 | N49: 0.102 | O49: 0.727 | P49: 0.95 | Q49: 0.387 | R49: 0.895 | S49: 1.02 | T49: 0.489
A50: 49 Zamora | B50: 29 | C50: 32 | D50: 42 | E50: 27 | F50: 7 | G50: 5 | H50: 56 | I50: 39 | J50: 47 | L50: 0.039 | M50: 0.1 | N50: 0.104 | O50: 0.12 | P50: 0.03 | Q50: 0.035 | R50: 0.159 | S50: 0.13 | T50: 0.139
A51: CASTILLA Y LEON | B51: 581 | C51: 543 | D51: 479.3 | E51: 392 | F51: 359 | G51: 175.85 | H51: 973 | I51: 902 | J51: 655.15 | L51: 1.011 | M51: 2.02 | N51: 1.806 | O51: 1.73 | P51: 1.97 | Q51: 1.07 | R51: 2.739 | S51: 3.98 | T51: 2.876
A53: 28 MADRID | B53: 29 | C53: 73 | D53: 19 | E53: 262 | F53: 134 | G53: 80 | H53: 291 | I53: 207 | J53: 99 | L53: 0.026 | M53: 0.08 | N53: 0.055 | O53: 0.416 | P53: 0.54 | Q53: 0.424 | R53: 0.441 | S53: 0.62 | T53: 0.479
A55: 02 Albacete | B55: 44 | C55: 220 | D55: 162 | E55: 2105 | F55: 1436 | G55: 619 | H55: 2149 | I55: 1656 | J55: 781 | L55: 0.013 | M55: 0.22 | N55: 0.36 | O55: 14.478 | P55: 10.24 | Q55: 4.7 | R55: 14.49 | S55: 10.46 | T55: 5.06
A56: 13 Ciudad Real | B56: 139 | C56: 73 | D56: 93 | E56: 254 | F56: 141 | G56: 97 | H56: 393 | I56: 214 | J56: 190 | L56: 0.085 | M56: 0.08 | N56: 0.205 | O56: 0.749 | P56: 0.56 | Q56: 0.446 | R56: 0.835 | S56: 0.64 | T56: 0.651
A57: 16 Cuenca | B57: 275 | C57: 315 | D57: 366 | E57: 101 | F57: 62 | G57: 80 | H57: 376 | I57: 377 | J57: 446 | L57: 0.22 | M57: 0.79 | N57: 0.952 | O57: 0.404 | P57: 0.31 | Q57: 0.377 | R57: 0.624 | S57: 1.1 | T57: 1.329
A58: 19 Guadalajara | B58: 162 | C58: 180 | D58: 180 | E58: 47 | F58: 26 | G58: 26 | H58: 209 | I58: 206 | J58: 206 | L58: 0.243 | M58: 0.27 | N58: 0.576 | O58: 0.212 | P58: 0.12 | Q58: 0.13 | R58: 0.455 | S58: 0.39 | T58: 0.706
A59: 45 Toledo | B59: 1188 | C59: 877 | D59: 900 | E59: 152 | F59: 115 | G59: 154 | H59: 1340 | I59: 992 | J59: 1054 | L59: 0.404 | M59: 1.93 | N59: 3.33 | O59: 0.638 | P59: 0.48 | Q59: 0.739 | R59: 1.042 | S59: 2.41 | T59: 4.069
A60: CASTILLA-MANCHA | B60: 1808 | C60: 1665 | D60: 1701 | E60: 2659 | F60: 1780 | G60: 976 | H60: 4467 | I60: 3445 | J60: 2677 | L60: 0.965 | M60: 3.29 | N60: 5.423 | O60: 16.481 | P60: 11.71 | Q60: 6.392 | R60: 17.446 | S60: 15 | T60: 11.815
A62: 03 Alicante | B62: 55 | C62: 65 | D62: 78 | E62: 69 | F62: 40 | G62: 25 | H62: 124 | I62: 105 | J62: 103 | L62: 0.016 | M62: 0.02 | N62: 0.165 | O62: 0.194 | P62: 0.08 | Q62: 0.068 | R62: 0.209 | S62: 0.1 | T62: 0.233
A63: 12 Castellón | B63: 8 | C63: 30 | D63: 30 | H63: 8 | I63: 30 | J63: 30 | L63: 0.013 | N63: 0.059 | R63: 0.013 | T63: 0.059
A64: 46 Valencia | B64: 27 | C64: 12 | D64: 57 | E64: 1 | F64: 1 | G64: 1 | H64: 28 | I64: 13 | J64: 58 | L64: 0.023 | M64: 0.01 | N64: 0.149 | O64: 0.005 | P64: 0.01 | Q64: 0.004 | R64: 0.027 | S64: 0.02 | T64: 0.153
A65: C. VALENCIANA | B65: 90 | C65: 107 | D65: 165 | E65: 70 | F65: 41 | G65: 26 | H65: 160 | I65: 148 | J65: 191 | L65: 0.052 | M65: 0.03 | N65: 0.373 | O65: 0.199 | P65: 0.09 | Q65: 0.072 | R65: 0.249 | S65: 0.12 | T65: 0.445
A67: 30 R. DE MURCIA | B67: 180 | C67: 82 | D67: 101 | E67: 35 | F67: 95 | G67: 76 | H67: 215 | I67: 177 | J67: 177 | L67: 0.043 | M67: 0.02 | N67: 0.023 | O67: 0.114 | P67: 0.31 | Q67: 0.251 | R67: 0.157 | S67: 0.33 | T67: 0.274
A69: 06 Badajoz | B69: 2429 | C69: 2316 | D69: 2825 | E69: 960 | F69: 763 | G69: 759 | H69: 3389 | I69: 3079 | J69: 3584 | L69: 2.786 | M69: 6.56 | N69: 10.227 | O69: 2.866 | P69: 2.81 | Q69: 3.572 | R69: 5.652 | S69: 9.37 | T69: 13.799
A70: 10 Cáceres | B70: 192 | C70: 175 | E70: 31 | F70: 15 | G70: 17 | H70: 223 | I70: 190 | J70: 17 | L70: 0.169 | M70: 0.29 | O70: 0.071 | P70: 0.03 | Q70: 0.056 | R70: 0.24 | S70: 0.32 | T70: 0.056
A71: EXTREMADURA | B71: 2621 | C71: 2491 | D71: 2825 | E71: 991 | F71: 778 | G71: 776 | H71: 3612 | I71: 3269 | J71: 3601 | L71: 2.955 | M71: 6.85 | N71: 10.227 | O71: 2.937 | P71: 2.84 | Q71: 3.628 | R71: 5.892 | S71: 9.69 | T71: 13.855
A73: 04 Almería | B73: 10 | D73: 31 | E73: 8 | G73: 2 | H73: 18 | J73: 33 | L73: 0.001 | N73: 0.056 | O73: 0.009 | Q73: 0.006 | R73: 0.009 | T73: 0.061
A74: 11 Cádiz | B74: 39003 | C74: 41678 | D74: 32912.34 | E74: 4724 | F74: 4121 | G74: 3185.42 | H74: 43727 | I74: 45799 | J74: 36097.76 | L74: 52.849 | M74: 129.29 | N74: 98.736 | O74: 20.786 | P74: 14.22 | Q74: 11.147 | R74: 73.635 | S74: 143.51 | T74: 109.883
A75: 14 Córdoba | B75: 31120 | C75: 29065 | D75: 27750 | E75: 8740 | F75: 7873 | G75: 6400 | H75: 39860 | I75: 36938 | J75: 34150 | L75: 37.344 | M75: 101.73 | N75: 83.25 | O75: 32.338 | P75: 27.56 | Q75: 19.2 | R75: 69.682 | S75: 129.28 | T75: 102.45
A76: 18 Granada | B76: 1198 | C76: 847 | D76: 1344 | E76: 980 | F76: 675 | G76: 645 | H76: 2178 | I76: 1522 | J76: 1989 | L76: 0.655 | M76: 1.68 | N76: 3.712 | O76: 2.299 | P76: 3.3 | Q76: 2.463 | R76: 2.954 | S76: 4.98 | T76: 6.175
A77: 21 Huelva | B77: 9120 | C77: 8550 | D77: 8980 | E77: 902 | F77: 610 | G77: 610 | H77: 10022 | I77: 9160 | J77: 9590 | L77: 15.048 | M77: 29.93 | N77: 31.779 | O77: 1.672 | P77: 2.66 | Q77: 2.745 | R77: 16.72 | S77: 32.58 | T77: 34.524
A78: 23 Jaén | B78: 2640 | C78: 3293 | D78: 2796 | E78: 1883 | F78: 1675 | G78: 1901 | H78: 4523 | I78: 4968 | J78: 4697 | L78: 1.98 | M78: 10.54 | N78: 8.388 | O78: 2.26 | P78: 6.7 | Q78: 7.604 | R78: 4.24 | S78: 17.24 | T78: 15.992
A79: 29 Málaga | B79: 8255 | C79: 8844 | D79: 9123 | E79: 1657 | F79: 1362 | G79: 1281 | H79: 9912 | I79: 10206 | J79: 10404 | L79: 6.604 | M79: 22.11 | N79: 27.369 | O79: 5.634 | P79: 6.47 | Q79: 6.405 | R79: 12.238 | S79: 28.58 | T79: 33.774
A80: 41 Sevilla | B80: 61794 | C80: 53480 | D80: 50740 | E80: 14483 | F80: 12610 | G80: 9080 | H80: 76277 | I80: 66090 | J80: 59820 | L80: 67.973 | M80: 181.83 | N80: 152.22 | O80: 40.552 | P80: 47.92 | Q80: 30.872 | R80: 108.526 | S80: 229.75 | T80: 183.092
A81: ANDALUCIA | B81: 153140 | C81: 145757 | D81: 133676.34 | E81: 33377 | F81: 28926 | G81: 23104.42 | H81: 186517 | I81: 174683 | J81: 156780.76 | L81: 182.454 | M81: 477.1 | N81: 405.51 | O81: 105.55 | P81: 108.82 | Q81: 80.442 | R81: 288.004 | S81: 585.92 | T81: 485.951
A83: 35 Palmas (Las)
A84: 38 S. C. Tenerife
A85: CANARIAS
A88: ESPAÑA | B88: 364504 | C88: 185753 | D88: 172190.81 | E88: 54675 | F88: 47276 | G88: 40887.27 | H88: 236927 | I88: 233029 | J88: 213078.08 | L88: 206.231 | M88: 525.78 | N88: 497.758 | O88: 212.755 | P88: 202.84 | Q88: 161.322 | R88: 418.989 | S88: 728.62 | T88: 659.078
B96: 221 | C96: 231 | E96: 221 | F96: 231 | H96: 221 | I96: 231

Sheet Tri7uro
A1: AVANCES DE SUPERFICIE Y PRODUCCIÓN
A2: TRIGO DURO | J2: 2025 JUNIO
A3: SUPERFICIE COSECHADA(*)
A4: PROVINCIAS | C4: SUPERFICIES (HA) | H4: PRODUCCIONES (1000 TM)
A5: Y
A6: CC-AA | C6: =E6-2 -> 2023 | D6: =E6-1 -> 2024 | E6: 2025 | F6: =E6 -> 2025 | H6: =J6-2 -> 2023 | I6: =J6-1 -> 2024 | J6: 2025 | K6: =J6 -> 2025
C7: PROVISIONAL | D7: PROVISIONAL | E7: AVANCE | F7: =CONCATENATE(D6,"=100") -> 2024=100 | H7: PROVISIONAL | I7: PROVISIONAL | J7: AVANCE | K7: =CONCATENATE(I6,"=100") -> 2024=100
A9: 15 A Coruña | C9: 8 | D9: 12 | E9: 7.8 | H9: 0.024 | I9: 0.03 | J9: 0.016
A10: 27 Lugo | C10: 225 | D10: 216 | E10: 70.34 | H10: 0.558 | I10: 0.48 | J10: 0.156
A11: 32 Ourense | C11: 4 | D11: 8 | E11: 24.85 | H11: 0.013 | I11: 0.02 | J11: 0.052
A12: 36 Pontevedra | C12: 3 | D12: 3 | E12: 5.18 | H12: 0.007 | I12: 0.01 | J12: 0.008
A13: GALICIA | C13: 240 | D13: 239 | E13: 108.17 | F13: 45.25941423 | H13: 0.602 | I13: 0.53 | J13: 0.232 | K13: 43.77358491
A15: 33 P. DE ASTURIAS
A17: 39 CANTABRIA
A19: 1 Álava
A20: 20 Guipúzcoa
A21: 48 Vizcaya
A22: PAIS VASCO
A24: 31 NAVARRA | C24: 449 | D24: 1285 | E24: 1239 | F24: 96.42023346 | H24: 1.916 | I24: 4.25 | J24: 4.47 | K24: 105.1764706
A26: 26 LA RIOJA | C26: 21 | E26: 10 | H26: 0.023 | J26: 0.032
A28: 22 Huesca | C28: 1594 | D28: 1546 | E28: 1208 | H28: 4.758 | I28: 5.11 | J28: 3.02
A29: 44 Teruel | C29: 633 | D29: 692 | E29: 720 | H29: 0.528 | I29: 0.54 | J29: 1.323
A30: 50 Zaragoza | C30: 37544 | D30: 46287 | E30: 45438 | H30: 95.869 | I30: 102.18 | J30: 133.659
A31: ARAGÓN | C31: 39771 | D31: 48525 | E31: 47366 | F31: 97.61154044 | H31: 101.155 | I31: 107.82 | J31: 138.002 | K31: 127.9929512
A33: 8 Barcelona | C33: 8 | D33: 11 | E33: 38 | H33: 0.008 | I33: 0.03 | J33: 0.188
A34: 17 Girona | C34: 23 | D34: 20 | E34: 29 | H34: 0.051 | I34: 0.05 | J34: 0.12
A35: 25 Lleida | C35: 166 | D35: 58 | E35: 41 | H35: 0.288 | I35: 0.2 | J35: 0.227
A36: 43 Tarragona | C36: 6 | D36: 8 | E36: 16 | H36: 0.003 | I36: 0.01 | J36: 0.042
A37: CATALUÑA | C37: 203 | D37: 97 | E37: 124 | F37: 127.8350515 | H37: 0.35 | I37: 0.28 | J37: 0.577 | K37: 206.0714286
A39: 7 BALEARES | C39: 8 | D39: 52 | E39: 50 | F39: 96.15384615 | H39: 0.015 | I39: 0.07 | J39: 0.07 | K39: 100
A41: 5 Ávila | C41: 13 | D41: 17 | E41: 33 | H41: 0.012 | I41: 0.02 | J41: 0.096
A42: 9 Burgos | C42: 368 | D42: 446 | E42: 361 | H42: 1.074 | I42: 2.15 | J42: 1.619
A43: 24 León | C43: 27 | D43: 11 | E43: 25 | H43: 0.122 | I43: 0.06 | J43: 0.141
A44: 34 Palencia | C44: 93 | D44: 30 | E44: 20.15 | H44: 0.233 | I44: 0.12 | J44: 0.1
A45: 37 Salamanca | C45: 61 | D45: 55 | E45: 37 | H45: 0.151 | I45: 0.18 | J45: 0.151
A46: 40 Segovia | C46: 56 | D46: 61 | E46: 43 | H46: 0.091 | I46: 0.17 | J46: 0.138
A47: 42 Soria | C47: 3 | D47: 38 | E47: 1 | H47: 0.002 | I47: 0.15 | J47: 0.003
A48: 47 Valladolid | C48: 296 | D48: 205 | E48: 88 | H48: 0.895 | I48: 1.02 | J48: 0.489
A49: 49 Zamora | C49: 56 | D49: 39 | E49: 47 | H49: 0.159 | I49: 0.13 | J49: 0.139
A50: CASTILLA Y LEÓN | C50: 973 | D50: 902 | E50: 655.15 | F50: 72.63303769 | H50: 2.739 | I50: 3.98 | J50: 2.876 | K50: 72.26130653
A52: 28 MADRID | C52: 291 | D52: 207 | E52: 99 | F52: 47.82608696 | H52: 0.441 | I52: 0.62 | J52: 0.479 | K52: 77.25806452
A54: 2 Albacete | C54: 2149 | D54: 1656 | E54: 781 | H54: 14.49 | I54: 10.46 | J54: 5.06
A55: 13 Ciudad Real | C55: 393 | D55: 214 | E55: 190 | H55: 0.835 | I55: 0.64 | J55: 0.651
A56: 16 Cuenca | C56: 376 | D56: 377 | E56: 446 | H56: 0.624 | I56: 1.1 | J56: 1.329
A57: 19 Guadalajara | C57: 209 | D57: 206 | E57: 206 | H57: 0.455 | I57: 0.39 | J57: 0.706
A58: 45 Toledo | C58: 1340 | D58: 992 | E58: 1054 | H58: 1.042 | I58: 2.41 | J58: 4.069
A59: CASTILLA-MANCHA | C59: 4467 | D59: 3445 | E59: 2677 | F59: 77.70682148 | H59: 17.446 | I59: 15 | J59: 11.815 | K59: 78.76666667
A61: 3 Alicante | C61: 124 | D61: 105 | E61: 103 | H61: 0.209 | I61: 0.1 | J61: 0.233
A62: 12 Castellón | C62: 8 | D62: 30 | E62: 30 | H62: 0.013 | J62: 0.059
A63: 46 Valencia | C63: 28 | D63: 13 | E63: 58 | H63: 0.027 | I63: 0.02 | J63: 0.153
A64: C. VALENCIANA | C64: 160 | D64: 148 | E64: 191 | F64: 129.0540541 | H64: 0.249 | I64: 0.12 | J64: 0.445 | K64: 370.8333333
A66: 30 R. DE MURCIA | C66: 215 | D66: 177 | E66: 177 | F66: 100 | H66: 0.157 | I66: 0.33 | J66: 0.274 | K66: 83.03030303
A68: 6 Badajoz | C68: 3389 | D68: 3079 | E68: 3584 | H68: 5.652 | I68: 9.37 | J68: 13.799
A69: 10 Cáceres | C69: 223 | D69: 190 | E69: 17 | H69: 0.24 | I69: 0.32 | J69: 0.056
A70: EXTREMADURA | C70: 3612 | D70: 3269 | E70: 3601 | F70: 110.156011 | H70: 5.892 | I70: 9.69 | J70: 13.855 | K70: 142.9824561
A72: 4 Almería | C72: 18 | E72: 33 | H72: 0.009 | J72: 0.061
A73: 11 Cádiz | C73: 43727 | D73: 45799 | E73: 36097.76 | H73: 73.635 | I73: 143.51 | J73: 109.883
A74: 14 Córdoba | C74: 39860 | D74: 36938 | E74: 34150 | H74: 69.682 | I74: 129.28 | J74: 102.45
A75: 18 Granada | C75: 2178 | D75: 1522 | E75: 1989 | H75: 2.954 | I75: 4.98 | J75: 6.175
A76: 21 Huelva | C76: 10022 | D76: 9160 | E76: 9590 | H76: 16.72 | I76: 32.58 | J76: 34.524
A77: 23 Jaén | C77: 4523 | D77: 4968 | E77: 4697 | H77: 4.24 | I77: 17.24 | J77: 15.992
A78: 29 Málaga | C78: 9912 | D78: 10206 | E78: 10404 | H78: 12.238 | I78: 28.58 | J78: 33.774
A79: 41 Sevilla | C79: 76277 | D79: 66090 | E79: 59820 | H79: 108.526 | I79: 229.75 | J79: 183.092
A80: ANDALUCÍA | C80: 186517 | D80: 174683 | E80: 156780.76 | F80: 89.7515843 | H80: 288.004 | I80: 585.92 | J80: 485.951 | K80: 82.93811442
A82: 35 Palmas (Las)
A83: 38 S. C. Tenerife
A84: CANARIAS
A87: ESPAÑA | C87: 236927 | D87: 233029 | E87: 213078.08 | F87: 91.43843899 | H87: 418.989 | I87: 728.62 | J87: 659.078 | K87: 90.4556559
A90: (*)Tipo de Superficie de mes/año solicitado

Sheet Tri8ndo-SRT
A1: AVANCES DE SUPERFICIE Y PRODUCCIÓN
A2: TRIGO SEMIDURO Y BLANDO S/R/T | K2: 2025 JUNIO
A3: SUPERFICIE COSECHADA(*)
A4: PROVINCIAS | B4: SUPERFICIES (HA) | E4: SUPERFICIES (HA) | H4: SUPERFICIES (HA) | L4: PRODUCCIONES (1000 TM) | O4: PRODUCCIONES (1000 TM) | R4: PRODUCCIONES (1000 TM)
A5: Y | B5: SECANO | E5: REGADIO | H5: TOTAL | L5: SECANO | O5: REGADIO | R5: TOTAL
A6: CC-AA | B6: =J6-2 -> 2023 | C6: =J6-1 -> 2024 | D6: =J6 -> 2025 | E6: =J6-2 -> 2023 | F6: =J6-1 -> 2024 | G6: =J6 -> 2025 | H6: =J6-2 -> 2023 | I6: =J6-1 -> 2024 | J6: 2025 | L6: =T6-2 -> 2023 | M6: =T6-1 -> 2024 | N6: =T6 -> 2025 | O6: =T6-2 -> 2023 | P6: =T6-1 -> 2024 | Q6: =T6 -> 2025 | R6: =T6-2 -> 2023 | S6: =T6-1 -> 2024 | T6: 2025
B7: PROVISIONAL | C7: PROVISIONAL | D7: PROVISIONAL | E7: PROVISIONAL | F7: PROVISIONAL | G7: AVANCE | H7: PROVISIONAL | I7: PROVISIONAL | J7: AVANCE | L7: PROVISIONAL | M7: PROVISIONAL | N7: AVANCE | O7: PROVISIONAL | P7: PROVISIONAL | Q7: AVANCE | R7: PROVISIONAL | S7: PROVISIONAL | T7: AVANCE
A10: 15 Coruña (La) | B10: 1635 | C10: 1737 | D10: 2127.72 | H10: 1635 | I10: 1737 | J10: 2127.72 | L10: 4.97 | M10: 4 | R10: 4.97 | S10: 4
A11: 27 Lugo | B11: 3204 | C11: 3054 | D11: 3165.19 | H11: 3204 | I11: 3054 | J11: 3165.19 | L11: 7.946 | M11: 6.72 | R11: 7.946 | S11: 6.72
A12: 32 Orense | B12: 8321 | C12: 8532 | D12: 5930.25 | H12: 8321 | I12: 8532 | J12: 5930.25 | L12: 25.795 | M12: 25.26 | N12: 19.738 | R12: 25.795 | S12: 25.26 | T12: 19.738
A13: 36 Pontevedra | B13: 310 | C13: 285 | D13: 377.03 | H13: 310 | I13: 285 | J13: 377.03 | L13: 0.682 | M13: 0.64 | N13: 1.344 | R13: 0.682 | S13: 0.64 | T13: 1.344
A14: GALICIA | B14: 13470 | C14: 13608 | D14: 11600.19 | H14: 13470 | I14: 13608 | J14: 11600.19 | L14: 39.393 | M14: 36.61 | N14: 21.082 | R14: 39.393 | S14: 36.61 | T14: 21.082
A16: 33 P. DE ASTURIAS | D16: 60 | J16: 60 | N16: 0.108 | T16: 0.108
A18: 39 CANTABRIA | B18: 692 | C18: 733 | D18: 742 | E18: 142 | F18: 115 | G18: 120 | H18: 834 | I18: 848 | J18: 862 | L18: 1.522 | M18: 1.61 | N18: 1.706 | O18: 0.639 | P18: 0.52 | Q18: 0.54 | R18: 2.161 | S18: 2.13 | T18: 2.246
A20: 01 Alava | B20: 19290 | C20: 19717 | D20: 17819 | H20: 19290 | I20: 19717 | J20: 17819 | L20: 106.095 | M20: 138.02 | N20: 106.914 | R20: 106.095 | S20: 138.02 | T20: 106.914
A21: 20 Guipúzcoa | B21: 1 | C21: 1 | H21: 1 | I21: 1 | L21: 0.005 | M21: 0.01 | R21: 0.005 | S21: 0.01
A22: 48 Vizcaya
A23: PAIS VASCO | B23: 19291 | C23: 19718 | D23: 17819 | H23: 19291 | I23: 19718 | J23: 17819 | L23: 106.1 | M23: 138.03 | N23: 106.914 | R23: 106.1 | S23: 138.03 | T23: 106.914
A25: 31 NAVARRA | B25: 59129 | C25: 61844 | D25: 66542 | E25: 15701 | F25: 14641 | G25: 13373 | H25: 74830 | I25: 76485 | J25: 79915 | L25: 231.135 | M25: 324.19 | N25: 327.748 | O25: 87.69 | P25: 104.57 | Q25: 88.287 | R25: 318.825 | S25: 428.75 | T25: 416.035
A27: 26 LA RIOJA | B27: 16153 | C27: 16289 | D27: 16700 | E27: 8295 | F27: 7444 | G27: 7250 | H27: 24448 | I27: 23733 | J27: 23950 | L27: 37.927 | M27: 46.72 | N27: 90.6 | O27: 40.646 | P27: 32.01 | Q27: 40.75 | R27: 78.573 | S27: 78.73 | T27: 131.35
A29: 22 Huesca | B29: 41171 | C29: 56113 | D29: 58409 | E29: 18897 | F29: 23357 | G29: 19589 | H29: 60068 | I29: 79470 | J29: 77998 | L29: 73.49 | M29: 208.57 | N29: 146.022 | O29: 96.337 | P29: 138.65 | Q29: 48.972 | R29: 169.817 | S29: 347.22 | T29: 194.995
A30: 44 Teruel | B30: 20150 | C30: 30001 | D30: 33658 | E30: 3808 | F30: 3980 | G30: 3315 | H30: 23958 | I30: 33981 | J30: 36973 | L30: 16.12 | M30: 30.06 | N30: 100.974 | O30: 11.9 | P30: 12.15 | Q30: 12.729 | R30: 28.02 | S30: 42.21 | T30: 113.703
A31: 50 Zaragoza | B31: 24326 | C31: 42016 | D31: 43683 | E31: 16947 | F31: 18252 | G31: 17460 | H31: 41273 | I31: 60268 | J31: 61143 | L31: 18.609 | M31: 59.75 | N31: 167.653 | O31: 86.396 | P31: 93.05 | Q31: 88.743 | R31: 105.003 | S31: 152.78 | T31: 256.396
A32: ARAGON | B32: 85647 | C32: 128130 | D32: 135750 | E32: 39652 | F32: 45589 | G32: 40364 | H32: 125299 | I32: 173719 | J32: 176114 | L32: 108.219 | M32: 298.38 | N32: 414.649 | O32: 194.633 | P32: 243.84 | Q32: 150.444 | R32: 302.84 | S32: 542.2 | T32: 565.094
A34: 08 Barcelona | B34: 13806 | C34: 21419 | D34: 20506 | E34: 720 | F34: 370 | G34: 501 | H34: 14526 | I34: 21789 | J34: 21007 | L34: 14.165 | M34: 48.24 | N34: 97.94 | O34: 3.891 | P34: 2.02 | Q34: 2.957 | R34: 18.056 | S34: 50.25 | T34: 100.897
A35: 17 Girona | B35: 8926 | C35: 10042 | D35: 9080 | E35: 2840 | F35: 2681 | G35: 4158 | H35: 11766 | I35: 12723 | J35: 13238 | L35: 20.146 | M35: 23.88 | N35: 39.94 | O35: 8.608 | P35: 9.95 | Q35: 19.94 | R35: 28.754 | S35: 33.83 | T35: 59.88
A36: 25 Lleida | B36: 31173 | C36: 41588 | D36: 35108 | E36: 18553 | F36: 20718 | G36: 16161 | H36: 49726 | I36: 62306 | J36: 51269 | L36: 18.953 | M36: 83.22 | N36: 133.41 | O36: 85.919 | P36: 123.29 | Q36: 126.056 | R36: 104.872 | S36: 206.51 | T36: 259.466
A37: 43 Tarragona | B37: 5875 | C37: 6821 | D37: 6654 | E37: 84 | F37: 55 | G37: 70 | H37: 5959 | I37: 6876 | J37: 6724 | L37: 7.45 | M37: 8.19 | N37: 28.972 | O37: 0.133 | P37: 0.12 | Q37: 0.336 | R37: 7.582 | S37: 8.31 | T37: 29.308
A38: CATALUÑA | B38: 59780 | C38: 79870 | D38: 71348 | E38: 22197 | F38: 23824 | G38: 20890 | H38: 81977 | I38: 103694 | J38: 92238 | L38: 60.714 | M38: 163.53 | N38: 300.262 | O38: 98.551 | P38: 135.38 | Q38: 149.289 | R38: 159.264 | S38: 298.9 | T38: 449.551
A40: 07 BALEARES | B40: 5616 | C40: 4925 | D40: 4900 | H40: 5616 | I40: 4925 | J40: 4900 | L40: 10.502 | M40: 6.85 | N40: 6.9 | R40: 10.501 | S40: 6.85 | T40: 6.9
A42: 05 Avila | B42: 26223 | C42: 28638 | D42: 32646 | E42: 2938 | F42: 2332 | G42: 3701 | H42: 29161 | I42: 30970 | J42: 36347 | L42: 23.915 | M42: 54.61 | N42: 101.529 | O42: 14.702 | P42: 8.37 | Q42: 16.711 | R42: 38.617 | S42: 62.98 | T42: 118.24
A43: 09 Burgos | B43: 179169 | C43: 179659 | D43: 190117 | E43: 6133 | F43: 5824 | G43: 6464 | H43: 185302 | I43: 185483 | J43: 196581 | L43: 472.648 | M43: 963.69 | N43: 977.118 | O43: 31.15 | P43: 41.56 | Q43: 45.756 | R43: 503.797 | S43: 1005.25 | T43: 1022.874
A44: 24 León | B44: 29545 | C44: 24021 | D44: 34956 | E44: 15861 | F44: 12185 | G44: 17316 | H44: 45406 | I44: 36206 | J44: 52272 | L44: 36.193 | M44: 83.57 | N44: 122.346 | O44: 102.859 | P44: 79.78 | Q44: 112.554 | R44: 139.051 | S44: 163.34 | T44: 234.9
A45: 34 Palencia | B45: 95379 | C45: 97592 | D45: 111451.5 | E45: 21066 | F45: 22661 | G45: 23088.74 | H45: 116445 | I45: 120253 | J45: 134540.25 | L45: 241.213 | M45: 434.68 | N45: 537.002 | O45: 109.543 | P45: 141.36 | Q45: 141.025 | R45: 350.757 | S45: 576.03 | T45: 678.027
A46: 37 Salamanca | B46: 51527 | C46: 61003 | D46: 62013 | E46: 5948 | F46: 7311 | G46: 7977 | H46: 57475 | I46: 68314 | J46: 69990 | L46: 118.512 | M46: 207.41 | N46: 248.052 | O46: 35.688 | P46: 42.4 | Q46: 46.267 | R46: 154.2 | S46: 249.81 | T46: 294.319
A47: 40 Segovia | B47: 60607 | C47: 60157 | D47: 76823 | E47: 2997 | F47: 2873 | G47: 3748 | H47: 63604 | I47: 63030 | J47: 80571 | L47: 94.911 | M47: 169.1 | N47: 272.184 | O47: 8.991 | P47: 14.33 | Q47: 18.673 | R47: 103.902 | S47: 183.43 | T47: 290.857
A48: 42 Soria | B48: 88416 | C48: 83843 | D48: 100469 | E48: 4210 | F48: 3835 | G48: 4877 | H48: 92626 | I48: 87678 | J48: 105346 | L48: 84.703 | M48: 319.19 | N48: 362.492 | O48: 13.051 | P48: 19.18 | Q48: 25.36 | R48: 97.754 | S48: 338.37 | T48: 387.852
A49: 47 Valladolid | B49: 89124 | C49: 101383 | D49: 102219 | E49: 17356 | F49: 20125 | G49: 21552 | H49: 106480 | I49: 121508 | J49: 123771 | L49: 142.331 | M49: 414.56 | N49: 473.289 | O49: 85.496 | P49: 134.38 | Q49: 147.603 | R49: 227.827 | S49: 548.93 | T49: 620.892
A50: 49 Zamora | B50: 46627 | C50: 48737 | D50: 60518 | E50: 9015 | F50: 9020 | G50: 9534 | H50: 55642 | I50: 57757 | J50: 70052 | L50: 74.277 | M50: 160.25 | N50: 237.654 | O50: 40.036 | P50: 46.32 | Q50: 66.738 | R50: 114.312 | S50: 206.57 | T50: 304.392
A51: CASTILLA Y LEON | B51: 666617 | C51: 685033 | D51: 771212.5 | E51: 85524 | F51: 86166 | G51: 98257.74 | H51: 752141 | I51: 771199 | J51: 869470.25 | L51: 1288.703 | M51: 2807.05 | N51: 3331.666 | O51: 441.516 | P51: 527.66 | Q51: 620.687 | R51: 1730.217 | S51: 3334.71 | T51: 3952.353
A53: 28 MADRID | B53: 24702 | C53: 17867 | D53: 13794 | E53: 2873 | F53: 1993 | G53: 2053 | H53: 27575 | I53: 19860 | J53: 15847 | L53: 33.694 | M53: 51.98 | N53: 45.3 | O53: 12.748 | P53: 9.07 | Q53: 8.138 | R53: 46.441 | S53: 61.05 | T53: 53.438
A55: 02 Albacete | B55: 29300 | C55: 40500 | D55: 41397 | E55: 15185 | F55: 12530 | G55: 14153 | H55: 44485 | I55: 53030 | J55: 55550 | L55: 9.523 | M55: 41.92 | N55: 94.187 | O55: 107.586 | P55: 90.57 | Q55: 108.306 | R55: 117.108 | S55: 132.48 | T55: 202.493
A56: 13 Ciudad Real | B56: 35689 | C56: 41136 | D56: 39650 | E56: 9229 | F56: 7654 | G56: 8310 | H56: 44918 | I56: 48790 | J56: 47960 | L56: 17.845 | M56: 90.38 | N56: 134.81 | O56: 26.164 | P56: 39.8 | Q56: 45.705 | R56: 44.009 | S56: 130.18 | T56: 180.515
A57: 16 Cuenca | B57: 37676 | C57: 45373 | D57: 57309 | E57: 2670 | F57: 2989 | G57: 3320 | H57: 40346 | I57: 48362 | J57: 60629 | L57: 30.141 | M57: 131.58 | N57: 154.733 | O57: 10.68 | P57: 15.54 | Q57: 16.599 | R57: 40.821 | S57: 147.13 | T57: 171.332
A58: 19 Guadalajara | B58: 67934 | C58: 65772 | D58: 65772 | E58: 1857 | F58: 2011 | G58: 2011 | H58: 69791 | I58: 67783 | J58: 67783 | L58: 122.281 | M58: 230.2 | N58: 249.934 | O58: 9.285 | P58: 12.07 | Q58: 11.061 | R58: 131.566 | S58: 242.27 | T58: 260.995
A59: 45 Toledo | B59: 46399 | C59: 47675 | D59: 54305 | E59: 5135 | F59: 3955 | G59: 5574 | H59: 51534 | I59: 51630 | J59: 59879 | L59: 17.632 | M59: 119.19 | N59: 190.068 | O59: 24.135 | P59: 18.19 | Q59: 26.755 | R59: 41.766 | S59: 137.38 | T59: 216.823
A60: CASTILLA-MANCHA | B60: 216998 | C60: 240456 | D60: 258433 | E60: 34076 | F60: 29139 | G60: 33368 | H60: 251074 | I60: 269595 | J60: 291801 | L60: 197.422 | M60: 613.27 | N60: 823.732 | O60: 177.85 | P60: 176.17 | Q60: 208.426 | R60: 375.27 | S60: 789.43 | T60: 1032.158
A62: 03 Alicante | B62: 955 | C62: 672 | D62: 1093 | E62: 333 | F62: 311 | G62: 365 | H62: 1288 | I62: 983 | J62: 1458 | L62: 0.277 | M62: 0.19 | N62: 1.963 | O62: 1.012 | P62: 0.65 | Q62: 1.976 | R62: 1.289 | S62: 0.84 | T62: 3.939
A63: 12 Castellón | B63: 336 | C63: 694 | D63: 694 | E63: 23 | F63: 21 | G63: 21 | H63: 359 | I63: 715 | J63: 715 | L63: 0.534 | M63: 0.11 | N63: 1.485 | O63: 0.11 | P63: 0.1 | Q63: 0.101 | R63: 0.645 | S63: 0.21 | T63: 1.586
A64: 46 Valencia | B64: 1038 | C64: 1072 | D64: 2337 | E64: 246 | F64: 212 | G64: 244 | H64: 1284 | I64: 1284 | J64: 2581 | L64: 0.83 | M64: 1.06 | N64: 6.11 | O64: 0.984 | P64: 0.98 | Q64: 1.069 | R64: 1.814 | S64: 2.04 | T64: 7.179
A65: C. VALENCIANA | B65: 2329 | C65: 2438 | D65: 4124 | E65: 602 | F65: 544 | G65: 630 | H65: 2931 | I65: 2982 | J65: 4754 | L65: 1.641 | M65: 1.35 | N65: 9.558 | O65: 2.106 | P65: 1.73 | Q65: 3.146 | R65: 3.748 | S65: 3.08 | T65: 12.704
A67: 30 R. DE MURCIA | B67: 5600 | C67: 5936 | D67: 6324 | E67: 1210 | F67: 599 | G67: 526 | H67: 6810 | I67: 6535 | J67: 6850 | L67: 2.386 | M67: 2.43 | N67: 0.41 | O67: 4.183 | P67: 2.09 | Q67: 3.49 | R67: 6.569 | S67: 4.53 | T67: 3.9
A69: 06 Badajoz | B69: 46418 | C69: 62899 | D69: 62097 | E69: 18733 | F69: 10618 | G69: 10572 | H69: 65151 | I69: 73517 | J69: 72669 | L69: 51.106 | M69: 199.2 | N69: 168.159 | O69: 53.782 | P69: 43.71 | Q69: 37.218 | R69: 104.889 | S69: 242.92 | T69: 205.377
A70: 10 Cáceres | B70: 1429 | C70: 2306 | D70: 1830 | E70: 3757 | F70: 1215 | G70: 1529 | H70: 5186 | I70: 3521 | J70: 3359 | L70: 1.136 | M70: 4.95 | N70: 3.883 | O70: 7.788 | P70: 3.39 | Q70: 4.218 | R70: 8.924 | S70: 8.35 | T70: 8.101
A71: EXTREMADURA | B71: 47847 | C71: 65205 | D71: 63927 | E71: 22490 | F71: 11833 | G71: 12101 | H71: 70337 | I71: 77038 | J71: 76028 | L71: 52.242 | M71: 204.15 | N71: 172.042 | O71: 61.57 | P71: 47.11 | Q71: 41.436 | R71: 113.813 | S71: 251.26 | T71: 213.478
A73: 04 Almería | B73: 200 | C73: 52 | D73: 666 | E73: 91 | F73: 65 | G73: 11 | H73: 291 | I73: 117 | J73: 677 | L73: 0.016 | M73: 0.02 | N73: 1.732 | O73: 0.261 | P73: 0.08 | Q73: 0.035 | R73: 0.277 | S73: 0.1 | T73: 1.767
A74: 11 Cádiz | B74: 10300 | C74: 8973 | D74: 10695.35 | E74: 1260 | F74: 1627 | G74: 1336.97 | H74: 11560 | I74: 10600 | J74: 12032.32 | L74: 12.618 | M74: 15.86 | N74: 19.251 | O74: 1.657 | P74: 6.46 | Q74: 2.674 | R74: 14.274 | S74: 22.31 | T74: 21.925
A75: 14 Córdoba | B75: 20898 | C75: 21160 | D75: 20330 | E75: 1948 | F75: 2078 | G75: 2390 | H75: 22846 | I75: 23238 | J75: 22720 | L75: 20.898 | M75: 79.35 | N75: 60.99 | O75: 7.208 | P75: 7.79 | Q75: 7.17 | R75: 28.106 | S75: 87.14 | T75: 68.16
A76: 18 Granada | B76: 7312 | C76: 4442 | D76: 7510 | E76: 1094 | F76: 743 | G76: 847 | H76: 8406 | I76: 5185 | J76: 8357 | L76: 3.298 | M76: 9.8 | N76: 7.976 | O76: 2.141 | P76: 2.5 | Q76: 4.039 | R76: 5.439 | S76: 12.31 | T76: 12.015
A77: 21 Huelva | B77: 3650 | C77: 4160 | D77: 4105 | E77: 500 | F77: 340 | G77: 275 | H77: 4150 | I77: 4500 | J77: 4380 | L77: 6.57 | M77: 15.39 | N77: 15.023 | O77: 1.08 | P77: 1.33 | Q77: 1.183 | R77: 7.65 | S77: 16.72 | T77: 16.206
A78: 23 Jaén | B78: 1822 | C78: 2302 | D78: 1969 | E78: 150 | F78: 202 | G78: 156 | H78: 1972 | I78: 2504 | J78: 2125 | L78: 1.458 | M78: 6.91 | N78: 5.513 | O78: 0.196 | P78: 0.81 | Q78: 0.562 | R78: 1.653 | S78: 7.71 | T78: 6.075
A79: 29 Málaga | B79: 3289 | C79: 4459 | D79: 5432 | E79: 377 | F79: 313 | G79: 389 | H79: 3666 | I79: 4772 | J79: 5821 | L79: 2.631 | M79: 9.79 | N79: 14.123 | O79: 1.282 | P79: 1.33 | Q79: 1.906 | R79: 3.913 | S79: 11.12 | T79: 16.029
A80: 41 Sevilla | B80: 50105 | C80: 52650 | D80: 54310 | E80: 12777 | F80: 10820 | G80: 9310 | H80: 62882 | I80: 63470 | J80: 63620 | L80: 70.147 | M80: 189.54 | N80: 190.085 | O80: 40.886 | P80: 45.44 | Q80: 36.309 | R80: 111.033 | S80: 234.98 | T80: 226.394
A81: ANDALUCIA | B81: 97576 | C81: 98198 | D81: 105017.35 | E81: 18197 | F81: 16188 | G81: 14714.97 | H81: 115773 | I81: 114386 | J81: 119732.32 | L81: 117.636 | M81: 326.65 | N81: 314.693 | O81: 54.711 | P81: 65.75 | Q81: 53.878 | R81: 172.345 | S81: 392.4 | T81: 368.571
A83: 35 Palmas (Las) | B83: 93 | C83: 88 | D83: 88 | F83: 1 | G83: 1 | H83: 93 | I83: 89 | J83: 89 | L83: 0.093 | M83: 0.09 | N83: 0.088 | Q83: 0.001 | R83: 0.093 | S83: 0.09 | T83: 0.089
A84: 38 S. C. Tenerife | B84: 113 | C84: 114 | D84: 114 | E84: 24 | F84: 23 | G84: 23 | H84: 137 | I84: 137 | J84: 137 | L84: 0.109 | M84: 0.11 | N84: 0.108 | O84: 0.036 | P84: 0.04 | Q84: 0.035 | R84: 0.145 | S84: 0.14 | T84: 0.143
A85: CANARIAS | B85: 206 | C85: 202 | D85: 202 | E85: 24 | F85: 24 | G85: 24 | H85: 230 | I85: 226 | J85: 226 | L85: 0.202 | M85: 0.2 | N85: 0.196 | O85: 0.036 | P85: 0.04 | Q85: 0.036 | R85: 0.238 | S85: 0.23 | T85: 0.232
A88: ESPAÑA | B88: 2643306 | C88: 1440452 | D88: 1548495.04 | E88: 250983 | F88: 238099 | G88: 243671.71 | H88: 1572636 | I88: 1678551 | J88: 1792166.76 | L88: 2289.438 | M88: 5022.99 | N88: 5967.566 | O88: 1176.879 | P88: 1345.93 | Q88: 1368.547 | R88: 3466.298 | S88: 6368.89 | T88: 7336.114
B96: 221 | C96: 231 | E96: 221 | F96: 231 | H96: 221 | I96: 231

Sheet Tri8ndo
A1: AVANCES DE SUPERFICIE Y PRODUCCIÓN
A2: TRIGO SEMIDURO Y BLANDO | J2: 2025 JUNIO
A3: SUPERFICIE COSECHADA(*)
A4: PROVINCIAS | C4: SUPERFICIES (HA) | H4: PRODUCCIONES (1000 TM)
A5: Y
A6: CC-AA | C6: =E6-2 -> 2023 | D6: =E6-1 -> 2024 | E6: 2025 | F6: =E6 -> 2025 | H6: =J6-2 -> 2023 | I6: =J6-1 -> 2024 | J6: 2025 | K6: =J6 -> 2025
C7: PROVISIONAL | D7: PROVISIONAL | E7: AVANCE | F7: =CONCATENATE(D6,"=100") -> 2024=100 | H7: PROVISIONAL | I7: PROVISIONAL | J7: AVANCE | K7: =CONCATENATE(I6,"=100") -> 2024=100
A9: 15 A Coruña | C9: 1635 | D9: 1737 | E9: 2127.72 | H9: 4.97 | I9: 4
A10: 27 Lugo | C10: 3204 | D10: 3054 | E10: 3165.19 | H10: 7.946 | I10: 6.72
A11: 32 Ourense | C11: 8321 | D11: 8532 | E11: 5930.25 | H11: 25.795 | I11: 25.26 | J11: 19.738
A12: 36 Pontevedra | C12: 310 | D12: 285 | E12: 377.03 | H12: 0.682 | I12: 0.64 | J12: 1.344
A13: GALICIA | C13: 13470 | D13: 13608 | E13: 11600.19 | F13: 85.24537037 | H13: 39.393 | I13: 36.61 | J13: 21.082 | K13: 57.58535919
A15: 33 P. DE ASTURIAS | E15: 60 | J15: 0.108
A17: 39 CANTABRIA | C17: 834 | D17: 848 | E17: 862 | F17: 101.6509434 | H17: 2.161 | I17: 2.13 | J17: 2.246 | K17: 105.4460094
A19: 1 Álava | C19: 19290 | D19: 19717 | E19: 17819 | H19: 106.095 | I19: 138.02 | J19: 106.914
A20: 20 Guipúzcoa | C20: 1 | D20: 1 | H20: 0.005 | I20: 0.01
A21: 48 Vizcaya
A22: PAIS VASCO | C22: 19291 | D22: 19718 | E22: 17819 | F22: 90.3692058 | H22: 106.1 | I22: 138.03 | J22: 106.914 | K22: 77.45707455
A24: 31 NAVARRA | C24: 74830 | D24: 76485 | E24: 79915 | F24: 104.4845395 | H24: 318.825 | I24: 428.75 | J24: 416.035 | K24: 97.03440233
A26: 26 LA RIOJA | C26: 24448 | D26: 23733 | E26: 23950 | F26: 100.9143387 | H26: 78.573 | I26: 78.73 | J26: 131.35 | K26: 166.8360218
A28: 22 Huesca | C28: 60068 | D28: 79470 | E28: 77998 | H28: 169.817 | I28: 347.22 | J28: 194.995
A29: 44 Teruel | C29: 23958 | D29: 33981 | E29: 36973 | H29: 28.02 | I29: 42.21 | J29: 113.703
A30: 50 Zaragoza | C30: 41273 | D30: 60268 | E30: 61143 | H30: 105.003 | I30: 152.78 | J30: 256.396
A31: ARAGÓN | C31: 125299 | D31: 173719 | E31: 176114 | F31: 101.3786632 | H31: 302.84 | I31: 542.2 | J31: 565.094 | K31: 104.2224271
A33: 8 Barcelona | C33: 14526 | D33: 21789 | E33: 21007 | H33: 18.056 | I33: 50.25 | J33: 100.897
A34: 17 Girona | C34: 11766 | D34: 12723 | E34: 13238 | H34: 28.754 | I34: 33.83 | J34: 59.88
A35: 25 Lleida | C35: 49726 | D35: 62306 | E35: 51269 | H35: 104.872 | I35: 206.51 | J35: 259.466
A36: 43 Tarragona | C36: 5959 | D36: 6876 | E36: 6724 | H36: 7.582 | I36: 8.31 | J36: 29.308
A37: CATALUÑA | C37: 81977 | D37: 103694 | E37: 92238 | F37: 88.95210909 | H37: 159.264 | I37: 298.9 | J37: 449.551 | K37: 150.4018066
A39: 7 BALEARES | C39: 5616 | D39: 4925 | E39: 4900 | F39: 99.49238579 | H39: 10.501 | I39: 6.85 | J39: 6.9 | K39: 100.729927
A41: 5 Ávila | C41: 29161 | D41: 30970 | E41: 36347 | H41: 38.617 | I41: 62.98 | J41: 118.24
A42: 9 Burgos | C42: 185302 | D42: 185483 | E42: 196581 | H42: 503.797 | I42: 1005.25 | J42: 1022.874
A43: 24 León | C43: 45406 | D43: 36206 | E43: 52272 | H43: 139.051 | I43: 163.34 | J43: 234.9
A44: 34 Palencia | C44: 116445 | D44: 120253 | E44: 134540.25 | H44: 350.757 | I44: 576.03 | J44: 678.027
A45: 37 Salamanca | C45: 57475 | D45: 68314 | E45: 69990 | H45: 154.2 | I45: 249.81 | J45: 294.319
A46: 40 Segovia | C46: 63604 | D46: 63030 | E46: 80571 | H46: 103.902 | I46: 183.43 | J46: 290.857
A47: 42 Soria | C47: 92626 | D47: 87678 | E47: 105346 | H47: 97.754 | I47: 338.37 | J47: 387.852
A48: 47 Valladolid | C48: 106480 | D48: 121508 | E48: 123771 | H48: 227.827 | I48: 548.93 | J48: 620.892
A49: 49 Zamora | C49: 55642 | D49: 57757 | E49: 70052 | H49: 114.312 | I49: 206.57 | J49: 304.392
A50: CASTILLA Y LEÓN | C50: 752141 | D50: 771199 | E50: 869470.25 | F50: 112.7426579 | H50: 1730.217 | I50: 3334.71 | J50: 3952.353 | K50: 118.5216406
A52: 28 MADRID | C52: 27575 | D52: 19860 | E52: 15847 | F52: 79.79355488 | H52: 46.441 | I52: 61.05 | J52: 53.438 | K52: 87.53153153
A54: 2 Albacete | C54: 44485 | D54: 53030 | E54: 55550 | H54: 117.108 | I54: 132.48 | J54: 202.493
A55: 13 Ciudad Real | C55: 44918 | D55: 48790 | E55: 47960 | H55: 44.009 | I55: 130.18 | J55: 180.515
A56: 16 Cuenca | C56: 40346 | D56: 48362 | E56: 60629 | H56: 40.821 | I56: 147.13 | J56: 171.332
A57: 19 Guadalajara | C57: 69791 | D57: 67783 | E57: 67783 | H57: 131.566 | I57: 242.27 | J57: 260.995
A58: 45 Toledo | C58: 51534 | D58: 51630 | E58: 59879 | H58: 41.766 | I58: 137.38 | J58: 216.823
A59: CASTILLA-MANCHA | C59: 251074 | D59: 269595 | E59: 291801 | F59: 108.2367996 | H59: 375.27 | I59: 789.43 | J59: 1032.158 | K59: 130.747248
A61: 3 Alicante | C61: 1288 | D61: 983 | E61: 1458 | H61: 1.289 | I61: 0.84 | J61: 3.939
A62: 12 Castellón | C62: 359 | D62: 715 | E62: 715 | H62: 0.645 | I62: 0.21 | J62: 1.586
A63: 46 Valencia | C63: 1284 | D63: 1284 | E63: 2581 | H63: 1.814 | I63: 2.04 | J63: 7.179
A64: C. VALENCIANA | C64: 2931 | D64: 2982 | E64: 4754 | F64: 159.4232059 | H64: 3.748 | I64: 3.08 | J64: 12.704 | K64: 412.4675325
A66: 30 R. DE MURCIA | C66: 6810 | D66: 6535 | E66: 6850 | F66: 104.8201989 | H66: 6.569 | I66: 4.53 | J66: 3.9 | K66: 86.09271523
A68: 6 Badajoz | C68: 65151 | D68: 73517 | E68: 72669 | H68: 104.889 | I68: 242.92 | J68: 205.377
A69: 10 Cáceres | C69: 5186 | D69: 3521 | E69: 3359 | H69: 8.924 | I69: 8.35 | J69: 8.101
A70: EXTREMADURA | C70: 70337 | D70: 77038 | E70: 76028 | F70: 98.6889587 | H70: 113.813 | I70: 251.26 | J70: 213.478 | K70: 84.96298655
A72: 4 Almería | C72: 291 | D72: 117 | E72: 677 | H72: 0.277 | I72: 0.1 | J72: 1.767
A73: 11 Cádiz | C73: 11560 | D73: 10600 | E73: 12032.32 | H73: 14.274 | I73: 22.31 | J73: 21.925
A74: 14 Córdoba | C74: 22846 | D74: 23238 | E74: 22720 | H74: 28.106 | I74: 87.14 | J74: 68.16
A75: 18 Granada | C75: 8406 | D75: 5185 | E75: 8357 | H75: 5.439 | I75: 12.31 | J75: 12.015
A76: 21 Huelva | C76: 4150 | D76: 4500 | E76: 4380 | H76: 7.65 | I76: 16.72 | J76: 16.206
A77: 23 Jaén | C77: 1972 | D77: 2504 | E77: 2125 | H77: 1.653 | I77: 7.71 | J77: 6.075
A78: 29 Málaga | C78: 3666 | D78: 4772 | E78: 5821 | H78: 3.913 | I78: 11.12 | J78: 16.029
A79: 41 Sevilla | C79: 62882 | D79: 63470 | E79: 63620 | H79: 111.033 | I79: 234.98 | J79: 226.394
A80: ANDALUCÍA | C80: 115773 | D80: 114386 | E80: 119732.32 | F80: 104.6739286 | H80: 172.345 | I80: 392.4 | J80: 368.571 | K80: 93.92737003
A82: 35 Palmas (Las) | C82: 93 | D82: 89 | E82: 89 | H82: 0.093 | I82: 0.09 | J82: 0.089
A83: 38 S. C. Tenerife | C83: 137 | D83: 137 | E83: 137 | H83: 0.145 | I83: 0.14 | J83: 0.143
A84: CANARIAS | C84: 230 | D84: 226 | E84: 226 | F84: 100 | H84: 0.238 | I84: 0.23 | J84: 0.232 | K84: 100.8695652
A87: ESPAÑA | C87: 1572636 | D87: 1678551 | E87: 1792166.76 | F87: 106.7686808 | H87: 3466.298 | I87: 6368.89 | J87: 7336.114 | K87: 115.1866966
A90: (*)Tipo de Superficie de mes/año solicitado

Sheet Cen9eno-SRT
A1: AVANCES DE SUPERFICIE Y PRODUCCIÓN
A2: CENTENO S/R/T | K2: 2025 JUNIO
A3: SUPERFICIE COSECHADA(*)
A4: PROVINCIAS | B4: SUPERFICIES (HA) | E4: SUPERFICIES (HA) | H4: SUPERFICIES (HA) | L4: PRODUCCIONES (1000 TM) | O4: PRODUCCIONES (1000 TM) | R4: PRODUCCIONES (1000 TM)
A5: Y | B5: SECANO | E5: REGADIO | H5: TOTAL | L5: SECANO | O5: REGADIO | R5: TOTAL
A6: CC-AA | B6: =J6-2 -> 2023 | C6: =J6-1 -> 2024 | D6: =J6 -> 2025 | E6: =J6-2 -> 2023 | F6: =J6-1 -> 2024 | G6: =J6 -> 2025 | H6: =J6-2 -> 2023 | I6: =J6-1 -> 2024 | J6: 2025 | L6: =T6-2 -> 2023 | M6: =T6-1 -> 2024 | N6: =T6 -> 2025 | O6: =T6-2 -> 2023 | P6: =T6-1 -> 2024 | Q6: =T6 -> 2025 | R6: =T6-2 -> 2023 | S6: =T6-1 -> 2024 | T6: 2025
B7: PROVISIONAL | C7: PROVISIONAL | D7: PROVISIONAL | E7: PROVISIONAL | F7: PROVISIONAL | G7: AVANCE | H7: PROVISIONAL | I7: PROVISIONAL | J7: AVANCE | L7: PROVISIONAL | M7: PROVISIONAL | N7: AVANCE | O7: PROVISIONAL | P7: PROVISIONAL | Q7: AVANCE | R7: PROVISIONAL | S7: PROVISIONAL | T7: AVANCE
A10: 15 Coruña (La) | B10: 24 | C10: 112 | D10: 101.12 | H10: 24 | I10: 112 | J10: 101.12 | L10: 0.098 | M10: 0.37 | N10: 0.226 | R10: 0.098 | S10: 0.37 | T10: 0.226
A11: 27 Lugo | B11: 429 | C11: 417 | D11: 463.06 | H11: 429 | I11: 417 | J11: 463.06 | L11: 1.586 | M11: 1.42 | N11: 1.381 | R11: 1.587 | S11: 1.42 | T11: 1.381
A12: 32 Orense | B12: 3589 | C12: 3585 | D12: 2945.19 | H12: 3589 | I12: 3585 | J12: 2945.19 | L12: 12.526 | M12: 13.77 | R12: 12.526 | S12: 13.77
A13: 36 Pontevedra | B13: 30 | C13: 40 | D13: 15.24 | H13: 30 | I13: 40 | J13: 15.24 | L13: 0.098 | M13: 0.18 | N13: 0.056 | R13: 0.098 | S13: 0.18 | T13: 0.056
A14: GALICIA | B14: 4072 | C14: 4154 | D14: 3524.61 | H14: 4072 | I14: 4154 | J14: 3524.61 | L14: 14.308 | M14: 15.73 | N14: 1.663 | R14: 14.309 | S14: 15.73 | T14: 1.663
A16: 33 P. DE ASTURIAS
A18: 39 CANTABRIA | B18: 30 | C18: 30 | D18: 41 | H18: 30 | I18: 30 | J18: 41 | L18: 0.028 | M18: 0.03 | N18: 0.037 | R18: 0.028 | S18: 0.03 | T18: 0.037
A20: 01 Alava | B20: 318 | C20: 271 | D20: 248 | H20: 318 | I20: 271 | J20: 248 | L20: 1.526 | M20: 1.63 | N20: 1.24 | R20: 1.526 | S20: 1.63 | T20: 1.24
A21: 20 Guipúzcoa
A22: 48 Vizcaya
A23: PAIS VASCO | B23: 318 | C23: 271 | D23: 248 | H23: 318 | I23: 271 | J23: 248 | L23: 1.526 | M23: 1.63 | N23: 1.24 | R23: 1.526 | S23: 1.63 | T23: 1.24
A25: 31 NAVARRA | B25: 52 | C25: 159 | D25: 200 | E25: 16 | F25: 33 | G25: 49 | H25: 68 | I25: 192 | J25: 249 | L25: 0.126 | M25: 0.21 | N25: 0.386 | O25: 0.052 | P25: 0.07 | Q25: 0.158 | R25: 0.178 | S25: 0.28 | T25: 0.544
A27: 26 LA RIOJA | B27: 48 | C27: 126 | D27: 150 | F27: 69 | G27: 45 | H27: 48 | I27: 195 | J27: 195 | L27: 0.07 | M27: 0.18 | N27: 0.3 | P27: 0.21 | Q27: 0.113 | R27: 0.07 | S27: 0.39 | T27: 0.413
A29: 22 Huesca | B29: 247 | C29: 262 | D29: 122 | E29: 76 | F29: 40 | G29: 164 | H29: 323 | I29: 302 | J29: 286 | L29: 0.317 | M29: 0.34 | N29: 0.447 | O29: 0.319 | P29: 0.13 | Q29: 0.687 | R29: 0.636 | S29: 0.47 | T29: 1.134
A30: 44 Teruel | B30: 1708 | C30: 2947 | D30: 3629 | E30: 115 | F30: 165 | G30: 203 | H30: 1823 | I30: 3112 | J30: 3832 | L30: 1.366 | M30: 2.65 | N30: 8.731 | O30: 0.288 | P30: 0.45 | Q30: 0.647 | R30: 1.654 | S30: 3.1 | T30: 9.378
A31: 50 Zaragoza | B31: 2711 | C31: 3908 | D31: 2974 | E31: 29 | F31: 115 | G31: 67 | H31: 2740 | I31: 4023 | J31: 3041 | L31: 3.473 | M31: 5.75 | N31: 6.543 | O31: 0.116 | P31: 0.49 | Q31: 0.204 | R31: 3.588 | S31: 6.24 | T31: 6.747
A32: ARAGON | B32: 4666 | C32: 7117 | D32: 6725 | E32: 220 | F32: 320 | G32: 434 | H32: 4886 | I32: 7437 | J32: 7159 | L32: 5.156 | M32: 8.74 | N32: 15.721 | O32: 0.723 | P32: 1.07 | Q32: 1.538 | R32: 5.878 | S32: 9.81 | T32: 17.259
A34: 08 Barcelona | B34: 31 | C34: 146 | D34: 209 | E34: 4 | G34: 1 | H34: 35 | I34: 146 | J34: 210 | L34: 0.026 | M34: 0.2 | N34: 0.69 | O34: 0.017 | Q34: 0.004 | R34: 0.043 | S34: 0.2 | T34: 0.694
A35: 17 Girona | B35: 219 | C35: 209 | D35: 166 | E35: 82 | F35: 49 | G35: 78 | H35: 301 | I35: 258 | J35: 244 | L35: 0.247 | M35: 0.56 | N35: 0.38 | O35: 0.095 | P35: 0.19 | Q35: 0.255 | R35: 0.342 | S35: 0.75 | T35: 0.635
A36: 25 Lleida | B36: 470 | C36: 375 | D36: 607 | E36: 227 | F36: 270 | G36: 232 | H36: 697 | I36: 645 | J36: 839 | L36: 0.325 | M36: 0.79 | N36: 2.428 | O36: 0.733 | P36: 1.28 | Q36: 1.624 | R36: 1.058 | S36: 2.06 | T36: 4.052
A37: 43 Tarragona | B37: 7 | C37: 38 | D37: 96 | E37: 4 | F37: 11 | G37: 15 | H37: 11 | I37: 49 | J37: 111 | L37: 0.003 | M37: 0.02 | N37: 0.192 | O37: 0.008 | P37: 0.01 | Q37: 0.04 | R37: 0.011 | S37: 0.03 | T37: 0.232
A38: CATALUÑA | B38: 727 | C38: 768 | D38: 1078 | E38: 317 | F38: 330 | G38: 326 | H38: 1044 | I38: 1098 | J38: 1404 | L38: 0.601 | M38: 1.56 | N38: 3.69 | O38: 0.853 | P38: 1.48 | Q38: 1.923 | R38: 1.454 | S38: 3.04 | T38: 5.613
A40: 07 BALEARES | B40: 4 | C40: 3 | D40: 3 | H40: 4 | I40: 3 | J40: 3 | L40: 0.004 | N40: 0.003 | R40: 0.004 | T40: 0.003
A42: 05 Avila | B42: 6381 | C42: 8183 | D42: 8429 | E42: 26 | F42: 76 | G42: 524 | H42: 6407 | I42: 8259 | J42: 8953 | L42: 5.079 | M42: 10.14 | N42: 20.331 | O42: 0.08 | P42: 0.19 | Q42: 1.68 | R42: 5.159 | S42: 10.33 | T42: 22.011
A43: 09 Burgos | B43: 2895 | C43: 3535 | D43: 2918 | E43: 213 | F43: 322 | G43: 332 | H43: 3108 | I43: 3857 | J43: 3250 | L43: 4.675 | M43: 11.43 | N43: 10.747 | O43: 0.874 | P43: 1.55 | Q43: 1.581 | R43: 5.55 | S43: 12.98 | T43: 12.328
A44: 24 León | B44: 9406 | C44: 8647 | D44: 8838 | E44: 1085 | F44: 1376 | G44: 1270 | H44: 10491 | I44: 10023 | J44: 10108 | L44: 12.228 | M44: 23.35 | N44: 23.863 | O44: 3.364 | P44: 4.27 | Q44: 3.937 | R44: 15.591 | S44: 27.61 | T44: 27.8
A45: 34 Palencia | B45: 12311 | C45: 14049 | D45: 11291.63 | E45: 518 | F45: 532 | G45: 609.75 | H45: 12829 | I45: 14581 | J45: 11901.38 | L45: 28.709 | M45: 42.79 | N45: 36.593 | O45: 1.698 | P45: 2.17 | Q45: 2.264 | R45: 30.407 | S45: 44.96 | T45: 38.857
A46: 37 Salamanca | B46: 3335 | C46: 4444 | D46: 4950 | E46: 258 | F46: 257 | G46: 294 | H46: 3593 | I46: 4701 | J46: 5244 | L46: 4.536 | M46: 11.55 | N46: 14.85 | O46: 0.98 | P46: 0.98 | Q46: 1.117 | R46: 5.516 | S46: 12.53 | T46: 15.967
A47: 40 Segovia | B47: 3922 | C47: 5751 | D47: 8605 | E47: 178 | F47: 361 | G47: 357 | H47: 4100 | I47: 6112 | J47: 8962 | L47: 6.052 | M47: 8.63 | N47: 24.688 | O47: 0.534 | P47: 1.37 | Q47: 1.428 | R47: 6.586 | S47: 10 | T47: 26.116
A48: 42 Soria | B48: 8164 | C48: 11502 | D48: 9461 | E48: 114 | F48: 221 | G48: 187 | H48: 8278 | I48: 11723 | J48: 9648 | L48: 5.796 | M48: 23 | N48: 28.383 | O48: 0.342 | P48: 0.77 | Q48: 0.823 | R48: 6.138 | S48: 23.78 | T48: 29.206
A49: 47 Valladolid | B49: 5108 | C49: 6126 | D49: 5865 | E49: 896 | F49: 1033 | G49: 901 | H49: 6004 | I49: 7159 | J49: 6766 | L49: 5.552 | M49: 16.9 | N49: 19.066 | O49: 3.584 | P49: 4.71 | Q49: 4.087 | R49: 9.136 | S49: 21.62 | T49: 23.153
A50: 49 Zamora | B50: 2441 | C50: 2359 | D50: 5964 | E50: 290 | F50: 481 | G50: 329 | H50: 2731 | I50: 2840 | J50: 6293 | L50: 2.346 | M50: 5.5 | N50: 12.328 | O50: 0.817 | P50: 1.84 | Q50: 1.155 | R50: 3.163 | S50: 7.34 | T50: 13.483
A51: CASTILLA Y LEON | B51: 53963 | C51: 64596 | D51: 66321.63 | E51: 3578 | F51: 4659 | G51: 4803.75 | H51: 57541 | I51: 69255 | J51: 71125.38 | L51: 74.973 | M51: 153.29 | N51: 190.849 | O51: 12.273 | P51: 17.85 | Q51: 18.072 | R51: 87.246 | S51: 171.14 | T51: 208.921
A53: 28 MADRID | B53: 660 | C53: 463 | D53: 461 | E53: 29 | F53: 28 | G53: 18 | H53: 689 | I53: 491 | J53: 479 | L53: 0.223 | M53: 0.56 | N53: 0.404 | O53: 0.018 | P53: 0.09 | Q53: 0.034 | R53: 0.241 | S53: 0.65 | T53: 0.438
A55: 02 Albacete | B55: 835 | C55: 950 | D55: 1020 | E55: 54 | F55: 37 | G55: 92 | H55: 889 | I55: 987 | J55: 1112 | L55: 0.292 | M55: 0.75 | N55: 1.428 | O55: 0.275 | P55: 0.19 | Q55: 0.483 | R55: 0.568 | S55: 0.94 | T55: 1.911
A56: 13 Ciudad Real | B56: 1040 | C56: 1259 | D56: 1100 | E56: 144 | F56: 166 | G56: 100 | H56: 1184 | I56: 1425 | J56: 1200 | L56: 0.104 | M56: 2.01 | N56: 1.87 | O56: 0.127 | P56: 0.48 | Q56: 0.3 | R56: 0.231 | S56: 2.5 | T56: 2.17
A57: 16 Cuenca | B57: 275 | C57: 396 | D57: 358 | E57: 9 | F57: 17 | G57: 23 | H57: 284 | I57: 413 | J57: 381 | L57: 0.193 | M57: 0.95 | N57: 0.896 | O57: 0.027 | P57: 0.07 | Q57: 0.1 | R57: 0.22 | S57: 1.02 | T57: 0.996
A58: 19 Guadalajara | B58: 1500 | C58: 2108 | D58: 2108 | F58: 15 | G58: 15 | H58: 1500 | I58: 2123 | J58: 2123 | L58: 1.95 | M58: 5.9 | N58: 5.902 | P58: 0.05 | Q58: 0.06 | R58: 1.95 | S58: 5.96 | T58: 5.962
A59: 45 Toledo | B59: 6950 | C59: 6810 | D59: 5837 | E59: 187 | F59: 122 | G59: 110 | H59: 7137 | I59: 6932 | J59: 5947 | L59: 1.807 | M59: 8.85 | N59: 16.927 | O59: 0.636 | P59: 0.4 | Q59: 0.363 | R59: 2.443 | S59: 9.26 | T59: 17.29
A60: CASTILLA-MANCHA | B60: 10600 | C60: 11523 | D60: 10423 | E60: 394 | F60: 357 | G60: 340 | H60: 10994 | I60: 11880 | J60: 10763 | L60: 4.346 | M60: 18.47 | N60: 27.023 | O60: 1.065 | P60: 1.19 | Q60: 1.306 | R60: 5.412 | S60: 19.66 | T60: 28.329
A62: 03 Alicante | B62: 3 | C62: 9 | D62: 10 | E62: 2 | F62: 2 | G62: 2 | H62: 5 | I62: 11 | J62: 12 | N62: 0.007 | O62: 0.003 | Q62: 0.003 | R62: 0.003 | T62: 0.01
A63: 12 Castellón | B63: 190 | C63: 290 | D63: 290 | H63: 190 | I63: 290 | J63: 290 | L63: 0.157 | M63: 0.04 | N63: 0.363 | R63: 0.156 | S63: 0.04 | T63: 0.363
A64: 46 Valencia | B64: 13 | C64: 34 | D64: 54 | E64: 10 | F64: 1 | G64: 1 | H64: 23 | I64: 35 | J64: 55 | L64: 0.008 | M64: 0.05 | N64: 0.133 | O64: 0.03 | P64: 0.01 | Q64: 0.004 | R64: 0.038 | S64: 0.05 | T64: 0.137
A65: C. VALENCIANA | B65: 206 | C65: 333 | D65: 354 | E65: 12 | F65: 3 | G65: 3 | H65: 218 | I65: 336 | J65: 357 | L65: 0.165 | M65: 0.08 | N65: 0.503 | O65: 0.033 | P65: 0.01 | Q65: 0.007 | R65: 0.197 | S65: 0.09 | T65: 0.51
A67: 30 R. DE MURCIA | B67: 49 | C67: 48 | D67: 51 | E67: 11 | F67: 1 | G67: 1 | H67: 60 | I67: 49 | J67: 52 | L67: 0.049 | M67: 0.05 | N67: 0.049 | O67: 0.025 | Q67: 0.001 | R67: 0.074 | S67: 0.05 | T67: 0.05
A69: 06 Badajoz | B69: 37 | C69: 33 | D69: 33 | E69: 7 | F69: 13 | H69: 44 | I69: 46 | J69: 33 | L69: 0.019 | M69: 0.04 | N69: 0.04 | O69: 0.009 | P69: 0.02 | R69: 0.027 | S69: 0.06 | T69: 0.04
A70: 10 Cáceres | B70: 24 | C70: 26 | D70: 10 | E70: 20 | F70: 21 | G70: 32 | H70: 44 | I70: 47 | J70: 42 | L70: 0.012 | M70: 0.03 | N70: 0.01 | O70: 0.024 | P70: 0.03 | Q70: 0.04 | R70: 0.036 | S70: 0.06 | T70: 0.05
A71: EXTREMADURA | B71: 61 | C71: 59 | D71: 43 | E71: 27 | F71: 34 | G71: 32 | H71: 88 | I71: 93 | J71: 75 | L71: 0.031 | M71: 0.07 | N71: 0.05 | O71: 0.033 | P71: 0.05 | Q71: 0.04 | R71: 0.063 | S71: 0.13 | T71: 0.09
A73: 04 Almería | D73: 25 | E73: 2 | H73: 2 | J73: 25 | N73: 0.065 | O73: 0.005 | R73: 0.005 | T73: 0.065
A74: 11 Cádiz | B74: 1 | C74: 5 | D74: 28.23 | H74: 1 | I74: 5 | J74: 28.23 | L74: 0.001 | M74: 0.01 | N74: 0.056 | R74: 0.001 | S74: 0.01 | T74: 0.056
A75: 14 Córdoba | B75: 302 | C75: 265 | D75: 292 | G75: 13 | H75: 302 | I75: 265 | J75: 305 | L75: 0.242 | M75: 0.53 | N75: 0.73 | Q75: 0.033 | R75: 0.242 | S75: 0.53 | T75: 0.763
A76: 18 Granada | B76: 584 | C76: 87 | D76: 302 | E76: 17 | F76: 7 | G76: 8 | H76: 601 | I76: 94 | J76: 310 | L76: 0.102 | M76: 0.04 | N76: 0.57 | O76: 0.029 | P76: 0.02 | Q76: 0.021 | R76: 0.131 | S76: 0.05 | T76: 0.591
A77: 21 Huelva | B77: 9 | C77: 2 | D77: 2 | H77: 9 | I77: 2 | J77: 2 | L77: 0.011 | N77: 0.003 | R77: 0.011 | T77: 0.003
A78: 23 Jaén | B78: 1 | H78: 1 | L78: 0.001 | R78: 0.001
A79: 29 Málaga | B79: 27 | D79: 1 | E79: 16 | H79: 43 | J79: 1 | L79: 0.022 | N79: 0.003 | O79: 0.048 | R79: 0.07 | T79: 0.003
A80: 41 Sevilla | C80: 11 | D80: 53 | F80: 2 | G80: 7 | I80: 13 | J80: 60 | M80: 0.03 | N80: 0.138 | P80: 0.01 | Q80: 0.022 | S80: 0.04 | T80: 0.16
A81: ANDALUCIA | B81: 924 | C81: 370 | D81: 703.23 | E81: 35 | F81: 9 | G81: 28 | H81: 959 | I81: 379 | J81: 731.23 | L81: 0.379 | M81: 0.61 | N81: 1.565 | O81: 0.082 | P81: 0.02 | Q81: 0.076 | R81: 0.461 | S81: 0.63 | T81: 1.641
A83: 35 Palmas (Las) | B83: 16 | C83: 16 | D83: 16 | E83: 1 | F83: 1 | G83: 1 | H83: 17 | I83: 17 | J83: 17 | L83: 0.008 | M83: 0.01 | N83: 0.009 | O83: 0.003 | Q83: 0.003 | R83: 0.011 | S83: 0.01 | T83: 0.012
A84: 38 S. C. Tenerife | B84: 66 | C84: 63 | E84: 1 | F84: 2 | H84: 67 | I84: 65 | L84: 0.045 | M84: 0.04 | O84: 0.002 | R84: 0.046 | S84: 0.04
A85: CANARIAS | B85: 82 | C85: 79 | D85: 16 | E85: 2 | F85: 3 | G85: 1 | H85: 84 | I85: 82 | J85: 17 | L85: 0.053 | M85: 0.05 | N85: 0.009 | O85: 0.005 | P85: 0.01 | Q85: 0.003 | R85: 0.057 | S85: 0.06 | T85: 0.012
A88: ESPAÑA | B88: 152924 | C88: 90099 | D88: 90342.47 | E88: 4641 | F88: 5846 | G88: 6080.75 | H88: 81103 | I88: 95945 | J88: 96423.22 | L88: 102.038 | M88: 201.25 | N88: 243.492 | O88: 15.162 | P88: 22.05 | Q88: 23.271 | R88: 117.198 | S88: 223.31 | T88: 266.763
B96: 221 | C96: 231 | E96: 221 | F96: 231 | H96: 221 | I96: 231

Sheet Cen9eno
A1: AVANCES DE SUPERFICIE Y PRODUCCIÓN
A2: CENTENO | J2: 2025 JUNIO
A3: SUPERFICIE COSECHADA(*)
A4: PROVINCIAS | C4: SUPERFICIES (HA) | H4: PRODUCCIONES (1000 TM)
A5: Y
A6: CC-AA | C6: =E6-2 -> 2023 | D6: =E6-1 -> 2024 | E6: 2025 | F6: =E6 -> 2025 | H6: =J6-2 -> 2023 | I6: =J6-1 -> 2024 | J6: 2025 | K6: =J6 -> 2025
C7: PROVISIONAL | D7: PROVISIONAL | E7: AVANCE | F7: =CONCATENATE(D6,"=100") -> 2024=100 | H7: PROVISIONAL | I7: PROVISIONAL | J7: AVANCE | K7: =CONCATENATE(I6,"=100") -> 2024=100
A9: 15 A Coruña | C9: 24 | D9: 112 | E9: 101.12 | H9: 0.098 | I9: 0.37 | J9: 0.226
A10: 27 Lugo | C10: 429 | D10: 417 | E10: 463.06 | H10: 1.587 | I10: 1.42 | J10: 1.381
A11: 32 Ourense | C11: 3589 | D11: 3585 | E11: 2945.19 | H11: 12.526 | I11: 13.77
A12: 36 Pontevedra | C12: 30 | D12: 40 | E12: 15.24 | H12: 0.098 | I12: 0.18 | J12: 0.056
A13: GALICIA | C13: 4072 | D13: 4154 | E13: 3524.61 | F13: 84.84857968 | H13: 14.309 | I13: 15.73 | J13: 1.663 | K13: 10.57215512
A15: 33 P. DE ASTURIAS
A17: 39 CANTABRIA | C17: 30 | D17: 30 | E17: 41 | F17: 136.6666667 | H17: 0.028 | I17: 0.03 | J17: 0.037 | K17: 123.3333333
A19: 1 Álava | C19: 318 | D19: 271 | E19: 248 | H19: 1.526 | I19: 1.63 | J19: 1.24
A20: 20 Guipúzcoa
A21: 48 Vizcaya
A22: PAIS VASCO | C22: 318 | D22: 271 | E22: 248 | F22: 91.51291513 | H22: 1.526 | I22: 1.63 | J22: 1.24 | K22: 76.07361963
A24: 31 NAVARRA | C24: 68 | D24: 192 | E24: 249 | F24: 129.6875 | H24: 0.178 | I24: 0.28 | J24: 0.544 | K24: 194.2857143
A26: 26 LA RIOJA | C26: 48 | D26: 195 | E26: 195 | F26: 100 | H26: 0.07 | I26: 0.39 | J26: 0.413 | K26: 105.8974359
A28: 22 Huesca | C28: 323 | D28: 302 | E28: 286 | H28: 0.636 | I28: 0.47 | J28: 1.134
A29: 44 Teruel | C29: 1823 | D29: 3112 | E29: 3832 | H29: 1.654 | I29: 3.1 | J29: 9.378
A30: 50 Zaragoza | C30: 2740 | D30: 4023 | E30: 3041 | H30: 3.588 | I30: 6.24 | J30: 6.747
A31: ARAGÓN | C31: 4886 | D31: 7437 | E31: 7159 | F31: 96.26193358 | H31: 5.878 | I31: 9.81 | J31: 17.259 | K31: 175.9327217
A33: 8 Barcelona | C33: 35 | D33: 146 | E33: 210 | H33: 0.043 | I33: 0.2 | J33: 0.694
A34: 17 Girona | C34: 301 | D34: 258 | E34: 244 | H34: 0.342 | I34: 0.75 | J34: 0.635
A35: 25 Lleida | C35: 697 | D35: 645 | E35: 839 | H35: 1.058 | I35: 2.06 | J35: 4.052
A36: 43 Tarragona | C36: 11 | D36: 49 | E36: 111 | H36: 0.011 | I36: 0.03 | J36: 0.232
A37: CATALUÑA | C37: 1044 | D37: 1098 | E37: 1404 | F37: 127.8688525 | H37: 1.454 | I37: 3.04 | J37: 5.613 | K37: 184.6381579
A39: 7 BALEARES | C39: 4 | D39: 3 | E39: 3 | F39: 100 | H39: 0.004 | J39: 0.003
A41: 5 Ávila | C41: 6407 | D41: 8259 | E41: 8953 | H41: 5.159 | I41: 10.33 | J41: 22.011
A42: 9 Burgos | C42: 3108 | D42: 3857 | E42: 3250 | H42: 5.55 | I42: 12.98 | J42: 12.328
A43: 24 León | C43: 10491 | D43: 10023 | E43: 10108 | H43: 15.591 | I43: 27.61 | J43: 27.8
A44: 34 Palencia | C44: 12829 | D44: 14581 | E44: 11901.38 | H44: 30.407 | I44: 44.96 | J44: 38.857
A45: 37 Salamanca | C45: 3593 | D45: 4701 | E45: 5244 | H45: 5.516 | I45: 12.53 | J45: 15.967
A46: 40 Segovia | C46: 4100 | D46: 6112 | E46: 8962 | H46: 6.586 | I46: 10 | J46: 26.116
A47: 42 Soria | C47: 8278 | D47: 11723 | E47: 9648 | H47: 6.138 | I47: 23.78 | J47: 29.206
A48: 47 Valladolid | C48: 6004 | D48: 7159 | E48: 6766 | H48: 9.136 | I48: 21.62 | J48: 23.153
A49: 49 Zamora | C49: 2731 | D49: 2840 | E49: 6293 | H49: 3.163 | I49: 7.34 | J49: 13.483
A50: CASTILLA Y LEÓN | C50: 57541 | D50: 69255 | E50: 71125.38 | F50: 102.7007147 | H50: 87.246 | I50: 171.14 | J50: 208.921 | K50: 122.0760781
A52: 28 MADRID | C52: 689 | D52: 491 | E52: 479 | F52: 97.55600815 | H52: 0.241 | I52: 0.65 | J52: 0.438 | K52: 67.38461538
A54: 2 Albacete | C54: 889 | D54: 987 | E54: 1112 | H54: 0.568 | I54: 0.94 | J54: 1.911
A55: 13 Ciudad Real | C55: 1184 | D55: 1425 | E55: 1200 | H55: 0.231 | I55: 2.5 | J55: 2.17
A56: 16 Cuenca | C56: 284 | D56: 413 | E56: 381 | H56: 0.22 | I56: 1.02 | J56: 0.996
A57: 19 Guadalajara | C57: 1500 | D57: 2123 | E57: 2123 | H57: 1.95 | I57: 5.96 | J57: 5.962
A58: 45 Toledo | C58: 7137 | D58: 6932 | E58: 5947 | H58: 2.443 | I58: 9.26 | J58: 17.29
A59: CASTILLA-MANCHA | C59: 10994 | D59: 11880 | E59: 10763 | F59: 90.5976431 | H59: 5.412 | I59: 19.66 | J59: 28.329 | K59: 144.0946083
A61: 3 Alicante | C61: 5 | D61: 11 | E61: 12 | H61: 0.003 | J61: 0.01
A62: 12 Castellón | C62: 190 | D62: 290 | E62: 290 | H62: 0.156 | I62: 0.04 | J62: 0.363
A63: 46 Valencia | C63: 23 | D63: 35 | E63: 55 | H63: 0.038 | I63: 0.05 | J63: 0.137
A64: C. VALENCIANA | C64: 218 | D64: 336 | E64: 357 | F64: 106.25 | H64: 0.197 | I64: 0.09 | J64: 0.51 | K64: 566.6666667
A66: 30 R. DE MURCIA | C66: 60 | D66: 49 | E66: 52 | F66: 106.122449 | H66: 0.074 | I66: 0.05 | J66: 0.05 | K66: 100
A68: 6 Badajoz | C68: 44 | D68: 46 | E68: 33 | H68: 0.027 | I68: 0.06 | J68: 0.04
A69: 10 Cáceres | C69: 44 | D69: 47 | E69: 42 | H69: 0.036 | I69: 0.06 | J69: 0.05
A70: EXTREMADURA | C70: 88 | D70: 93 | E70: 75 | F70: 80.64516129 | H70: 0.063 | I70: 0.13 | J70: 0.09 | K70: 69.23076923
A72: 4 Almería | C72: 2 | E72: 25 | H72: 0.005 | J72: 0.065
A73: 11 Cádiz | C73: 1 | D73: 5 | E73: 28.23 | H73: 0.001 | I73: 0.01 | J73: 0.056
A74: 14 Córdoba | C74: 302 | D74: 265 | E74: 305 | H74: 0.242 | I74: 0.53 | J74: 0.763
A75: 18 Granada | C75: 601 | D75: 94 | E75: 310 | H75: 0.131 | I75: 0.05 | J75: 0.591
A76: 21 Huelva | C76: 9 | D76: 2 | E76: 2 | H76: 0.011 | J76: 0.003
A77: 23 Jaén | C77: 1 | H77: 0.001
A78: 29 Málaga | C78: 43 | E78: 1 | H78: 0.07 | J78: 0.003
A79: 41 Sevilla | D79: 13 | E79: 60 | I79: 0.04 | J79: 0.16
A80: ANDALUCÍA | C80: 959 | D80: 379 | E80: 731.23 | F80: 192.9366755 | H80: 0.461 | I80: 0.63 | J80: 1.641 | K80: 260.4761905
A82: 35 Palmas (Las) | C82: 17 | D82: 17 | E82: 17 | H82: 0.011 | I82: 0.01 | J82: 0.012
A83: 38 S. C. Tenerife | C83: 67 | D83: 65 | H83: 0.046 | I83: 0.04
A84: CANARIAS | C84: 84 | D84: 82 | E84: 17 | F84: 20.73170732 | H84: 0.057 | I84: 0.06 | J84: 0.012 | K84: 20
A87: ESPAÑA | C87: 81103 | D87: 95945 | E87: 96423.22 | F87: 100.4984314 | H87: 117.198 | I87: 223.31 | J87: 266.763 | K87: 119.4586002
A90: (*)Tipo de Superficie de mes/año solicitado

Sheet Tra10no)-SRT
A1: AVANCES DE SUPERFICIE Y PRODUCCIÓN
A2: TRANQUILLÓN (MEZCLA DE TRIGO Y CENTENO) S/R/T | K2: 2025 JUNIO
A3: SUPERFICIE COSECHADA(*)
A4: PROVINCIAS | B4: SUPERFICIES (HA) | E4: SUPERFICIES (HA) | H4: SUPERFICIES (HA) | L4: PRODUCCIONES (1000 TM) | O4: PRODUCCIONES (1000 TM) | R4: PRODUCCIONES (1000 TM)
A5: Y | B5: SECANO | E5: REGADIO | H5: TOTAL | L5: SECANO | O5: REGADIO | R5: TOTAL
A6: CC-AA | B6: =J6-2 -> 2023 | C6: =J6-1 -> 2024 | D6: =J6 -> 2025 | E6: =J6-2 -> 2023 | F6: =J6-1 -> 2024 | G6: =J6 -> 2025 | H6: =J6-2 -> 2023 | I6: =J6-1 -> 2024 | J6: 2025 | L6: =T6-2 -> 2023 | M6: =T6-1 -> 2024 | N6: =T6 -> 2025 | O6: =T6-2 -> 2023 | P6: =T6-1 -> 2024 | Q6: =T6 -> 2025 | R6: =T6-2 -> 2023 | S6: =T6-1 -> 2024 | T6: 2025
B7: PROVISIONAL | C7: PROVISIONAL | D7: PROVISIONAL | E7: PROVISIONAL | F7: PROVISIONAL | G7: AVANCE | H7: PROVISIONAL | I7: PROVISIONAL | J7: AVANCE | L7: PROVISIONAL | M7: PROVISIONAL | N7: AVANCE | O7: PROVISIONAL | P7: PROVISIONAL | Q7: AVANCE | R7: PROVISIONAL | S7: PROVISIONAL | T7: AVANCE
A10: 15 Coruña (La)
A11: 27 Lugo | D11: 15.02 | J11: 15.02 | N11: 0.015 | T11: 0.015
A12: 32 Orense
A13: 36 Pontevedra
A14: GALICIA | D14: 15.02 | J14: 15.02 | N14: 0.015 | T14: 0.015
A16: 33 P. DE ASTURIAS
A18: 39 CANTABRIA
A20: 01 Alava
A21: 20 Guipúzcoa
A22: 48 Vizcaya
A23: PAIS VASCO
A25: 31 NAVARRA
A27: 26 LA RIOJA
A29: 22 Huesca | F29: 10 | I29: 10 | P29: 0.03 | S29: 0.03
A30: 44 Teruel | C30: 5 | D30: 19 | I30: 5 | J30: 19 | M30: 0.01 | N30: 0.049 | S30: 0.01 | T30: 0.049
A31: 50 Zaragoza
A32: ARAGON | C32: 5 | D32: 19 | F32: 10 | I32: 15 | J32: 19 | M32: 0.01 | N32: 0.049 | P32: 0.03 | S32: 0.03 | T32: 0.049
A34: 08 Barcelona | D34: 1 | J34: 1 | N34: 0.004 | T34: 0.004
A35: 17 Girona | C35: 55 | F35: 14 | I35: 69 | M35: 0.17 | P35: 0.05 | S35: 0.21
A36: 25 Lleida
A37: 43 Tarragona
A38: CATALUÑA | C38: 55 | D38: 1 | F38: 14 | I38: 69 | J38: 1 | M38: 0.17 | N38: 0.004 | P38: 0.05 | S38: 0.21 | T38: 0.004
A40: 07 BALEARES | C40: 3 | D40: 3 | I40: 3 | J40: 3 | N40: 0.002 | T40: 0.002
A42: 05 Avila
A43: 09 Burgos
A44: 24 León
A45: 34 Palencia
A46: 37 Salamanca
A47: 40 Segovia
A48: 42 Soria
A49: 47 Valladolid
A50: 49 Zamora | B50: 3 | E50: 21 | H50: 24 | L50: 0.003 | O50: 0.059 | R50: 0.062
A51: CASTILLA Y LEON | B51: 3 | E51: 21 | H51: 24 | L51: 0.003 | O51: 0.059 | R51: 0.062
A53: 28 MADRID | C53: 16 | D53: 6 | I53: 16 | J53: 6 | M53: 0.02 | N53: 0.005 | S53: 0.02 | T53: 0.005
A55: 02 Albacete | B55: 60 | C55: 275 | D55: 315 | E55: 111 | F55: 70 | H55: 171 | I55: 345 | J55: 315 | L55: 0.02 | M55: 0.19 | N55: 0.394 | O55: 0.555 | P55: 0.34 | R55: 0.575 | S55: 0.53 | T55: 0.394
A56: 13 Ciudad Real | B56: 4756 | C56: 5469 | D56: 5223 | E56: 326 | F56: 415 | G56: 353 | H56: 5082 | I56: 5884 | J56: 5576 | L56: 1.665 | M56: 10.94 | N56: 11.491 | O56: 0.652 | P56: 1.92 | Q56: 1.659 | R56: 2.317 | S56: 12.86 | T56: 13.15
A57: 16 Cuenca | B57: 33 | C57: 21 | D57: 17 | H57: 33 | I57: 21 | J57: 17 | L57: 0.023 | M57: 0.05 | N57: 0.042 | R57: 0.023 | S57: 0.05 | T57: 0.042
A58: 19 Guadalajara | B58: 14 | C58: 2 | D58: 2 | E58: 3 | H58: 17 | I58: 2 | J58: 2 | L58: 0.018 | N58: 0.005 | O58: 0.012 | R58: 0.03 | T58: 0.005
A59: 45 Toledo | B59: 1619 | C59: 921 | D59: 760 | E59: 42 | F59: 35 | G59: 46 | H59: 1661 | I59: 956 | J59: 806 | L59: 0.486 | M59: 1.01 | N59: 2.204 | O59: 0.151 | P59: 0.13 | Q59: 0.166 | R59: 0.637 | S59: 1.14 | T59: 2.37
A60: CASTILLA-MANCHA | B60: 6482 | C60: 6688 | D60: 6317 | E60: 482 | F60: 520 | G60: 399 | H60: 6964 | I60: 7208 | J60: 6716 | L60: 2.212 | M60: 12.2 | N60: 14.136 | O60: 1.37 | P60: 2.38 | Q60: 1.825 | R60: 3.582 | S60: 14.58 | T60: 15.961
A62: 03 Alicante
A63: 12 Castellón
A64: 46 Valencia
A65: C. VALENCIANA
A67: 30 R. DE MURCIA
A69: 06 Badajoz | B69: 1010 | C69: 3482 | D69: 3697 | E69: 6 | F69: 55 | G69: 53 | H69: 1016 | I69: 3537 | J69: 3750 | L69: 0.809 | M69: 7.13 | N69: 7.394 | O69: 0.012 | P69: 0.15 | Q69: 0.138 | R69: 0.821 | S69: 7.27 | T69: 7.532
A70: 10 Cáceres | B70: 33 | C70: 77 | D70: 130 | E70: 6 | F70: 44 | G70: 46 | H70: 39 | I70: 121 | J70: 176 | L70: 0.021 | M70: 0.12 | N70: 0.195 | O70: 0.01 | P70: 0.09 | Q70: 0.092 | R70: 0.031 | S70: 0.21 | T70: 0.287
A71: EXTREMADURA | B71: 1043 | C71: 3559 | D71: 3827 | E71: 12 | F71: 99 | G71: 99 | H71: 1055 | I71: 3658 | J71: 3926 | L71: 0.83 | M71: 7.25 | N71: 7.589 | O71: 0.022 | P71: 0.24 | Q71: 0.23 | R71: 0.852 | S71: 7.49 | T71: 7.819
A73: 04 Almería
A74: 11 Cádiz | B74: 1294 | C74: 2636 | D74: 1642.46 | E74: 207 | F74: 233 | G74: 213.89 | H74: 1501 | I74: 2869 | J74: 1856.35 | L74: 1.294 | M74: 2.64 | N74: 3.612 | O74: 0.269 | P74: 0.3 | Q74: 0.535 | R74: 1.563 | S74: 2.94 | T74: 4.147
A75: 14 Córdoba | B75: 19544 | C75: 21928 | D75: 18300 | E75: 604 | F75: 552 | G75: 600 | H75: 20148 | I75: 22480 | J75: 18900 | L75: 19.544 | M75: 76.75 | N75: 54.9 | O75: 0.785 | P75: 1.93 | Q75: 1.8 | R75: 20.329 | S75: 78.68 | T75: 56.7
A76: 18 Granada | D76: 28 | J76: 28 | N76: 0.042 | T76: 0.042
A77: 21 Huelva | B77: 440 | C77: 130 | D77: 140 | H77: 440 | I77: 130 | J77: 140 | L77: 0.704 | M77: 0.44 | N77: 0.476 | R77: 0.704 | S77: 0.44 | T77: 0.476
A78: 23 Jaén | B78: 51 | C78: 71 | D78: 176 | E78: 3 | H78: 54 | I78: 71 | J78: 176 | L78: 0.041 | M78: 0.13 | N78: 0.317 | O78: 0.003 | R78: 0.044 | S78: 0.13 | T78: 0.317
A79: 29 Málaga | B79: 36 | C79: 50 | D79: 73 | E79: 22 | F79: 13 | G79: 21 | H79: 58 | I79: 63 | J79: 94 | L79: 0.029 | M79: 0.1 | N79: 0.161 | O79: 0.066 | P79: 0.05 | Q79: 0.074 | R79: 0.095 | S79: 0.15 | T79: 0.235
A80: 41 Sevilla | B80: 535 | C80: 830 | D80: 225 | E80: 11 | F80: 60 | G80: 30 | H80: 546 | I80: 890 | J80: 255 | L80: 0.642 | M80: 2.99 | N80: 0.675 | O80: 0.031 | P80: 0.23 | Q80: 0.102 | R80: 0.673 | S80: 3.22 | T80: 0.777
A81: ANDALUCIA | B81: 21900 | C81: 25645 | D81: 20584.46 | E81: 847 | F81: 858 | G81: 864.89 | H81: 22747 | I81: 26503 | J81: 21449.35 | L81: 22.254 | M81: 83.04 | N81: 60.183 | O81: 1.154 | P81: 2.52 | Q81: 2.511 | R81: 23.408 | S81: 85.55 | T81: 62.694
A83: 35 Palmas (Las) | B83: 1 | C83: 1 | D83: 1 | H83: 1 | I83: 1 | J83: 1 | N83: 0.001 | R83: 0.001 | T83: 0.001
A84: 38 S. C. Tenerife | B84: 1 | C84: 1 | H84: 1 | I84: 1 | L84: 0.001 | R84: 0.001
A85: CANARIAS | B85: 2 | C85: 2 | D85: 1 | H85: 2 | I85: 2 | J85: 1 | L85: 0.001 | N85: 0.001 | R85: 0.002 | T85: 0.001
A88: ESPAÑA | B88: 58860 | C88: 35973 | D88: 30773.48 | E88: 1362 | F88: 1501 | G88: 1362.89 | H88: 30792 | I88: 37474 | J88: 32136.37 | L88: 25.3 | M88: 102.68 | N88: 81.984 | O88: 2.605 | P88: 5.21 | Q88: 4.566 | R88: 27.906 | S88: 107.89 | T88: 86.55
B96: 221 | C96: 231 | E96: 221 | F96: 231 | H96: 221 | I96: 231

Sheet Tra10no)
A1: AVANCES DE SUPERFICIE Y PRODUCCIÓN
A2: TRANQUILLÓN (MEZCLA DE TRIGO Y CENTENO) | J2: 2025 JUNIO
A3: SUPERFICIE COSECHADA(*)
A4: PROVINCIAS | C4: SUPERFICIES (HA) | H4: PRODUCCIONES (1000 TM)
A5: Y
A6: CC-AA | C6: =E6-2 -> 2023 | D6: =E6-1 -> 2024 | E6: 2025 | F6: =E6 -> 2025 | H6: =J6-2 -> 2023 | I6: =J6-1 -> 2024 | J6: 2025 | K6: =J6 -> 2025
C7: PROVISIONAL | D7: PROVISIONAL | E7: AVANCE | F7: =CONCATENATE(D6,"=100") -> 2024=100 | H7: PROVISIONAL | I7: PROVISIONAL | J7: AVANCE | K7: =CONCATENATE(I6,"=100") -> 2024=100
A9: 15 A Coruña
A10: 27 Lugo | E10: 15.02 | J10: 0.015
A11: 32 Ourense
A12: 36 Pontevedra
A13: GALICIA | E13: 15.02 | J13: 0.015
A15: 33 P. DE ASTURIAS
A17: 39 CANTABRIA
A19: 1 Álava
A20: 20 Guipúzcoa
A21: 48 Vizcaya
A22: PAIS VASCO
A24: 31 NAVARRA
A26: 26 LA RIOJA
A28: 22 Huesca | D28: 10 | I28: 0.03
A29: 44 Teruel | D29: 5 | E29: 19 | I29: 0.01 | J29: 0.049
A30: 50 Zaragoza
A31: ARAGÓN | D31: 15 | E31: 19 | F31: 126.6666667 | I31: 0.03 | J31: 0.049 | K31: 163.3333333
A33: 8 Barcelona | E33: 1 | J33: 0.004
A34: 17 Girona | D34: 69 | I34: 0.21
A35: 25 Lleida
A36: 43 Tarragona
A37: CATALUÑA | D37: 69 | E37: 1 | F37: 1.449275362 | I37: 0.21 | J37: 0.004 | K37: 1.904761905
A39: 7 BALEARES | D39: 3 | E39: 3 | F39: 100 | J39: 0.002
A41: 5 Ávila
A42: 9 Burgos
A43: 24 León
A44: 34 Palencia
A45: 37 Salamanca
A46: 40 Segovia
A47: 42 Soria
A48: 47 Valladolid
A49: 49 Zamora | C49: 24 | H49: 0.062
A50: CASTILLA Y LEÓN | C50: 24 | H50: 0.062
A52: 28 MADRID | D52: 16 | E52: 6 | F52: 37.5 | I52: 0.02 | J52: 0.005 | K52: 25
A54: 2 Albacete | C54: 171 | D54: 345 | E54: 315 | H54: 0.575 | I54: 0.53 | J54: 0.394
A55: 13 Ciudad Real | C55: 5082 | D55: 5884 | E55: 5576 | H55: 2.317 | I55: 12.86 | J55: 13.15
A56: 16 Cuenca | C56: 33 | D56: 21 | E56: 17 | H56: 0.023 | I56: 0.05 | J56: 0.042
A57: 19 Guadalajara | C57: 17 | D57: 2 | E57: 2 | H57: 0.03 | J57: 0.005
A58: 45 Toledo | C58: 1661 | D58: 956 | E58: 806 | H58: 0.637 | I58: 1.14 | J58: 2.37
A59: CASTILLA-MANCHA | C59: 6964 | D59: 7208 | E59: 6716 | F59: 93.17425083 | H59: 3.582 | I59: 14.58 | J59: 15.961 | K59: 109.4718793
A61: 3 Alicante
A62: 12 Castellón
A63: 46 Valencia
A64: C. VALENCIANA
A66: 30 R. DE MURCIA
A68: 6 Badajoz | C68: 1016 | D68: 3537 | E68: 3750 | H68: 0.821 | I68: 7.27 | J68: 7.532
A69: 10 Cáceres | C69: 39 | D69: 121 | E69: 176 | H69: 0.031 | I69: 0.21 | J69: 0.287
A70: EXTREMADURA | C70: 1055 | D70: 3658 | E70: 3926 | F70: 107.3264079 | H70: 0.852 | I70: 7.49 | J70: 7.819 | K70: 104.3925234
A72: 4 Almería
A73: 11 Cádiz | C73: 1501 | D73: 2869 | E73: 1856.35 | H73: 1.563 | I73: 2.94 | J73: 4.147
A74: 14 Córdoba | C74: 20148 | D74: 22480 | E74: 18900 | H74: 20.329 | I74: 78.68 | J74: 56.7
A75: 18 Granada | E75: 28 | J75: 0.042
A76: 21 Huelva | C76: 440 | D76: 130 | E76: 140 | H76: 0.704 | I76: 0.44 | J76: 0.476
A77: 23 Jaén | C77: 54 | D77: 71 | E77: 176 | H77: 0.044 | I77: 0.13 | J77: 0.317
A78: 29 Málaga | C78: 58 | D78: 63 | E78: 94 | H78: 0.095 | I78: 0.15 | J78: 0.235
A79: 41 Sevilla | C79: 546 | D79: 890 | E79: 255 | H79: 0.673 | I79: 3.22 | J79: 0.777
A80: ANDALUCÍA | C80: 22747 | D80: 26503 | E80: 21449.35 | F80: 80.93178131 | H80: 23.408 | I80: 85.55 | J80: 62.694 | K80: 73.28345996
A82: 35 Palmas (Las) | C82: 1 | D82: 1 | E82: 1 | H82: 0.001 | J82: 0.001
A83: 38 S. C. Tenerife | C83: 1 | D83: 1 | H83: 0.001
A84: CANARIAS | C84: 2 | D84: 2 | E84: 1 | F84: 50 | H84: 0.002 | J84: 0.001
A87: ESPAÑA | C87: 30792 | D87: 37474 | E87: 32136.37 | F87: 85.75644447 | H87: 27.906 | I87: 107.89 | J87: 86.55 | K87: 80.22059505
A90: (*)Tipo de Superficie de mes/año solicitado

Sheet Cen11lón-SRT
A1: AVANCES DE SUPERFICIE Y PRODUCCIÓN
A2: CENTENO Y TRANQUILLÓN S/R/T | K2: 2025 JUNIO
A3: SUPERFICIE COSECHADA(*)
A4: PROVINCIAS | B4: SUPERFICIES (HA) | E4: SUPERFICIES (HA) | H4: SUPERFICIES (HA) | L4: PRODUCCIONES (1000 TM) | O4: PRODUCCIONES (1000 TM) | R4: PRODUCCIONES (1000 TM)
A5: Y | B5: SECANO | E5: REGADIO | H5: TOTAL | L5: SECANO | O5: REGADIO | R5: TOTAL
A6: CC-AA | B6: =J6-2 -> 2023 | C6: =J6-1 -> 2024 | D6: =J6 -> 2025 | E6: =J6-2 -> 2023 | F6: =J6-1 -> 2024 | G6: =J6 -> 2025 | H6: =J6-2 -> 2023 | I6: =J6-1 -> 2024 | J6: 2025 | L6: =T6-2 -> 2023 | M6: =T6-1 -> 2024 | N6: =T6 -> 2025 | O6: =T6-2 -> 2023 | P6: =T6-1 -> 2024 | Q6: =T6 -> 2025 | R6: =T6-2 -> 2023 | S6: =T6-1 -> 2024 | T6: 2025
B7: PROVISIONAL | C7: PROVISIONAL | D7: PROVISIONAL | E7: PROVISIONAL | F7: PROVISIONAL | G7: AVANCE | H7: PROVISIONAL | I7: PROVISIONAL | J7: AVANCE | L7: PROVISIONAL | M7: PROVISIONAL | N7: AVANCE | O7: PROVISIONAL | P7: PROVISIONAL | Q7: AVANCE | R7: PROVISIONAL | S7: PROVISIONAL | T7: AVANCE
A10: 15 Coruña (La) | B10: 24 | C10: 112 | D10: 101.12 | H10: 24 | I10: 112 | J10: 101.12 | L10: 0.098 | M10: 0.37 | N10: 0.226 | R10: 0.098 | S10: 0.37 | T10: 0.226
A11: 27 Lugo | B11: 429 | C11: 417 | D11: 478.08 | H11: 429 | I11: 417 | J11: 478.08 | L11: 1.586 | M11: 1.42 | N11: 1.396 | R11: 1.587 | S11: 1.42 | T11: 1.396
A12: 32 Orense | B12: 3589 | C12: 3585 | D12: 2945.19 | H12: 3589 | I12: 3585 | J12: 2945.19 | L12: 12.526 | M12: 13.77 | R12: 12.526 | S12: 13.77
A13: 36 Pontevedra | B13: 30 | C13: 40 | D13: 15.24 | H13: 30 | I13: 40 | J13: 15.24 | L13: 0.098 | M13: 0.18 | N13: 0.056 | R13: 0.098 | S13: 0.18 | T13: 0.056
A14: GALICIA | B14: 4072 | C14: 4154 | D14: 3539.63 | H14: 4072 | I14: 4154 | J14: 3539.63 | L14: 14.308 | M14: 15.73 | N14: 1.678 | R14: 14.309 | S14: 15.73 | T14: 1.678
A16: 33 P. DE ASTURIAS
A18: 39 CANTABRIA | B18: 30 | C18: 30 | D18: 41 | H18: 30 | I18: 30 | J18: 41 | L18: 0.028 | M18: 0.03 | N18: 0.037 | R18: 0.028 | S18: 0.03 | T18: 0.037
A20: 01 Alava | B20: 318 | C20: 271 | D20: 248 | H20: 318 | I20: 271 | J20: 248 | L20: 1.526 | M20: 1.63 | N20: 1.24 | R20: 1.526 | S20: 1.63 | T20: 1.24
A21: 20 Guipúzcoa
A22: 48 Vizcaya
A23: PAIS VASCO | B23: 318 | C23: 271 | D23: 248 | H23: 318 | I23: 271 | J23: 248 | L23: 1.526 | M23: 1.63 | N23: 1.24 | R23: 1.526 | S23: 1.63 | T23: 1.24
A25: 31 NAVARRA | B25: 52 | C25: 159 | D25: 200 | E25: 16 | F25: 33 | G25: 49 | H25: 68 | I25: 192 | J25: 249 | L25: 0.126 | M25: 0.21 | N25: 0.386 | O25: 0.052 | P25: 0.07 | Q25: 0.158 | R25: 0.178 | S25: 0.28 | T25: 0.544
A27: 26 LA RIOJA | B27: 48 | C27: 126 | D27: 150 | F27: 69 | G27: 45 | H27: 48 | I27: 195 | J27: 195 | L27: 0.07 | M27: 0.18 | N27: 0.3 | P27: 0.21 | Q27: 0.113 | R27: 0.07 | S27: 0.39 | T27: 0.413
A29: 22 Huesca | B29: 247 | C29: 262 | D29: 122 | E29: 76 | F29: 50 | G29: 164 | H29: 323 | I29: 312 | J29: 286 | L29: 0.317 | M29: 0.34 | N29: 0.447 | O29: 0.319 | P29: 0.16 | Q29: 0.687 | R29: 0.636 | S29: 0.5 | T29: 1.134
A30: 44 Teruel | B30: 1708 | C30: 2952 | D30: 3648 | E30: 115 | F30: 165 | G30: 203 | H30: 1823 | I30: 3117 | J30: 3851 | L30: 1.366 | M30: 2.66 | N30: 8.78 | O30: 0.288 | P30: 0.45 | Q30: 0.647 | R30: 1.654 | S30: 3.11 | T30: 9.427
A31: 50 Zaragoza | B31: 2711 | C31: 3908 | D31: 2974 | E31: 29 | F31: 115 | G31: 67 | H31: 2740 | I31: 4023 | J31: 3041 | L31: 3.473 | M31: 5.75 | N31: 6.543 | O31: 0.116 | P31: 0.49 | Q31: 0.204 | R31: 3.588 | S31: 6.24 | T31: 6.747
A32: ARAGON | B32: 4666 | C32: 7122 | D32: 6744 | E32: 220 | F32: 330 | G32: 434 | H32: 4886 | I32: 7452 | J32: 7178 | L32: 5.156 | M32: 8.74 | N32: 15.77 | O32: 0.723 | P32: 1.1 | Q32: 1.538 | R32: 5.878 | S32: 9.84 | T32: 17.308
A34: 08 Barcelona | B34: 31 | C34: 146 | D34: 210 | E34: 4 | G34: 1 | H34: 35 | I34: 146 | J34: 211 | L34: 0.026 | M34: 0.2 | N34: 0.694 | O34: 0.017 | Q34: 0.004 | R34: 0.043 | S34: 0.2 | T34: 0.698
A35: 17 Girona | B35: 219 | C35: 264 | D35: 166 | E35: 82 | F35: 63 | G35: 78 | H35: 301 | I35: 327 | J35: 244 | L35: 0.247 | M35: 0.73 | N35: 0.38 | O35: 0.095 | P35: 0.24 | Q35: 0.255 | R35: 0.342 | S35: 0.96 | T35: 0.635
A36: 25 Lleida | B36: 470 | C36: 375 | D36: 607 | E36: 227 | F36: 270 | G36: 232 | H36: 697 | I36: 645 | J36: 839 | L36: 0.325 | M36: 0.79 | N36: 2.428 | O36: 0.733 | P36: 1.28 | Q36: 1.624 | R36: 1.058 | S36: 2.06 | T36: 4.052
A37: 43 Tarragona | B37: 7 | C37: 38 | D37: 96 | E37: 4 | F37: 11 | G37: 15 | H37: 11 | I37: 49 | J37: 111 | L37: 0.003 | M37: 0.02 | N37: 0.192 | O37: 0.008 | P37: 0.01 | Q37: 0.04 | R37: 0.011 | S37: 0.03 | T37: 0.232
A38: CATALUÑA | B38: 727 | C38: 823 | D38: 1079 | E38: 317 | F38: 344 | G38: 326 | H38: 1044 | I38: 1167 | J38: 1405 | L38: 0.601 | M38: 1.73 | N38: 3.694 | O38: 0.853 | P38: 1.52 | Q38: 1.923 | R38: 1.454 | S38: 3.25 | T38: 5.617
A40: 07 BALEARES | B40: 4 | C40: 6 | D40: 6 | H40: 4 | I40: 6 | J40: 6 | L40: 0.004 | M40: 0.01 | N40: 0.005 | R40: 0.004 | S40: 0.01 | T40: 0.005
A42: 05 Avila | B42: 6381 | C42: 8183 | D42: 8429 | E42: 26 | F42: 76 | G42: 524 | H42: 6407 | I42: 8259 | J42: 8953 | L42: 5.079 | M42: 10.14 | N42: 20.331 | O42: 0.08 | P42: 0.19 | Q42: 1.68 | R42: 5.159 | S42: 10.33 | T42: 22.011
A43: 09 Burgos | B43: 2895 | C43: 3535 | D43: 2918 | E43: 213 | F43: 322 | G43: 332 | H43: 3108 | I43: 3857 | J43: 3250 | L43: 4.675 | M43: 11.43 | N43: 10.747 | O43: 0.874 | P43: 1.55 | Q43: 1.581 | R43: 5.55 | S43: 12.98 | T43: 12.328
A44: 24 León | B44: 9406 | C44: 8647 | D44: 8838 | E44: 1085 | F44: 1376 | G44: 1270 | H44: 10491 | I44: 10023 | J44: 10108 | L44: 12.228 | M44: 23.35 | N44: 23.863 | O44: 3.364 | P44: 4.27 | Q44: 3.937 | R44: 15.591 | S44: 27.61 | T44: 27.8
A45: 34 Palencia | B45: 12311 | C45: 14049 | D45: 11291.63 | E45: 518 | F45: 532 | G45: 609.75 | H45: 12829 | I45: 14581 | J45: 11901.38 | L45: 28.709 | M45: 42.79 | N45: 36.593 | O45: 1.698 | P45: 2.17 | Q45: 2.264 | R45: 30.407 | S45: 44.96 | T45: 38.857
A46: 37 Salamanca | B46: 3335 | C46: 4444 | D46: 4950 | E46: 258 | F46: 257 | G46: 294 | H46: 3593 | I46: 4701 | J46: 5244 | L46: 4.536 | M46: 11.55 | N46: 14.85 | O46: 0.98 | P46: 0.98 | Q46: 1.117 | R46: 5.516 | S46: 12.53 | T46: 15.967
A47: 40 Segovia | B47: 3922 | C47: 5751 | D47: 8605 | E47: 178 | F47: 361 | G47: 357 | H47: 4100 | I47: 6112 | J47: 8962 | L47: 6.052 | M47: 8.63 | N47: 24.688 | O47: 0.534 | P47: 1.37 | Q47: 1.428 | R47: 6.586 | S47: 10 | T47: 26.116
A48: 42 Soria | B48: 8164 | C48: 11502 | D48: 9461 | E48: 114 | F48: 221 | G48: 187 | H48: 8278 | I48: 11723 | J48: 9648 | L48: 5.796 | M48: 23 | N48: 28.383 | O48: 0.342 | P48: 0.77 | Q48: 0.823 | R48: 6.138 | S48: 23.78 | T48: 29.206
A49: 47 Valladolid | B49: 5108 | C49: 6126 | D49: 5865 | E49: 896 | F49: 1033 | G49: 901 | H49: 6004 | I49: 7159 | J49: 6766 | L49: 5.552 | M49: 16.9 | N49: 19.066 | O49: 3.584 | P49: 4.71 | Q49: 4.087 | R49: 9.136 | S49: 21.62 | T49: 23.153
A50: 49 Zamora | B50: 2444 | C50: 2359 | D50: 5964 | E50: 311 | F50: 481 | G50: 329 | H50: 2755 | I50: 2840 | J50: 6293 | L50: 2.349 | M50: 5.5 | N50: 12.328 | O50: 0.876 | P50: 1.84 | Q50: 1.155 | R50: 3.225 | S50: 7.34 | T50: 13.483
A51: CASTILLA Y LEON | B51: 53966 | C51: 64596 | D51: 66321.63 | E51: 3599 | F51: 4659 | G51: 4803.75 | H51: 57565 | I51: 69255 | J51: 71125.38 | L51: 74.976 | M51: 153.29 | N51: 190.849 | O51: 12.332 | P51: 17.85 | Q51: 18.072 | R51: 87.308 | S51: 171.14 | T51: 208.921
A53: 28 MADRID | B53: 660 | C53: 479 | D53: 467 | E53: 29 | F53: 28 | G53: 18 | H53: 689 | I53: 507 | J53: 485 | L53: 0.223 | M53: 0.58 | N53: 0.409 | O53: 0.018 | P53: 0.09 | Q53: 0.034 | R53: 0.241 | S53: 0.67 | T53: 0.443
A55: 02 Albacete | B55: 895 | C55: 1225 | D55: 1335 | E55: 165 | F55: 107 | G55: 92 | H55: 1060 | I55: 1332 | J55: 1427 | L55: 0.311 | M55: 0.94 | N55: 1.822 | O55: 0.83 | P55: 0.53 | Q55: 0.483 | R55: 1.143 | S55: 1.47 | T55: 2.305
A56: 13 Ciudad Real | B56: 5796 | C56: 6728 | D56: 6323 | E56: 470 | F56: 581 | G56: 453 | H56: 6266 | I56: 7309 | J56: 6776 | L56: 1.605 | M56: 12.95 | N56: 13.361 | O56: 0.942 | P56: 2.4 | Q56: 1.959 | R56: 2.548 | S56: 15.35 | T56: 15.32
A57: 16 Cuenca | B57: 308 | C57: 417 | D57: 375 | E57: 9 | F57: 17 | G57: 23 | H57: 317 | I57: 434 | J57: 398 | L57: 0.216 | M57: 1 | N57: 0.938 | O57: 0.027 | P57: 0.07 | Q57: 0.1 | R57: 0.243 | S57: 1.07 | T57: 1.038
A58: 19 Guadalajara | B58: 1514 | C58: 2110 | D58: 2110 | E58: 3 | F58: 15 | G58: 15 | H58: 1517 | I58: 2125 | J58: 2125 | L58: 1.968 | M58: 5.91 | N58: 5.907 | O58: 0.012 | P58: 0.05 | Q58: 0.06 | R58: 1.98 | S58: 5.96 | T58: 5.967
A59: 45 Toledo | B59: 8569 | C59: 7731 | D59: 6597 | E59: 229 | F59: 157 | G59: 156 | H59: 8798 | I59: 7888 | J59: 6753 | L59: 2.296 | M59: 9.87 | N59: 19.131 | O59: 0.787 | P59: 0.53 | Q59: 0.529 | R59: 3.08 | S59: 10.4 | T59: 19.66
A60: CASTILLA-MANCHA | B60: 17082 | C60: 18211 | D60: 16740 | E60: 876 | F60: 877 | G60: 739 | H60: 17958 | I60: 19088 | J60: 17479 | L60: 6.396 | M60: 30.67 | N60: 41.159 | O60: 2.598 | P60: 3.57 | Q60: 3.131 | R60: 8.994 | S60: 34.24 | T60: 44.29
A62: 03 Alicante | B62: 3 | C62: 9 | D62: 10 | E62: 2 | F62: 2 | G62: 2 | H62: 5 | I62: 11 | J62: 12 | N62: 0.007 | O62: 0.003 | Q62: 0.003 | R62: 0.003 | T62: 0.01
A63: 12 Castellón | B63: 190 | C63: 290 | D63: 290 | H63: 190 | I63: 290 | J63: 290 | L63: 0.157 | M63: 0.04 | N63: 0.363 | R63: 0.156 | S63: 0.04 | T63: 0.363
A64: 46 Valencia | B64: 13 | C64: 34 | D64: 54 | E64: 10 | F64: 1 | G64: 1 | H64: 23 | I64: 35 | J64: 55 | L64: 0.008 | M64: 0.05 | N64: 0.133 | O64: 0.03 | P64: 0.01 | Q64: 0.004 | R64: 0.038 | S64: 0.05 | T64: 0.137
A65: C. VALENCIANA | B65: 206 | C65: 333 | D65: 354 | E65: 12 | F65: 3 | G65: 3 | H65: 218 | I65: 336 | J65: 357 | L65: 0.165 | M65: 0.08 | N65: 0.503 | O65: 0.033 | P65: 0.01 | Q65: 0.007 | R65: 0.197 | S65: 0.09 | T65: 0.51
A67: 30 R. DE MURCIA | B67: 49 | C67: 48 | D67: 51 | E67: 11 | F67: 1 | G67: 1 | H67: 60 | I67: 49 | J67: 52 | L67: 0.049 | M67: 0.05 | N67: 0.049 | O67: 0.025 | Q67: 0.001 | R67: 0.074 | S67: 0.05 | T67: 0.05
A69: 06 Badajoz | B69: 1047 | C69: 3515 | D69: 3730 | E69: 13 | F69: 68 | G69: 53 | H69: 1060 | I69: 3583 | J69: 3783 | L69: 0.827 | M69: 7.17 | N69: 7.434 | O69: 0.021 | P69: 0.17 | Q69: 0.138 | R69: 0.848 | S69: 7.34 | T69: 7.572
A70: 10 Cáceres | B70: 57 | C70: 103 | D70: 140 | E70: 26 | F70: 65 | G70: 78 | H70: 83 | I70: 168 | J70: 218 | L70: 0.033 | M70: 0.15 | N70: 0.205 | O70: 0.034 | P70: 0.12 | Q70: 0.132 | R70: 0.067 | S70: 0.27 | T70: 0.337
A71: EXTREMADURA | B71: 1104 | C71: 3618 | D71: 3870 | E71: 39 | F71: 133 | G71: 131 | H71: 1143 | I71: 3751 | J71: 4001 | L71: 0.86 | M71: 7.32 | N71: 7.639 | O71: 0.055 | P71: 0.29 | Q71: 0.27 | R71: 0.915 | S71: 7.61 | T71: 7.909
A73: 04 Almería | D73: 25 | E73: 2 | H73: 2 | J73: 25 | N73: 0.065 | O73: 0.005 | R73: 0.005 | T73: 0.065
A74: 11 Cádiz | B74: 1295 | C74: 2641 | D74: 1670.69 | E74: 207 | F74: 233 | G74: 213.89 | H74: 1502 | I74: 2874 | J74: 1884.58 | L74: 1.295 | M74: 2.65 | N74: 3.668 | O74: 0.269 | P74: 0.3 | Q74: 0.535 | R74: 1.564 | S74: 2.95 | T74: 4.203
A75: 14 Córdoba | B75: 19846 | C75: 22193 | D75: 18592 | E75: 604 | F75: 552 | G75: 613 | H75: 20450 | I75: 22745 | J75: 19205 | L75: 19.786 | M75: 77.28 | N75: 55.63 | O75: 0.785 | P75: 1.93 | Q75: 1.833 | R75: 20.571 | S75: 79.21 | T75: 57.463
A76: 18 Granada | B76: 584 | C76: 87 | D76: 330 | E76: 17 | F76: 7 | G76: 8 | H76: 601 | I76: 94 | J76: 338 | L76: 0.102 | M76: 0.04 | N76: 0.612 | O76: 0.029 | P76: 0.02 | Q76: 0.021 | R76: 0.131 | S76: 0.05 | T76: 0.633
A77: 21 Huelva | B77: 449 | C77: 132 | D77: 142 | H77: 449 | I77: 132 | J77: 142 | L77: 0.715 | M77: 0.44 | N77: 0.479 | R77: 0.715 | S77: 0.44 | T77: 0.479
A78: 23 Jaén | B78: 52 | C78: 71 | D78: 176 | E78: 3 | H78: 55 | I78: 71 | J78: 176 | L78: 0.042 | M78: 0.13 | N78: 0.317 | O78: 0.003 | R78: 0.045 | S78: 0.13 | T78: 0.317
A79: 29 Málaga | B79: 63 | C79: 50 | D79: 74 | E79: 38 | F79: 13 | G79: 21 | H79: 101 | I79: 63 | J79: 95 | L79: 0.05 | M79: 0.1 | N79: 0.164 | O79: 0.114 | P79: 0.05 | Q79: 0.074 | R79: 0.165 | S79: 0.15 | T79: 0.238
A80: 41 Sevilla | B80: 535 | C80: 841 | D80: 278 | E80: 11 | F80: 62 | G80: 37 | H80: 546 | I80: 903 | J80: 315 | L80: 0.642 | M80: 3.02 | N80: 0.813 | O80: 0.031 | P80: 0.24 | Q80: 0.124 | R80: 0.673 | S80: 3.26 | T80: 0.937
A81: ANDALUCIA | B81: 22824 | C81: 26015 | D81: 21287.69 | E81: 882 | F81: 867 | G81: 892.89 | H81: 23706 | I81: 26882 | J81: 22180.58 | L81: 22.632 | M81: 83.64 | N81: 61.748 | O81: 1.236 | P81: 2.54 | Q81: 2.587 | R81: 23.869 | S81: 86.18 | T81: 64.335
A83: 35 Palmas (Las) | B83: 17 | C83: 17 | D83: 17 | E83: 1 | F83: 1 | G83: 1 | H83: 18 | I83: 18 | J83: 18 | L83: 0.008 | M83: 0.01 | N83: 0.01 | O83: 0.003 | Q83: 0.003 | R83: 0.012 | S83: 0.01 | T83: 0.013
A84: 38 S. C. Tenerife | B84: 67 | C84: 64 | E84: 1 | F84: 2 | H84: 68 | I84: 66 | L84: 0.045 | M84: 0.04 | O84: 0.002 | R84: 0.047 | S84: 0.04
A85: CANARIAS | B85: 84 | C85: 81 | D85: 17 | E85: 2 | F85: 3 | G85: 1 | H85: 86 | I85: 84 | J85: 18 | L85: 0.053 | M85: 0.05 | N85: 0.01 | O85: 0.005 | P85: 0.01 | Q85: 0.003 | R85: 0.059 | S85: 0.06 | T85: 0.013
A88: ESPAÑA | B88: 211784 | C88: 126072 | D88: 121115.95 | E88: 6003 | F88: 7347 | G88: 7443.64 | H88: 111895 | I88: 133419 | J88: 128559.59 | L88: 127.173 | M88: 303.93 | N88: 325.476 | O88: 17.93 | P88: 27.26 | Q88: 27.837 | R88: 145.104 | S88: 331.2 | T88: 353.313
B96: 221 | C96: 231 | E96: 221 | F96: 231 | H96: 221 | I96: 231

Sheet Cen11lón
A1: AVANCES DE SUPERFICIE Y PRODUCCIÓN
A2: CENTENO Y TRANQUILLÓN | J2: 2025 JUNIO
A3: SUPERFICIE COSECHADA(*)
A4: PROVINCIAS | C4: SUPERFICIES (HA) | H4: PRODUCCIONES (1000 TM)
A5: Y
A6: CC-AA | C6: =E6-2 -> 2023 | D6: =E6-1 -> 2024 | E6: 2025 | F6: =E6 -> 2025 | H6: =J6-2 -> 2023 | I6: =J6-1 -> 2024 | J6: 2025 | K6: =J6 -> 2025
C7: PROVISIONAL | D7: PROVISIONAL | E7: AVANCE | F7: =CONCATENATE(D6,"=100") -> 2024=100 | H7: PROVISIONAL | I7: PROVISIONAL | J7: AVANCE | K7: =CONCATENATE(I6,"=100") -> 2024=100
A9: 15 A Coruña | C9: 24 | D9: 112 | E9: 101.12 | H9: 0.098 | I9: 0.37 | J9: 0.226
A10: 27 Lugo | C10: 429 | D10: 417 | E10: 478.08 | H10: 1.587 | I10: 1.42 | J10: 1.396
A11: 32 Ourense | C11: 3589 | D11: 3585 | E11: 2945.19 | H11: 12.526 | I11: 13.77
A12: 36 Pontevedra | C12: 30 | D12: 40 | E12: 15.24 | H12: 0.098 | I12: 0.18 | J12: 0.056
A13: GALICIA | C13: 4072 | D13: 4154 | E13: 3539.63 | F13: 85.21015888 | H13: 14.309 | I13: 15.73 | J13: 1.678 | K13: 10.6675143
A15: 33 P. DE ASTURIAS
A17: 39 CANTABRIA | C17: 30 | D17: 30 | E17: 41 | F17: 136.6666667 | H17: 0.028 | I17: 0.03 | J17: 0.037 | K17: 123.3333333
A19: 1 Álava | C19: 318 | D19: 271 | E19: 248 | H19: 1.526 | I19: 1.63 | J19: 1.24
A20: 20 Guipúzcoa
A21: 48 Vizcaya
A22: PAIS VASCO | C22: 318 | D22: 271 | E22: 248 | F22: 91.51291513 | H22: 1.526 | I22: 1.63 | J22: 1.24 | K22: 76.07361963
A24: 31 NAVARRA | C24: 68 | D24: 192 | E24: 249 | F24: 129.6875 | H24: 0.178 | I24: 0.28 | J24: 0.544 | K24: 194.2857143
A26: 26 LA RIOJA | C26: 48 | D26: 195 | E26: 195 | F26: 100 | H26: 0.07 | I26: 0.39 | J26: 0.413 | K26: 105.8974359
A28: 22 Huesca | C28: 323 | D28: 312 | E28: 286 | H28: 0.636 | I28: 0.5 | J28: 1.134
A29: 44 Teruel | C29: 1823 | D29: 3117 | E29: 3851 | H29: 1.654 | I29: 3.11 | J29: 9.427
A30: 50 Zaragoza | C30: 2740 | D30: 4023 | E30: 3041 | H30: 3.588 | I30: 6.24 | J30: 6.747
A31: ARAGÓN | C31: 4886 | D31: 7452 | E31: 7178 | F31: 96.32313473 | H31: 5.878 | I31: 9.84 | J31: 17.308 | K31: 175.8943089
A33: 8 Barcelona | C33: 35 | D33: 146 | E33: 211 | H33: 0.043 | I33: 0.2 | J33: 0.698
A34: 17 Girona | C34: 301 | D34: 327 | E34: 244 | H34: 0.342 | I34: 0.96 | J34: 0.635
A35: 25 Lleida | C35: 697 | D35: 645 | E35: 839 | H35: 1.058 | I35: 2.06 | J35: 4.052
A36: 43 Tarragona | C36: 11 | D36: 49 | E36: 111 | H36: 0.011 | I36: 0.03 | J36: 0.232
A37: CATALUÑA | C37: 1044 | D37: 1167 | E37: 1405 | F37: 120.3941731 | H37: 1.454 | I37: 3.25 | J37: 5.617 | K37: 172.8307692
A39: 7 BALEARES | C39: 4 | D39: 6 | E39: 6 | F39: 100 | H39: 0.004 | I39: 0.01 | J39: 0.005 | K39: 50
A41: 5 Ávila | C41: 6407 | D41: 8259 | E41: 8953 | H41: 5.159 | I41: 10.33 | J41: 22.011
A42: 9 Burgos | C42: 3108 | D42: 3857 | E42: 3250 | H42: 5.55 | I42: 12.98 | J42: 12.328
A43: 24 León | C43: 10491 | D43: 10023 | E43: 10108 | H43: 15.591 | I43: 27.61 | J43: 27.8
A44: 34 Palencia | C44: 12829 | D44: 14581 | E44: 11901.38 | H44: 30.407 | I44: 44.96 | J44: 38.857
A45: 37 Salamanca | C45: 3593 | D45: 4701 | E45: 5244 | H45: 5.516 | I45: 12.53 | J45: 15.967
A46: 40 Segovia | C46: 4100 | D46: 6112 | E46: 8962 | H46: 6.586 | I46: 10 | J46: 26.116
A47: 42 Soria | C47: 8278 | D47: 11723 | E47: 9648 | H47: 6.138 | I47: 23.78 | J47: 29.206
A48: 47 Valladolid | C48: 6004 | D48: 7159 | E48: 6766 | H48: 9.136 | I48: 21.62 | J48: 23.153
A49: 49 Zamora | C49: 2755 | D49: 2840 | E49: 6293 | H49: 3.225 | I49: 7.34 | J49: 13.483
A50: CASTILLA Y LEÓN | C50: 57565 | D50: 69255 | E50: 71125.38 | F50: 102.7007147 | H50: 87.308 | I50: 171.14 | J50: 208.921 | K50: 122.0760781
A52: 28 MADRID | C52: 689 | D52: 507 | E52: 485 | F52: 95.66074951 | H52: 0.241 | I52: 0.67 | J52: 0.443 | K52: 66.11940299
A54: 2 Albacete | C54: 1060 | D54: 1332 | E54: 1427 | H54: 1.143 | I54: 1.47 | J54: 2.305
A55: 13 Ciudad Real | C55: 6266 | D55: 7309 | E55: 6776 | H55: 2.548 | I55: 15.35 | J55: 15.32
A56: 16 Cuenca | C56: 317 | D56: 434 | E56: 398 | H56: 0.243 | I56: 1.07 | J56: 1.038
A57: 19 Guadalajara | C57: 1517 | D57: 2125 | E57: 2125 | H57: 1.98 | I57: 5.96 | J57: 5.967
A58: 45 Toledo | C58: 8798 | D58: 7888 | E58: 6753 | H58: 3.08 | I58: 10.4 | J58: 19.66
A59: CASTILLA-MANCHA | C59: 17958 | D59: 19088 | E59: 17479 | F59: 91.57062028 | H59: 8.994 | I59: 34.24 | J59: 44.29 | K59: 129.3516355
A61: 3 Alicante | C61: 5 | D61: 11 | E61: 12 | H61: 0.003 | J61: 0.01
A62: 12 Castellón | C62: 190 | D62: 290 | E62: 290 | H62: 0.156 | I62: 0.04 | J62: 0.363
A63: 46 Valencia | C63: 23 | D63: 35 | E63: 55 | H63: 0.038 | I63: 0.05 | J63: 0.137
A64: C. VALENCIANA | C64: 218 | D64: 336 | E64: 357 | F64: 106.25 | H64: 0.197 | I64: 0.09 | J64: 0.51 | K64: 566.6666667
A66: 30 R. DE MURCIA | C66: 60 | D66: 49 | E66: 52 | F66: 106.122449 | H66: 0.074 | I66: 0.05 | J66: 0.05 | K66: 100
A68: 6 Badajoz | C68: 1060 | D68: 3583 | E68: 3783 | H68: 0.848 | I68: 7.34 | J68: 7.572
A69: 10 Cáceres | C69: 83 | D69: 168 | E69: 218 | H69: 0.067 | I69: 0.27 | J69: 0.337
A70: EXTREMADURA | C70: 1143 | D70: 3751 | E70: 4001 | F70: 106.6648894 | H70: 0.915 | I70: 7.61 | J70: 7.909 | K70: 103.9290407
A72: 4 Almería | C72: 2 | E72: 25 | H72: 0.005 | J72: 0.065
A73: 11 Cádiz | C73: 1502 | D73: 2874 | E73: 1884.58 | H73: 1.564 | I73: 2.95 | J73: 4.203
A74: 14 Córdoba | C74: 20450 | D74: 22745 | E74: 19205 | H74: 20.571 | I74: 79.21 | J74: 57.463
A75: 18 Granada | C75: 601 | D75: 94 | E75: 338 | H75: 0.131 | I75: 0.05 | J75: 0.633
A76: 21 Huelva | C76: 449 | D76: 132 | E76: 142 | H76: 0.715 | I76: 0.44 | J76: 0.479
A77: 23 Jaén | C77: 55 | D77: 71 | E77: 176 | H77: 0.045 | I77: 0.13 | J77: 0.317
A78: 29 Málaga | C78: 101 | D78: 63 | E78: 95 | H78: 0.165 | I78: 0.15 | J78: 0.238
A79: 41 Sevilla | C79: 546 | D79: 903 | E79: 315 | H79: 0.673 | I79: 3.26 | J79: 0.937
A80: ANDALUCÍA | C80: 23706 | D80: 26882 | E80: 22180.58 | F80: 82.51089949 | H80: 23.869 | I80: 86.18 | J80: 64.335 | K80: 74.65189139
A82: 35 Palmas (Las) | C82: 18 | D82: 18 | E82: 18 | H82: 0.012 | I82: 0.01 | J82: 0.013
A83: 38 S. C. Tenerife | C83: 68 | D83: 66 | H83: 0.047 | I83: 0.04
A84: CANARIAS | C84: 86 | D84: 84 | E84: 18 | F84: 21.42857143 | H84: 0.059 | I84: 0.06 | J84: 0.013 | K84: 21.66666667
A87: ESPAÑA | C87: 111895 | D87: 133419 | E87: 128559.59 | F87: 96.35778262 | H87: 145.104 | I87: 331.2 | J87: 353.313 | K87: 106.6766304
A90: (*)Tipo de Superficie de mes/año solicitado

Sheet Ceb12rno-SRT
A1: AVANCES DE SUPERFICIE Y PRODUCCIÓN
A2: CEBADA DE INVIERNO S/R/T | K2: 2025 JUNIO
A3: SUPERFICIE COSECHADA(*)
A4: PROVINCIAS | B4: SUPERFICIES (HA) | E4: SUPERFICIES (HA) | H4: SUPERFICIES (HA) | L4: PRODUCCIONES (1000 TM) | O4: PRODUCCIONES (1000 TM) | R4: PRODUCCIONES (1000 TM)
A5: Y | B5: SECANO | E5: REGADIO | H5: TOTAL | L5: SECANO | O5: REGADIO | R5: TOTAL
A6: CC-AA | B6: =J6-2 -> 2023 | C6: =J6-1 -> 2024 | D6: =J6 -> 2025 | E6: =J6-2 -> 2023 | F6: =J6-1 -> 2024 | G6: =J6 -> 2025 | H6: =J6-2 -> 2023 | I6: =J6-1 -> 2024 | J6: 2025 | L6: =T6-2 -> 2023 | M6: =T6-1 -> 2024 | N6: =T6 -> 2025 | O6: =T6-2 -> 2023 | P6: =T6-1 -> 2024 | Q6: =T6 -> 2025 | R6: =T6-2 -> 2023 | S6: =T6-1 -> 2024 | T6: 2025
B7: PROVISIONAL | C7: PROVISIONAL | D7: PROVISIONAL | E7: PROVISIONAL | F7: PROVISIONAL | G7: AVANCE | H7: PROVISIONAL | I7: PROVISIONAL | J7: AVANCE | L7: PROVISIONAL | M7: PROVISIONAL | N7: AVANCE | O7: PROVISIONAL | P7: PROVISIONAL | Q7: AVANCE | R7: PROVISIONAL | S7: PROVISIONAL | T7: AVANCE
A10: 15 Coruña (La) | B10: 147 | C10: 110 | D10: 32.87 | H10: 147 | I10: 110 | J10: 32.87 | L10: 0.303 | M10: 0.28 | N10: 0.118 | R10: 0.303 | S10: 0.28 | T10: 0.118
A11: 27 Lugo | B11: 49 | C11: 47 | D11: 73.86 | H11: 49 | I11: 47 | J11: 73.86 | L11: 0.105 | M11: 0.12 | N11: 0.252 | R11: 0.105 | S11: 0.12 | T11: 0.252
A12: 32 Orense | B12: 547 | C12: 588 | D12: 972.12 | H12: 547 | I12: 588 | J12: 972.12 | L12: 1.641 | M12: 2.59 | N12: 2.77 | R12: 1.641 | S12: 2.59 | T12: 2.77
A13: 36 Pontevedra | B13: 19 | C13: 27 | D13: 77.48 | H13: 19 | I13: 27 | J13: 77.48 | L13: 0.041 | M13: 0.12 | N13: 0.265 | R13: 0.041 | S13: 0.12 | T13: 0.265
A14: GALICIA | B14: 762 | C14: 772 | D14: 1156.33 | H14: 762 | I14: 772 | J14: 1156.33 | L14: 2.09 | M14: 3.11 | N14: 3.405 | R14: 2.09 | S14: 3.11 | T14: 3.405
A16: 33 P. DE ASTURIAS
A18: 39 CANTABRIA
A20: 01 Alava | B20: 5143 | C20: 5462 | D20: 4329 | H20: 5143 | I20: 5462 | J20: 4329 | L20: 28.287 | M20: 38.78 | N20: 25.974 | R20: 28.287 | S20: 38.78 | T20: 25.974
A21: 20 Guipúzcoa
A22: 48 Vizcaya
A23: PAIS VASCO | B23: 5143 | C23: 5462 | D23: 4329 | H23: 5143 | I23: 5462 | J23: 4329 | L23: 28.287 | M23: 38.78 | N23: 25.974 | R23: 28.287 | S23: 38.78 | T23: 25.974
A25: 31 NAVARRA | B25: 53276 | C25: 59005 | D25: 60965 | E25: 12420 | F25: 11852 | G25: 11872 | H25: 65696 | I25: 70857 | J25: 72837 | L25: 181.511 | M25: 276.91 | N25: 260.674 | O25: 57.989 | P25: 77.57 | Q25: 74.118 | R25: 239.5 | S25: 354.5 | T25: 334.792
A27: 26 LA RIOJA | B27: 5490 | C27: 4887 | D27: 4900 | G27: 1100 | H27: 5490 | I27: 4887 | J27: 6000 | L27: 7.466 | M27: 15.01 | N27: 24.01 | Q27: 6.27 | R27: 7.466 | S27: 15.01 | T27: 30.28
A29: 22 Huesca | B29: 65950 | C29: 75801 | D29: 95468 | E29: 61522 | F29: 52544 | G29: 57479 | H29: 127472 | I29: 128345 | J29: 152947 | L29: 56.849 | M29: 295.09 | N29: 372.325 | O29: 249.164 | P29: 311.59 | Q29: 316.134 | R29: 306.062 | S29: 606.69 | T29: 688.46
A30: 44 Teruel | B30: 45554 | C30: 51901 | D30: 78423 | E30: 7901 | F30: 8101 | G30: 8292 | H30: 53455 | I30: 60002 | J30: 86715 | L30: 31.888 | M30: 49.2 | N30: 227.191 | O30: 19.753 | P30: 22.24 | Q30: 30.465 | R30: 51.641 | S30: 71.44 | T30: 257.656
A31: 50 Zaragoza | B31: 64651 | C31: 126625 | D31: 154386 | E31: 28442 | F31: 29264 | G31: 3344 | H31: 93093 | I31: 155889 | J31: 157730 | L31: 55.729 | M31: 208.93 | N31: 551.558 | O31: 143.518 | P31: 147.9 | Q31: 20.126 | R31: 199.246 | S31: 356.87 | T31: 571.684
A32: ARAGON | B32: 176155 | C32: 254327 | D32: 328277 | E32: 97865 | F32: 89909 | G32: 69115 | H32: 274020 | I32: 344236 | J32: 397392 | L32: 144.466 | M32: 553.23 | N32: 1151.074 | O32: 412.435 | P32: 481.72 | Q32: 366.725 | R32: 556.949 | S32: 1035.01 | T32: 1517.8
A34: 08 Barcelona | B34: 19993 | C34: 30703 | D34: 33130 | E34: 1088 | F34: 668 | G34: 950 | H34: 21081 | I34: 31371 | J34: 34080 | L34: 15.734 | M34: 61.56 | N34: 138.721 | O34: 5.769 | P34: 3.4 | Q34: 5.371 | R34: 21.503 | S34: 64.97 | T34: 144.092
A35: 17 Girona | B35: 12517 | C35: 15825 | D35: 12912 | E35: 2122 | F35: 2499 | G35: 4329 | H35: 14639 | I35: 18324 | J35: 17241 | L35: 25.259 | M35: 32.22 | N35: 43.12 | O35: 6.491 | P35: 8.34 | Q35: 17.042 | R35: 31.752 | S35: 40.56 | T35: 60.162
A36: 25 Lleida | B36: 64168 | C36: 67284 | D36: 75839 | E36: 31049 | F36: 32385 | G36: 28822 | H36: 95217 | I36: 99669 | J36: 104661 | L36: 33.688 | M36: 145.67 | N36: 341.276 | O36: 159.592 | P36: 202.89 | Q36: 193.442 | R36: 193.28 | S36: 348.56 | T36: 534.718
A37: 43 Tarragona | B37: 12682 | C37: 10979 | D37: 15605 | E37: 261 | F37: 336 | G37: 296 | H37: 12943 | I37: 11315 | J37: 15901 | L37: 15.18 | M37: 13.8 | N37: 56.962 | O37: 0.392 | P37: 0.53 | Q37: 1.392 | R37: 15.572 | S37: 14.33 | T37: 58.354
A38: CATALUÑA | B38: 109360 | C38: 124791 | D38: 137486 | E38: 34520 | F38: 35888 | G38: 34397 | H38: 143880 | I38: 160679 | J38: 171883 | L38: 89.861 | M38: 253.25 | N38: 580.079 | O38: 172.244 | P38: 215.17 | Q38: 217.247 | R38: 262.107 | S38: 468.41 | T38: 797.326
A40: 07 BALEARES | B40: 12469 | C40: 8847 | D40: 8847 | H40: 12469 | I40: 8847 | J40: 8847 | L40: 21.484 | M40: 11.95 | N40: 12.5 | R40: 21.484 | S40: 11.95 | T40: 12.5
A42: 05 Avila | B42: 41652 | C42: 34444 | D42: 38867 | E42: 3770 | F42: 1765 | G42: 2780 | H42: 45422 | I42: 36209 | J42: 41647 | L42: 35.363 | M42: 63.07 | N42: 140.186 | O42: 15.559 | P42: 5.89 | Q42: 11.686 | R42: 50.923 | S42: 68.94 | T42: 151.872
A43: 09 Burgos | B43: 134254 | C43: 128146 | D43: 138314 | E43: 5318 | F43: 4790 | G43: 5210 | H43: 139572 | I43: 132936 | J43: 143524 | L43: 312.678 | M43: 662.13 | N43: 725.755 | O43: 28.276 | P43: 31.12 | Q43: 34.282 | R43: 340.954 | S43: 693.25 | T43: 760.037
A44: 24 León | B44: 16855 | C44: 13794 | D44: 18116 | E44: 4154 | F44: 3920 | G44: 4198 | H44: 21009 | I44: 17714 | J44: 22314 | L44: 25.788 | M44: 52.54 | N44: 65.218 | O44: 22.432 | P44: 20.38 | Q44: 21.83 | R44: 48.22 | S44: 72.93 | T44: 87.048
A45: 34 Palencia | B45: 96202 | C45: 89344 | D45: 96379.37 | E45: 10676 | F45: 8959 | G45: 10434.43 | H45: 106878 | I45: 98303 | J45: 106813.8 | L45: 200.581 | M45: 401.87 | N45: 501.2 | O45: 48.33 | P45: 52.37 | Q45: 60.118 | R45: 248.911 | S45: 454.24 | T45: 561.318
A46: 37 Salamanca | B46: 27186 | C46: 24112 | D46: 25231 | E46: 4337 | F46: 2958 | G46: 4601 | H46: 31523 | I46: 27070 | J46: 29832 | L46: 50.294 | M46: 78.36 | N46: 109.755 | O46: 22.869 | P46: 15.38 | Q46: 23.925 | R46: 73.164 | S46: 93.75 | T46: 133.68
A47: 40 Segovia | B47: 62054 | C47: 47414 | D47: 59761 | E47: 3442 | F47: 2883 | G47: 3556 | H47: 65496 | I47: 50297 | J47: 63317 | L47: 102.761 | M47: 122.8 | N47: 217.052 | O47: 10.326 | P47: 14.3 | Q47: 17.663 | R47: 113.087 | S47: 137.1 | T47: 234.715
A48: 42 Soria | B48: 72650 | C48: 69422 | D48: 72635 | E48: 3189 | F48: 2853 | G48: 2920 | H48: 75839 | I48: 72275 | J48: 75555 | L48: 66.184 | M48: 240.41 | N48: 277.03 | O48: 9.567 | P48: 13.69 | Q48: 15.768 | R48: 75.751 | S48: 254.1 | T48: 292.798
A49: 47 Valladolid | B49: 136678 | C49: 125443 | D49: 135354 | E49: 21103 | F49: 20779 | G49: 25237 | H49: 157781 | I49: 146222 | J49: 160591 | L49: 199.823 | M49: 513.06 | N49: 670.524 | O49: 95.66 | P49: 132.34 | Q49: 179.659 | R49: 295.483 | S49: 645.4 | T49: 850.183
A50: 49 Zamora | B50: 48738 | C50: 51957 | D50: 57470.5 | E50: 8691 | F50: 8433 | G50: 9437 | H50: 57429 | I50: 60390 | J50: 66907.5 | L50: 75.495 | M50: 192.09 | N50: 251.146 | O50: 38.353 | P50: 44.81 | Q50: 66.059 | R50: 113.848 | S50: 236.9 | T50: 317.205
A51: CASTILLA Y LEON | B51: 636269 | C51: 584076 | D51: 642127.87 | E51: 64680 | F51: 57340 | G51: 68373.43 | H51: 700949 | I51: 641416 | J51: 710501.3 | L51: 1068.967 | M51: 2326.33 | N51: 2957.866 | O51: 291.372 | P51: 330.3 | Q51: 430.99 | R51: 1360.341 | S51: 2656.62 | T51: 3388.856
A53: 28 MADRID | B53: 37418 | C53: 32376 | D53: 23262 | E53: 5030 | F53: 3699 | G53: 2395 | H53: 42448 | I53: 36075 | J53: 25657 | L53: 42.582 | M53: 85.89 | N53: 68.801 | O53: 10.548 | P53: 13.45 | Q53: 7.591 | R53: 53.13 | S53: 99.33 | T53: 76.392
A55: 02 Albacete | B55: 23568 | C55: 32600 | D55: 33895 | E55: 1046 | F55: 750 | G55: 750 | H55: 24614 | I55: 33350 | J55: 34645 | L55: 9.427 | M55: 37.03 | N55: 76 | O55: 6.799 | P55: 4.95 | Q55: 5.175 | R55: 16.226 | S55: 41.98 | T55: 81.175
A56: 13 Ciudad Real | B56: 95085 | C56: 103049 | D56: 94021 | E56: 41723 | F56: 33738 | G56: 35343 | H56: 136808 | I56: 136787 | J56: 129364 | L56: 33.185 | M56: 324.19 | N56: 306.508 | O56: 83.863 | P56: 170.71 | Q56: 195.447 | R56: 117.069 | S56: 494.91 | T56: 501.955
A57: 16 Cuenca | B57: 190770 | C57: 217103 | D57: 211147 | E57: 8616 | F57: 7299 | G57: 7550 | H57: 199386 | I57: 224402 | J57: 218697 | L57: 171.693 | M57: 680.4 | N57: 677.356 | O57: 37.48 | P57: 40.96 | Q57: 40.018 | R57: 209.173 | S57: 721.32 | T57: 717.374
A58: 19 Guadalajara | B58: 77907 | C58: 75548 | D58: 75548 | E58: 2983 | F58: 2893 | G58: 2893 | H58: 80890 | I58: 78441 | J58: 78441 | L58: 116.861 | M58: 241.75 | N58: 211.535 | O58: 13.424 | P58: 14.47 | Q58: 8.101 | R58: 130.284 | S58: 256.22 | T58: 219.636
A59: 45 Toledo | B59: 125914 | C59: 129600 | D59: 108648 | E59: 12374 | F59: 9704 | G59: 10876 | H59: 138288 | I59: 139304 | J59: 119524 | L59: 50.617 | M59: 339.29 | N59: 328.095 | O59: 57.935 | P59: 45.41 | Q59: 60.379 | R59: 108.527 | S59: 384.67 | T59: 388.474
A60: CASTILLA-MANCHA | B60: 513244 | C60: 557900 | D60: 523259 | E60: 66742 | F60: 54384 | G60: 57412 | H60: 579986 | I60: 612284 | J60: 580671 | L60: 381.783 | M60: 1622.67 | N60: 1599.494 | O60: 199.501 | P60: 276.49 | Q60: 309.12 | R60: 581.279 | S60: 1899.09 | T60: 1908.614
A62: 03 Alicante | B62: 1845 | C62: 1349 | D62: 1875.6 | E62: 552 | F62: 525 | G62: 402 | H62: 2397 | I62: 1874 | J62: 2277.6 | L62: 1.026 | M62: 0.22 | N62: 3.225 | O62: 1.471 | P62: 1.14 | Q62: 1.892 | R62: 2.497 | S62: 1.35 | T62: 5.117
A63: 12 Castellón | B63: 1147 | C63: 1432 | D63: 1432 | E63: 38 | F63: 47 | G63: 47 | H63: 1185 | I63: 1479 | J63: 1479 | L63: 2.122 | M63: 0.19 | N63: 2.648 | O63: 0.148 | P63: 0.18 | Q63: 0.183 | R63: 2.27 | S63: 0.37 | T63: 2.831
A64: 46 Valencia | B64: 2874 | C64: 2240 | D64: 6390 | E64: 326 | F64: 416 | G64: 404 | H64: 3200 | I64: 2656 | J64: 6794 | L64: 2.472 | M64: 2.24 | N64: 17.199 | O64: 1.304 | P64: 1.92 | Q64: 1.69 | R64: 3.776 | S64: 4.16 | T64: 18.889
A65: C. VALENCIANA | B65: 5866 | C65: 5021 | D65: 9697.6 | E65: 916 | F65: 988 | G65: 853 | H65: 6782 | I65: 6009 | J65: 10550.6 | L65: 5.62 | M65: 2.64 | N65: 23.072 | O65: 2.923 | P65: 3.24 | Q65: 3.765 | R65: 8.543 | S65: 5.88 | T65: 26.837
A67: 30 R. DE MURCIA | B67: 16906 | C67: 14284 | D67: 15344 | E67: 2507 | F67: 1462 | G67: 1239 | H67: 19413 | I67: 15746 | J67: 16583 | L67: 19.121 | M67: 15.81 | N67: 16.996 | O67: 9.474 | P67: 5.69 | Q67: 4.86 | R67: 28.598 | S67: 21.5 | T67: 21.856
A69: 06 Badajoz | B69: 24095 | C69: 47707 | D69: 46890 | E69: 3795 | F69: 2710 | G69: 2671 | H69: 27890 | I69: 50417 | J69: 49561 | L69: 28.649 | M69: 142.93 | N69: 114.505 | O69: 11.283 | P69: 10.56 | Q69: 8.479 | R69: 39.936 | S69: 153.49 | T69: 122.984
A70: 10 Cáceres | B70: 193 | C70: 305 | D70: 211 | E70: 896 | F70: 702 | G70: 357 | H70: 1089 | I70: 1007 | J70: 568 | L70: 0.143 | M70: 0.44 | N70: 0.375 | O70: 1.658 | P70: 1.33 | Q70: 0.825 | R70: 1.8 | S70: 1.77 | T70: 1.2
A71: EXTREMADURA | B71: 24288 | C71: 48012 | D71: 47101 | E71: 4691 | F71: 3412 | G71: 3028 | H71: 28979 | I71: 51424 | J71: 50129 | L71: 28.792 | M71: 143.37 | N71: 114.88 | O71: 12.941 | P71: 11.89 | Q71: 9.304 | R71: 41.736 | S71: 155.26 | T71: 124.184
A73: 04 Almería | B73: 1000 | C73: 374 | D73: 2899 | E73: 232 | F73: 206 | G73: 89 | H73: 1232 | I73: 580 | J73: 2988 | L73: 0.04 | M73: 0.3 | N73: 7.537 | O73: 0.667 | P73: 0.41 | Q73: 0.338 | R73: 0.707 | S73: 0.71 | T73: 7.876
A74: 11 Cádiz | B74: 6957 | C74: 8605 | D74: 8192 | E74: 497 | F74: 616 | G74: 599 | H74: 7454 | I74: 9221 | J74: 8791 | L74: 6.407 | M74: 13.04 | N74: 24.364 | O74: 1.722 | P74: 1.5 | Q74: 1.821 | R74: 8.131 | S74: 14.54 | T74: 26.185
A75: 14 Córdoba | B75: 14576 | C75: 18311 | D75: 18490 | E75: 1067 | F75: 1338 | G75: 780 | H75: 15643 | I75: 19649 | J75: 19270 | L75: 16.908 | M75: 61.16 | N75: 55.84 | O75: 1.459 | P75: 4.16 | Q75: 2.259 | R75: 18.366 | S75: 65.33 | T75: 58.099
A76: 18 Granada | B76: 15137 | C76: 16672 | D76: 29857 | E76: 3739 | F76: 3179 | G76: 3561 | H76: 18876 | I76: 19851 | J76: 33418 | L76: 7.569 | M76: 29.09 | N76: 43.157 | O76: 7.018 | P76: 9.12 | Q76: 8.013 | R76: 14.58 | S76: 38.21 | T76: 51.17
A77: 21 Huelva | B77: 1020 | C77: 1104 | D77: 718 | E77: 30 | F77: 83 | G77: 32 | H77: 1050 | I77: 1187 | J77: 750 | L77: 0.928 | M77: 3.31 | N77: 2.129 | O77: 0.04 | P77: 0.26 | Q77: 0.106 | R77: 0.968 | S77: 3.57 | T77: 2.235
A78: 23 Jaén | B78: 3574 | C78: 5158 | D78: 4949 | E78: 400 | F78: 551 | G78: 564 | H78: 3974 | I78: 5709 | J78: 5513 | L78: 2.362 | M78: 10 | N78: 9.596 | O78: 0.424 | P78: 1.4 | Q78: 1.41 | R78: 2.786 | S78: 11.4 | T78: 11.006
A79: 29 Málaga | B79: 7333 | C79: 8785 | D79: 9494 | E79: 894 | F79: 739 | G79: 968 | H79: 8227 | I79: 9524 | J79: 10462 | L79: 5.866 | M79: 26.32 | N79: 30.34 | O79: 2.682 | P79: 3.04 | Q79: 4.07 | R79: 8.548 | S79: 29.36 | T79: 34.41
A80: 41 Sevilla | B80: 17679 | C80: 17400 | D80: 16180 | E80: 3819 | F80: 2580 | G80: 1320 | H80: 21498 | I80: 19980 | J80: 17500 | L80: 19.093 | M80: 58.12 | N80: 44.98 | O80: 11.342 | P80: 9.73 | Q80: 4.196 | R80: 30.436 | S80: 67.84 | T80: 49.176
A81: ANDALUCIA | B81: 67276 | C81: 76409 | D81: 90779 | E81: 10678 | F81: 9292 | G81: 7913 | H81: 77954 | I81: 85701 | J81: 98692 | L81: 59.173 | M81: 201.34 | N81: 217.943 | O81: 25.354 | P81: 29.62 | Q81: 22.213 | R81: 84.522 | S81: 230.96 | T81: 240.157
A83: 35 Palmas (Las) | B83: 27 | C83: 22 | D83: 22 | E83: 24 | F83: 22 | G83: 22 | H83: 51 | I83: 44 | J83: 44 | L83: 0.028 | M83: 0.02 | N83: 0.022 | O83: 0.063 | P83: 0.06 | Q83: 0.057 | R83: 0.091 | S83: 0.08 | T83: 0.079
A84: 38 S. C. Tenerife | B84: 39 | C84: 47 | D84: 47 | E84: 1 | F84: 1 | G84: 1 | H84: 40 | I84: 48 | J84: 48 | L84: 0.038 | M84: 0.05 | N84: 0.045 | O84: 0.002 | Q84: 0.001 | R84: 0.039 | S84: 0.05 | T84: 0.046
A85: CANARIAS | B85: 66 | C85: 69 | D85: 69 | E85: 25 | F85: 23 | G85: 23 | H85: 91 | I85: 92 | J85: 92 | L85: 0.066 | M85: 0.07 | N85: 0.067 | O85: 0.065 | P85: 0.06 | Q85: 0.058 | R85: 0.13 | S85: 0.13 | T85: 0.125
A88: ESPAÑA | B88: 3327976 | C88: 1776238 | D88: 1897599.8 | E88: 300074 | F88: 268249 | G88: 257720.43 | H88: 1964062 | I88: 2044487 | J88: 2155320.23 | L88: 2081.269 | M88: 5550.37 | N88: 7056.835 | O88: 1194.846 | P88: 1445.19 | Q88: 1452.261 | R88: 3276.162 | S88: 6995.53 | T88: 8509.098
B96: 221 | C96: 231 | E96: 221 | F96: 231 | H96: 221 | I96: 231

Sheet Ceb12rno
A1: AVANCES DE SUPERFICIE Y PRODUCCIÓN
A2: CEBADA DE INVIERNO | J2: 2025 JUNIO
A3: SUPERFICIE COSECHADA(*)
A4: PROVINCIAS | C4: SUPERFICIES (HA) | H4: PRODUCCIONES (1000 TM)
A5: Y
A6: CC-AA | C6: =E6-2 -> 2023 | D6: =E6-1 -> 2024 | E6: 2025 | F6: =E6 -> 2025 | H6: =J6-2 -> 2023 | I6: =J6-1 -> 2024 | J6: 2025 | K6: =J6 -> 2025
C7: PROVISIONAL | D7: PROVISIONAL | E7: AVANCE | F7: =CONCATENATE(D6,"=100") -> 2024=100 | H7: PROVISIONAL | I7: PROVISIONAL | J7: AVANCE | K7: =CONCATENATE(I6,"=100") -> 2024=100
A9: 15 A Coruña | C9: 147 | D9: 110 | E9: 32.87 | H9: 0.303 | I9: 0.28 | J9: 0.118
A10: 27 Lugo | C10: 49 | D10: 47 | E10: 73.86 | H10: 0.105 | I10: 0.12 | J10: 0.252
A11: 32 Ourense | C11: 547 | D11: 588 | E11: 972.12 | H11: 1.641 | I11: 2.59 | J11: 2.77
A12: 36 Pontevedra | C12: 19 | D12: 27 | E12: 77.48 | H12: 0.041 | I12: 0.12 | J12: 0.265
A13: GALICIA | C13: 762 | D13: 772 | E13: 1156.33 | F13: 149.7836788 | H13: 2.09 | I13: 3.11 | J13: 3.405 | K13: 109.4855305
A15: 33 P. DE ASTURIAS
A17: 39 CANTABRIA
A19: 1 Álava | C19: 5143 | D19: 5462 | E19: 4329 | H19: 28.287 | I19: 38.78 | J19: 25.974
A20: 20 Guipúzcoa
A21: 48 Vizcaya
A22: PAIS VASCO | C22: 5143 | D22: 5462 | E22: 4329 | F22: 79.25668253 | H22: 28.287 | I22: 38.78 | J22: 25.974 | K22: 66.97782362
A24: 31 NAVARRA | C24: 65696 | D24: 70857 | E24: 72837 | F24: 102.7943605 | H24: 239.5 | I24: 354.5 | J24: 334.792 | K24: 94.44062059
A26: 26 LA RIOJA | C26: 5490 | D26: 4887 | E26: 6000 | F26: 122.7747084 | H26: 7.466 | I26: 15.01 | J26: 30.28 | K26: 201.7321785
A28: 22 Huesca | C28: 127472 | D28: 128345 | E28: 152947 | H28: 306.062 | I28: 606.69 | J28: 688.46
A29: 44 Teruel | C29: 53455 | D29: 60002 | E29: 86715 | H29: 51.641 | I29: 71.44 | J29: 257.656
A30: 50 Zaragoza | C30: 93093 | D30: 155889 | E30: 157730 | H30: 199.246 | I30: 356.87 | J30: 571.684
A31: ARAGÓN | C31: 274020 | D31: 344236 | E31: 397392 | F31: 115.4417318 | H31: 556.949 | I31: 1035.01 | J31: 1517.8 | K31: 146.6459261
A33: 8 Barcelona | C33: 21081 | D33: 31371 | E33: 34080 | H33: 21.503 | I33: 64.97 | J33: 144.092
A34: 17 Girona | C34: 14639 | D34: 18324 | E34: 17241 | H34: 31.752 | I34: 40.56 | J34: 60.162
A35: 25 Lleida | C35: 95217 | D35: 99669 | E35: 104661 | H35: 193.28 | I35: 348.56 | J35: 534.718
A36: 43 Tarragona | C36: 12943 | D36: 11315 | E36: 15901 | H36: 15.572 | I36: 14.33 | J36: 58.354
A37: CATALUÑA | C37: 143880 | D37: 160679 | E37: 171883 | F37: 106.9729087 | H37: 262.107 | I37: 468.41 | J37: 797.326 | K37: 170.2196793
A39: 7 BALEARES | C39: 12469 | D39: 8847 | E39: 8847 | F39: 100 | H39: 21.484 | I39: 11.95 | J39: 12.5 | K39: 104.6025105
A41: 5 Ávila | C41: 45422 | D41: 36209 | E41: 41647 | H41: 50.923 | I41: 68.94 | J41: 151.872
A42: 9 Burgos | C42: 139572 | D42: 132936 | E42: 143524 | H42: 340.954 | I42: 693.25 | J42: 760.037
A43: 24 León | C43: 21009 | D43: 17714 | E43: 22314 | H43: 48.22 | I43: 72.93 | J43: 87.048
A44: 34 Palencia | C44: 106878 | D44: 98303 | E44: 106813.8 | H44: 248.911 | I44: 454.24 | J44: 561.318
A45: 37 Salamanca | C45: 31523 | D45: 27070 | E45: 29832 | H45: 73.164 | I45: 93.75 | J45: 133.68
A46: 40 Segovia | C46: 65496 | D46: 50297 | E46: 63317 | H46: 113.087 | I46: 137.1 | J46: 234.715
A47: 42 Soria | C47: 75839 | D47: 72275 | E47: 75555 | H47: 75.751 | I47: 254.1 | J47: 292.798
A48: 47 Valladolid | C48: 157781 | D48: 146222 | E48: 160591 | H48: 295.483 | I48: 645.4 | J48: 850.183
A49: 49 Zamora | C49: 57429 | D49: 60390 | E49: 66907.5 | H49: 113.848 | I49: 236.9 | J49: 317.205
A50: CASTILLA Y LEÓN | C50: 700949 | D50: 641416 | E50: 710501.3 | F50: 110.7707478 | H50: 1360.341 | I50: 2656.62 | J50: 3388.856 | K50: 127.5626924
A52: 28 MADRID | C52: 42448 | D52: 36075 | E52: 25657 | F52: 71.12127512 | H52: 53.13 | I52: 99.33 | J52: 76.392 | K52: 76.90727877
A54: 2 Albacete | C54: 24614 | D54: 33350 | E54: 34645 | H54: 16.226 | I54: 41.98 | J54: 81.175
A55: 13 Ciudad Real | C55: 136808 | D55: 136787 | E55: 129364 | H55: 117.069 | I55: 494.91 | J55: 501.955
A56: 16 Cuenca | C56: 199386 | D56: 224402 | E56: 218697 | H56: 209.173 | I56: 721.32 | J56: 717.374
A57: 19 Guadalajara | C57: 80890 | D57: 78441 | E57: 78441 | H57: 130.284 | I57: 256.22 | J57: 219.636
A58: 45 Toledo | C58: 138288 | D58: 139304 | E58: 119524 | H58: 108.527 | I58: 384.67 | J58: 388.474
A59: CASTILLA-MANCHA | C59: 579986 | D59: 612284 | E59: 580671 | F59: 94.83687309 | H59: 581.279 | I59: 1899.09 | J59: 1908.614 | K59: 100.5015034
A61: 3 Alicante | C61: 2397 | D61: 1874 | E61: 2277.6 | H61: 2.497 | I61: 1.35 | J61: 5.117
A62: 12 Castellón | C62: 1185 | D62: 1479 | E62: 1479 | H62: 2.27 | I62: 0.37 | J62: 2.831
A63: 46 Valencia | C63: 3200 | D63: 2656 | E63: 6794 | H63: 3.776 | I63: 4.16 | J63: 18.889
A64: C. VALENCIANA | C64: 6782 | D64: 6009 | E64: 10550.6 | F64: 175.5799634 | H64: 8.543 | I64: 5.88 | J64: 26.837 | K64: 456.4115646
A66: 30 R. DE MURCIA | C66: 19413 | D66: 15746 | E66: 16583 | F66: 105.3156357 | H66: 28.598 | I66: 21.5 | J66: 21.856 | K66: 101.655814
A68: 6 Badajoz | C68: 27890 | D68: 50417 | E68: 49561 | H68: 39.936 | I68: 153.49 | J68: 122.984
A69: 10 Cáceres | C69: 1089 | D69: 1007 | E69: 568 | H69: 1.8 | I69: 1.77 | J69: 1.2
A70: EXTREMADURA | C70: 28979 | D70: 51424 | E70: 50129 | F70: 97.4817206 | H70: 41.736 | I70: 155.26 | J70: 124.184 | K70: 79.98454206
A72: 4 Almería | C72: 1232 | D72: 580 | E72: 2988 | H72: 0.707 | I72: 0.71 | J72: 7.876
A73: 11 Cádiz | C73: 7454 | D73: 9221 | E73: 8791 | H73: 8.131 | I73: 14.54 | J73: 26.185
A74: 14 Córdoba | C74: 15643 | D74: 19649 | E74: 19270 | H74: 18.366 | I74: 65.33 | J74: 58.099
A75: 18 Granada | C75: 18876 | D75: 19851 | E75: 33418 | H75: 14.58 | I75: 38.21 | J75: 51.17
A76: 21 Huelva | C76: 1050 | D76: 1187 | E76: 750 | H76: 0.968 | I76: 3.57 | J76: 2.235
A77: 23 Jaén | C77: 3974 | D77: 5709 | E77: 5513 | H77: 2.786 | I77: 11.4 | J77: 11.006
A78: 29 Málaga | C78: 8227 | D78: 9524 | E78: 10462 | H78: 8.548 | I78: 29.36 | J78: 34.41
A79: 41 Sevilla | C79: 21498 | D79: 19980 | E79: 17500 | H79: 30.436 | I79: 67.84 | J79: 49.176
A80: ANDALUCÍA | C80: 77954 | D80: 85701 | E80: 98692 | F80: 115.1585162 | H80: 84.522 | I80: 230.96 | J80: 240.157 | K80: 103.9820748
A82: 35 Palmas (Las) | C82: 51 | D82: 44 | E82: 44 | H82: 0.091 | I82: 0.08 | J82: 0.079
A83: 38 S. C. Tenerife | C83: 40 | D83: 48 | E83: 48 | H83: 0.039 | I83: 0.05 | J83: 0.046
A84: CANARIAS | C84: 91 | D84: 92 | E84: 92 | F84: 100 | H84: 0.13 | I84: 0.13 | J84: 0.125 | K84: 96.15384615
A87: ESPAÑA | C87: 1964062 | D87: 2044487 | E87: 2155320.23 | F87: 105.4210778 | H87: 3276.162 | I87: 6995.53 | J87: 8509.098 | K87: 121.6362163
A90: (*)Tipo de Superficie de mes/año solicitado

Sheet Ceb13rno-SRT
A1: AVANCES DE SUPERFICIE Y PRODUCCIÓN
A2: CEBADA 2C DE INVIERNO S/R/T | K2: 2025 JUNIO
A3: SUPERFICIE COSECHADA(*)
A4: PROVINCIAS | B4: SUPERFICIES (HA) | E4: SUPERFICIES (HA) | H4: SUPERFICIES (HA) | L4: PRODUCCIONES (1000 TM) | O4: PRODUCCIONES (1000 TM) | R4: PRODUCCIONES (1000 TM)
A5: Y | B5: SECANO | E5: REGADIO | H5: TOTAL | L5: SECANO | O5: REGADIO | R5: TOTAL
A6: CC-AA | B6: =J6-2 -> 2023 | C6: =J6-1 -> 2024 | D6: =J6 -> 2025 | E6: =J6-2 -> 2023 | F6: =J6-1 -> 2024 | G6: =J6 -> 2025 | H6: =J6-2 -> 2023 | I6: =J6-1 -> 2024 | J6: 2025 | L6: =T6-2 -> 2023 | M6: =T6-1 -> 2024 | N6: =T6 -> 2025 | O6: =T6-2 -> 2023 | P6: =T6-1 -> 2024 | Q6: =T6 -> 2025 | R6: =T6-2 -> 2023 | S6: =T6-1 -> 2024 | T6: 2025
B7: PROVISIONAL | C7: PROVISIONAL | D7: PROVISIONAL | E7: PROVISIONAL | F7: PROVISIONAL | G7: AVANCE | H7: PROVISIONAL | I7: PROVISIONAL | J7: AVANCE | L7: PROVISIONAL | M7: PROVISIONAL | N7: AVANCE | O7: PROVISIONAL | P7: PROVISIONAL | Q7: AVANCE | R7: PROVISIONAL | S7: PROVISIONAL | T7: AVANCE
A10: 15 Coruña (La) | B10: 147 | C10: 110 | D10: 32.87 | H10: 147 | I10: 110 | J10: 32.87 | L10: 0.303 | M10: 0.28 | N10: 0.118 | R10: 0.303 | S10: 0.28 | T10: 0.118
A11: 27 Lugo | B11: 49 | C11: 47 | D11: 73.86 | H11: 49 | I11: 47 | J11: 73.86 | L11: 0.105 | M11: 0.12 | N11: 0.252 | R11: 0.105 | S11: 0.12 | T11: 0.252
A12: 32 Orense | B12: 547 | C12: 578 | D12: 972.12 | H12: 547 | I12: 578 | J12: 972.12 | L12: 1.641 | M12: 2.55 | N12: 2.77 | R12: 1.641 | S12: 2.55 | T12: 2.77
A13: 36 Pontevedra | B13: 19 | C13: 27 | D13: 77.48 | H13: 19 | I13: 27 | J13: 77.48 | L13: 0.041 | M13: 0.12 | N13: 0.265 | R13: 0.041 | S13: 0.12 | T13: 0.265
A14: GALICIA | B14: 762 | C14: 762 | D14: 1156.33 | H14: 762 | I14: 762 | J14: 1156.33 | L14: 2.09 | M14: 3.06 | N14: 3.405 | R14: 2.09 | S14: 3.06 | T14: 3.405
A16: 33 P. DE ASTURIAS
A18: 39 CANTABRIA
A20: 01 Alava | B20: 5143 | C20: 5462 | D20: 4329 | H20: 5143 | I20: 5462 | J20: 4329 | L20: 28.287 | M20: 38.78 | N20: 25.974 | R20: 28.287 | S20: 38.78 | T20: 25.974
A21: 20 Guipúzcoa
A22: 48 Vizcaya
A23: PAIS VASCO | B23: 5143 | C23: 5462 | D23: 4329 | H23: 5143 | I23: 5462 | J23: 4329 | L23: 28.287 | M23: 38.78 | N23: 25.974 | R23: 28.287 | S23: 38.78 | T23: 25.974
A25: 31 NAVARRA | B25: 53276 | C25: 58843 | D25: 60890 | E25: 12420 | F25: 11847 | G25: 11867 | H25: 65696 | I25: 70690 | J25: 72757 | L25: 181.511 | M25: 276.21 | N25: 260.299 | O25: 57.989 | P25: 77.54 | Q25: 74.093 | R25: 239.5 | S25: 353.75 | T25: 334.392
A27: 26 LA RIOJA | B27: 5490 | C27: 4887 | D27: 4900 | G27: 1100 | H27: 5490 | I27: 4887 | J27: 6000 | L27: 7.466 | M27: 15.01 | N27: 24.01 | Q27: 6.27 | R27: 7.466 | S27: 15.01 | T27: 30.28
A29: 22 Huesca | B29: 63367 | C29: 74170 | D29: 93559 | E29: 59113 | F29: 51413 | G29: 56328 | H29: 122480 | I29: 125583 | J29: 149887 | L29: 54.559 | M29: 289.04 | N29: 364.88 | O29: 239.526 | P29: 304.88 | Q29: 309.804 | R29: 294.085 | S29: 593.92 | T29: 674.684
A30: 44 Teruel | B30: 43770 | C30: 50001 | D30: 76855 | E30: 7591 | F30: 7900 | G30: 8126 | H30: 51361 | I30: 57901 | J30: 84981 | L30: 30.639 | M30: 47.4 | N30: 222.649 | O30: 18.978 | P30: 21.69 | Q30: 29.855 | R30: 49.617 | S30: 69.09 | T30: 252.504
A31: 50 Zaragoza | B31: 62119 | C31: 122038 | D31: 151484 | E31: 27329 | F31: 28204 | G31: 3091 | H31: 89448 | I31: 150242 | J31: 154575 | L31: 53.484 | M31: 203.8 | N31: 541.19 | O31: 138.011 | P31: 143.28 | Q31: 18.604 | R31: 191.496 | S31: 347.08 | T31: 559.794
A32: ARAGON | B32: 169256 | C32: 246209 | D32: 321898 | E32: 94033 | F32: 87517 | G32: 67545 | H32: 263289 | I32: 333726 | J32: 389443 | L32: 138.682 | M32: 540.24 | N32: 1128.719 | O32: 396.515 | P32: 469.84 | Q32: 358.263 | R32: 535.198 | S32: 1010.09 | T32: 1486.982
A34: 08 Barcelona | B34: 19770 | C34: 30608 | D34: 33020 | E34: 1088 | F34: 655 | G34: 950 | H34: 20858 | I34: 31263 | J34: 33970 | L34: 15.519 | M34: 61.34 | N34: 138.295 | O34: 5.769 | P34: 3.34 | Q34: 5.371 | R34: 21.288 | S34: 64.68 | T34: 143.666
A35: 17 Girona | B35: 12016 | C35: 15780 | D35: 12872 | E35: 2037 | F35: 2487 | G35: 4316 | H35: 14053 | I35: 18267 | J35: 17188 | L35: 24.248 | M35: 32.13 | N35: 43 | O35: 6.233 | P35: 8.3 | Q35: 17 | R35: 30.482 | S35: 40.43 | T35: 60
A36: 25 Lleida | B36: 63911 | C36: 67224 | D36: 75739 | E36: 30925 | F36: 32239 | G36: 28672 | H36: 94836 | I36: 99463 | J36: 104411 | L36: 33.553 | M36: 145.61 | N36: 340.826 | O36: 158.955 | P36: 201.88 | Q36: 192.437 | R36: 192.508 | S36: 347.49 | T36: 533.263
A37: 43 Tarragona | B37: 12682 | C37: 10945 | D37: 15567 | E37: 261 | F37: 335 | G37: 295 | H37: 12943 | I37: 11280 | J37: 15862 | L37: 15.18 | M37: 13.76 | N37: 56.82 | O37: 0.392 | P37: 0.52 | Q37: 1.386 | R37: 15.572 | S37: 14.28 | T37: 58.206
A38: CATALUÑA | B38: 108379 | C38: 124557 | D38: 137198 | E38: 34311 | F38: 35716 | G38: 34233 | H38: 142690 | I38: 160273 | J38: 171431 | L38: 88.5 | M38: 252.83 | N38: 578.941 | O38: 171.349 | P38: 214.05 | Q38: 216.194 | R38: 259.85 | S38: 466.88 | T38: 795.135
A40: 07 BALEARES | B40: 874 | C40: 350 | D40: 350 | H40: 874 | I40: 350 | J40: 350 | L40: 1.506 | M40: 0.47 | N40: 0.9 | R40: 1.506 | S40: 0.47 | T40: 0.9
A42: 05 Avila | B42: 39265 | C42: 32834 | D42: 37051 | E42: 3663 | F42: 1717 | G42: 2728 | H42: 42928 | I42: 34551 | J42: 39779 | L42: 33.493 | M42: 59.86 | N42: 133.939 | O42: 15.147 | P42: 5.73 | Q42: 11.49 | R42: 48.64 | S42: 65.58 | T42: 145.429
A43: 09 Burgos | B43: 130054 | C43: 123415 | D43: 137814 | E43: 5318 | F43: 4790 | G43: 5210 | H43: 135372 | I43: 128205 | J43: 143024 | L43: 302.896 | M43: 637.69 | N43: 723.174 | O43: 28.276 | P43: 31.12 | Q43: 34.282 | R43: 331.172 | S43: 668.81 | T43: 757.456
A44: 24 León | B44: 15855 | C44: 12794 | D44: 16916 | E44: 4154 | F44: 3920 | G44: 4198 | H44: 20009 | I44: 16714 | J44: 21114 | L44: 24.258 | M44: 48.73 | N44: 60.898 | O44: 22.432 | P44: 20.38 | Q44: 21.83 | R44: 46.69 | S44: 69.12 | T44: 82.728
A45: 34 Palencia | B45: 87202 | C45: 86264 | D45: 95841.37 | E45: 9676 | F45: 8685 | G45: 10429.43 | H45: 96878 | I45: 94949 | J45: 106270.8 | L45: 181.816 | M45: 388.02 | N45: 498.402 | O45: 43.803 | P45: 51.28 | Q45: 60.089 | R45: 225.619 | S45: 439.29 | T45: 558.491
A46: 37 Salamanca | B46: 26536 | C46: 23512 | D46: 24881 | E46: 4337 | F46: 2958 | G46: 4601 | H46: 30873 | I46: 26470 | J46: 29482 | L46: 49.092 | M46: 76.41 | N46: 108.232 | O46: 22.869 | P46: 15.38 | Q46: 23.925 | R46: 71.961 | S46: 91.8 | T46: 132.157
A47: 40 Segovia | B47: 54054 | C47: 42714 | D47: 55761 | E47: 2942 | F47: 2583 | G47: 3556 | H47: 56996 | I47: 45297 | J47: 59317 | L47: 89.513 | M47: 110.63 | N47: 202.524 | O47: 8.826 | P47: 12.81 | Q47: 17.663 | R47: 98.339 | S47: 123.44 | T47: 220.187
A48: 42 Soria | B48: 67650 | C48: 64422 | D48: 69635 | E48: 3139 | F48: 2803 | G48: 2900 | H48: 70789 | I48: 67225 | J48: 72535 | L48: 61.629 | M48: 223.09 | N48: 265.588 | O48: 9.417 | P48: 13.45 | Q48: 15.66 | R48: 71.046 | S48: 236.55 | T48: 281.248
A49: 47 Valladolid | B49: 135178 | C49: 123943 | D49: 134354 | E49: 20853 | F49: 20529 | G49: 25062 | H49: 156031 | I49: 144472 | J49: 159416 | L49: 197.63 | M49: 506.93 | N49: 665.548 | O49: 94.527 | P49: 130.75 | Q49: 178.434 | R49: 292.157 | S49: 637.68 | T49: 843.982
A50: 49 Zamora | B50: 46340 | C50: 49431 | D50: 54596.98 | E50: 8263 | F50: 8021 | G50: 8965.15 | H50: 54603 | I50: 57452 | J50: 63562.13 | L50: 71.781 | M50: 182.75 | N50: 238.589 | O50: 36.465 | P50: 42.62 | Q50: 62.756 | R50: 108.245 | S50: 225.37 | T50: 301.345
A51: CASTILLA Y LEON | B51: 602134 | C51: 559329 | D51: 626850.35 | E51: 62345 | F51: 56006 | G51: 67649.58 | H51: 664479 | I51: 615335 | J51: 694499.93 | L51: 1012.108 | M51: 2234.1 | N51: 2896.894 | O51: 281.762 | P51: 323.53 | Q51: 426.129 | R51: 1293.869 | S51: 2557.63 | T51: 3323.023
A53: 28 MADRID | B53: 37026 | C53: 31380 | D53: 23029 | E53: 4980 | F53: 3587 | G53: 2371 | H53: 42006 | I53: 34967 | J53: 25400 | L53: 42.136 | M53: 83.03 | N53: 68.166 | O53: 10.443 | P53: 13.05 | Q53: 7.497 | R53: 52.579 | S53: 96.08 | T53: 75.663
A55: 02 Albacete | B55: 10661 | C55: 15500 | D55: 16115 | E55: 546 | F55: 450 | G55: 450 | H55: 11207 | I55: 15950 | J55: 16565 | L55: 4.264 | M55: 16.51 | N55: 36.645 | O55: 3.549 | P55: 2.97 | Q55: 3.1 | R55: 7.813 | S55: 19.48 | T55: 39.745
A56: 13 Ciudad Real | B56: 66560 | C56: 72134 | D56: 65815 | E56: 29205 | F56: 23617 | G56: 24740 | H56: 95765 | I56: 95751 | J56: 90555 | L56: 21.632 | M56: 222.17 | N56: 210.608 | O56: 58.848 | P56: 118.09 | Q56: 136.07 | R56: 80.48 | S56: 340.26 | T56: 346.678
A57: 16 Cuenca | B57: 180755 | C57: 201757 | D57: 194279 | E57: 8244 | F57: 6780 | G57: 6948 | H57: 188999 | I57: 208537 | J57: 201227 | L57: 162.68 | M57: 630.49 | N57: 621.691 | O57: 35.861 | P57: 37.97 | Q57: 36.826 | R57: 198.541 | S57: 668.46 | T57: 658.517
A58: 19 Guadalajara | B58: 74757 | C58: 72517 | D58: 72517 | E58: 2873 | F58: 2787 | G58: 2787 | H58: 77630 | I58: 75304 | J58: 75304 | L58: 112.136 | M58: 232.05 | N58: 203.048 | O58: 12.929 | P58: 13.94 | Q58: 7.804 | R58: 125.064 | S58: 245.99 | T58: 210.852
A59: 45 Toledo | B59: 114582 | C59: 118055 | D59: 97891 | E59: 11260 | F59: 8671 | G59: 9681 | H59: 125842 | I59: 126726 | J59: 107572 | L59: 45.833 | M59: 306.94 | N59: 293.673 | O59: 52.922 | P59: 40.75 | Q59: 56.555 | R59: 98.755 | S59: 347.7 | T59: 350.228
A60: CASTILLA-MANCHA | B60: 447315 | C60: 479963 | D60: 446617 | E60: 52128 | F60: 42305 | G60: 44606 | H60: 499443 | I60: 522268 | J60: 491223 | L60: 346.545 | M60: 1408.17 | N60: 1365.665 | O60: 164.109 | P60: 213.71 | Q60: 240.355 | R60: 510.653 | S60: 1621.88 | T60: 1606.02
A62: 03 Alicante | B62: 1667 | C62: 1225 | D62: 1781.82 | E62: 496 | F62: 470 | G62: 381.9 | H62: 2163 | I62: 1695 | J62: 2163.72 | L62: 0.934 | M62: 0.2 | N62: 3.064 | O62: 1.324 | P62: 1.01 | Q62: 1.798 | R62: 2.258 | S62: 1.21 | T62: 4.861
A63: 12 Castellón | B63: 1128 | C63: 1408 | D63: 1408 | E63: 38 | F63: 47 | G63: 47 | H63: 1166 | I63: 1455 | J63: 1455 | L63: 2.087 | M63: 0.18 | N63: 2.605 | O63: 0.148 | P63: 0.18 | Q63: 0.183 | R63: 2.235 | S63: 0.37 | T63: 2.788
A64: 46 Valencia | B64: 2752 | C64: 2128 | D64: 6132 | E64: 312 | F64: 403 | G64: 391 | H64: 3064 | I64: 2531 | J64: 6523 | L64: 2.367 | M64: 2.13 | N64: 16.505 | O64: 1.248 | P64: 1.85 | Q64: 1.636 | R64: 3.615 | S64: 3.98 | T64: 18.141
A65: C. VALENCIANA | B65: 5547 | C65: 4761 | D65: 9321.82 | E65: 846 | F65: 920 | G65: 819.9 | H65: 6393 | I65: 5681 | J65: 10141.72 | L65: 5.388 | M65: 2.51 | N65: 22.174 | O65: 2.72 | P65: 3.05 | Q65: 3.617 | R65: 8.108 | S65: 5.56 | T65: 25.79
A67: 30 R. DE MURCIA | B67: 8155 | C67: 6631 | D67: 7084 | E67: 900 | F67: 516 | G67: 411 | H67: 9055 | I67: 7147 | J67: 7495 | L67: 7.747 | M67: 6.17 | N67: 6.588 | O67: 2.565 | P67: 1.51 | Q67: 1.2 | R67: 10.312 | S67: 7.67 | T67: 7.788
A69: 06 Badajoz | B69: 23999 | C69: 44967 | D69: 44090 | E69: 3795 | F69: 2710 | G69: 2671 | H69: 27794 | I69: 47677 | J69: 46761 | L69: 28.559 | M69: 135.89 | N69: 107.668 | O69: 11.283 | P69: 10.56 | Q69: 8.479 | R69: 39.841 | S69: 146.45 | T69: 116.147
A70: 10 Cáceres | B70: 119 | C70: 227 | D70: 131 | E70: 896 | F70: 702 | G70: 357 | H70: 1015 | I70: 929 | J70: 488 | L70: 0.094 | M70: 0.35 | N70: 0.233 | O70: 1.658 | P70: 1.33 | Q70: 0.825 | R70: 1.751 | S70: 1.68 | T70: 1.058
A71: EXTREMADURA | B71: 24118 | C71: 45194 | D71: 44221 | E71: 4691 | F71: 3412 | G71: 3028 | H71: 28809 | I71: 48606 | J71: 47249 | L71: 28.653 | M71: 136.24 | N71: 107.901 | O71: 12.941 | P71: 11.89 | Q71: 9.304 | R71: 41.592 | S71: 148.12 | T71: 117.205
A73: 04 Almería
A74: 11 Cádiz | B74: 6422 | C74: 8026 | D74: 8105 | E74: 462 | F74: 580 | G74: 551 | H74: 6884 | I74: 8606 | J74: 8656 | L74: 5.587 | M74: 12.15 | N74: 24.096 | O74: 1.601 | P74: 1.38 | Q74: 1.653 | R74: 7.188 | S74: 13.53 | T74: 25.749
A75: 14 Córdoba | B75: 2915 | C75: 5846 | D75: 4930 | E75: 711 | F75: 1048 | G75: 530 | H75: 3626 | I75: 6894 | J75: 5460 | L75: 2.915 | M75: 17.54 | N75: 13.804 | O75: 0.924 | P75: 3.14 | Q75: 1.484 | R75: 3.839 | S75: 20.68 | T75: 15.288
A76: 18 Granada | B76: 10698 | C76: 15372 | D76: 27004 | E76: 2558 | F76: 2950 | G76: 3534 | H76: 13256 | I76: 18322 | J76: 30538 | L76: 6.151 | M76: 26.55 | N76: 39.018 | O76: 4.835 | P76: 8.37 | Q76: 7.966 | R76: 10.986 | S76: 34.92 | T76: 46.984
A77: 21 Huelva | B77: 895 | C77: 994 | D77: 668 | E77: 20 | F77: 83 | G77: 32 | H77: 915 | I77: 1077 | J77: 700 | L77: 0.814 | M77: 2.98 | N77: 1.994 | O77: 0.028 | P77: 0.26 | Q77: 0.106 | R77: 0.842 | S77: 3.24 | T77: 2.1
A78: 23 Jaén | B78: 2180 | C78: 3146 | D78: 3019 | E78: 244 | F78: 336 | G78: 344 | H78: 2424 | I78: 3482 | J78: 3363 | L78: 1.526 | M78: 5.98 | N78: 5.736 | O78: 0.268 | P78: 0.84 | Q78: 0.86 | R78: 1.794 | S78: 6.82 | T78: 6.596
A79: 29 Málaga | B79: 6990 | C79: 8435 | D79: 9094 | E79: 774 | F79: 589 | G79: 818 | H79: 7764 | I79: 9024 | J79: 9912 | L79: 5.592 | M79: 25.31 | N79: 29.1 | O79: 2.322 | P79: 2.42 | Q79: 3.44 | R79: 7.914 | S79: 27.72 | T79: 32.54
A80: 41 Sevilla | B80: 15911 | C80: 15660 | D80: 14560 | E80: 3437 | F80: 2320 | G80: 1180 | H80: 19348 | I80: 17980 | J80: 15740 | L80: 17.502 | M80: 53.24 | N80: 40.768 | O80: 10.311 | P80: 8.82 | Q80: 3.776 | R80: 27.813 | S80: 62.06 | T80: 44.544
A81: ANDALUCIA | B81: 46011 | C81: 57479 | D81: 67380 | E81: 8206 | F81: 7906 | G81: 6989 | H81: 54217 | I81: 65385 | J81: 74369 | L81: 40.087 | M81: 143.74 | N81: 154.516 | O81: 20.289 | P81: 25.22 | Q81: 19.285 | R81: 60.376 | S81: 168.96 | T81: 173.801
A83: 35 Palmas (Las) | B83: 27 | C83: 22 | D83: 22 | E83: 24 | F83: 22 | G83: 22 | H83: 51 | I83: 44 | J83: 44 | L83: 0.028 | M83: 0.02 | N83: 0.022 | O83: 0.063 | P83: 0.06 | Q83: 0.057 | R83: 0.091 | S83: 0.08 | T83: 0.079
A84: 38 S. C. Tenerife | B84: 39 | C84: 47 | D84: 47 | E84: 1 | F84: 1 | G84: 1 | H84: 40 | I84: 48 | J84: 48 | L84: 0.038 | M84: 0.05 | N84: 0.045 | O84: 0.002 | Q84: 0.001 | R84: 0.039 | S84: 0.05 | T84: 0.046
A85: CANARIAS | B85: 66 | C85: 69 | D85: 69 | E85: 25 | F85: 23 | G85: 23 | H85: 91 | I85: 92 | J85: 92 | L85: 0.066 | M85: 0.07 | N85: 0.067 | O85: 0.065 | P85: 0.06 | Q85: 0.058 | R85: 0.13 | S85: 0.13 | T85: 0.125
A88: ESPAÑA | B88: 3027104 | C88: 1625876 | D88: 1755293.5 | E88: 274885 | F88: 249755 | G88: 240642.48 | H88: 1788437 | I88: 1875631 | J88: 1995935.98 | L88: 1930.772 | M88: 5140.63 | N88: 6644.219 | O88: 1120.747 | P88: 1353.44 | Q88: 1362.265 | R88: 3051.516 | S88: 6494.07 | T88: 8006.483
B96: 221 | C96: 231 | E96: 221 | F96: 231 | H96: 221 | I96: 231

Sheet Ceb13rno
A1: AVANCES DE SUPERFICIE Y PRODUCCIÓN
A2: CEBADA 2C DE INVIERNO | J2: 2025 JUNIO
A3: SUPERFICIE COSECHADA(*)
A4: PROVINCIAS | C4: SUPERFICIES (HA) | H4: PRODUCCIONES (1000 TM)
A5: Y
A6: CC-AA | C6: =E6-2 -> 2023 | D6: =E6-1 -> 2024 | E6: 2025 | F6: =E6 -> 2025 | H6: =J6-2 -> 2023 | I6: =J6-1 -> 2024 | J6: 2025 | K6: =J6 -> 2025
C7: PROVISIONAL | D7: PROVISIONAL | E7: AVANCE | F7: =CONCATENATE(D6,"=100") -> 2024=100 | H7: PROVISIONAL | I7: PROVISIONAL | J7: AVANCE | K7: =CONCATENATE(I6,"=100") -> 2024=100
A9: 15 A Coruña | C9: 147 | D9: 110 | E9: 32.87 | H9: 0.303 | I9: 0.28 | J9: 0.118
A10: 27 Lugo | C10: 49 | D10: 47 | E10: 73.86 | H10: 0.105 | I10: 0.12 | J10: 0.252
A11: 32 Ourense | C11: 547 | D11: 578 | E11: 972.12 | H11: 1.641 | I11: 2.55 | J11: 2.77
A12: 36 Pontevedra | C12: 19 | D12: 27 | E12: 77.48 | H12: 0.041 | I12: 0.12 | J12: 0.265
A13: GALICIA | C13: 762 | D13: 762 | E13: 1156.33 | F13: 151.7493438 | H13: 2.09 | I13: 3.06 | J13: 3.405 | K13: 111.2745098
A15: 33 P. DE ASTURIAS
A17: 39 CANTABRIA
A19: 1 Álava | C19: 5143 | D19: 5462 | E19: 4329 | H19: 28.287 | I19: 38.78 | J19: 25.974
A20: 20 Guipúzcoa
A21: 48 Vizcaya
A22: PAIS VASCO | C22: 5143 | D22: 5462 | E22: 4329 | F22: 79.25668253 | H22: 28.287 | I22: 38.78 | J22: 25.974 | K22: 66.97782362
A24: 31 NAVARRA | C24: 65696 | D24: 70690 | E24: 72757 | F24: 102.9240345 | H24: 239.5 | I24: 353.75 | J24: 334.392 | K24: 94.52777385
A26: 26 LA RIOJA | C26: 5490 | D26: 4887 | E26: 6000 | F26: 122.7747084 | H26: 7.466 | I26: 15.01 | J26: 30.28 | K26: 201.7321785
A28: 22 Huesca | C28: 122480 | D28: 125583 | E28: 149887 | H28: 294.085 | I28: 593.92 | J28: 674.684
A29: 44 Teruel | C29: 51361 | D29: 57901 | E29: 84981 | H29: 49.617 | I29: 69.09 | J29: 252.504
A30: 50 Zaragoza | C30: 89448 | D30: 150242 | E30: 154575 | H30: 191.496 | I30: 347.08 | J30: 559.794
A31: ARAGÓN | C31: 263289 | D31: 333726 | E31: 389443 | F31: 116.6954328 | H31: 535.198 | I31: 1010.09 | J31: 1486.982 | K31: 147.2128226
A33: 8 Barcelona | C33: 20858 | D33: 31263 | E33: 33970 | H33: 21.288 | I33: 64.68 | J33: 143.666
A34: 17 Girona | C34: 14053 | D34: 18267 | E34: 17188 | H34: 30.482 | I34: 40.43 | J34: 60
A35: 25 Lleida | C35: 94836 | D35: 99463 | E35: 104411 | H35: 192.508 | I35: 347.49 | J35: 533.263
A36: 43 Tarragona | C36: 12943 | D36: 11280 | E36: 15862 | H36: 15.572 | I36: 14.28 | J36: 58.206
A37: CATALUÑA | C37: 142690 | D37: 160273 | E37: 171431 | F37: 106.9618713 | H37: 259.85 | I37: 466.88 | J37: 795.135 | K37: 170.3082162
A39: 7 BALEARES | C39: 874 | D39: 350 | E39: 350 | F39: 100 | H39: 1.506 | I39: 0.47 | J39: 0.9 | K39: 191.4893617
A41: 5 Ávila | C41: 42928 | D41: 34551 | E41: 39779 | H41: 48.64 | I41: 65.58 | J41: 145.429
A42: 9 Burgos | C42: 135372 | D42: 128205 | E42: 143024 | H42: 331.172 | I42: 668.81 | J42: 757.456
A43: 24 León | C43: 20009 | D43: 16714 | E43: 21114 | H43: 46.69 | I43: 69.12 | J43: 82.728
A44: 34 Palencia | C44: 96878 | D44: 94949 | E44: 106270.8 | H44: 225.619 | I44: 439.29 | J44: 558.491
A45: 37 Salamanca | C45: 30873 | D45: 26470 | E45: 29482 | H45: 71.961 | I45: 91.8 | J45: 132.157
A46: 40 Segovia | C46: 56996 | D46: 45297 | E46: 59317 | H46: 98.339 | I46: 123.44 | J46: 220.187
A47: 42 Soria | C47: 70789 | D47: 67225 | E47: 72535 | H47: 71.046 | I47: 236.55 | J47: 281.248
A48: 47 Valladolid | C48: 156031 | D48: 144472 | E48: 159416 | H48: 292.157 | I48: 637.68 | J48: 843.982
A49: 49 Zamora | C49: 54603 | D49: 57452 | E49: 63562.13 | H49: 108.245 | I49: 225.37 | J49: 301.345
A50: CASTILLA Y LEÓN | C50: 664479 | D50: 615335 | E50: 694499.93 | F50: 112.8653384 | H50: 1293.869 | I50: 2557.63 | J50: 3323.023 | K50: 129.9258689
A52: 28 MADRID | C52: 42006 | D52: 34967 | E52: 25400 | F52: 72.63991764 | H52: 52.579 | I52: 96.08 | J52: 75.663 | K52: 78.75
A54: 2 Albacete | C54: 11207 | D54: 15950 | E54: 16565 | H54: 7.813 | I54: 19.48 | J54: 39.745
A55: 13 Ciudad Real | C55: 95765 | D55: 95751 | E55: 90555 | H55: 80.48 | I55: 340.26 | J55: 346.678
A56: 16 Cuenca | C56: 188999 | D56: 208537 | E56: 201227 | H56: 198.541 | I56: 668.46 | J56: 658.517
A57: 19 Guadalajara | C57: 77630 | D57: 75304 | E57: 75304 | H57: 125.064 | I57: 245.99 | J57: 210.852
A58: 45 Toledo | C58: 125842 | D58: 126726 | E58: 107572 | H58: 98.755 | I58: 347.7 | J58: 350.228
A59: CASTILLA-MANCHA | C59: 499443 | D59: 522268 | E59: 491223 | F59: 94.05573384 | H59: 510.653 | I59: 1621.88 | J59: 1606.02 | K59: 99.02212248
A61: 3 Alicante | C61: 2163 | D61: 1695 | E61: 2163.72 | H61: 2.258 | I61: 1.21 | J61: 4.861
A62: 12 Castellón | C62: 1166 | D62: 1455 | E62: 1455 | H62: 2.235 | I62: 0.37 | J62: 2.788
A63: 46 Valencia | C63: 3064 | D63: 2531 | E63: 6523 | H63: 3.615 | I63: 3.98 | J63: 18.141
A64: C. VALENCIANA | C64: 6393 | D64: 5681 | E64: 10141.72 | F64: 178.5199789 | H64: 8.108 | I64: 5.56 | J64: 25.79 | K64: 463.8489209
A66: 30 R. DE MURCIA | C66: 9055 | D66: 7147 | E66: 7495 | F66: 104.8691759 | H66: 10.312 | I66: 7.67 | J66: 7.788 | K66: 101.5384615
A68: 6 Badajoz | C68: 27794 | D68: 47677 | E68: 46761 | H68: 39.841 | I68: 146.45 | J68: 116.147
A69: 10 Cáceres | C69: 1015 | D69: 929 | E69: 488 | H69: 1.751 | I69: 1.68 | J69: 1.058
A70: EXTREMADURA | C70: 28809 | D70: 48606 | E70: 47249 | F70: 97.2081636 | H70: 41.592 | I70: 148.12 | J70: 117.205 | K70: 79.1284094
A72: 4 Almería
A73: 11 Cádiz | C73: 6884 | D73: 8606 | E73: 8656 | H73: 7.188 | I73: 13.53 | J73: 25.749
A74: 14 Córdoba | C74: 3626 | D74: 6894 | E74: 5460 | H74: 3.839 | I74: 20.68 | J74: 15.288
A75: 18 Granada | C75: 13256 | D75: 18322 | E75: 30538 | H75: 10.986 | I75: 34.92 | J75: 46.984
A76: 21 Huelva | C76: 915 | D76: 1077 | E76: 700 | H76: 0.842 | I76: 3.24 | J76: 2.1
A77: 23 Jaén | C77: 2424 | D77: 3482 | E77: 3363 | H77: 1.794 | I77: 6.82 | J77: 6.596
A78: 29 Málaga | C78: 7764 | D78: 9024 | E78: 9912 | H78: 7.914 | I78: 27.72 | J78: 32.54
A79: 41 Sevilla | C79: 19348 | D79: 17980 | E79: 15740 | H79: 27.813 | I79: 62.06 | J79: 44.544
A80: ANDALUCÍA | C80: 54217 | D80: 65385 | E80: 74369 | F80: 113.7401545 | H80: 60.376 | I80: 168.96 | J80: 173.801 | K80: 102.8651752
A82: 35 Palmas (Las) | C82: 51 | D82: 44 | E82: 44 | H82: 0.091 | I82: 0.08 | J82: 0.079
A83: 38 S. C. Tenerife | C83: 40 | D83: 48 | E83: 48 | H83: 0.039 | I83: 0.05 | J83: 0.046
A84: CANARIAS | C84: 91 | D84: 92 | E84: 92 | F84: 100 | H84: 0.13 | I84: 0.13 | J84: 0.125 | K84: 96.15384615
A87: ESPAÑA | C87: 1788437 | D87: 1875631 | E87: 1995935.98 | F87: 106.414107 | H87: 3051.516 | I87: 6494.07 | J87: 8006.483 | K87: 123.2891392
A90: (*)Tipo de Superficie de mes/año solicitado

Sheet Ceb14rno-SRT
A1: AVANCES DE SUPERFICIE Y PRODUCCIÓN
A2: CEBADA 6C DE INVIERNO S/R/T | K2: 2025 JUNIO
A3: SUPERFICIE COSECHADA(*)
A4: PROVINCIAS | B4: SUPERFICIES (HA) | E4: SUPERFICIES (HA) | H4: SUPERFICIES (HA) | L4: PRODUCCIONES (1000 TM) | O4: PRODUCCIONES (1000 TM) | R4: PRODUCCIONES (1000 TM)
A5: Y | B5: SECANO | E5: REGADIO | H5: TOTAL | L5: SECANO | O5: REGADIO | R5: TOTAL
A6: CC-AA | B6: =J6-2 -> 2023 | C6: =J6-1 -> 2024 | D6: =J6 -> 2025 | E6: =J6-2 -> 2023 | F6: =J6-1 -> 2024 | G6: =J6 -> 2025 | H6: =J6-2 -> 2023 | I6: =J6-1 -> 2024 | J6: 2025 | L6: =T6-2 -> 2023 | M6: =T6-1 -> 2024 | N6: =T6 -> 2025 | O6: =T6-2 -> 2023 | P6: =T6-1 -> 2024 | Q6: =T6 -> 2025 | R6: =T6-2 -> 2023 | S6: =T6-1 -> 2024 | T6: 2025
B7: PROVISIONAL | C7: PROVISIONAL | D7: PROVISIONAL | E7: PROVISIONAL | F7: PROVISIONAL | G7: AVANCE | H7: PROVISIONAL | I7: PROVISIONAL | J7: AVANCE | L7: PROVISIONAL | M7: PROVISIONAL | N7: AVANCE | O7: PROVISIONAL | P7: PROVISIONAL | Q7: AVANCE | R7: PROVISIONAL | S7: PROVISIONAL | T7: AVANCE
A10: 15 Coruña (La)
A11: 27 Lugo
A12: 32 Orense | C12: 10 | I12: 10 | M12: 0.04 | S12: 0.04
A13: 36 Pontevedra
A14: GALICIA | C14: 10 | I14: 10 | M14: 0.04 | S14: 0.04
A16: 33 P. DE ASTURIAS
A18: 39 CANTABRIA
A20: 01 Alava
A21: 20 Guipúzcoa
A22: 48 Vizcaya
A23: PAIS VASCO
A25: 31 NAVARRA | C25: 162 | D25: 75 | F25: 5 | G25: 5 | I25: 167 | J25: 80 | M25: 0.73 | N25: 0.375 | P25: 0.03 | Q25: 0.025 | S25: 0.75 | T25: 0.4
A27: 26 LA RIOJA
A29: 22 Huesca | B29: 2583 | C29: 1631 | D29: 1909 | E29: 2409 | F29: 1131 | G29: 1151 | H29: 4992 | I29: 2762 | J29: 3060 | L29: 2.286 | M29: 6.07 | N29: 7.445 | O29: 9.691 | P29: 6.71 | Q29: 6.33 | R29: 11.977 | S29: 12.77 | T29: 13.776
A30: 44 Teruel | B30: 1784 | C30: 1900 | D30: 1568 | E30: 310 | F30: 201 | G30: 166 | H30: 2094 | I30: 2101 | J30: 1734 | L30: 1.249 | M30: 1.8 | N30: 4.542 | O30: 0.775 | P30: 0.55 | Q30: 0.61 | R30: 2.024 | S30: 2.35 | T30: 5.152
A31: 50 Zaragoza | B31: 2532 | C31: 4587 | D31: 2902 | E31: 1113 | F31: 1060 | G31: 253 | H31: 3645 | I31: 5647 | J31: 3155 | L31: 2.241 | M31: 5.18 | N31: 10.368 | O31: 5.509 | P31: 4.61 | Q31: 1.523 | R31: 7.75 | S31: 9.79 | T31: 11.89
A32: ARAGON | B32: 6899 | C32: 8118 | D32: 6379 | E32: 3832 | F32: 2392 | G32: 1570 | H32: 10731 | I32: 10510 | J32: 7949 | L32: 5.776 | M32: 13.05 | N32: 22.355 | O32: 15.975 | P32: 11.87 | Q32: 8.463 | R32: 21.751 | S32: 24.92 | T32: 30.818
A34: 08 Barcelona | B34: 223 | C34: 95 | D34: 110 | F34: 13 | H34: 223 | I34: 108 | J34: 110 | L34: 0.215 | M34: 0.23 | N34: 0.426 | P34: 0.06 | R34: 0.215 | S34: 0.29 | T34: 0.426
A35: 17 Girona | B35: 501 | C35: 45 | D35: 40 | E35: 85 | F35: 12 | G35: 13 | H35: 586 | I35: 57 | J35: 53 | L35: 1.011 | M35: 0.09 | N35: 0.12 | O35: 0.26 | P35: 0.04 | Q35: 0.042 | R35: 1.27 | S35: 0.13 | T35: 0.162
A36: 25 Lleida | B36: 257 | C36: 60 | D36: 100 | E36: 124 | F36: 146 | G36: 150 | H36: 381 | I36: 206 | J36: 250 | L36: 0.135 | M36: 0.07 | N36: 0.45 | O36: 0.637 | P36: 1 | Q36: 1.005 | R36: 0.772 | S36: 1.08 | T36: 1.455
A37: 43 Tarragona | C37: 34 | D37: 38 | F37: 1 | G37: 1 | I37: 35 | J37: 39 | M37: 0.04 | N37: 0.142 | P37: 0.01 | Q37: 0.005 | S37: 0.04 | T37: 0.148
A38: CATALUÑA | B38: 981 | C38: 234 | D38: 288 | E38: 209 | F38: 172 | G38: 164 | H38: 1190 | I38: 406 | J38: 452 | L38: 1.361 | M38: 0.42 | N38: 1.138 | O38: 0.897 | P38: 1.11 | Q38: 1.052 | R38: 2.257 | S38: 1.54 | T38: 2.191
A40: 07 BALEARES | B40: 11595 | C40: 8497 | D40: 8497 | H40: 11595 | I40: 8497 | J40: 8497 | L40: 19.978 | M40: 11.48 | N40: 11.6 | R40: 19.978 | S40: 11.48 | T40: 11.6
A42: 05 Avila | B42: 2387 | C42: 1610 | D42: 1816 | E42: 107 | F42: 48 | G42: 52 | H42: 2494 | I42: 1658 | J42: 1868 | L42: 1.869 | M42: 3.2 | N42: 6.247 | O42: 0.414 | P42: 0.16 | Q42: 0.196 | R42: 2.283 | S42: 3.36 | T42: 6.443
A43: 09 Burgos | B43: 4200 | C43: 4731 | D43: 500 | H43: 4200 | I43: 4731 | J43: 500 | L43: 9.782 | M43: 24.45 | N43: 2.581 | R43: 9.782 | S43: 24.45 | T43: 2.581
A44: 24 León | B44: 1000 | C44: 1000 | D44: 1200 | H44: 1000 | I44: 1000 | J44: 1200 | L44: 1.53 | M44: 3.81 | N44: 4.32 | R44: 1.53 | S44: 3.81 | T44: 4.32
A45: 34 Palencia | B45: 9000 | C45: 3080 | D45: 538 | E45: 1000 | F45: 274 | G45: 5 | H45: 10000 | I45: 3354 | J45: 543 | L45: 18.765 | M45: 13.85 | N45: 2.798 | O45: 4.527 | P45: 1.1 | Q45: 0.029 | R45: 23.292 | S45: 14.95 | T45: 2.827
A46: 37 Salamanca | B46: 650 | C46: 600 | D46: 350 | H46: 650 | I46: 600 | J46: 350 | L46: 1.203 | M46: 1.95 | N46: 1.523 | R46: 1.203 | S46: 1.95 | T46: 1.523
A47: 40 Segovia | B47: 8000 | C47: 4700 | D47: 4000 | E47: 500 | F47: 300 | H47: 8500 | I47: 5000 | J47: 4000 | L47: 13.248 | M47: 12.17 | N47: 14.528 | O47: 1.5 | P47: 1.49 | R47: 14.748 | S47: 13.66 | T47: 14.528
A48: 42 Soria | B48: 5000 | C48: 5000 | D48: 3000 | E48: 50 | F48: 50 | G48: 20 | H48: 5050 | I48: 5050 | J48: 3020 | L48: 4.555 | M48: 17.32 | N48: 11.442 | O48: 0.15 | P48: 0.24 | Q48: 0.108 | R48: 4.705 | S48: 17.56 | T48: 11.55
A49: 47 Valladolid | B49: 1500 | C49: 1500 | D49: 1000 | E49: 250 | F49: 250 | G49: 175 | H49: 1750 | I49: 1750 | J49: 1175 | L49: 2.193 | M49: 6.14 | N49: 4.976 | O49: 1.133 | P49: 1.59 | Q49: 1.225 | R49: 3.326 | S49: 7.73 | T49: 6.201
A50: 49 Zamora | B50: 2398 | C50: 2526 | D50: 2873.53 | E50: 428 | F50: 412 | G50: 471.85 | H50: 2826 | I50: 2938 | J50: 3345.38 | L50: 3.715 | M50: 9.34 | N50: 12.557 | O50: 1.889 | P50: 2.19 | Q50: 3.303 | R50: 5.603 | S50: 11.53 | T50: 15.86
A51: CASTILLA Y LEON | B51: 34135 | C51: 24747 | D51: 15277.53 | E51: 2335 | F51: 1334 | G51: 723.85 | H51: 36470 | I51: 26081 | J51: 16001.38 | L51: 56.86 | M51: 92.22 | N51: 60.972 | O51: 9.613 | P51: 6.77 | Q51: 4.861 | R51: 66.472 | S51: 98.99 | T51: 65.833
A53: 28 MADRID | B53: 392 | C53: 996 | D53: 233 | E53: 50 | F53: 112 | G53: 24 | H53: 442 | I53: 1108 | J53: 257 | L53: 0.446 | M53: 2.85 | N53: 0.635 | O53: 0.105 | P53: 0.4 | Q53: 0.094 | R53: 0.551 | S53: 3.25 | T53: 0.729
A55: 02 Albacete | B55: 12907 | C55: 17100 | D55: 17780 | E55: 500 | F55: 300 | G55: 300 | H55: 13407 | I55: 17400 | J55: 18080 | L55: 5.163 | M55: 20.52 | N55: 39.355 | O55: 3.25 | P55: 1.98 | Q55: 2.075 | R55: 8.413 | S55: 22.5 | T55: 41.43
A56: 13 Ciudad Real | B56: 28525 | C56: 30915 | D56: 28206 | E56: 12518 | F56: 10121 | G56: 10603 | H56: 41043 | I56: 41036 | J56: 38809 | L56: 11.553 | M56: 102.02 | N56: 95.9 | O56: 25.036 | P56: 52.63 | Q56: 59.377 | R56: 36.589 | S56: 154.65 | T56: 155.277
A57: 16 Cuenca | B57: 10015 | C57: 15346 | D57: 16868 | E57: 372 | F57: 519 | G57: 602 | H57: 10387 | I57: 15865 | J57: 17470 | L57: 9.014 | M57: 49.88 | N57: 55.665 | O57: 1.618 | P57: 2.98 | Q57: 3.192 | R57: 10.632 | S57: 52.86 | T57: 58.857
A58: 19 Guadalajara | B58: 3150 | C58: 3031 | D58: 3031 | E58: 110 | F58: 106 | G58: 106 | H58: 3260 | I58: 3137 | J58: 3137 | L58: 4.725 | M58: 9.7 | N58: 8.487 | O58: 0.495 | P58: 0.53 | Q58: 0.297 | R58: 5.22 | S58: 10.23 | T58: 8.784
A59: 45 Toledo | B59: 11332 | C59: 11545 | D59: 10757 | E59: 1114 | F59: 1033 | G59: 1195 | H59: 12446 | I59: 12578 | J59: 11952 | L59: 4.759 | M59: 32.33 | N59: 34.422 | O59: 5.013 | P59: 4.65 | Q59: 3.824 | R59: 9.772 | S59: 36.98 | T59: 38.246
A60: CASTILLA-MANCHA | B60: 65929 | C60: 77937 | D60: 76642 | E60: 14614 | F60: 12079 | G60: 12806 | H60: 80543 | I60: 90016 | J60: 89448 | L60: 35.214 | M60: 214.44 | N60: 233.829 | O60: 35.412 | P60: 62.77 | Q60: 68.765 | R60: 70.626 | S60: 277.21 | T60: 302.594
A62: 03 Alicante | B62: 178 | C62: 124 | D62: 93.78 | E62: 56 | F62: 55 | G62: 20.1 | H62: 234 | I62: 179 | J62: 113.88 | L62: 0.093 | M62: 0.02 | N62: 0.161 | O62: 0.147 | P62: 0.13 | Q62: 0.095 | R62: 0.239 | S62: 0.15 | T62: 0.256
A63: 12 Castellón | B63: 19 | C63: 24 | D63: 24 | H63: 19 | I63: 24 | J63: 24 | L63: 0.035 | N63: 0.043 | R63: 0.035 | T63: 0.043
A64: 46 Valencia | B64: 122 | C64: 112 | D64: 258 | E64: 14 | F64: 13 | G64: 13 | H64: 136 | I64: 125 | J64: 271 | L64: 0.105 | M64: 0.11 | N64: 0.694 | O64: 0.056 | P64: 0.06 | Q64: 0.054 | R64: 0.161 | S64: 0.17 | T64: 0.748
A65: C. VALENCIANA | B65: 319 | C65: 260 | D65: 375.78 | E65: 70 | F65: 68 | G65: 33.1 | H65: 389 | I65: 328 | J65: 408.88 | L65: 0.233 | M65: 0.14 | N65: 0.898 | O65: 0.203 | P65: 0.19 | Q65: 0.149 | R65: 0.435 | S65: 0.32 | T65: 1.047
A67: 30 R. DE MURCIA | B67: 8751 | C67: 7653 | D67: 8260 | E67: 1607 | F67: 946 | G67: 828 | H67: 10358 | I67: 8599 | J67: 9088 | L67: 11.376 | M67: 9.64 | N67: 10.408 | O67: 6.91 | P67: 4.18 | Q67: 3.66 | R67: 18.286 | S67: 13.82 | T67: 14.067
A69: 06 Badajoz | B69: 96 | C69: 2740 | D69: 2800 | H69: 96 | I69: 2740 | J69: 2800 | L69: 0.095 | M69: 7.04 | N69: 6.838 | R69: 0.095 | S69: 7.04 | T69: 6.838
A70: 10 Cáceres | B70: 74 | C70: 78 | D70: 80 | H70: 74 | I70: 78 | J70: 80 | L70: 0.049 | M70: 0.1 | N70: 0.142 | R70: 0.049 | S70: 0.1 | T70: 0.142
A71: EXTREMADURA | B71: 170 | C71: 2818 | D71: 2880 | H71: 170 | I71: 2818 | J71: 2880 | L71: 0.144 | M71: 7.14 | N71: 6.98 | R71: 0.144 | S71: 7.14 | T71: 6.98
A73: 04 Almería | B73: 1000 | C73: 374 | D73: 2899 | E73: 232 | F73: 206 | G73: 89 | H73: 1232 | I73: 580 | J73: 2988 | L73: 0.04 | M73: 0.3 | N73: 7.537 | O73: 0.667 | P73: 0.41 | Q73: 0.338 | R73: 0.707 | S73: 0.71 | T73: 7.876
A74: 11 Cádiz | B74: 535 | C74: 579 | D74: 87 | E74: 35 | F74: 36 | G74: 48 | H74: 570 | I74: 615 | J74: 135 | L74: 0.821 | M74: 0.89 | N74: 0.268 | O74: 0.121 | P74: 0.13 | Q74: 0.168 | R74: 0.943 | S74: 1.01 | T74: 0.436
A75: 14 Córdoba | B75: 11661 | C75: 12465 | D75: 13560 | E75: 356 | F75: 290 | G75: 250 | H75: 12017 | I75: 12755 | J75: 13810 | L75: 13.993 | M75: 43.63 | N75: 42.036 | O75: 0.534 | P75: 1.02 | Q75: 0.775 | R75: 14.527 | S75: 44.64 | T75: 42.811
A76: 18 Granada | B76: 4439 | C76: 1300 | D76: 2853 | E76: 1181 | F76: 229 | G76: 27 | H76: 5620 | I76: 1529 | J76: 2880 | L76: 1.412 | M76: 2.54 | N76: 4.139 | O76: 2.182 | P76: 0.75 | Q76: 0.047 | R76: 3.594 | S76: 3.29 | T76: 4.186
A77: 21 Huelva | B77: 125 | C77: 110 | D77: 50 | E77: 10 | H77: 135 | I77: 110 | J77: 50 | L77: 0.114 | M77: 0.33 | N77: 0.135 | O77: 0.012 | R77: 0.126 | S77: 0.33 | T77: 0.135
A78: 23 Jaén | B78: 1394 | C78: 2012 | D78: 1930 | E78: 156 | F78: 215 | G78: 220 | H78: 1550 | I78: 2227 | J78: 2150 | L78: 0.836 | M78: 4.02 | N78: 3.86 | O78: 0.156 | P78: 0.56 | Q78: 0.55 | R78: 0.992 | S78: 4.58 | T78: 4.41
A79: 29 Málaga | B79: 343 | C79: 350 | D79: 400 | E79: 120 | F79: 150 | G79: 150 | H79: 463 | I79: 500 | J79: 550 | L79: 0.274 | M79: 1.02 | N79: 1.24 | O79: 0.36 | P79: 0.62 | Q79: 0.63 | R79: 0.634 | S79: 1.64 | T79: 1.87
A80: 41 Sevilla | B80: 1768 | C80: 1740 | D80: 1620 | E80: 382 | F80: 260 | G80: 140 | H80: 2150 | I80: 2000 | J80: 1760 | L80: 1.591 | M80: 4.87 | N80: 4.212 | O80: 1.031 | P80: 0.91 | Q80: 0.42 | R80: 2.623 | S80: 5.78 | T80: 4.632
A81: ANDALUCIA | B81: 21265 | C81: 18930 | D81: 23399 | E81: 2472 | F81: 1386 | G81: 924 | H81: 23737 | I81: 20316 | J81: 24323 | L81: 19.081 | M81: 57.6 | N81: 63.427 | O81: 5.063 | P81: 4.4 | Q81: 2.928 | R81: 24.146 | S81: 61.99 | T81: 66.356
A83: 35 Palmas (Las)
A84: 38 S. C. Tenerife
A85: CANARIAS
A88: ESPAÑA | B88: 300872 | C88: 150362 | D88: 142306.31 | E88: 25189 | F88: 18494 | G88: 17077.95 | H88: 175625 | I88: 168856 | J88: 159384.26 | L88: 150.469 | M88: 409.74 | N88: 412.617 | O88: 74.178 | P88: 91.72 | Q88: 89.997 | R88: 224.646 | S88: 501.46 | T88: 502.615
B96: 221 | C96: 231 | E96: 221 | F96: 231 | H96: 221 | I96: 231

Sheet Ceb14rno
A1: AVANCES DE SUPERFICIE Y PRODUCCIÓN
A2: CEBADA 6C DE INVIERNO | J2: 2025 JUNIO
A3: SUPERFICIE COSECHADA(*)
A4: PROVINCIAS | C4: SUPERFICIES (HA) | H4: PRODUCCIONES (1000 TM)
A5: Y
A6: CC-AA | C6: =E6-2 -> 2023 | D6: =E6-1 -> 2024 | E6: 2025 | F6: =E6 -> 2025 | H6: =J6-2 -> 2023 | I6: =J6-1 -> 2024 | J6: 2025 | K6: =J6 -> 2025
C7: PROVISIONAL | D7: PROVISIONAL | E7: AVANCE | F7: =CONCATENATE(D6,"=100") -> 2024=100 | H7: PROVISIONAL | I7: PROVISIONAL | J7: AVANCE | K7: =CONCATENATE(I6,"=100") -> 2024=100
A9: 15 A Coruña
A10: 27 Lugo
A11: 32 Ourense | D11: 10 | I11: 0.04
A12: 36 Pontevedra
A13: GALICIA | D13: 10 | I13: 0.04
A15: 33 P. DE ASTURIAS
A17: 39 CANTABRIA
A19: 1 Álava
A20: 20 Guipúzcoa
A21: 48 Vizcaya
A22: PAIS VASCO
A24: 31 NAVARRA | D24: 167 | E24: 80 | F24: 47.90419162 | I24: 0.75 | J24: 0.4 | K24: 53.33333333
A26: 26 LA RIOJA
A28: 22 Huesca | C28: 4992 | D28: 2762 | E28: 3060 | H28: 11.977 | I28: 12.77 | J28: 13.776
A29: 44 Teruel | C29: 2094 | D29: 2101 | E29: 1734 | H29: 2.024 | I29: 2.35 | J29: 5.152
A30: 50 Zaragoza | C30: 3645 | D30: 5647 | E30: 3155 | H30: 7.75 | I30: 9.79 | J30: 11.89
A31: ARAGÓN | C31: 10731 | D31: 10510 | E31: 7949 | F31: 75.63273073 | H31: 21.751 | I31: 24.92 | J31: 30.818 | K31: 123.6677368
A33: 8 Barcelona | C33: 223 | D33: 108 | E33: 110 | H33: 0.215 | I33: 0.29 | J33: 0.426
A34: 17 Girona | C34: 586 | D34: 57 | E34: 53 | H34: 1.27 | I34: 0.13 | J34: 0.162
A35: 25 Lleida | C35: 381 | D35: 206 | E35: 250 | H35: 0.772 | I35: 1.08 | J35: 1.455
A36: 43 Tarragona | D36: 35 | E36: 39 | I36: 0.04 | J36: 0.148
A37: CATALUÑA | C37: 1190 | D37: 406 | E37: 452 | F37: 111.3300493 | H37: 2.257 | I37: 1.54 | J37: 2.191 | K37: 142.2727273
A39: 7 BALEARES | C39: 11595 | D39: 8497 | E39: 8497 | F39: 100 | H39: 19.978 | I39: 11.48 | J39: 11.6 | K39: 101.0452962
A41: 5 Ávila | C41: 2494 | D41: 1658 | E41: 1868 | H41: 2.283 | I41: 3.36 | J41: 6.443
A42: 9 Burgos | C42: 4200 | D42: 4731 | E42: 500 | H42: 9.782 | I42: 24.45 | J42: 2.581
A43: 24 León | C43: 1000 | D43: 1000 | E43: 1200 | H43: 1.53 | I43: 3.81 | J43: 4.32
A44: 34 Palencia | C44: 10000 | D44: 3354 | E44: 543 | H44: 23.292 | I44: 14.95 | J44: 2.827
A45: 37 Salamanca | C45: 650 | D45: 600 | E45: 350 | H45: 1.203 | I45: 1.95 | J45: 1.523
A46: 40 Segovia | C46: 8500 | D46: 5000 | E46: 4000 | H46: 14.748 | I46: 13.66 | J46: 14.528
A47: 42 Soria | C47: 5050 | D47: 5050 | E47: 3020 | H47: 4.705 | I47: 17.56 | J47: 11.55
A48: 47 Valladolid | C48: 1750 | D48: 1750 | E48: 1175 | H48: 3.326 | I48: 7.73 | J48: 6.201
A49: 49 Zamora | C49: 2826 | D49: 2938 | E49: 3345.38 | H49: 5.603 | I49: 11.53 | J49: 15.86
A50: CASTILLA Y LEÓN | C50: 36470 | D50: 26081 | E50: 16001.38 | F50: 61.35263218 | H50: 66.472 | I50: 98.99 | J50: 65.833 | K50: 66.50469744
A52: 28 MADRID | C52: 442 | D52: 1108 | E52: 257 | F52: 23.19494585 | H52: 0.551 | I52: 3.25 | J52: 0.729 | K52: 22.43076923
A54: 2 Albacete | C54: 13407 | D54: 17400 | E54: 18080 | H54: 8.413 | I54: 22.5 | J54: 41.43
A55: 13 Ciudad Real | C55: 41043 | D55: 41036 | E55: 38809 | H55: 36.589 | I55: 154.65 | J55: 155.277
A56: 16 Cuenca | C56: 10387 | D56: 15865 | E56: 17470 | H56: 10.632 | I56: 52.86 | J56: 58.857
A57: 19 Guadalajara | C57: 3260 | D57: 3137 | E57: 3137 | H57: 5.22 | I57: 10.23 | J57: 8.784
A58: 45 Toledo | C58: 12446 | D58: 12578 | E58: 11952 | H58: 9.772 | I58: 36.98 | J58: 38.246
A59: CASTILLA-MANCHA | C59: 80543 | D59: 90016 | E59: 89448 | F59: 99.36900107 | H59: 70.626 | I59: 277.21 | J59: 302.594 | K59: 109.1569568
A61: 3 Alicante | C61: 234 | D61: 179 | E61: 113.88 | H61: 0.239 | I61: 0.15 | J61: 0.256
A62: 12 Castellón | C62: 19 | D62: 24 | E62: 24 | H62: 0.035 | J62: 0.043
A63: 46 Valencia | C63: 136 | D63: 125 | E63: 271 | H63: 0.161 | I63: 0.17 | J63: 0.748
A64: C. VALENCIANA | C64: 389 | D64: 328 | E64: 408.88 | F64: 124.6585366 | H64: 0.435 | I64: 0.32 | J64: 1.047 | K64: 327.1875
A66: 30 R. DE MURCIA | C66: 10358 | D66: 8599 | E66: 9088 | F66: 105.6867078 | H66: 18.286 | I66: 13.82 | J66: 14.067 | K66: 101.7872648
A68: 6 Badajoz | C68: 96 | D68: 2740 | E68: 2800 | H68: 0.095 | I68: 7.04 | J68: 6.838
A69: 10 Cáceres | C69: 74 | D69: 78 | E69: 80 | H69: 0.049 | I69: 0.1 | J69: 0.142
A70: EXTREMADURA | C70: 170 | D70: 2818 | E70: 2880 | F70: 102.2001419 | H70: 0.144 | I70: 7.14 | J70: 6.98 | K70: 97.75910364
A72: 4 Almería | C72: 1232 | D72: 580 | E72: 2988 | H72: 0.707 | I72: 0.71 | J72: 7.876
A73: 11 Cádiz | C73: 570 | D73: 615 | E73: 135 | H73: 0.943 | I73: 1.01 | J73: 0.436
A74: 14 Córdoba | C74: 12017 | D74: 12755 | E74: 13810 | H74: 14.527 | I74: 44.64 | J74: 42.811
A75: 18 Granada | C75: 5620 | D75: 1529 | E75: 2880 | H75: 3.594 | I75: 3.29 | J75: 4.186
A76: 21 Huelva | C76: 135 | D76: 110 | E76: 50 | H76: 0.126 | I76: 0.33 | J76: 0.135
A77: 23 Jaén | C77: 1550 | D77: 2227 | E77: 2150 | H77: 0.992 | I77: 4.58 | J77: 4.41
A78: 29 Málaga | C78: 463 | D78: 500 | E78: 550 | H78: 0.634 | I78: 1.64 | J78: 1.87
A79: 41 Sevilla | C79: 2150 | D79: 2000 | E79: 1760 | H79: 2.623 | I79: 5.78 | J79: 4.632
A80: ANDALUCÍA | C80: 23737 | D80: 20316 | E80: 24323 | F80: 119.7233707 | H80: 24.146 | I80: 61.99 | J80: 66.356 | K80: 107.0430715
A82: 35 Palmas (Las)
A83: 38 S. C. Tenerife
A84: CANARIAS
